Workbook

Sheet Contents
C2: Contents
F3: Colour Codes | K3: File Name: | M3: =IFERROR(File_name(),"") -> 
C4: Model | G4: Inputs | I4: 1234567890
D5: True Value | G5: Section Titles | I5: TITLE ROW | K5: Last Save Date | M5: =IFERROR(lastsaved(),"") -> 
D6: Alternative terminal Value Models | G6: Sum Column | I6: 1000000000
G7: True or 1 | I7: =1=1 -> TRUE | K7: Last Save By | M7: =IFERROR(last_save_by(),"") -> 
C8: Assumptions | G8: False or 0 | I8: =1=2 -> FALSE
G9: Other Sheet Links | I9: |||||||||||||||||||

Sheet Summary
F3: Theoretical Value | G3: Growth Rate | H3: Value Incremental | I3: Value Sudden | J3: Value Incremental
C4: Value of Corporation | F4: ='Valuation Model'!E16 -> 0 | G4: ='Valuation Model'!E32 -> 0 | H4: ='Valuation Model'!E41 -> 0 | I4: ='Valuation Model'!E49 -> 0 | J4: ='Valuation Model'!E67 -> 0
C6: Price to Book | F6: ='Valuation Model'!E24 -> 0
C7: Price to Earnings | F7: ='Valuation Model'!E23 -> 
C9: Explicit Period | F9: =Scenarios!D5 -> 15
C10: Post Terminal Period | F10: =Scenarios!D6 -> 5
C12: Cost of Capital | F12: =Scenarios!D3 -> 0.084

Sheet Control
D3: Scenario Code Number | F3: 11
D5: Description | E5: Return | G5: Growth | I5: Cost of Capital
D6: Constant Return, Growth | E6: =INDEX(Scenarios!C$14:C$23,F6) -> Flat Constant Return Case | F6: 1 | G6: =INDEX(Scenarios!$C$31:$C$39,H6) -> Flat Growth Case | H6: 1 | I6: 0.068
D7: Higher Return, Constant Growth | E7: =INDEX(Scenarios!C$14:C$23,F7) -> High Constant Return Case | F7: 2 | G7: =INDEX(Scenarios!$C$31:$C$39,H7) -> Flat Growth Case | H7: 1 | I7: 0.068
D8: Constant Return, Higher Growth | E8: =INDEX(Scenarios!C$14:C$23,F8) -> Flat Constant Return Case | F8: 1 | G8: =INDEX(Scenarios!$C$31:$C$39,H8) -> High Flat Growth Case | H8: 2 | I8: 0.068
D9: Higher Return, Lower Growth | E9: =INDEX(Scenarios!C$14:C$23,F9) -> Flat Constant Return Case | F9: 1 | G9: =INDEX(Scenarios!$C$31:$C$39,H9) -> Low Flat Growth Case | H9: 3 | I9: 0.068
D10: Lower Return, Higher Growth | E10: =INDEX(Scenarios!C$14:C$23,F10) -> Low Constant Return Case | F10: 3 | G10: =INDEX(Scenarios!$C$31:$C$39,H10) -> High Flat Growth Case | H10: 2 | I10: 0.068
D11: Low Terminal Return | E11: =INDEX(Scenarios!C$14:C$23,F11) -> Lower Terminal Return | F11: 4 | G11: =INDEX(Scenarios!$C$31:$C$39,H11) -> Flat Growth Case | H11: 1 | I11: 0.068
D12: Low Terminal Growth | E12: =INDEX(Scenarios!C$14:C$23,F12) -> Flat Constant Return Case | F12: 1 | G12: =INDEX(Scenarios!$C$31:$C$39,H12) -> Lower Terminal Growth Case | H12: 4 | I12: 0.068
D13: Low Terminal Growth and Return | E13: =INDEX(Scenarios!C$14:C$23,F13) -> Lower Terminal Return | F13: 4 | G13: =INDEX(Scenarios!$C$31:$C$39,H13) -> Lower Terminal Growth Case | H13: 4 | I13: 0.068
D14: Low Post-terminal Return | E14: =INDEX(Scenarios!C$14:C$23,F14) -> Lower Post Terminal Return | F14: 5 | G14: =INDEX(Scenarios!$C$31:$C$39,H14) -> Flat Growth Case | H14: 1 | I14: 0.068
D15: Low Post-terminal Growth | E15: =INDEX(Scenarios!C$14:C$23,F15) -> Flat Constant Return Case | F15: 1 | G15: =INDEX(Scenarios!$C$31:$C$39,H15) -> Lower Post Terminal Growth | H15: 5 | I15: 0.068
D16: Low Post-terminal Growth and Return | E16: =INDEX(Scenarios!C$14:C$23,F16) -> Lower Post Terminal Return | F16: 5 | G16: =INDEX(Scenarios!$C$31:$C$39,H16) -> Lower Post Terminal Growth | H16: 5 | I16: 0.068
D17: Extremene Low Post-terminal Return | E17: =INDEX(Scenarios!C$14:C$23,F17) -> Lower Post Terminal Return Extreme | F17: 6 | G17: =INDEX(Scenarios!$C$31:$C$39,H17) -> Flat Growth Case | H17: 1 | I17: 0.068
D18: Extreme Low Post Terminal Growth | E18: =INDEX(Scenarios!C$14:C$23,F18) -> Flat Constant Return Case | F18: 1 | G18: =INDEX(Scenarios!$C$31:$C$39,H18) -> Lower Post Terminal Growth | H18: 5 | I18: 0.068
D19: Increasing Return Case | E19: =INDEX(Scenarios!C$14:C$23,F19) -> Increasing Return Case | F19: 7 | G19: =INDEX(Scenarios!$C$31:$C$39,H19) -> Flat Growth Case | H19: 1 | I19: 0.068
D20: Extremene Increasing Return Case | E20: =INDEX(Scenarios!C$14:C$23,F20) -> Extreme Increasing Case | F20: 9 | G20: =INDEX(Scenarios!$C$31:$C$39,H20) -> Flat Growth Case | H20: 1 | I20: 0.068
D21: Decreasing Return Case | E21: =INDEX(Scenarios!C$14:C$23,F21) -> Decreasing Return Case | F21: 8 | G21: =INDEX(Scenarios!$C$31:$C$39,H21) -> Flat Growth Case | H21: 1 | I21: 0.068
D22: Decreasing Growth Case | E22: =INDEX(Scenarios!C$14:C$23,F22) -> Flat Constant Return Case | F22: 1 | G22: =INDEX(Scenarios!$C$31:$C$39,H22) -> Decreasing Growth Case | H22: 7 | I22: 0.068
D23: Extreme Decreasing Return Case | E23: =INDEX(Scenarios!C$14:C$23,F23) -> Extreme Decreasing Case | F23: 10 | G23: =INDEX(Scenarios!$C$31:$C$39,H23) -> Flat Growth Case | H23: 1 | I23: 0.068
D25: =INDEX(D6:D23,$F$3) -> Low Post-terminal Growth and Return | E25: =INDEX(E6:E23,$F$3) -> Lower Post Terminal Return | F25: =INDEX(F6:F23,$F$3) -> 5 | G25: =INDEX(G6:G23,$F$3) -> Lower Post Terminal Growth | H25: =INDEX(H6:H23,$F$3) -> 5 | I25: =INDEX(I6:I23,$F$3) -> 0.068 | J25: Index
D27: Low Post-terminal Growth and Return | E27: Lower Post Terminal Return | F27: 5 | G27: Lower Post Terminal Growth | H27: 5 | I27: 0.068 | J27: Applied

Sheet Scenarios
B2: General Assumptions
C3: Cost of Equity Capital | D3: =F3/1000 -> 0.084 | F3: 84
C4: Starting Book Value of Equity | D4: 100
C5: Terminal Period | D5: 15
C6: Post Terminal Period | D6: 5
C8: P/E Ratio | D8: =(1-D48/D47)/(D3-D48) -> 15.15151515
C10: Date | D10: =TODAY() -> 2020-04-29 | E10: =EDATE($D$10,E45*12) -> 2025-04-29 | F10: =EDATE($D$10,F45*12) -> 2027-04-29 | G10: =EDATE($D$10,G45*12) -> 2034-04-29 | H10: =EDATE($D$10,H45*12) -> 2035-04-29 | I10: =EDATE($D$10,I45*12) -> 2040-04-29
B11: Rate of Return Scenarios | D11: =Control!F27 -> 5 | G11: Pre | H11: Initial | I11: Post
D12: Short-term | E12: Intermediate | F12: Long-term | G12: Terminal | H12: Terminal | I12: Terminal
D13: =Scenarios!D45 -> 1 | E13: =Scenarios!E45 -> 5 | F13: =Scenarios!F45 -> 7 | G13: =Scenarios!G45 -> 14 | H13: =Scenarios!H45 -> 15 | I13: =Scenarios!I45 -> 20
C14: Flat Constant Return Case | D14: 0.1 | E14: 0.1 | F14: 0.1 | G14: 0.1 | H14: 0.1 | I14: 0.1
C15: High Constant Return Case | D15: 0.12 | E15: 0.12 | F15: 0.12 | G15: 0.12 | H15: 0.12 | I15: 0.12
C16: Low Constant Return Case | D16: 0.07 | E16: 0.07 | F16: 0.07 | G16: 0.07 | H16: 0.07 | I16: 0.07
C17: Lower Terminal Return | D17: 0.12 | E17: 0.12 | F17: 0.12 | G17: 0.12 | H17: 0.09 | I17: 0.09
C18: Lower Post Terminal Return | D18: 0.12 | E18: 0.12 | F18: 0.12 | G18: 0.12 | H18: 0.11 | I18: 0.07
C19: Lower Post Terminal Return Extreme | D19: 0.13 | E19: 0.13 | F19: 0.13 | G19: 0.13 | H19: 0.13 | I19: 0.06
C20: Increasing Return Case | D20: 0.05 | E20: 0.07 | F20: 0.09 | G20: 0.09 | H20: 0.1 | I20: 0.12
C21: Decreasing Return Case | D21: 0.18 | E21: 0.16 | F21: 0.14 | G21: 0.14 | H21: 0.12 | I21: 0.1
C22: Extreme Increasing Case | D22: -0.05 | E22: 0 | F22: 0.07 | G22: 0.07 | H22: 0.12 | I22: 0.15
C23: Extreme Decreasing Case | D23: 0.25 | E23: 0.2 | F23: 0.15 | G23: 0.15 | H23: 0.12 | I23: 0.07
C25: =INDEX(C14:C23,$D$11) -> Lower Post Terminal Return | D25: =INDEX(D14:D23,$D$11) -> 0.12 | E25: =INDEX(E14:E23,$D$11) -> 0.12 | F25: =INDEX(F14:F23,$D$11) -> 0.12 | G25: =INDEX(G14:G23,$D$11) -> 0.12 | H25: =INDEX(H14:H23,$D$11) -> 0.11 | I25: =INDEX(I14:I23,$D$11) -> 0.07
B28: Growth Rate Scenarios | D28: =Control!H27 -> 5 | G28: Pre | H28: Initial | I28: Post
D29: Short-term | E29: Intermediate | F29: Long-term | G29: Terminal | H29: Terminal | I29: Terminal
D30: 1 | E30: 5 | F30: 7 | G30: 9 | H30: 10 | I30: =I13 -> 20
C31: Flat Growth Case | D31: 0.03 | E31: 0.03 | F31: 0.03 | G31: 0.03 | H31: 0.03 | I31: 0.03
C32: High Flat Growth Case | D32: 0.055 | E32: 0.055 | F32: 0.055 | G32: 0.055 | H32: 0.055 | I32: 0.055
C33: Low Flat Growth Case | D33: 0.01 | E33: 0.01 | F33: 0.01 | G33: 0.01 | H33: 0.01 | I33: 0.01
C34: Lower Terminal Growth Case | D34: 0.04 | E34: 0.04 | F34: 0.04 | G34: 0.04 | H34: 0.025 | I34: 0.025
C35: Lower Post Terminal Growth | D35: 0.04 | E35: 0.04 | F35: 0.04 | G35: 0.04 | H35: 0.025 | I35: 0.01
C36: Increasing Growth Case | D36: 0 | E36: 0.04 | F36: 0.08 | G36: 0.08 | H36: 0.025 | I36: 0.025
C37: Decreasing Growth Case | D37: 0.08 | E37: 0.05 | F37: 0.03 | G37: 0.03 | H37: 0.025 | I37: 0.025
C38: Extreme Increasing Growth Case | D38: -0.04 | E38: 0.05 | F38: 0.15 | G38: 0.15 | H38: 0.025 | I38: 0.025
C39: Extreme Decreasing Growth Case | D39: 0.15 | E39: 0.1 | F39: 0.05 | G39: 0.05 | H39: 0.025 | I39: 0.025
C41: =INDEX(C31:C39,$D$28) -> Lower Post Terminal Growth | D41: =INDEX(D31:D39,$D$28) -> 0.04 | E41: =INDEX(E31:E39,$D$28) -> 0.04 | F41: =INDEX(F31:F39,$D$28) -> 0.04 | G41: =INDEX(G31:G39,$D$28) -> 0.04 | H41: =INDEX(H31:H39,$D$28) -> 0.025 | I41: =INDEX(I31:I39,$D$28) -> 0.01
G43: Pre | I43: Post
D44: Short-term | E44: Intermediate | F44: Long-term | G44: Terminal | H44: Terminal | I44: Terminal
D45: 1 | E45: 5 | F45: 7 | G45: =H45-1 -> 14 | H45: =D5 -> 15 | I45: =H45+D6 -> 20
C47: Rate of Return | D47: =Scenarios!D25 -> 0.12 | E47: =Scenarios!E25 -> 0.12 | F47: =Scenarios!F25 -> 0.12 | G47: =Scenarios!G25 -> 0.12 | H47: =Scenarios!H25 -> 0.11 | I47: =Scenarios!I25 -> 0.07
C48: Growth Rate | D48: =Scenarios!D41 -> 0.04 | E48: =Scenarios!E41 -> 0.04 | F48: =Scenarios!F41 -> 0.04 | G48: =Scenarios!G41 -> 0.04 | H48: =Scenarios!H41 -> 0.025 | I48: =Scenarios!I41 -> 0.01

Sheet Valuation Model
B1: Time Line | F1: Driver 1 | G1: Driver2 | H1: Driver 3 | J1: Cost of Capital | L1: =Scenarios!$D$3 -> 0.084
J3: 0 | K3: 1 | L3: 2 | M3: 3 | N3: 4 | O3: 5 | P3: 6 | Q3: 7 | R3: 8 | S3: 9 | T3: 10 | U3: 11 | V3: 12 | W3: 13 | X3: 14 | Y3: 15 | Z3: 16 | AA3: 17 | AB3: 18 | AC3: 19 | AD3: 20 | AE3: 21 | AF3: 22 | AG3: 23 | AH3: 24 | AI3: 25 | AJ3: 26 | AK3: 27 | AL3: 28 | AM3: 29 | AN3: 30 | AO3: 31 | AP3: 32 | AQ3: 33 | AR3: 34 | AS3: 35 | AT3: 36 | AU3: 37 | AV3: 38 | AW3: 39 | AX3: 40 | AY3: 41 | AZ3: 42 | BA3: 43 | BB3: 44 | BC3: 45 | BD3: 46 | BE3: 47 | BF3: 48 | BG3: 49 | BH3: 50 | BI3: 51 | BJ3: 52 | BK3: 53 | BL3: 54 | BM3: 55 | BN3: 56 | BO3: 57 | BP3: 58 | BQ3: 59 | BR3: 60 | BS3: 61 | BT3: 62 | BU3: 63 | BV3: 64 | BW3: 65 | BX3: 66 | BY3: 67 | BZ3: 68 | CA3: 69 | CB3: 70 | CC3: 71 | CD3: 72 | CE3: 73 | CF3: 74 | CG3: 75 | CH3: 76 | CI3: 77 | CJ3: 78 | CK3: 79 | CL3: 80 | CM3: 81 | CN3: 82 | CO3: 83 | CP3: 84 | CQ3: 85 | CR3: 86 | CS3: 87 | CT3: 88 | CU3: 89 | CV3: 90 | CW3: 91 | CX3: 92 | CY3: 93 | CZ3: 94 | DA3: 95 | DB3: 96 | DC3: 97 | DD3: 98 | DE3: 99 | DF3: 100 | DG3: 101 | DH3: 102 | DI3: 103 | DJ3: 104 | DK3: 105 | DL3: 106 | DM3: 107 | DN3: 108 | DO3: 109 | DP3: 110 | DQ3: 111 | DR3: 112 | DS3: 113 | DT3: 114 | DU3: 115 | DV3: 116 | DW3: 117 | DX3: 118 | DY3: 119 | DZ3: 120 | EA3: 121 | EB3: 122 | EC3: 123 | ED3: 124 | EE3: 125 | EF3: 126 | EG3: 127 | EH3: 128 | EI3: 129 | EJ3: 130 | EK3: 131 | EL3: 132 | EM3: 133 | EN3: 134 | EO3: 135 | EP3: 136 | EQ3: 137 | ER3: 138 | ES3: 139 | ET3: 140 | EU3: 141 | EV3: 142 | EW3: 143 | EX3: 144 | EY3: 145 | EZ3: 146 | FA3: 147 | FB3: 148 | FC3: 149 | FD3: 150 | FE3: 151 | FF3: 152 | FG3: 153 | FH3: 154 | FI3: 155 | FJ3: 156 | FK3: 157 | FL3: 158 | FM3: 159 | FN3: 160 | FO3: 161 | FP3: 162 | FQ3: 163 | FR3: 164 | FS3: 165 | FT3: 166 | FU3: 167 | FV3: 168 | FW3: 169 | FX3: 170 | FY3: 171 | FZ3: 172 | GA3: 173 | GB3: 174 | GC3: 175 | GD3: 176 | GE3: 177 | GF3: 178 | GG3: 179 | GH3: 180 | GI3: 181 | GJ3: 182 | GK3: 183 | GL3: 184 | GM3: 185 | GN3: 186 | GO3: 187 | GP3: 188 | GQ3: 189 | GR3: 190 | GS3: 191 | GT3: 192 | GU3: 193 | GV3: 194 | GW3: 195 | GX3: 196 | GY3: 197 | GZ3: 198 | HA3: 199 | HB3: 200 | HC3: 201 | HD3: 202 | HE3: 203 | HF3: 204 | HG3: 205 | HH3: 206 | HI3: 207 | HJ3: 208 | HK3: 209 | HL3: 210 | HM3: 211 | HN3: 212 | HO3: 213 | HP3: 214 | HQ3: 215 | HR3: 216 | HS3: 217 | HT3: 218 | HU3: 219 | HV3: 220 | HW3: 221 | HX3: 222 | HY3: 223 | HZ3: 224 | IA3: 225 | IB3: 226 | IC3: 227 | ID3: 228 | IE3: 229 | IF3: 230 | IG3: 231 | IH3: 232 | II3: 233 | IJ3: 234 | IK3: 235 | IL3: 236 | IM3: 237 | IN3: 238 | IO3: 239 | IP3: 240 | IQ3: 241 | IR3: 242 | IS3: 243 | IT3: 244 | IU3: 245 | IV3: 246 | IW3: 247 | IX3: 248 | IY3: 249 | IZ3: 250 | JA3: 251 | JB3: 252 | JC3: 253 | JD3: 254 | JE3: 255 | JF3: 256 | JG3: 257 | JH3: 258 | JI3: 259 | JJ3: 260 | JK3: 261 | JL3: 262 | JM3: 263 | JN3: 264 | JO3: 265 | JP3: 266 | JQ3: 267 | JR3: 268 | JS3: 269 | JT3: 270 | JU3: 271 | JV3: 272 | JW3: 273 | JX3: 274 | JY3: 275 | JZ3: 276 | KA3: 277 | KB3: 278 | KC3: 279 | KD3: 280 | KE3: 281 | KF3: 282 | KG3: 283 | KH3: 284 | KI3: 285 | KJ3: 286 | KK3: 287 | KL3: 288 | KM3: 289 | KN3: 290 | KO3: 291 | KP3: 292 | KQ3: 293 | KR3: 294 | KS3: 295 | KT3: 296 | KU3: 297 | KV3: 298 | KW3: 299 | KX3: 300 | KY3: 301 | KZ3: 302 | LA3: 303 | LB3: 304 | LC3: 305 | LD3: 306 | LE3: 307 | LF3: 308 | LG3: 309 | LH3: 310 | LI3: 311 | LJ3: 312 | LK3: 313 | LL3: 314 | LM3: 315 | LN3: 316 | LO3: 317 | LP3: 318 | LQ3: 319 | LR3: 320 | LS3: 321 | LT3: 322 | LU3: 323 | LV3: 324 | LW3: 325 | LX3: 326 | LY3: 327 | LZ3: 328 | MA3: 329 | MB3: 330 | MC3: 331 | MD3: 332 | ME3: 333 | MF3: 334 | MG3: 335 | MH3: 336 | MI3: 337 | MJ3: 338 | MK3: 339 | ML3: 340 | MM3: 341 | MN3: 342 | MO3: 343 | MP3: 344 | MQ3: 345 | MR3: 346 | MS3: 347 | MT3: 348 | MU3: 349 | MV3: 350 | MW3: 351 | MX3: 352 | MY3: 353 | MZ3: 354 | NA3: 355 | NB3: 356 | NC3: 357 | ND3: 358 | NE3: 359 | NF3: 360 | NG3: 361 | NH3: 362 | NI3: 363 | NJ3: 364 | NK3: 365 | NL3: 366 | NM3: 367 | NN3: 368 | NO3: 369 | NP3: 370 | NQ3: 371 | NR3: 372 | NS3: 373 | NT3: 374 | NU3: 375 | NV3: 376 | NW3: 377 | NX3: 378 | NY3: 379 | NZ3: 380 | OA3: 381 | OB3: 382 | OC3: 383 | OD3: 384 | OE3: 385 | OF3: 386 | OG3: 387 | OH3: 388 | OI3: 389 | OJ3: 390 | OK3: 391 | OL3: 392 | OM3: 393 | ON3: 394 | OO3: 395 | OP3: 396 | OQ3: 397 | OR3: 398 | OS3: 399 | OT3: 400 | OU3: 401 | OV3: 402 | OW3: 403 | OX3: 404 | OY3: 405 | OZ3: 406 | PA3: 407 | PB3: 408 | PC3: 409 | PD3: 410 | PE3: 411 | PF3: 412 | PG3: 413 | PH3: 414 | PI3: 415 | PJ3: 416 | PK3: 417 | PL3: 418 | PM3: 419 | PN3: 420 | PO3: 421 | PP3: 422 | PQ3: 423 | PR3: 424 | PS3: 425 | PT3: 426 | PU3: 427 | PV3: 428 | PW3: 429 | PX3: 430 | PY3: 431 | PZ3: 432 | QA3: 433 | QB3: 434 | QC3: 435 | QD3: 436 | QE3: 437 | QF3: 438 | QG3: 439 | QH3: 440 | QI3: 441 | QJ3: 442 | QK3: 443 | QL3: 444 | QM3: 445 | QN3: 446 | QO3: 447 | QP3: 448 | QQ3: 449 | QR3: 450 | QS3: 451 | QT3: 452 | QU3: 453 | QV3: 454 | QW3: 455 | QX3: 456 | QY3: 457 | QZ3: 458 | RA3: 459 | RB3: 460 | RC3: 461 | RD3: 462 | RE3: 463 | RF3: 464 | RG3: 465 | RH3: 466 | RI3: 467 | RJ3: 468 | RK3: 469 | RL3: 470 | RM3: 471 | RN3: 472 | RO3: 473 | RP3: 474 | RQ3: 475 | RR3: 476 | RS3: 477 | RT3: 478 | RU3: 479 | RV3: 480 | RW3: 481 | RX3: 482 | RY3: 483 | RZ3: 484 | SA3: 485 | SB3: 486 | SC3: 487 | SD3: 488 | SE3: 489 | SF3: 490 | SG3: 491 | SH3: 492 | SI3: 493 | SJ3: 494 | SK3: 495 | SL3: 496 | SM3: 497 | SN3: 498 | SO3: 499 | SP3: 500 | SQ3: 501 | SR3: 502 | SS3: 503 | ST3: 504 | SU3: 505 | SV3: 506 | SW3: 507 | SX3: 508 | SY3: 509 | SZ3: 510 | TA3: 511 | TB3: 512 | TC3: 513
C4: Holding Period | F4: =Scenarios!D5 -> 15 | J4: =J25<=Scenarios!$D$5 -> TRUE | K4: =K25<=Scenarios!$D$5 -> TRUE | L4: =L25<=Scenarios!$D$5 -> TRUE | M4: =M25<=Scenarios!$D$5 -> TRUE | N4: =N25<=Scenarios!$D$5 -> TRUE | O4: =O25<=Scenarios!$D$5 -> TRUE | P4: =P25<=Scenarios!$D$5 -> TRUE | Q4: =Q25<=Scenarios!$D$5 -> TRUE | R4: =R25<=Scenarios!$D$5 -> TRUE | S4: =S25<=Scenarios!$D$5 -> TRUE | T4: =T25<=Scenarios!$D$5 -> TRUE | U4: =U25<=Scenarios!$D$5 -> TRUE | V4: =V25<=Scenarios!$D$5 -> TRUE | W4: =W25<=Scenarios!$D$5 -> TRUE | X4: =X25<=Scenarios!$D$5 -> TRUE | Y4: =Y25<=Scenarios!$D$5 -> TRUE | Z4: =Z25<=Scenarios!$D$5 -> FALSE | AA4: =AA25<=Scenarios!$D$5 -> FALSE | AB4: =AB25<=Scenarios!$D$5 -> FALSE | AC4: =AC25<=Scenarios!$D$5 -> FALSE | AD4: =AD25<=Scenarios!$D$5 -> FALSE | AE4: =AE25<=Scenarios!$D$5 -> FALSE | AF4: =AF25<=Scenarios!$D$5 -> FALSE | AG4: =AG25<=Scenarios!$D$5 -> FALSE | AH4: =AH25<=Scenarios!$D$5 -> FALSE | AI4: =AI25<=Scenarios!$D$5 -> FALSE | AJ4: =AJ25<=Scenarios!$D$5 -> FALSE | AK4: =AK25<=Scenarios!$D$5 -> FALSE | AL4: =AL25<=Scenarios!$D$5 -> FALSE | AM4: =AM25<=Scenarios!$D$5 -> FALSE | AN4: =AN25<=Scenarios!$D$5 -> FALSE | AO4: =AO25<=Scenarios!$D$5 -> FALSE | AP4: =AP25<=Scenarios!$D$5 -> FALSE | AQ4: =AQ25<=Scenarios!$D$5 -> FALSE | AR4: =AR25<=Scenarios!$D$5 -> FALSE | AS4: =AS25<=Scenarios!$D$5 -> FALSE | AT4: =AT25<=Scenarios!$D$5 -> FALSE | AU4: =AU25<=Scenarios!$D$5 -> FALSE | AV4: =AV25<=Scenarios!$D$5 -> FALSE | AW4: =AW25<=Scenarios!$D$5 -> FALSE | AX4: =AX25<=Scenarios!$D$5 -> FALSE | AY4: =AY25<=Scenarios!$D$5 -> FALSE | AZ4: =AZ25<=Scenarios!$D$5 -> FALSE | BA4: =BA25<=Scenarios!$D$5 -> FALSE | BB4: =BB25<=Scenarios!$D$5 -> FALSE | BC4: =BC25<=Scenarios!$D$5 -> FALSE | BD4: =BD25<=Scenarios!$D$5 -> FALSE | BE4: =BE25<=Scenarios!$D$5 -> FALSE | BF4: =BF25<=Scenarios!$D$5 -> FALSE | BG4: =BG25<=Scenarios!$D$5 -> FALSE | BH4: =BH25<=Scenarios!$D$5 -> FALSE | BI4: =BI25<=Scenarios!$D$5 -> FALSE | BJ4: =BJ25<=Scenarios!$D$5 -> FALSE | BK4: =BK25<=Scenarios!$D$5 -> FALSE | BL4: =BL25<=Scenarios!$D$5 -> FALSE | BM4: =BM25<=Scenarios!$D$5 -> FALSE | BN4: =BN25<=Scenarios!$D$5 -> FALSE | BO4: =BO25<=Scenarios!$D$5 -> FALSE | BP4: =BP25<=Scenarios!$D$5 -> FALSE | BQ4: =BQ25<=Scenarios!$D$5 -> FALSE | BR4: =BR25<=Scenarios!$D$5 -> FALSE | BS4: =BS25<=Scenarios!$D$5 -> FALSE | BT4: =BT25<=Scenarios!$D$5 -> FALSE | BU4: =BU25<=Scenarios!$D$5 -> FALSE | BV4: =BV25<=Scenarios!$D$5 -> FALSE | BW4: =BW25<=Scenarios!$D$5 -> FALSE | BX4: =BX25<=Scenarios!$D$5 -> FALSE | BY4: =BY25<=Scenarios!$D$5 -> FALSE | BZ4: =BZ25<=Scenarios!$D$5 -> FALSE | CA4: =CA25<=Scenarios!$D$5 -> FALSE | CB4: =CB25<=Scenarios!$D$5 -> FALSE | CC4: =CC25<=Scenarios!$D$5 -> FALSE | CD4: =CD25<=Scenarios!$D$5 -> FALSE | CE4: =CE25<=Scenarios!$D$5 -> FALSE | CF4: =CF25<=Scenarios!$D$5 -> FALSE | CG4: =CG25<=Scenarios!$D$5 -> FALSE | CH4: =CH25<=Scenarios!$D$5 -> FALSE | CI4: =CI25<=Scenarios!$D$5 -> FALSE | CJ4: =CJ25<=Scenarios!$D$5 -> FALSE | CK4: =CK25<=Scenarios!$D$5 -> FALSE | CL4: =CL25<=Scenarios!$D$5 -> FALSE | CM4: =CM25<=Scenarios!$D$5 -> FALSE | CN4: =CN25<=Scenarios!$D$5 -> FALSE | CO4: =CO25<=Scenarios!$D$5 -> FALSE | CP4: =CP25<=Scenarios!$D$5 -> FALSE | CQ4: =CQ25<=Scenarios!$D$5 -> FALSE | CR4: =CR25<=Scenarios!$D$5 -> FALSE | CS4: =CS25<=Scenarios!$D$5 -> FALSE | CT4: =CT25<=Scenarios!$D$5 -> FALSE | CU4: =CU25<=Scenarios!$D$5 -> FALSE | CV4: =CV25<=Scenarios!$D$5 -> FALSE | CW4: =CW25<=Scenarios!$D$5 -> FALSE | CX4: =CX25<=Scenarios!$D$5 -> FALSE | CY4: =CY25<=Scenarios!$D$5 -> FALSE | CZ4: =CZ25<=Scenarios!$D$5 -> FALSE | DA4: =DA25<=Scenarios!$D$5 -> FALSE | DB4: =DB25<=Scenarios!$D$5 -> FALSE | DC4: =DC25<=Scenarios!$D$5 -> FALSE | DD4: =DD25<=Scenarios!$D$5 -> FALSE | DE4: =DE25<=Scenarios!$D$5 -> FALSE | DF4: =DF25<=Scenarios!$D$5 -> FALSE | DG4: =DG25<=Scenarios!$D$5 -> FALSE | DH4: =DH25<=Scenarios!$D$5 -> FALSE | DI4: =DI25<=Scenarios!$D$5 -> FALSE | DJ4: =DJ25<=Scenarios!$D$5 -> FALSE | DK4: =DK25<=Scenarios!$D$5 -> FALSE | DL4: =DL25<=Scenarios!$D$5 -> FALSE | DM4: =DM25<=Scenarios!$D$5 -> FALSE | DN4: =DN25<=Scenarios!$D$5 -> FALSE | DO4: =DO25<=Scenarios!$D$5 -> FALSE | DP4: =DP25<=Scenarios!$D$5 -> FALSE | DQ4: =DQ25<=Scenarios!$D$5 -> FALSE | DR4: =DR25<=Scenarios!$D$5 -> FALSE | DS4: =DS25<=Scenarios!$D$5 -> FALSE | DT4: =DT25<=Scenarios!$D$5 -> FALSE | DU4: =DU25<=Scenarios!$D$5 -> FALSE | DV4: =DV25<=Scenarios!$D$5 -> FALSE | DW4: =DW25<=Scenarios!$D$5 -> FALSE | DX4: =DX25<=Scenarios!$D$5 -> FALSE | DY4: =DY25<=Scenarios!$D$5 -> FALSE | DZ4: =DZ25<=Scenarios!$D$5 -> FALSE | EA4: =EA25<=Scenarios!$D$5 -> FALSE | EB4: =EB25<=Scenarios!$D$5 -> FALSE | EC4: =EC25<=Scenarios!$D$5 -> FALSE | ED4: =ED25<=Scenarios!$D$5 -> FALSE | EE4: =EE25<=Scenarios!$D$5 -> FALSE | EF4: =EF25<=Scenarios!$D$5 -> FALSE | EG4: =EG25<=Scenarios!$D$5 -> FALSE | EH4: =EH25<=Scenarios!$D$5 -> FALSE | EI4: =EI25<=Scenarios!$D$5 -> FALSE | EJ4: =EJ25<=Scenarios!$D$5 -> FALSE | EK4: =EK25<=Scenarios!$D$5 -> FALSE | EL4: =EL25<=Scenarios!$D$5 -> FALSE | EM4: =EM25<=Scenarios!$D$5 -> FALSE | EN4: =EN25<=Scenarios!$D$5 -> FALSE | EO4: =EO25<=Scenarios!$D$5 -> FALSE | EP4: =EP25<=Scenarios!$D$5 -> FALSE | EQ4: =EQ25<=Scenarios!$D$5 -> FALSE | ER4: =ER25<=Scenarios!$D$5 -> FALSE | ES4: =ES25<=Scenarios!$D$5 -> FALSE | ET4: =ET25<=Scenarios!$D$5 -> FALSE | EU4: =EU25<=Scenarios!$D$5 -> FALSE | EV4: =EV25<=Scenarios!$D$5 -> FALSE | EW4: =EW25<=Scenarios!$D$5 -> FALSE | EX4: =EX25<=Scenarios!$D$5 -> FALSE | EY4: =EY25<=Scenarios!$D$5 -> FALSE | EZ4: =EZ25<=Scenarios!$D$5 -> FALSE | FA4: =FA25<=Scenarios!$D$5 -> FALSE | FB4: =FB25<=Scenarios!$D$5 -> FALSE | FC4: =FC25<=Scenarios!$D$5 -> FALSE | FD4: =FD25<=Scenarios!$D$5 -> FALSE | FE4: =FE25<=Scenarios!$D$5 -> FALSE | FF4: =FF25<=Scenarios!$D$5 -> FALSE | FG4: =FG25<=Scenarios!$D$5 -> FALSE | FH4: =FH25<=Scenarios!$D$5 -> FALSE | FI4: =FI25<=Scenarios!$D$5 -> FALSE | FJ4: =FJ25<=Scenarios!$D$5 -> FALSE | FK4: =FK25<=Scenarios!$D$5 -> FALSE | FL4: =FL25<=Scenarios!$D$5 -> FALSE | FM4: =FM25<=Scenarios!$D$5 -> FALSE | FN4: =FN25<=Scenarios!$D$5 -> FALSE | FO4: =FO25<=Scenarios!$D$5 -> FALSE | FP4: =FP25<=Scenarios!$D$5 -> FALSE | FQ4: =FQ25<=Scenarios!$D$5 -> FALSE | FR4: =FR25<=Scenarios!$D$5 -> FALSE | FS4: =FS25<=Scenarios!$D$5 -> FALSE | FT4: =FT25<=Scenarios!$D$5 -> FALSE | FU4: =FU25<=Scenarios!$D$5 -> FALSE | FV4: =FV25<=Scenarios!$D$5 -> FALSE | FW4: =FW25<=Scenarios!$D$5 -> FALSE | FX4: =FX25<=Scenarios!$D$5 -> FALSE | FY4: =FY25<=Scenarios!$D$5 -> FALSE | FZ4: =FZ25<=Scenarios!$D$5 -> FALSE | GA4: =GA25<=Scenarios!$D$5 -> FALSE | GB4: =GB25<=Scenarios!$D$5 -> FALSE | GC4: =GC25<=Scenarios!$D$5 -> FALSE | GD4: =GD25<=Scenarios!$D$5 -> FALSE | GE4: =GE25<=Scenarios!$D$5 -> FALSE | GF4: =GF25<=Scenarios!$D$5 -> FALSE | GG4: =GG25<=Scenarios!$D$5 -> FALSE | GH4: =GH25<=Scenarios!$D$5 -> FALSE | GI4: =GI25<=Scenarios!$D$5 -> FALSE | GJ4: =GJ25<=Scenarios!$D$5 -> FALSE | GK4: =GK25<=Scenarios!$D$5 -> FALSE | GL4: =GL25<=Scenarios!$D$5 -> FALSE | GM4: =GM25<=Scenarios!$D$5 -> FALSE | GN4: =GN25<=Scenarios!$D$5 -> FALSE | GO4: =GO25<=Scenarios!$D$5 -> FALSE | GP4: =GP25<=Scenarios!$D$5 -> FALSE | GQ4: =GQ25<=Scenarios!$D$5 -> FALSE | GR4: =GR25<=Scenarios!$D$5 -> FALSE | GS4: =GS25<=Scenarios!$D$5 -> FALSE | GT4: =GT25<=Scenarios!$D$5 -> FALSE | GU4: =GU25<=Scenarios!$D$5 -> FALSE | GV4: =GV25<=Scenarios!$D$5 -> FALSE | GW4: =GW25<=Scenarios!$D$5 -> FALSE | GX4: =GX25<=Scenarios!$D$5 -> FALSE | GY4: =GY25<=Scenarios!$D$5 -> FALSE | GZ4: =GZ25<=Scenarios!$D$5 -> FALSE | HA4: =HA25<=Scenarios!$D$5 -> FALSE | HB4: =HB25<=Scenarios!$D$5 -> FALSE | HC4: =HC25<=Scenarios!$D$5 -> FALSE | HD4: =HD25<=Scenarios!$D$5 -> FALSE | HE4: =HE25<=Scenarios!$D$5 -> FALSE | HF4: =HF25<=Scenarios!$D$5 -> FALSE | HG4: =HG25<=Scenarios!$D$5 -> FALSE | HH4: =HH25<=Scenarios!$D$5 -> FALSE | HI4: =HI25<=Scenarios!$D$5 -> FALSE | HJ4: =HJ25<=Scenarios!$D$5 -> FALSE | HK4: =HK25<=Scenarios!$D$5 -> FALSE | HL4: =HL25<=Scenarios!$D$5 -> FALSE | HM4: =HM25<=Scenarios!$D$5 -> FALSE | HN4: =HN25<=Scenarios!$D$5 -> FALSE | HO4: =HO25<=Scenarios!$D$5 -> FALSE | HP4: =HP25<=Scenarios!$D$5 -> FALSE | HQ4: =HQ25<=Scenarios!$D$5 -> FALSE | HR4: =HR25<=Scenarios!$D$5 -> FALSE | HS4: =HS25<=Scenarios!$D$5 -> FALSE | HT4: =HT25<=Scenarios!$D$5 -> FALSE | HU4: =HU25<=Scenarios!$D$5 -> FALSE | HV4: =HV25<=Scenarios!$D$5 -> FALSE | HW4: =HW25<=Scenarios!$D$5 -> FALSE | HX4: =HX25<=Scenarios!$D$5 -> FALSE | HY4: =HY25<=Scenarios!$D$5 -> FALSE | HZ4: =HZ25<=Scenarios!$D$5 -> FALSE | IA4: =IA25<=Scenarios!$D$5 -> FALSE | IB4: =IB25<=Scenarios!$D$5 -> FALSE | IC4: =IC25<=Scenarios!$D$5 -> FALSE | ID4: =ID25<=Scenarios!$D$5 -> FALSE | IE4: =IE25<=Scenarios!$D$5 -> FALSE | IF4: =IF25<=Scenarios!$D$5 -> FALSE | IG4: =IG25<=Scenarios!$D$5 -> FALSE | IH4: =IH25<=Scenarios!$D$5 -> FALSE | II4: =II25<=Scenarios!$D$5 -> FALSE | IJ4: =IJ25<=Scenarios!$D$5 -> FALSE | IK4: =IK25<=Scenarios!$D$5 -> FALSE | IL4: =IL25<=Scenarios!$D$5 -> FALSE | IM4: =IM25<=Scenarios!$D$5 -> FALSE | IN4: =IN25<=Scenarios!$D$5 -> FALSE | IO4: =IO25<=Scenarios!$D$5 -> FALSE | IP4: =IP25<=Scenarios!$D$5 -> FALSE | IQ4: =IQ25<=Scenarios!$D$5 -> FALSE | IR4: =IR25<=Scenarios!$D$5 -> FALSE | IS4: =IS25<=Scenarios!$D$5 -> FALSE | IT4: =IT25<=Scenarios!$D$5 -> FALSE | IU4: =IU25<=Scenarios!$D$5 -> FALSE | IV4: =IV25<=Scenarios!$D$5 -> FALSE | IW4: =IW25<=Scenarios!$D$5 -> FALSE | IX4: =IX25<=Scenarios!$D$5 -> FALSE | IY4: =IY25<=Scenarios!$D$5 -> FALSE | IZ4: =IZ25<=Scenarios!$D$5 -> FALSE | JA4: =JA25<=Scenarios!$D$5 -> FALSE | JB4: =JB25<=Scenarios!$D$5 -> FALSE | JC4: =JC25<=Scenarios!$D$5 -> FALSE | JD4: =JD25<=Scenarios!$D$5 -> FALSE | JE4: =JE25<=Scenarios!$D$5 -> FALSE | JF4: =JF25<=Scenarios!$D$5 -> FALSE | JG4: =JG25<=Scenarios!$D$5 -> FALSE | JH4: =JH25<=Scenarios!$D$5 -> FALSE | JI4: =JI25<=Scenarios!$D$5 -> FALSE | JJ4: =JJ25<=Scenarios!$D$5 -> FALSE | JK4: =JK25<=Scenarios!$D$5 -> FALSE | JL4: =JL25<=Scenarios!$D$5 -> FALSE | JM4: =JM25<=Scenarios!$D$5 -> FALSE | JN4: =JN25<=Scenarios!$D$5 -> FALSE | JO4: =JO25<=Scenarios!$D$5 -> FALSE | JP4: =JP25<=Scenarios!$D$5 -> FALSE | JQ4: =JQ25<=Scenarios!$D$5 -> FALSE | JR4: =JR25<=Scenarios!$D$5 -> FALSE | JS4: =JS25<=Scenarios!$D$5 -> FALSE | JT4: =JT25<=Scenarios!$D$5 -> FALSE | JU4: =JU25<=Scenarios!$D$5 -> FALSE | JV4: =JV25<=Scenarios!$D$5 -> FALSE | JW4: =JW25<=Scenarios!$D$5 -> FALSE | JX4: =JX25<=Scenarios!$D$5 -> FALSE | JY4: =JY25<=Scenarios!$D$5 -> FALSE | JZ4: =JZ25<=Scenarios!$D$5 -> FALSE | KA4: =KA25<=Scenarios!$D$5 -> FALSE | KB4: =KB25<=Scenarios!$D$5 -> FALSE | KC4: =KC25<=Scenarios!$D$5 -> FALSE | KD4: =KD25<=Scenarios!$D$5 -> FALSE | KE4: =KE25<=Scenarios!$D$5 -> FALSE | KF4: =KF25<=Scenarios!$D$5 -> FALSE | KG4: =KG25<=Scenarios!$D$5 -> FALSE | KH4: =KH25<=Scenarios!$D$5 -> FALSE | KI4: =KI25<=Scenarios!$D$5 -> FALSE | KJ4: =KJ25<=Scenarios!$D$5 -> FALSE | KK4: =KK25<=Scenarios!$D$5 -> FALSE | KL4: =KL25<=Scenarios!$D$5 -> FALSE | KM4: =KM25<=Scenarios!$D$5 -> FALSE | KN4: =KN25<=Scenarios!$D$5 -> FALSE | KO4: =KO25<=Scenarios!$D$5 -> FALSE | KP4: =KP25<=Scenarios!$D$5 -> FALSE | KQ4: =KQ25<=Scenarios!$D$5 -> FALSE | KR4: =KR25<=Scenarios!$D$5 -> FALSE | KS4: =KS25<=Scenarios!$D$5 -> FALSE | KT4: =KT25<=Scenarios!$D$5 -> FALSE | KU4: =KU25<=Scenarios!$D$5 -> FALSE | KV4: =KV25<=Scenarios!$D$5 -> FALSE | KW4: =KW25<=Scenarios!$D$5 -> FALSE | KX4: =KX25<=Scenarios!$D$5 -> FALSE | KY4: =KY25<=Scenarios!$D$5 -> FALSE | KZ4: =KZ25<=Scenarios!$D$5 -> FALSE | LA4: =LA25<=Scenarios!$D$5 -> FALSE | LB4: =LB25<=Scenarios!$D$5 -> FALSE | LC4: =LC25<=Scenarios!$D$5 -> FALSE | LD4: =LD25<=Scenarios!$D$5 -> FALSE | LE4: =LE25<=Scenarios!$D$5 -> FALSE | LF4: =LF25<=Scenarios!$D$5 -> FALSE | LG4: =LG25<=Scenarios!$D$5 -> FALSE | LH4: =LH25<=Scenarios!$D$5 -> FALSE | LI4: =LI25<=Scenarios!$D$5 -> FALSE | LJ4: =LJ25<=Scenarios!$D$5 -> FALSE | LK4: =LK25<=Scenarios!$D$5 -> FALSE | LL4: =LL25<=Scenarios!$D$5 -> FALSE | LM4: =LM25<=Scenarios!$D$5 -> FALSE | LN4: =LN25<=Scenarios!$D$5 -> FALSE | LO4: =LO25<=Scenarios!$D$5 -> FALSE | LP4: =LP25<=Scenarios!$D$5 -> FALSE | LQ4: =LQ25<=Scenarios!$D$5 -> FALSE | LR4: =LR25<=Scenarios!$D$5 -> FALSE | LS4: =LS25<=Scenarios!$D$5 -> FALSE | LT4: =LT25<=Scenarios!$D$5 -> FALSE | LU4: =LU25<=Scenarios!$D$5 -> FALSE | LV4: =LV25<=Scenarios!$D$5 -> FALSE | LW4: =LW25<=Scenarios!$D$5 -> FALSE | LX4: =LX25<=Scenarios!$D$5 -> FALSE | LY4: =LY25<=Scenarios!$D$5 -> FALSE | LZ4: =LZ25<=Scenarios!$D$5 -> FALSE | MA4: =MA25<=Scenarios!$D$5 -> FALSE | MB4: =MB25<=Scenarios!$D$5 -> FALSE | MC4: =MC25<=Scenarios!$D$5 -> FALSE | MD4: =MD25<=Scenarios!$D$5 -> FALSE | ME4: =ME25<=Scenarios!$D$5 -> FALSE | MF4: =MF25<=Scenarios!$D$5 -> FALSE | MG4: =MG25<=Scenarios!$D$5 -> FALSE | MH4: =MH25<=Scenarios!$D$5 -> FALSE | MI4: =MI25<=Scenarios!$D$5 -> FALSE | MJ4: =MJ25<=Scenarios!$D$5 -> FALSE | MK4: =MK25<=Scenarios!$D$5 -> FALSE | ML4: =ML25<=Scenarios!$D$5 -> FALSE | MM4: =MM25<=Scenarios!$D$5 -> FALSE | MN4: =MN25<=Scenarios!$D$5 -> FALSE | MO4: =MO25<=Scenarios!$D$5 -> FALSE | MP4: =MP25<=Scenarios!$D$5 -> FALSE | MQ4: =MQ25<=Scenarios!$D$5 -> FALSE | MR4: =MR25<=Scenarios!$D$5 -> FALSE | MS4: =MS25<=Scenarios!$D$5 -> FALSE | MT4: =MT25<=Scenarios!$D$5 -> FALSE | MU4: =MU25<=Scenarios!$D$5 -> FALSE | MV4: =MV25<=Scenarios!$D$5 -> FALSE | MW4: =MW25<=Scenarios!$D$5 -> FALSE | MX4: =MX25<=Scenarios!$D$5 -> FALSE | MY4: =MY25<=Scenarios!$D$5 -> FALSE | MZ4: =MZ25<=Scenarios!$D$5 -> FALSE | NA4: =NA25<=Scenarios!$D$5 -> FALSE | NB4: =NB25<=Scenarios!$D$5 -> FALSE | NC4: =NC25<=Scenarios!$D$5 -> FALSE | ND4: =ND25<=Scenarios!$D$5 -> FALSE | NE4: =NE25<=Scenarios!$D$5 -> FALSE | NF4: =NF25<=Scenarios!$D$5 -> FALSE | NG4: =NG25<=Scenarios!$D$5 -> FALSE | NH4: =NH25<=Scenarios!$D$5 -> FALSE | NI4: =NI25<=Scenarios!$D$5 -> FALSE | NJ4: =NJ25<=Scenarios!$D$5 -> FALSE | NK4: =NK25<=Scenarios!$D$5 -> FALSE | NL4: =NL25<=Scenarios!$D$5 -> FALSE | NM4: =NM25<=Scenarios!$D$5 -> FALSE | NN4: =NN25<=Scenarios!$D$5 -> FALSE | NO4: =NO25<=Scenarios!$D$5 -> FALSE | NP4: =NP25<=Scenarios!$D$5 -> FALSE | NQ4: =NQ25<=Scenarios!$D$5 -> FALSE | NR4: =NR25<=Scenarios!$D$5 -> FALSE | NS4: =NS25<=Scenarios!$D$5 -> FALSE | NT4: =NT25<=Scenarios!$D$5 -> FALSE | NU4: =NU25<=Scenarios!$D$5 -> FALSE | NV4: =NV25<=Scenarios!$D$5 -> FALSE | NW4: =NW25<=Scenarios!$D$5 -> FALSE | NX4: =NX25<=Scenarios!$D$5 -> FALSE | NY4: =NY25<=Scenarios!$D$5 -> FALSE | NZ4: =NZ25<=Scenarios!$D$5 -> FALSE | OA4: =OA25<=Scenarios!$D$5 -> FALSE | OB4: =OB25<=Scenarios!$D$5 -> FALSE | OC4: =OC25<=Scenarios!$D$5 -> FALSE | OD4: =OD25<=Scenarios!$D$5 -> FALSE | OE4: =OE25<=Scenarios!$D$5 -> FALSE | OF4: =OF25<=Scenarios!$D$5 -> FALSE | OG4: =OG25<=Scenarios!$D$5 -> FALSE | OH4: =OH25<=Scenarios!$D$5 -> FALSE | OI4: =OI25<=Scenarios!$D$5 -> FALSE | OJ4: =OJ25<=Scenarios!$D$5 -> FALSE | OK4: =OK25<=Scenarios!$D$5 -> FALSE | OL4: =OL25<=Scenarios!$D$5 -> FALSE | OM4: =OM25<=Scenarios!$D$5 -> FALSE | ON4: =ON25<=Scenarios!$D$5 -> FALSE | OO4: =OO25<=Scenarios!$D$5 -> FALSE | OP4: =OP25<=Scenarios!$D$5 -> FALSE | OQ4: =OQ25<=Scenarios!$D$5 -> FALSE | OR4: =OR25<=Scenarios!$D$5 -> FALSE | OS4: =OS25<=Scenarios!$D$5 -> FALSE | OT4: =OT25<=Scenarios!$D$5 -> FALSE | OU4: =OU25<=Scenarios!$D$5 -> FALSE | OV4: =OV25<=Scenarios!$D$5 -> FALSE | OW4: =OW25<=Scenarios!$D$5 -> FALSE | OX4: =OX25<=Scenarios!$D$5 -> FALSE | OY4: =OY25<=Scenarios!$D$5 -> FALSE | OZ4: =OZ25<=Scenarios!$D$5 -> FALSE | PA4: =PA25<=Scenarios!$D$5 -> FALSE | PB4: =PB25<=Scenarios!$D$5 -> FALSE | PC4: =PC25<=Scenarios!$D$5 -> FALSE | PD4: =PD25<=Scenarios!$D$5 -> FALSE | PE4: =PE25<=Scenarios!$D$5 -> FALSE | PF4: =PF25<=Scenarios!$D$5 -> FALSE | PG4: =PG25<=Scenarios!$D$5 -> FALSE | PH4: =PH25<=Scenarios!$D$5 -> FALSE | PI4: =PI25<=Scenarios!$D$5 -> FALSE | PJ4: =PJ25<=Scenarios!$D$5 -> FALSE | PK4: =PK25<=Scenarios!$D$5 -> FALSE | PL4: =PL25<=Scenarios!$D$5 -> FALSE | PM4: =PM25<=Scenarios!$D$5 -> FALSE | PN4: =PN25<=Scenarios!$D$5 -> FALSE | PO4: =PO25<=Scenarios!$D$5 -> FALSE | PP4: =PP25<=Scenarios!$D$5 -> FALSE | PQ4: =PQ25<=Scenarios!$D$5 -> FALSE | PR4: =PR25<=Scenarios!$D$5 -> FALSE | PS4: =PS25<=Scenarios!$D$5 -> FALSE | PT4: =PT25<=Scenarios!$D$5 -> FALSE | PU4: =PU25<=Scenarios!$D$5 -> FALSE | PV4: =PV25<=Scenarios!$D$5 -> FALSE | PW4: =PW25<=Scenarios!$D$5 -> FALSE | PX4: =PX25<=Scenarios!$D$5 -> FALSE | PY4: =PY25<=Scenarios!$D$5 -> FALSE | PZ4: =PZ25<=Scenarios!$D$5 -> FALSE | QA4: =QA25<=Scenarios!$D$5 -> FALSE | QB4: =QB25<=Scenarios!$D$5 -> FALSE | QC4: =QC25<=Scenarios!$D$5 -> FALSE | QD4: =QD25<=Scenarios!$D$5 -> FALSE | QE4: =QE25<=Scenarios!$D$5 -> FALSE | QF4: =QF25<=Scenarios!$D$5 -> FALSE | QG4: =QG25<=Scenarios!$D$5 -> FALSE | QH4: =QH25<=Scenarios!$D$5 -> FALSE | QI4: =QI25<=Scenarios!$D$5 -> FALSE | QJ4: =QJ25<=Scenarios!$D$5 -> FALSE | QK4: =QK25<=Scenarios!$D$5 -> FALSE | QL4: =QL25<=Scenarios!$D$5 -> FALSE | QM4: =QM25<=Scenarios!$D$5 -> FALSE | QN4: =QN25<=Scenarios!$D$5 -> FALSE | QO4: =QO25<=Scenarios!$D$5 -> FALSE | QP4: =QP25<=Scenarios!$D$5 -> FALSE | QQ4: =QQ25<=Scenarios!$D$5 -> FALSE | QR4: =QR25<=Scenarios!$D$5 -> FALSE | QS4: =QS25<=Scenarios!$D$5 -> FALSE | QT4: =QT25<=Scenarios!$D$5 -> FALSE | QU4: =QU25<=Scenarios!$D$5 -> FALSE | QV4: =QV25<=Scenarios!$D$5 -> FALSE | QW4: =QW25<=Scenarios!$D$5 -> FALSE | QX4: =QX25<=Scenarios!$D$5 -> FALSE | QY4: =QY25<=Scenarios!$D$5 -> FALSE | QZ4: =QZ25<=Scenarios!$D$5 -> FALSE | RA4: =RA25<=Scenarios!$D$5 -> FALSE | RB4: =RB25<=Scenarios!$D$5 -> FALSE | RC4: =RC25<=Scenarios!$D$5 -> FALSE | RD4: =RD25<=Scenarios!$D$5 -> FALSE | RE4: =RE25<=Scenarios!$D$5 -> FALSE | RF4: =RF25<=Scenarios!$D$5 -> FALSE | RG4: =RG25<=Scenarios!$D$5 -> FALSE | RH4: =RH25<=Scenarios!$D$5 -> FALSE | RI4: =RI25<=Scenarios!$D$5 -> FALSE | RJ4: =RJ25<=Scenarios!$D$5 -> FALSE | RK4: =RK25<=Scenarios!$D$5 -> FALSE | RL4: =RL25<=Scenarios!$D$5 -> FALSE | RM4: =RM25<=Scenarios!$D$5 -> FALSE | RN4: =RN25<=Scenarios!$D$5 -> FALSE | RO4: =RO25<=Scenarios!$D$5 -> FALSE | RP4: =RP25<=Scenarios!$D$5 -> FALSE | RQ4: =RQ25<=Scenarios!$D$5 -> FALSE | RR4: =RR25<=Scenarios!$D$5 -> FALSE | RS4: =RS25<=Scenarios!$D$5 -> FALSE | RT4: =RT25<=Scenarios!$D$5 -> FALSE | RU4: =RU25<=Scenarios!$D$5 -> FALSE | RV4: =RV25<=Scenarios!$D$5 -> FALSE | RW4: =RW25<=Scenarios!$D$5 -> FALSE | RX4: =RX25<=Scenarios!$D$5 -> FALSE | RY4: =RY25<=Scenarios!$D$5 -> FALSE | RZ4: =RZ25<=Scenarios!$D$5 -> FALSE | SA4: =SA25<=Scenarios!$D$5 -> FALSE | SB4: =SB25<=Scenarios!$D$5 -> FALSE | SC4: =SC25<=Scenarios!$D$5 -> FALSE | SD4: =SD25<=Scenarios!$D$5 -> FALSE | SE4: =SE25<=Scenarios!$D$5 -> FALSE | SF4: =SF25<=Scenarios!$D$5 -> FALSE | SG4: =SG25<=Scenarios!$D$5 -> FALSE | SH4: =SH25<=Scenarios!$D$5 -> FALSE | SI4: =SI25<=Scenarios!$D$5 -> FALSE | SJ4: =SJ25<=Scenarios!$D$5 -> FALSE | SK4: =SK25<=Scenarios!$D$5 -> FALSE | SL4: =SL25<=Scenarios!$D$5 -> FALSE | SM4: =SM25<=Scenarios!$D$5 -> FALSE | SN4: =SN25<=Scenarios!$D$5 -> FALSE | SO4: =SO25<=Scenarios!$D$5 -> FALSE | SP4: =SP25<=Scenarios!$D$5 -> FALSE | SQ4: =SQ25<=Scenarios!$D$5 -> FALSE | SR4: =SR25<=Scenarios!$D$5 -> FALSE | SS4: =SS25<=Scenarios!$D$5 -> FALSE | ST4: =ST25<=Scenarios!$D$5 -> FALSE | SU4: =SU25<=Scenarios!$D$5 -> FALSE | SV4: =SV25<=Scenarios!$D$5 -> FALSE | SW4: =SW25<=Scenarios!$D$5 -> FALSE | SX4: =SX25<=Scenarios!$D$5 -> FALSE | SY4: =SY25<=Scenarios!$D$5 -> FALSE | SZ4: =SZ25<=Scenarios!$D$5 -> FALSE | TA4: =TA25<=Scenarios!$D$5 -> FALSE | TB4: =TB25<=Scenarios!$D$5 -> FALSE | TC4: =TC25<=Scenarios!$D$5 -> FALSE
C5: Exit Period | F5: =Scenarios!D5 -> 15 | J5: =J25=Scenarios!$D$5 -> FALSE | K5: =K25=Scenarios!$D$5 -> FALSE | L5: =L25=Scenarios!$D$5 -> FALSE | M5: =M25=Scenarios!$D$5 -> FALSE | N5: =N25=Scenarios!$D$5 -> FALSE | O5: =O25=Scenarios!$D$5 -> FALSE | P5: =P25=Scenarios!$D$5 -> FALSE | Q5: =Q25=Scenarios!$D$5 -> FALSE | R5: =R25=Scenarios!$D$5 -> FALSE | S5: =S25=Scenarios!$D$5 -> FALSE | T5: =T25=Scenarios!$D$5 -> FALSE | U5: =U25=Scenarios!$D$5 -> FALSE | V5: =V25=Scenarios!$D$5 -> FALSE | W5: =W25=Scenarios!$D$5 -> FALSE | X5: =X25=Scenarios!$D$5 -> FALSE | Y5: =Y25=Scenarios!$D$5 -> TRUE | Z5: =Z25=Scenarios!$D$5 -> FALSE | AA5: =AA25=Scenarios!$D$5 -> FALSE | AB5: =AB25=Scenarios!$D$5 -> FALSE | AC5: =AC25=Scenarios!$D$5 -> FALSE | AD5: =AD25=Scenarios!$D$5 -> FALSE | AE5: =AE25=Scenarios!$D$5 -> FALSE | AF5: =AF25=Scenarios!$D$5 -> FALSE | AG5: =AG25=Scenarios!$D$5 -> FALSE | AH5: =AH25=Scenarios!$D$5 -> FALSE | AI5: =AI25=Scenarios!$D$5 -> FALSE | AJ5: =AJ25=Scenarios!$D$5 -> FALSE | AK5: =AK25=Scenarios!$D$5 -> FALSE | AL5: =AL25=Scenarios!$D$5 -> FALSE | AM5: =AM25=Scenarios!$D$5 -> FALSE | AN5: =AN25=Scenarios!$D$5 -> FALSE | AO5: =AO25=Scenarios!$D$5 -> FALSE | AP5: =AP25=Scenarios!$D$5 -> FALSE | AQ5: =AQ25=Scenarios!$D$5 -> FALSE | AR5: =AR25=Scenarios!$D$5 -> FALSE | AS5: =AS25=Scenarios!$D$5 -> FALSE | AT5: =AT25=Scenarios!$D$5 -> FALSE | AU5: =AU25=Scenarios!$D$5 -> FALSE | AV5: =AV25=Scenarios!$D$5 -> FALSE | AW5: =AW25=Scenarios!$D$5 -> FALSE | AX5: =AX25=Scenarios!$D$5 -> FALSE | AY5: =AY25=Scenarios!$D$5 -> FALSE | AZ5: =AZ25=Scenarios!$D$5 -> FALSE | BA5: =BA25=Scenarios!$D$5 -> FALSE | BB5: =BB25=Scenarios!$D$5 -> FALSE | BC5: =BC25=Scenarios!$D$5 -> FALSE | BD5: =BD25=Scenarios!$D$5 -> FALSE | BE5: =BE25=Scenarios!$D$5 -> FALSE | BF5: =BF25=Scenarios!$D$5 -> FALSE | BG5: =BG25=Scenarios!$D$5 -> FALSE | BH5: =BH25=Scenarios!$D$5 -> FALSE | BI5: =BI25=Scenarios!$D$5 -> FALSE | BJ5: =BJ25=Scenarios!$D$5 -> FALSE | BK5: =BK25=Scenarios!$D$5 -> FALSE | BL5: =BL25=Scenarios!$D$5 -> FALSE | BM5: =BM25=Scenarios!$D$5 -> FALSE | BN5: =BN25=Scenarios!$D$5 -> FALSE | BO5: =BO25=Scenarios!$D$5 -> FALSE | BP5: =BP25=Scenarios!$D$5 -> FALSE | BQ5: =BQ25=Scenarios!$D$5 -> FALSE | BR5: =BR25=Scenarios!$D$5 -> FALSE | BS5: =BS25=Scenarios!$D$5 -> FALSE | BT5: =BT25=Scenarios!$D$5 -> FALSE | BU5: =BU25=Scenarios!$D$5 -> FALSE | BV5: =BV25=Scenarios!$D$5 -> FALSE | BW5: =BW25=Scenarios!$D$5 -> FALSE | BX5: =BX25=Scenarios!$D$5 -> FALSE | BY5: =BY25=Scenarios!$D$5 -> FALSE | BZ5: =BZ25=Scenarios!$D$5 -> FALSE | CA5: =CA25=Scenarios!$D$5 -> FALSE | CB5: =CB25=Scenarios!$D$5 -> FALSE | CC5: =CC25=Scenarios!$D$5 -> FALSE | CD5: =CD25=Scenarios!$D$5 -> FALSE | CE5: =CE25=Scenarios!$D$5 -> FALSE | CF5: =CF25=Scenarios!$D$5 -> FALSE | CG5: =CG25=Scenarios!$D$5 -> FALSE | CH5: =CH25=Scenarios!$D$5 -> FALSE | CI5: =CI25=Scenarios!$D$5 -> FALSE | CJ5: =CJ25=Scenarios!$D$5 -> FALSE | CK5: =CK25=Scenarios!$D$5 -> FALSE | CL5: =CL25=Scenarios!$D$5 -> FALSE | CM5: =CM25=Scenarios!$D$5 -> FALSE | CN5: =CN25=Scenarios!$D$5 -> FALSE | CO5: =CO25=Scenarios!$D$5 -> FALSE | CP5: =CP25=Scenarios!$D$5 -> FALSE | CQ5: =CQ25=Scenarios!$D$5 -> FALSE | CR5: =CR25=Scenarios!$D$5 -> FALSE | CS5: =CS25=Scenarios!$D$5 -> FALSE | CT5: =CT25=Scenarios!$D$5 -> FALSE | CU5: =CU25=Scenarios!$D$5 -> FALSE | CV5: =CV25=Scenarios!$D$5 -> FALSE | CW5: =CW25=Scenarios!$D$5 -> FALSE | CX5: =CX25=Scenarios!$D$5 -> FALSE | CY5: =CY25=Scenarios!$D$5 -> FALSE | CZ5: =CZ25=Scenarios!$D$5 -> FALSE | DA5: =DA25=Scenarios!$D$5 -> FALSE | DB5: =DB25=Scenarios!$D$5 -> FALSE | DC5: =DC25=Scenarios!$D$5 -> FALSE | DD5: =DD25=Scenarios!$D$5 -> FALSE | DE5: =DE25=Scenarios!$D$5 -> FALSE | DF5: =DF25=Scenarios!$D$5 -> FALSE | DG5: =DG25=Scenarios!$D$5 -> FALSE | DH5: =DH25=Scenarios!$D$5 -> FALSE | DI5: =DI25=Scenarios!$D$5 -> FALSE | DJ5: =DJ25=Scenarios!$D$5 -> FALSE | DK5: =DK25=Scenarios!$D$5 -> FALSE | DL5: =DL25=Scenarios!$D$5 -> FALSE | DM5: =DM25=Scenarios!$D$5 -> FALSE | DN5: =DN25=Scenarios!$D$5 -> FALSE | DO5: =DO25=Scenarios!$D$5 -> FALSE | DP5: =DP25=Scenarios!$D$5 -> FALSE | DQ5: =DQ25=Scenarios!$D$5 -> FALSE | DR5: =DR25=Scenarios!$D$5 -> FALSE | DS5: =DS25=Scenarios!$D$5 -> FALSE | DT5: =DT25=Scenarios!$D$5 -> FALSE | DU5: =DU25=Scenarios!$D$5 -> FALSE | DV5: =DV25=Scenarios!$D$5 -> FALSE | DW5: =DW25=Scenarios!$D$5 -> FALSE | DX5: =DX25=Scenarios!$D$5 -> FALSE | DY5: =DY25=Scenarios!$D$5 -> FALSE | DZ5: =DZ25=Scenarios!$D$5 -> FALSE | EA5: =EA25=Scenarios!$D$5 -> FALSE | EB5: =EB25=Scenarios!$D$5 -> FALSE | EC5: =EC25=Scenarios!$D$5 -> FALSE | ED5: =ED25=Scenarios!$D$5 -> FALSE | EE5: =EE25=Scenarios!$D$5 -> FALSE | EF5: =EF25=Scenarios!$D$5 -> FALSE | EG5: =EG25=Scenarios!$D$5 -> FALSE | EH5: =EH25=Scenarios!$D$5 -> FALSE | EI5: =EI25=Scenarios!$D$5 -> FALSE | EJ5: =EJ25=Scenarios!$D$5 -> FALSE | EK5: =EK25=Scenarios!$D$5 -> FALSE | EL5: =EL25=Scenarios!$D$5 -> FALSE | EM5: =EM25=Scenarios!$D$5 -> FALSE | EN5: =EN25=Scenarios!$D$5 -> FALSE | EO5: =EO25=Scenarios!$D$5 -> FALSE | EP5: =EP25=Scenarios!$D$5 -> FALSE | EQ5: =EQ25=Scenarios!$D$5 -> FALSE | ER5: =ER25=Scenarios!$D$5 -> FALSE | ES5: =ES25=Scenarios!$D$5 -> FALSE | ET5: =ET25=Scenarios!$D$5 -> FALSE | EU5: =EU25=Scenarios!$D$5 -> FALSE | EV5: =EV25=Scenarios!$D$5 -> FALSE | EW5: =EW25=Scenarios!$D$5 -> FALSE | EX5: =EX25=Scenarios!$D$5 -> FALSE | EY5: =EY25=Scenarios!$D$5 -> FALSE | EZ5: =EZ25=Scenarios!$D$5 -> FALSE | FA5: =FA25=Scenarios!$D$5 -> FALSE | FB5: =FB25=Scenarios!$D$5 -> FALSE | FC5: =FC25=Scenarios!$D$5 -> FALSE | FD5: =FD25=Scenarios!$D$5 -> FALSE | FE5: =FE25=Scenarios!$D$5 -> FALSE | FF5: =FF25=Scenarios!$D$5 -> FALSE | FG5: =FG25=Scenarios!$D$5 -> FALSE | FH5: =FH25=Scenarios!$D$5 -> FALSE | FI5: =FI25=Scenarios!$D$5 -> FALSE | FJ5: =FJ25=Scenarios!$D$5 -> FALSE | FK5: =FK25=Scenarios!$D$5 -> FALSE | FL5: =FL25=Scenarios!$D$5 -> FALSE | FM5: =FM25=Scenarios!$D$5 -> FALSE | FN5: =FN25=Scenarios!$D$5 -> FALSE | FO5: =FO25=Scenarios!$D$5 -> FALSE | FP5: =FP25=Scenarios!$D$5 -> FALSE | FQ5: =FQ25=Scenarios!$D$5 -> FALSE | FR5: =FR25=Scenarios!$D$5 -> FALSE | FS5: =FS25=Scenarios!$D$5 -> FALSE | FT5: =FT25=Scenarios!$D$5 -> FALSE | FU5: =FU25=Scenarios!$D$5 -> FALSE | FV5: =FV25=Scenarios!$D$5 -> FALSE | FW5: =FW25=Scenarios!$D$5 -> FALSE | FX5: =FX25=Scenarios!$D$5 -> FALSE | FY5: =FY25=Scenarios!$D$5 -> FALSE | FZ5: =FZ25=Scenarios!$D$5 -> FALSE | GA5: =GA25=Scenarios!$D$5 -> FALSE | GB5: =GB25=Scenarios!$D$5 -> FALSE | GC5: =GC25=Scenarios!$D$5 -> FALSE | GD5: =GD25=Scenarios!$D$5 -> FALSE | GE5: =GE25=Scenarios!$D$5 -> FALSE | GF5: =GF25=Scenarios!$D$5 -> FALSE | GG5: =GG25=Scenarios!$D$5 -> FALSE | GH5: =GH25=Scenarios!$D$5 -> FALSE | GI5: =GI25=Scenarios!$D$5 -> FALSE | GJ5: =GJ25=Scenarios!$D$5 -> FALSE | GK5: =GK25=Scenarios!$D$5 -> FALSE | GL5: =GL25=Scenarios!$D$5 -> FALSE | GM5: =GM25=Scenarios!$D$5 -> FALSE | GN5: =GN25=Scenarios!$D$5 -> FALSE | GO5: =GO25=Scenarios!$D$5 -> FALSE | GP5: =GP25=Scenarios!$D$5 -> FALSE | GQ5: =GQ25=Scenarios!$D$5 -> FALSE | GR5: =GR25=Scenarios!$D$5 -> FALSE | GS5: =GS25=Scenarios!$D$5 -> FALSE | GT5: =GT25=Scenarios!$D$5 -> FALSE | GU5: =GU25=Scenarios!$D$5 -> FALSE | GV5: =GV25=Scenarios!$D$5 -> FALSE | GW5: =GW25=Scenarios!$D$5 -> FALSE | GX5: =GX25=Scenarios!$D$5 -> FALSE | GY5: =GY25=Scenarios!$D$5 -> FALSE | GZ5: =GZ25=Scenarios!$D$5 -> FALSE | HA5: =HA25=Scenarios!$D$5 -> FALSE | HB5: =HB25=Scenarios!$D$5 -> FALSE | HC5: =HC25=Scenarios!$D$5 -> FALSE | HD5: =HD25=Scenarios!$D$5 -> FALSE | HE5: =HE25=Scenarios!$D$5 -> FALSE | HF5: =HF25=Scenarios!$D$5 -> FALSE | HG5: =HG25=Scenarios!$D$5 -> FALSE | HH5: =HH25=Scenarios!$D$5 -> FALSE | HI5: =HI25=Scenarios!$D$5 -> FALSE | HJ5: =HJ25=Scenarios!$D$5 -> FALSE | HK5: =HK25=Scenarios!$D$5 -> FALSE | HL5: =HL25=Scenarios!$D$5 -> FALSE | HM5: =HM25=Scenarios!$D$5 -> FALSE | HN5: =HN25=Scenarios!$D$5 -> FALSE | HO5: =HO25=Scenarios!$D$5 -> FALSE | HP5: =HP25=Scenarios!$D$5 -> FALSE | HQ5: =HQ25=Scenarios!$D$5 -> FALSE | HR5: =HR25=Scenarios!$D$5 -> FALSE | HS5: =HS25=Scenarios!$D$5 -> FALSE | HT5: =HT25=Scenarios!$D$5 -> FALSE | HU5: =HU25=Scenarios!$D$5 -> FALSE | HV5: =HV25=Scenarios!$D$5 -> FALSE | HW5: =HW25=Scenarios!$D$5 -> FALSE | HX5: =HX25=Scenarios!$D$5 -> FALSE | HY5: =HY25=Scenarios!$D$5 -> FALSE | HZ5: =HZ25=Scenarios!$D$5 -> FALSE | IA5: =IA25=Scenarios!$D$5 -> FALSE | IB5: =IB25=Scenarios!$D$5 -> FALSE | IC5: =IC25=Scenarios!$D$5 -> FALSE | ID5: =ID25=Scenarios!$D$5 -> FALSE | IE5: =IE25=Scenarios!$D$5 -> FALSE | IF5: =IF25=Scenarios!$D$5 -> FALSE | IG5: =IG25=Scenarios!$D$5 -> FALSE | IH5: =IH25=Scenarios!$D$5 -> FALSE | II5: =II25=Scenarios!$D$5 -> FALSE | IJ5: =IJ25=Scenarios!$D$5 -> FALSE | IK5: =IK25=Scenarios!$D$5 -> FALSE | IL5: =IL25=Scenarios!$D$5 -> FALSE | IM5: =IM25=Scenarios!$D$5 -> FALSE | IN5: =IN25=Scenarios!$D$5 -> FALSE | IO5: =IO25=Scenarios!$D$5 -> FALSE | IP5: =IP25=Scenarios!$D$5 -> FALSE | IQ5: =IQ25=Scenarios!$D$5 -> FALSE | IR5: =IR25=Scenarios!$D$5 -> FALSE | IS5: =IS25=Scenarios!$D$5 -> FALSE | IT5: =IT25=Scenarios!$D$5 -> FALSE | IU5: =IU25=Scenarios!$D$5 -> FALSE | IV5: =IV25=Scenarios!$D$5 -> FALSE | IW5: =IW25=Scenarios!$D$5 -> FALSE | IX5: =IX25=Scenarios!$D$5 -> FALSE | IY5: =IY25=Scenarios!$D$5 -> FALSE | IZ5: =IZ25=Scenarios!$D$5 -> FALSE | JA5: =JA25=Scenarios!$D$5 -> FALSE | JB5: =JB25=Scenarios!$D$5 -> FALSE | JC5: =JC25=Scenarios!$D$5 -> FALSE | JD5: =JD25=Scenarios!$D$5 -> FALSE | JE5: =JE25=Scenarios!$D$5 -> FALSE | JF5: =JF25=Scenarios!$D$5 -> FALSE | JG5: =JG25=Scenarios!$D$5 -> FALSE | JH5: =JH25=Scenarios!$D$5 -> FALSE | JI5: =JI25=Scenarios!$D$5 -> FALSE | JJ5: =JJ25=Scenarios!$D$5 -> FALSE | JK5: =JK25=Scenarios!$D$5 -> FALSE | JL5: =JL25=Scenarios!$D$5 -> FALSE | JM5: =JM25=Scenarios!$D$5 -> FALSE | JN5: =JN25=Scenarios!$D$5 -> FALSE | JO5: =JO25=Scenarios!$D$5 -> FALSE | JP5: =JP25=Scenarios!$D$5 -> FALSE | JQ5: =JQ25=Scenarios!$D$5 -> FALSE | JR5: =JR25=Scenarios!$D$5 -> FALSE | JS5: =JS25=Scenarios!$D$5 -> FALSE | JT5: =JT25=Scenarios!$D$5 -> FALSE | JU5: =JU25=Scenarios!$D$5 -> FALSE | JV5: =JV25=Scenarios!$D$5 -> FALSE | JW5: =JW25=Scenarios!$D$5 -> FALSE | JX5: =JX25=Scenarios!$D$5 -> FALSE | JY5: =JY25=Scenarios!$D$5 -> FALSE | JZ5: =JZ25=Scenarios!$D$5 -> FALSE | KA5: =KA25=Scenarios!$D$5 -> FALSE | KB5: =KB25=Scenarios!$D$5 -> FALSE | KC5: =KC25=Scenarios!$D$5 -> FALSE | KD5: =KD25=Scenarios!$D$5 -> FALSE | KE5: =KE25=Scenarios!$D$5 -> FALSE | KF5: =KF25=Scenarios!$D$5 -> FALSE | KG5: =KG25=Scenarios!$D$5 -> FALSE | KH5: =KH25=Scenarios!$D$5 -> FALSE | KI5: =KI25=Scenarios!$D$5 -> FALSE | KJ5: =KJ25=Scenarios!$D$5 -> FALSE | KK5: =KK25=Scenarios!$D$5 -> FALSE | KL5: =KL25=Scenarios!$D$5 -> FALSE | KM5: =KM25=Scenarios!$D$5 -> FALSE | KN5: =KN25=Scenarios!$D$5 -> FALSE | KO5: =KO25=Scenarios!$D$5 -> FALSE | KP5: =KP25=Scenarios!$D$5 -> FALSE | KQ5: =KQ25=Scenarios!$D$5 -> FALSE | KR5: =KR25=Scenarios!$D$5 -> FALSE | KS5: =KS25=Scenarios!$D$5 -> FALSE | KT5: =KT25=Scenarios!$D$5 -> FALSE | KU5: =KU25=Scenarios!$D$5 -> FALSE | KV5: =KV25=Scenarios!$D$5 -> FALSE | KW5: =KW25=Scenarios!$D$5 -> FALSE | KX5: =KX25=Scenarios!$D$5 -> FALSE | KY5: =KY25=Scenarios!$D$5 -> FALSE | KZ5: =KZ25=Scenarios!$D$5 -> FALSE | LA5: =LA25=Scenarios!$D$5 -> FALSE | LB5: =LB25=Scenarios!$D$5 -> FALSE | LC5: =LC25=Scenarios!$D$5 -> FALSE | LD5: =LD25=Scenarios!$D$5 -> FALSE | LE5: =LE25=Scenarios!$D$5 -> FALSE | LF5: =LF25=Scenarios!$D$5 -> FALSE | LG5: =LG25=Scenarios!$D$5 -> FALSE | LH5: =LH25=Scenarios!$D$5 -> FALSE | LI5: =LI25=Scenarios!$D$5 -> FALSE | LJ5: =LJ25=Scenarios!$D$5 -> FALSE | LK5: =LK25=Scenarios!$D$5 -> FALSE | LL5: =LL25=Scenarios!$D$5 -> FALSE | LM5: =LM25=Scenarios!$D$5 -> FALSE | LN5: =LN25=Scenarios!$D$5 -> FALSE | LO5: =LO25=Scenarios!$D$5 -> FALSE | LP5: =LP25=Scenarios!$D$5 -> FALSE | LQ5: =LQ25=Scenarios!$D$5 -> FALSE | LR5: =LR25=Scenarios!$D$5 -> FALSE | LS5: =LS25=Scenarios!$D$5 -> FALSE | LT5: =LT25=Scenarios!$D$5 -> FALSE | LU5: =LU25=Scenarios!$D$5 -> FALSE | LV5: =LV25=Scenarios!$D$5 -> FALSE | LW5: =LW25=Scenarios!$D$5 -> FALSE | LX5: =LX25=Scenarios!$D$5 -> FALSE | LY5: =LY25=Scenarios!$D$5 -> FALSE | LZ5: =LZ25=Scenarios!$D$5 -> FALSE | MA5: =MA25=Scenarios!$D$5 -> FALSE | MB5: =MB25=Scenarios!$D$5 -> FALSE | MC5: =MC25=Scenarios!$D$5 -> FALSE | MD5: =MD25=Scenarios!$D$5 -> FALSE | ME5: =ME25=Scenarios!$D$5 -> FALSE | MF5: =MF25=Scenarios!$D$5 -> FALSE | MG5: =MG25=Scenarios!$D$5 -> FALSE | MH5: =MH25=Scenarios!$D$5 -> FALSE | MI5: =MI25=Scenarios!$D$5 -> FALSE | MJ5: =MJ25=Scenarios!$D$5 -> FALSE | MK5: =MK25=Scenarios!$D$5 -> FALSE | ML5: =ML25=Scenarios!$D$5 -> FALSE | MM5: =MM25=Scenarios!$D$5 -> FALSE | MN5: =MN25=Scenarios!$D$5 -> FALSE | MO5: =MO25=Scenarios!$D$5 -> FALSE | MP5: =MP25=Scenarios!$D$5 -> FALSE | MQ5: =MQ25=Scenarios!$D$5 -> FALSE | MR5: =MR25=Scenarios!$D$5 -> FALSE | MS5: =MS25=Scenarios!$D$5 -> FALSE | MT5: =MT25=Scenarios!$D$5 -> FALSE | MU5: =MU25=Scenarios!$D$5 -> FALSE | MV5: =MV25=Scenarios!$D$5 -> FALSE | MW5: =MW25=Scenarios!$D$5 -> FALSE | MX5: =MX25=Scenarios!$D$5 -> FALSE | MY5: =MY25=Scenarios!$D$5 -> FALSE | MZ5: =MZ25=Scenarios!$D$5 -> FALSE | NA5: =NA25=Scenarios!$D$5 -> FALSE | NB5: =NB25=Scenarios!$D$5 -> FALSE | NC5: =NC25=Scenarios!$D$5 -> FALSE | ND5: =ND25=Scenarios!$D$5 -> FALSE | NE5: =NE25=Scenarios!$D$5 -> FALSE | NF5: =NF25=Scenarios!$D$5 -> FALSE | NG5: =NG25=Scenarios!$D$5 -> FALSE | NH5: =NH25=Scenarios!$D$5 -> FALSE | NI5: =NI25=Scenarios!$D$5 -> FALSE | NJ5: =NJ25=Scenarios!$D$5 -> FALSE | NK5: =NK25=Scenarios!$D$5 -> FALSE | NL5: =NL25=Scenarios!$D$5 -> FALSE | NM5: =NM25=Scenarios!$D$5 -> FALSE | NN5: =NN25=Scenarios!$D$5 -> FALSE | NO5: =NO25=Scenarios!$D$5 -> FALSE | NP5: =NP25=Scenarios!$D$5 -> FALSE | NQ5: =NQ25=Scenarios!$D$5 -> FALSE | NR5: =NR25=Scenarios!$D$5 -> FALSE | NS5: =NS25=Scenarios!$D$5 -> FALSE | NT5: =NT25=Scenarios!$D$5 -> FALSE | NU5: =NU25=Scenarios!$D$5 -> FALSE | NV5: =NV25=Scenarios!$D$5 -> FALSE | NW5: =NW25=Scenarios!$D$5 -> FALSE | NX5: =NX25=Scenarios!$D$5 -> FALSE | NY5: =NY25=Scenarios!$D$5 -> FALSE | NZ5: =NZ25=Scenarios!$D$5 -> FALSE | OA5: =OA25=Scenarios!$D$5 -> FALSE | OB5: =OB25=Scenarios!$D$5 -> FALSE | OC5: =OC25=Scenarios!$D$5 -> FALSE | OD5: =OD25=Scenarios!$D$5 -> FALSE | OE5: =OE25=Scenarios!$D$5 -> FALSE | OF5: =OF25=Scenarios!$D$5 -> FALSE | OG5: =OG25=Scenarios!$D$5 -> FALSE | OH5: =OH25=Scenarios!$D$5 -> FALSE | OI5: =OI25=Scenarios!$D$5 -> FALSE | OJ5: =OJ25=Scenarios!$D$5 -> FALSE | OK5: =OK25=Scenarios!$D$5 -> FALSE | OL5: =OL25=Scenarios!$D$5 -> FALSE | OM5: =OM25=Scenarios!$D$5 -> FALSE | ON5: =ON25=Scenarios!$D$5 -> FALSE | OO5: =OO25=Scenarios!$D$5 -> FALSE | OP5: =OP25=Scenarios!$D$5 -> FALSE | OQ5: =OQ25=Scenarios!$D$5 -> FALSE | OR5: =OR25=Scenarios!$D$5 -> FALSE | OS5: =OS25=Scenarios!$D$5 -> FALSE | OT5: =OT25=Scenarios!$D$5 -> FALSE | OU5: =OU25=Scenarios!$D$5 -> FALSE | OV5: =OV25=Scenarios!$D$5 -> FALSE | OW5: =OW25=Scenarios!$D$5 -> FALSE | OX5: =OX25=Scenarios!$D$5 -> FALSE | OY5: =OY25=Scenarios!$D$5 -> FALSE | OZ5: =OZ25=Scenarios!$D$5 -> FALSE | PA5: =PA25=Scenarios!$D$5 -> FALSE | PB5: =PB25=Scenarios!$D$5 -> FALSE | PC5: =PC25=Scenarios!$D$5 -> FALSE | PD5: =PD25=Scenarios!$D$5 -> FALSE | PE5: =PE25=Scenarios!$D$5 -> FALSE | PF5: =PF25=Scenarios!$D$5 -> FALSE | PG5: =PG25=Scenarios!$D$5 -> FALSE | PH5: =PH25=Scenarios!$D$5 -> FALSE | PI5: =PI25=Scenarios!$D$5 -> FALSE | PJ5: =PJ25=Scenarios!$D$5 -> FALSE | PK5: =PK25=Scenarios!$D$5 -> FALSE | PL5: =PL25=Scenarios!$D$5 -> FALSE | PM5: =PM25=Scenarios!$D$5 -> FALSE | PN5: =PN25=Scenarios!$D$5 -> FALSE | PO5: =PO25=Scenarios!$D$5 -> FALSE | PP5: =PP25=Scenarios!$D$5 -> FALSE | PQ5: =PQ25=Scenarios!$D$5 -> FALSE | PR5: =PR25=Scenarios!$D$5 -> FALSE | PS5: =PS25=Scenarios!$D$5 -> FALSE | PT5: =PT25=Scenarios!$D$5 -> FALSE | PU5: =PU25=Scenarios!$D$5 -> FALSE | PV5: =PV25=Scenarios!$D$5 -> FALSE | PW5: =PW25=Scenarios!$D$5 -> FALSE | PX5: =PX25=Scenarios!$D$5 -> FALSE | PY5: =PY25=Scenarios!$D$5 -> FALSE | PZ5: =PZ25=Scenarios!$D$5 -> FALSE | QA5: =QA25=Scenarios!$D$5 -> FALSE | QB5: =QB25=Scenarios!$D$5 -> FALSE | QC5: =QC25=Scenarios!$D$5 -> FALSE | QD5: =QD25=Scenarios!$D$5 -> FALSE | QE5: =QE25=Scenarios!$D$5 -> FALSE | QF5: =QF25=Scenarios!$D$5 -> FALSE | QG5: =QG25=Scenarios!$D$5 -> FALSE | QH5: =QH25=Scenarios!$D$5 -> FALSE | QI5: =QI25=Scenarios!$D$5 -> FALSE | QJ5: =QJ25=Scenarios!$D$5 -> FALSE | QK5: =QK25=Scenarios!$D$5 -> FALSE | QL5: =QL25=Scenarios!$D$5 -> FALSE | QM5: =QM25=Scenarios!$D$5 -> FALSE | QN5: =QN25=Scenarios!$D$5 -> FALSE | QO5: =QO25=Scenarios!$D$5 -> FALSE | QP5: =QP25=Scenarios!$D$5 -> FALSE | QQ5: =QQ25=Scenarios!$D$5 -> FALSE | QR5: =QR25=Scenarios!$D$5 -> FALSE | QS5: =QS25=Scenarios!$D$5 -> FALSE | QT5: =QT25=Scenarios!$D$5 -> FALSE | QU5: =QU25=Scenarios!$D$5 -> FALSE | QV5: =QV25=Scenarios!$D$5 -> FALSE | QW5: =QW25=Scenarios!$D$5 -> FALSE | QX5: =QX25=Scenarios!$D$5 -> FALSE | QY5: =QY25=Scenarios!$D$5 -> FALSE | QZ5: =QZ25=Scenarios!$D$5 -> FALSE | RA5: =RA25=Scenarios!$D$5 -> FALSE | RB5: =RB25=Scenarios!$D$5 -> FALSE | RC5: =RC25=Scenarios!$D$5 -> FALSE | RD5: =RD25=Scenarios!$D$5 -> FALSE | RE5: =RE25=Scenarios!$D$5 -> FALSE | RF5: =RF25=Scenarios!$D$5 -> FALSE | RG5: =RG25=Scenarios!$D$5 -> FALSE | RH5: =RH25=Scenarios!$D$5 -> FALSE | RI5: =RI25=Scenarios!$D$5 -> FALSE | RJ5: =RJ25=Scenarios!$D$5 -> FALSE | RK5: =RK25=Scenarios!$D$5 -> FALSE | RL5: =RL25=Scenarios!$D$5 -> FALSE | RM5: =RM25=Scenarios!$D$5 -> FALSE | RN5: =RN25=Scenarios!$D$5 -> FALSE | RO5: =RO25=Scenarios!$D$5 -> FALSE | RP5: =RP25=Scenarios!$D$5 -> FALSE | RQ5: =RQ25=Scenarios!$D$5 -> FALSE | RR5: =RR25=Scenarios!$D$5 -> FALSE | RS5: =RS25=Scenarios!$D$5 -> FALSE | RT5: =RT25=Scenarios!$D$5 -> FALSE | RU5: =RU25=Scenarios!$D$5 -> FALSE | RV5: =RV25=Scenarios!$D$5 -> FALSE | RW5: =RW25=Scenarios!$D$5 -> FALSE | RX5: =RX25=Scenarios!$D$5 -> FALSE | RY5: =RY25=Scenarios!$D$5 -> FALSE | RZ5: =RZ25=Scenarios!$D$5 -> FALSE | SA5: =SA25=Scenarios!$D$5 -> FALSE | SB5: =SB25=Scenarios!$D$5 -> FALSE | SC5: =SC25=Scenarios!$D$5 -> FALSE | SD5: =SD25=Scenarios!$D$5 -> FALSE | SE5: =SE25=Scenarios!$D$5 -> FALSE | SF5: =SF25=Scenarios!$D$5 -> FALSE | SG5: =SG25=Scenarios!$D$5 -> FALSE | SH5: =SH25=Scenarios!$D$5 -> FALSE | SI5: =SI25=Scenarios!$D$5 -> FALSE | SJ5: =SJ25=Scenarios!$D$5 -> FALSE | SK5: =SK25=Scenarios!$D$5 -> FALSE | SL5: =SL25=Scenarios!$D$5 -> FALSE | SM5: =SM25=Scenarios!$D$5 -> FALSE | SN5: =SN25=Scenarios!$D$5 -> FALSE | SO5: =SO25=Scenarios!$D$5 -> FALSE | SP5: =SP25=Scenarios!$D$5 -> FALSE | SQ5: =SQ25=Scenarios!$D$5 -> FALSE | SR5: =SR25=Scenarios!$D$5 -> FALSE | SS5: =SS25=Scenarios!$D$5 -> FALSE | ST5: =ST25=Scenarios!$D$5 -> FALSE | SU5: =SU25=Scenarios!$D$5 -> FALSE | SV5: =SV25=Scenarios!$D$5 -> FALSE | SW5: =SW25=Scenarios!$D$5 -> FALSE | SX5: =SX25=Scenarios!$D$5 -> FALSE | SY5: =SY25=Scenarios!$D$5 -> FALSE | SZ5: =SZ25=Scenarios!$D$5 -> FALSE | TA5: =TA25=Scenarios!$D$5 -> FALSE | TB5: =TB25=Scenarios!$D$5 -> FALSE | TC5: =TC25=Scenarios!$D$5 -> FALSE
D6: Rate of Return Earned on Capital (Equity or Total)
D7: Growth Rate
D8: Dividend Payout (Money Extracted)
B9: Theoretical Long-term Model
D10: Opening Balance
D11: Add: Net Income
D12: Less Dividend
D13: Closing Balance | J13: =Scenarios!D4 -> 100
D14: Change in Investment
F15: CoC | G15: Growth | H15: Mult | AA15: =AA10-Z10 -> 0 | AD15: =AD10*AD6*AD63*(1+G18) -> 0
D16: NPV of Dividends: True Value | E16: =NPV(F16,12:12) -> 0 | F16: =Scenarios!D3 -> 0.084
D18: Growth Method - Initial Period | E18: =K12*H18 -> 0 | F18: =Scenarios!D3 -> 0.084 | G18: =Scenarios!H48 -> 0.025 | H18: =1/(F18-G18) -> 16.94915254
F20: ROC | G20: (1-g/r)
D21: Value Driver | E21: =K11*H21 -> 0 | F21: =Scenarios!H47 -> 0.11 | G21: =(1-G18/F21) -> 0.7727272727 | H21: =G21/(F18-G18) -> 13.09707242
D23: Price to Earnings | E23: =E16/K11 -> 
D24: Price to Book | E24: =E16/Scenarios!D4 -> 0
J25: =J3 -> 0 | K25: =K3 -> 1 | L25: =L3 -> 2 | M25: =M3 -> 3 | N25: =N3 -> 4 | O25: =O3 -> 5 | P25: =P3 -> 6 | Q25: =Q3 -> 7 | R25: =R3 -> 8 | S25: =S3 -> 9 | T25: =T3 -> 10 | U25: =U3 -> 11 | V25: =V3 -> 12 | W25: =W3 -> 13 | X25: =X3 -> 14 | Y25: =Y3 -> 15 | Z25: =Z3 -> 16 | AA25: =AA3 -> 17 | AB25: =AB3 -> 18 | AC25: =AC3 -> 19 | AD25: =AD3 -> 20 | AE25: =AE3 -> 21 | AF25: =AF3 -> 22 | AG25: =AG3 -> 23 | AH25: =AH3 -> 24 | AI25: =AI3 -> 25 | AJ25: =AJ3 -> 26 | AK25: =AK3 -> 27 | AL25: =AL3 -> 28 | AM25: =AM3 -> 29 | AN25: =AN3 -> 30 | AO25: =AO3 -> 31 | AP25: =AP3 -> 32 | AQ25: =AQ3 -> 33 | AR25: =AR3 -> 34 | AS25: =AS3 -> 35 | AT25: =AT3 -> 36 | AU25: =AU3 -> 37 | AV25: =AV3 -> 38 | AW25: =AW3 -> 39 | AX25: =AX3 -> 40 | AY25: =AY3 -> 41 | AZ25: =AZ3 -> 42 | BA25: =BA3 -> 43 | BB25: =BB3 -> 44 | BC25: =BC3 -> 45 | BD25: =BD3 -> 46 | BE25: =BE3 -> 47 | BF25: =BF3 -> 48 | BG25: =BG3 -> 49 | BH25: =BH3 -> 50 | BI25: =BI3 -> 51 | BJ25: =BJ3 -> 52 | BK25: =BK3 -> 53 | BL25: =BL3 -> 54 | BM25: =BM3 -> 55 | BN25: =BN3 -> 56 | BO25: =BO3 -> 57 | BP25: =BP3 -> 58 | BQ25: =BQ3 -> 59 | BR25: =BR3 -> 60 | BS25: =BS3 -> 61 | BT25: =BT3 -> 62 | BU25: =BU3 -> 63 | BV25: =BV3 -> 64 | BW25: =BW3 -> 65 | BX25: =BX3 -> 66 | BY25: =BY3 -> 67 | BZ25: =BZ3 -> 68 | CA25: =CA3 -> 69 | CB25: =CB3 -> 70 | CC25: =CC3 -> 71 | CD25: =CD3 -> 72 | CE25: =CE3 -> 73 | CF25: =CF3 -> 74 | CG25: =CG3 -> 75 | CH25: =CH3 -> 76 | CI25: =CI3 -> 77 | CJ25: =CJ3 -> 78 | CK25: =CK3 -> 79 | CL25: =CL3 -> 80 | CM25: =CM3 -> 81 | CN25: =CN3 -> 82 | CO25: =CO3 -> 83 | CP25: =CP3 -> 84 | CQ25: =CQ3 -> 85 | CR25: =CR3 -> 86 | CS25: =CS3 -> 87 | CT25: =CT3 -> 88 | CU25: =CU3 -> 89 | CV25: =CV3 -> 90 | CW25: =CW3 -> 91 | CX25: =CX3 -> 92 | CY25: =CY3 -> 93 | CZ25: =CZ3 -> 94 | DA25: =DA3 -> 95 | DB25: =DB3 -> 96 | DC25: =DC3 -> 97 | DD25: =DD3 -> 98 | DE25: =DE3 -> 99 | DF25: =DF3 -> 100 | DG25: =DG3 -> 101 | DH25: =DH3 -> 102 | DI25: =DI3 -> 103 | DJ25: =DJ3 -> 104 | DK25: =DK3 -> 105 | DL25: =DL3 -> 106 | DM25: =DM3 -> 107 | DN25: =DN3 -> 108 | DO25: =DO3 -> 109 | DP25: =DP3 -> 110 | DQ25: =DQ3 -> 111 | DR25: =DR3 -> 112 | DS25: =DS3 -> 113 | DT25: =DT3 -> 114 | DU25: =DU3 -> 115 | DV25: =DV3 -> 116 | DW25: =DW3 -> 117 | DX25: =DX3 -> 118 | DY25: =DY3 -> 119 | DZ25: =DZ3 -> 120 | EA25: =EA3 -> 121 | EB25: =EB3 -> 122 | EC25: =EC3 -> 123 | ED25: =ED3 -> 124 | EE25: =EE3 -> 125 | EF25: =EF3 -> 126 | EG25: =EG3 -> 127 | EH25: =EH3 -> 128 | EI25: =EI3 -> 129 | EJ25: =EJ3 -> 130 | EK25: =EK3 -> 131 | EL25: =EL3 -> 132 | EM25: =EM3 -> 133 | EN25: =EN3 -> 134 | EO25: =EO3 -> 135 | EP25: =EP3 -> 136 | EQ25: =EQ3 -> 137 | ER25: =ER3 -> 138 | ES25: =ES3 -> 139 | ET25: =ET3 -> 140 | EU25: =EU3 -> 141 | EV25: =EV3 -> 142 | EW25: =EW3 -> 143 | EX25: =EX3 -> 144 | EY25: =EY3 -> 145 | EZ25: =EZ3 -> 146 | FA25: =FA3 -> 147 | FB25: =FB3 -> 148 | FC25: =FC3 -> 149 | FD25: =FD3 -> 150 | FE25: =FE3 -> 151 | FF25: =FF3 -> 152 | FG25: =FG3 -> 153 | FH25: =FH3 -> 154 | FI25: =FI3 -> 155 | FJ25: =FJ3 -> 156 | FK25: =FK3 -> 157 | FL25: =FL3 -> 158 | FM25: =FM3 -> 159 | FN25: =FN3 -> 160 | FO25: =FO3 -> 161 | FP25: =FP3 -> 162 | FQ25: =FQ3 -> 163 | FR25: =FR3 -> 164 | FS25: =FS3 -> 165 | FT25: =FT3 -> 166 | FU25: =FU3 -> 167 | FV25: =FV3 -> 168 | FW25: =FW3 -> 169 | FX25: =FX3 -> 170 | FY25: =FY3 -> 171 | FZ25: =FZ3 -> 172 | GA25: =GA3 -> 173 | GB25: =GB3 -> 174 | GC25: =GC3 -> 175 | GD25: =GD3 -> 176 | GE25: =GE3 -> 177 | GF25: =GF3 -> 178 | GG25: =GG3 -> 179 | GH25: =GH3 -> 180 | GI25: =GI3 -> 181 | GJ25: =GJ3 -> 182 | GK25: =GK3 -> 183 | GL25: =GL3 -> 184 | GM25: =GM3 -> 185 | GN25: =GN3 -> 186 | GO25: =GO3 -> 187 | GP25: =GP3 -> 188 | GQ25: =GQ3 -> 189 | GR25: =GR3 -> 190 | GS25: =GS3 -> 191 | GT25: =GT3 -> 192 | GU25: =GU3 -> 193 | GV25: =GV3 -> 194 | GW25: =GW3 -> 195 | GX25: =GX3 -> 196 | GY25: =GY3 -> 197 | GZ25: =GZ3 -> 198 | HA25: =HA3 -> 199 | HB25: =HB3 -> 200 | HC25: =HC3 -> 201 | HD25: =HD3 -> 202 | HE25: =HE3 -> 203 | HF25: =HF3 -> 204 | HG25: =HG3 -> 205 | HH25: =HH3 -> 206 | HI25: =HI3 -> 207 | HJ25: =HJ3 -> 208 | HK25: =HK3 -> 209 | HL25: =HL3 -> 210 | HM25: =HM3 -> 211 | HN25: =HN3 -> 212 | HO25: =HO3 -> 213 | HP25: =HP3 -> 214 | HQ25: =HQ3 -> 215 | HR25: =HR3 -> 216 | HS25: =HS3 -> 217 | HT25: =HT3 -> 218 | HU25: =HU3 -> 219 | HV25: =HV3 -> 220 | HW25: =HW3 -> 221 | HX25: =HX3 -> 222 | HY25: =HY3 -> 223 | HZ25: =HZ3 -> 224 | IA25: =IA3 -> 225 | IB25: =IB3 -> 226 | IC25: =IC3 -> 227 | ID25: =ID3 -> 228 | IE25: =IE3 -> 229 | IF25: =IF3 -> 230 | IG25: =IG3 -> 231 | IH25: =IH3 -> 232 | II25: =II3 -> 233 | IJ25: =IJ3 -> 234 | IK25: =IK3 -> 235 | IL25: =IL3 -> 236 | IM25: =IM3 -> 237 | IN25: =IN3 -> 238 | IO25: =IO3 -> 239 | IP25: =IP3 -> 240 | IQ25: =IQ3 -> 241 | IR25: =IR3 -> 242 | IS25: =IS3 -> 243 | IT25: =IT3 -> 244 | IU25: =IU3 -> 245 | IV25: =IV3 -> 246 | IW25: =IW3 -> 247 | IX25: =IX3 -> 248 | IY25: =IY3 -> 249 | IZ25: =IZ3 -> 250 | JA25: =JA3 -> 251 | JB25: =JB3 -> 252 | JC25: =JC3 -> 253 | JD25: =JD3 -> 254 | JE25: =JE3 -> 255 | JF25: =JF3 -> 256 | JG25: =JG3 -> 257 | JH25: =JH3 -> 258 | JI25: =JI3 -> 259 | JJ25: =JJ3 -> 260 | JK25: =JK3 -> 261 | JL25: =JL3 -> 262 | JM25: =JM3 -> 263 | JN25: =JN3 -> 264 | JO25: =JO3 -> 265 | JP25: =JP3 -> 266 | JQ25: =JQ3 -> 267 | JR25: =JR3 -> 268 | JS25: =JS3 -> 269 | JT25: =JT3 -> 270 | JU25: =JU3 -> 271 | JV25: =JV3 -> 272 | JW25: =JW3 -> 273 | JX25: =JX3 -> 274 | JY25: =JY3 -> 275 | JZ25: =JZ3 -> 276 | KA25: =KA3 -> 277 | KB25: =KB3 -> 278 | KC25: =KC3 -> 279 | KD25: =KD3 -> 280 | KE25: =KE3 -> 281 | KF25: =KF3 -> 282 | KG25: =KG3 -> 283 | KH25: =KH3 -> 284 | KI25: =KI3 -> 285 | KJ25: =KJ3 -> 286 | KK25: =KK3 -> 287 | KL25: =KL3 -> 288 | KM25: =KM3 -> 289 | KN25: =KN3 -> 290 | KO25: =KO3 -> 291 | KP25: =KP3 -> 292 | KQ25: =KQ3 -> 293 | KR25: =KR3 -> 294 | KS25: =KS3 -> 295 | KT25: =KT3 -> 296 | KU25: =KU3 -> 297 | KV25: =KV3 -> 298 | KW25: =KW3 -> 299 | KX25: =KX3 -> 300 | KY25: =KY3 -> 301 | KZ25: =KZ3 -> 302 | LA25: =LA3 -> 303 | LB25: =LB3 -> 304 | LC25: =LC3 -> 305 | LD25: =LD3 -> 306 | LE25: =LE3 -> 307 | LF25: =LF3 -> 308 | LG25: =LG3 -> 309 | LH25: =LH3 -> 310 | LI25: =LI3 -> 311 | LJ25: =LJ3 -> 312 | LK25: =LK3 -> 313 | LL25: =LL3 -> 314 | LM25: =LM3 -> 315 | LN25: =LN3 -> 316 | LO25: =LO3 -> 317 | LP25: =LP3 -> 318 | LQ25: =LQ3 -> 319 | LR25: =LR3 -> 320 | LS25: =LS3 -> 321 | LT25: =LT3 -> 322 | LU25: =LU3 -> 323 | LV25: =LV3 -> 324 | LW25: =LW3 -> 325 | LX25: =LX3 -> 326 | LY25: =LY3 -> 327 | LZ25: =LZ3 -> 328 | MA25: =MA3 -> 329 | MB25: =MB3 -> 330 | MC25: =MC3 -> 331 | MD25: =MD3 -> 332 | ME25: =ME3 -> 333 | MF25: =MF3 -> 334 | MG25: =MG3 -> 335 | MH25: =MH3 -> 336 | MI25: =MI3 -> 337 | MJ25: =MJ3 -> 338 | MK25: =MK3 -> 339 | ML25: =ML3 -> 340 | MM25: =MM3 -> 341 | MN25: =MN3 -> 342 | MO25: =MO3 -> 343 | MP25: =MP3 -> 344 | MQ25: =MQ3 -> 345 | MR25: =MR3 -> 346 | MS25: =MS3 -> 347 | MT25: =MT3 -> 348 | MU25: =MU3 -> 349 | MV25: =MV3 -> 350 | MW25: =MW3 -> 351 | MX25: =MX3 -> 352 | MY25: =MY3 -> 353 | MZ25: =MZ3 -> 354 | NA25: =NA3 -> 355 | NB25: =NB3 -> 356 | NC25: =NC3 -> 357 | ND25: =ND3 -> 358 | NE25: =NE3 -> 359 | NF25: =NF3 -> 360 | NG25: =NG3 -> 361 | NH25: =NH3 -> 362 | NI25: =NI3 -> 363 | NJ25: =NJ3 -> 364 | NK25: =NK3 -> 365 | NL25: =NL3 -> 366 | NM25: =NM3 -> 367 | NN25: =NN3 -> 368 | NO25: =NO3 -> 369 | NP25: =NP3 -> 370 | NQ25: =NQ3 -> 371 | NR25: =NR3 -> 372 | NS25: =NS3 -> 373 | NT25: =NT3 -> 374 | NU25: =NU3 -> 375 | NV25: =NV3 -> 376 | NW25: =NW3 -> 377 | NX25: =NX3 -> 378 | NY25: =NY3 -> 379 | NZ25: =NZ3 -> 380 | OA25: =OA3 -> 381 | OB25: =OB3 -> 382 | OC25: =OC3 -> 383 | OD25: =OD3 -> 384 | OE25: =OE3 -> 385 | OF25: =OF3 -> 386 | OG25: =OG3 -> 387 | OH25: =OH3 -> 388 | OI25: =OI3 -> 389 | OJ25: =OJ3 -> 390 | OK25: =OK3 -> 391 | OL25: =OL3 -> 392 | OM25: =OM3 -> 393 | ON25: =ON3 -> 394 | OO25: =OO3 -> 395 | OP25: =OP3 -> 396 | OQ25: =OQ3 -> 397 | OR25: =OR3 -> 398 | OS25: =OS3 -> 399 | OT25: =OT3 -> 400 | OU25: =OU3 -> 401 | OV25: =OV3 -> 402 | OW25: =OW3 -> 403 | OX25: =OX3 -> 404 | OY25: =OY3 -> 405 | OZ25: =OZ3 -> 406 | PA25: =PA3 -> 407 | PB25: =PB3 -> 408 | PC25: =PC3 -> 409 | PD25: =PD3 -> 410 | PE25: =PE3 -> 411 | PF25: =PF3 -> 412 | PG25: =PG3 -> 413 | PH25: =PH3 -> 414 | PI25: =PI3 -> 415 | PJ25: =PJ3 -> 416 | PK25: =PK3 -> 417 | PL25: =PL3 -> 418 | PM25: =PM3 -> 419 | PN25: =PN3 -> 420 | PO25: =PO3 -> 421 | PP25: =PP3 -> 422 | PQ25: =PQ3 -> 423 | PR25: =PR3 -> 424 | PS25: =PS3 -> 425 | PT25: =PT3 -> 426 | PU25: =PU3 -> 427 | PV25: =PV3 -> 428 | PW25: =PW3 -> 429 | PX25: =PX3 -> 430 | PY25: =PY3 -> 431 | PZ25: =PZ3 -> 432 | QA25: =QA3 -> 433 | QB25: =QB3 -> 434 | QC25: =QC3 -> 435 | QD25: =QD3 -> 436 | QE25: =QE3 -> 437 | QF25: =QF3 -> 438 | QG25: =QG3 -> 439 | QH25: =QH3 -> 440 | QI25: =QI3 -> 441 | QJ25: =QJ3 -> 442 | QK25: =QK3 -> 443 | QL25: =QL3 -> 444 | QM25: =QM3 -> 445 | QN25: =QN3 -> 446 | QO25: =QO3 -> 447 | QP25: =QP3 -> 448 | QQ25: =QQ3 -> 449 | QR25: =QR3 -> 450 | QS25: =QS3 -> 451 | QT25: =QT3 -> 452 | QU25: =QU3 -> 453 | QV25: =QV3 -> 454 | QW25: =QW3 -> 455 | QX25: =QX3 -> 456 | QY25: =QY3 -> 457 | QZ25: =QZ3 -> 458 | RA25: =RA3 -> 459 | RB25: =RB3 -> 460 | RC25: =RC3 -> 461 | RD25: =RD3 -> 462 | RE25: =RE3 -> 463 | RF25: =RF3 -> 464 | RG25: =RG3 -> 465 | RH25: =RH3 -> 466 | RI25: =RI3 -> 467 | RJ25: =RJ3 -> 468 | RK25: =RK3 -> 469 | RL25: =RL3 -> 470 | RM25: =RM3 -> 471 | RN25: =RN3 -> 472 | RO25: =RO3 -> 473 | RP25: =RP3 -> 474 | RQ25: =RQ3 -> 475 | RR25: =RR3 -> 476 | RS25: =RS3 -> 477 | RT25: =RT3 -> 478 | RU25: =RU3 -> 479 | RV25: =RV3 -> 480 | RW25: =RW3 -> 481 | RX25: =RX3 -> 482 | RY25: =RY3 -> 483 | RZ25: =RZ3 -> 484 | SA25: =SA3 -> 485 | SB25: =SB3 -> 486 | SC25: =SC3 -> 487 | SD25: =SD3 -> 488 | SE25: =SE3 -> 489 | SF25: =SF3 -> 490 | SG25: =SG3 -> 491 | SH25: =SH3 -> 492 | SI25: =SI3 -> 493 | SJ25: =SJ3 -> 494 | SK25: =SK3 -> 495 | SL25: =SL3 -> 496 | SM25: =SM3 -> 497 | SN25: =SN3 -> 498 | SO25: =SO3 -> 499 | SP25: =SP3 -> 500 | SQ25: =SQ3 -> 501 | SR25: =SR3 -> 502 | SS25: =SS3 -> 503 | ST25: =ST3 -> 504 | SU25: =SU3 -> 505 | SV25: =SV3 -> 506 | SW25: =SW3 -> 507 | SX25: =SX3 -> 508 | SY25: =SY3 -> 509 | SZ25: =SZ3 -> 510 | TA25: =TA3 -> 511 | TB25: =TB3 -> 512 | TC25: =TC3 -> 513
B26: Net Income and Dividend
D27: Net Income | K27: =K4*K11 -> 0 | L27: =L4*L11 -> 0 | M27: =M4*M11 -> 0 | N27: =N4*N11 -> 0 | O27: =O4*O11 -> 0 | P27: =P4*P11 -> 0 | Q27: =Q4*Q11 -> 0 | R27: =R4*R11 -> 0 | S27: =S4*S11 -> 0 | T27: =T4*T11 -> 0 | U27: =U4*U11 -> 0 | V27: =V4*V11 -> 0 | W27: =W4*W11 -> 0 | X27: =X4*X11 -> 0 | Y27: =Y4*Y11 -> 0 | Z27: =Z4*Z11 -> 0 | AA27: =AA4*AA11 -> 0 | AB27: =AB4*AB11 -> 0 | AC27: =AC4*AC11 -> 0 | AD27: =AD4*AD11 -> 0 | AE27: =AE4*AE11 -> 0 | AF27: =AF4*AF11 -> 0 | AG27: =AG4*AG11 -> 0 | AH27: =AH4*AH11 -> 0 | AI27: =AI4*AI11 -> 0 | AJ27: =AJ4*AJ11 -> 0 | AK27: =AK4*AK11 -> 0 | AL27: =AL4*AL11 -> 0 | AM27: =AM4*AM11 -> 0 | AN27: =AN4*AN11 -> 0 | AO27: =AO4*AO11 -> 0 | AP27: =AP4*AP11 -> 0 | AQ27: =AQ4*AQ11 -> 0 | AR27: =AR4*AR11 -> 0 | AS27: =AS4*AS11 -> 0 | AT27: =AT4*AT11 -> 0 | AU27: =AU4*AU11 -> 0 | AV27: =AV4*AV11 -> 0 | AW27: =AW4*AW11 -> 0 | AX27: =AX4*AX11 -> 0 | AY27: =AY4*AY11 -> 0 | AZ27: =AZ4*AZ11 -> 0 | BA27: =BA4*BA11 -> 0 | BB27: =BB4*BB11 -> 0 | BC27: =BC4*BC11 -> 0 | BD27: =BD4*BD11 -> 0 | BE27: =BE4*BE11 -> 0 | BF27: =BF4*BF11 -> 0 | BG27: =BG4*BG11 -> 0 | BH27: =BH4*BH11 -> 0 | BI27: =BI4*BI11 -> 0 | BJ27: =BJ4*BJ11 -> 0 | BK27: =BK4*BK11 -> 0 | BL27: =BL4*BL11 -> 0 | BM27: =BM4*BM11 -> 0 | BN27: =BN4*BN11 -> 0 | BO27: =BO4*BO11 -> 0 | BP27: =BP4*BP11 -> 0 | BQ27: =BQ4*BQ11 -> 0 | BR27: =BR4*BR11 -> 0 | BS27: =BS4*BS11 -> 0 | BT27: =BT4*BT11 -> 0 | BU27: =BU4*BU11 -> 0 | BV27: =BV4*BV11 -> 0 | BW27: =BW4*BW11 -> 0 | BX27: =BX4*BX11 -> 0 | BY27: =BY4*BY11 -> 0 | BZ27: =BZ4*BZ11 -> 0 | CA27: =CA4*CA11 -> 0 | CB27: =CB4*CB11 -> 0 | CC27: =CC4*CC11 -> 0 | CD27: =CD4*CD11 -> 0 | CE27: =CE4*CE11 -> 0 | CF27: =CF4*CF11 -> 0 | CG27: =CG4*CG11 -> 0 | CH27: =CH4*CH11 -> 0 | CI27: =CI4*CI11 -> 0 | CJ27: =CJ4*CJ11 -> 0 | CK27: =CK4*CK11 -> 0 | CL27: =CL4*CL11 -> 0 | CM27: =CM4*CM11 -> 0 | CN27: =CN4*CN11 -> 0 | CO27: =CO4*CO11 -> 0 | CP27: =CP4*CP11 -> 0 | CQ27: =CQ4*CQ11 -> 0 | CR27: =CR4*CR11 -> 0 | CS27: =CS4*CS11 -> 0 | CT27: =CT4*CT11 -> 0 | CU27: =CU4*CU11 -> 0 | CV27: =CV4*CV11 -> 0 | CW27: =CW4*CW11 -> 0 | CX27: =CX4*CX11 -> 0 | CY27: =CY4*CY11 -> 0 | CZ27: =CZ4*CZ11 -> 0 | DA27: =DA4*DA11 -> 0 | DB27: =DB4*DB11 -> 0 | DC27: =DC4*DC11 -> 0 | DD27: =DD4*DD11 -> 0 | DE27: =DE4*DE11 -> 0 | DF27: =DF4*DF11 -> 0 | DG27: =DG4*DG11 -> 0 | DH27: =DH4*DH11 -> 0 | DI27: =DI4*DI11 -> 0 | DJ27: =DJ4*DJ11 -> 0 | DK27: =DK4*DK11 -> 0 | DL27: =DL4*DL11 -> 0 | DM27: =DM4*DM11 -> 0 | DN27: =DN4*DN11 -> 0 | DO27: =DO4*DO11 -> 0 | DP27: =DP4*DP11 -> 0 | DQ27: =DQ4*DQ11 -> 0 | DR27: =DR4*DR11 -> 0 | DS27: =DS4*DS11 -> 0 | DT27: =DT4*DT11 -> 0 | DU27: =DU4*DU11 -> 0 | DV27: =DV4*DV11 -> 0 | DW27: =DW4*DW11 -> 0 | DX27: =DX4*DX11 -> 0 | DY27: =DY4*DY11 -> 0 | DZ27: =DZ4*DZ11 -> 0 | EA27: =EA4*EA11 -> 0 | EB27: =EB4*EB11 -> 0 | EC27: =EC4*EC11 -> 0 | ED27: =ED4*ED11 -> 0 | EE27: =EE4*EE11 -> 0 | EF27: =EF4*EF11 -> 0 | EG27: =EG4*EG11 -> 0 | EH27: =EH4*EH11 -> 0 | EI27: =EI4*EI11 -> 0 | EJ27: =EJ4*EJ11 -> 0 | EK27: =EK4*EK11 -> 0 | EL27: =EL4*EL11 -> 0 | EM27: =EM4*EM11 -> 0 | EN27: =EN4*EN11 -> 0 | EO27: =EO4*EO11 -> 0 | EP27: =EP4*EP11 -> 0 | EQ27: =EQ4*EQ11 -> 0 | ER27: =ER4*ER11 -> 0 | ES27: =ES4*ES11 -> 0 | ET27: =ET4*ET11 -> 0 | EU27: =EU4*EU11 -> 0 | EV27: =EV4*EV11 -> 0 | EW27: =EW4*EW11 -> 0 | EX27: =EX4*EX11 -> 0 | EY27: =EY4*EY11 -> 0 | EZ27: =EZ4*EZ11 -> 0 | FA27: =FA4*FA11 -> 0 | FB27: =FB4*FB11 -> 0 | FC27: =FC4*FC11 -> 0 | FD27: =FD4*FD11 -> 0 | FE27: =FE4*FE11 -> 0 | FF27: =FF4*FF11 -> 0 | FG27: =FG4*FG11 -> 0 | FH27: =FH4*FH11 -> 0 | FI27: =FI4*FI11 -> 0 | FJ27: =FJ4*FJ11 -> 0 | FK27: =FK4*FK11 -> 0 | FL27: =FL4*FL11 -> 0 | FM27: =FM4*FM11 -> 0 | FN27: =FN4*FN11 -> 0 | FO27: =FO4*FO11 -> 0 | FP27: =FP4*FP11 -> 0 | FQ27: =FQ4*FQ11 -> 0 | FR27: =FR4*FR11 -> 0 | FS27: =FS4*FS11 -> 0 | FT27: =FT4*FT11 -> 0 | FU27: =FU4*FU11 -> 0 | FV27: =FV4*FV11 -> 0 | FW27: =FW4*FW11 -> 0 | FX27: =FX4*FX11 -> 0 | FY27: =FY4*FY11 -> 0 | FZ27: =FZ4*FZ11 -> 0 | GA27: =GA4*GA11 -> 0 | GB27: =GB4*GB11 -> 0 | GC27: =GC4*GC11 -> 0 | GD27: =GD4*GD11 -> 0 | GE27: =GE4*GE11 -> 0 | GF27: =GF4*GF11 -> 0 | GG27: =GG4*GG11 -> 0 | GH27: =GH4*GH11 -> 0 | GI27: =GI4*GI11 -> 0 | GJ27: =GJ4*GJ11 -> 0 | GK27: =GK4*GK11 -> 0 | GL27: =GL4*GL11 -> 0 | GM27: =GM4*GM11 -> 0 | GN27: =GN4*GN11 -> 0 | GO27: =GO4*GO11 -> 0 | GP27: =GP4*GP11 -> 0 | GQ27: =GQ4*GQ11 -> 0 | GR27: =GR4*GR11 -> 0 | GS27: =GS4*GS11 -> 0 | GT27: =GT4*GT11 -> 0 | GU27: =GU4*GU11 -> 0 | GV27: =GV4*GV11 -> 0 | GW27: =GW4*GW11 -> 0 | GX27: =GX4*GX11 -> 0 | GY27: =GY4*GY11 -> 0 | GZ27: =GZ4*GZ11 -> 0 | HA27: =HA4*HA11 -> 0 | HB27: =HB4*HB11 -> 0 | HC27: =HC4*HC11 -> 0 | HD27: =HD4*HD11 -> 0 | HE27: =HE4*HE11 -> 0 | HF27: =HF4*HF11 -> 0 | HG27: =HG4*HG11 -> 0 | HH27: =HH4*HH11 -> 0 | HI27: =HI4*HI11 -> 0 | HJ27: =HJ4*HJ11 -> 0 | HK27: =HK4*HK11 -> 0 | HL27: =HL4*HL11 -> 0 | HM27: =HM4*HM11 -> 0 | HN27: =HN4*HN11 -> 0 | HO27: =HO4*HO11 -> 0 | HP27: =HP4*HP11 -> 0 | HQ27: =HQ4*HQ11 -> 0 | HR27: =HR4*HR11 -> 0 | HS27: =HS4*HS11 -> 0 | HT27: =HT4*HT11 -> 0 | HU27: =HU4*HU11 -> 0 | HV27: =HV4*HV11 -> 0 | HW27: =HW4*HW11 -> 0 | HX27: =HX4*HX11 -> 0 | HY27: =HY4*HY11 -> 0 | HZ27: =HZ4*HZ11 -> 0 | IA27: =IA4*IA11 -> 0 | IB27: =IB4*IB11 -> 0 | IC27: =IC4*IC11 -> 0 | ID27: =ID4*ID11 -> 0 | IE27: =IE4*IE11 -> 0 | IF27: =IF4*IF11 -> 0 | IG27: =IG4*IG11 -> 0 | IH27: =IH4*IH11 -> 0 | II27: =II4*II11 -> 0 | IJ27: =IJ4*IJ11 -> 0 | IK27: =IK4*IK11 -> 0 | IL27: =IL4*IL11 -> 0 | IM27: =IM4*IM11 -> 0 | IN27: =IN4*IN11 -> 0 | IO27: =IO4*IO11 -> 0 | IP27: =IP4*IP11 -> 0 | IQ27: =IQ4*IQ11 -> 0 | IR27: =IR4*IR11 -> 0 | IS27: =IS4*IS11 -> 0 | IT27: =IT4*IT11 -> 0 | IU27: =IU4*IU11 -> 0 | IV27: =IV4*IV11 -> 0 | IW27: =IW4*IW11 -> 0 | IX27: =IX4*IX11 -> 0 | IY27: =IY4*IY11 -> 0 | IZ27: =IZ4*IZ11 -> 0 | JA27: =JA4*JA11 -> 0 | JB27: =JB4*JB11 -> 0 | JC27: =JC4*JC11 -> 0 | JD27: =JD4*JD11 -> 0 | JE27: =JE4*JE11 -> 0 | JF27: =JF4*JF11 -> 0 | JG27: =JG4*JG11 -> 0 | JH27: =JH4*JH11 -> 0 | JI27: =JI4*JI11 -> 0 | JJ27: =JJ4*JJ11 -> 0 | JK27: =JK4*JK11 -> 0 | JL27: =JL4*JL11 -> 0 | JM27: =JM4*JM11 -> 0 | JN27: =JN4*JN11 -> 0 | JO27: =JO4*JO11 -> 0 | JP27: =JP4*JP11 -> 0 | JQ27: =JQ4*JQ11 -> 0 | JR27: =JR4*JR11 -> 0 | JS27: =JS4*JS11 -> 0 | JT27: =JT4*JT11 -> 0 | JU27: =JU4*JU11 -> 0 | JV27: =JV4*JV11 -> 0 | JW27: =JW4*JW11 -> 0 | JX27: =JX4*JX11 -> 0 | JY27: =JY4*JY11 -> 0 | JZ27: =JZ4*JZ11 -> 0 | KA27: =KA4*KA11 -> 0 | KB27: =KB4*KB11 -> 0 | KC27: =KC4*KC11 -> 0 | KD27: =KD4*KD11 -> 0 | KE27: =KE4*KE11 -> 0 | KF27: =KF4*KF11 -> 0 | KG27: =KG4*KG11 -> 0 | KH27: =KH4*KH11 -> 0 | KI27: =KI4*KI11 -> 0 | KJ27: =KJ4*KJ11 -> 0 | KK27: =KK4*KK11 -> 0 | KL27: =KL4*KL11 -> 0 | KM27: =KM4*KM11 -> 0 | KN27: =KN4*KN11 -> 0 | KO27: =KO4*KO11 -> 0 | KP27: =KP4*KP11 -> 0 | KQ27: =KQ4*KQ11 -> 0 | KR27: =KR4*KR11 -> 0 | KS27: =KS4*KS11 -> 0 | KT27: =KT4*KT11 -> 0 | KU27: =KU4*KU11 -> 0 | KV27: =KV4*KV11 -> 0 | KW27: =KW4*KW11 -> 0 | KX27: =KX4*KX11 -> 0 | KY27: =KY4*KY11 -> 0 | KZ27: =KZ4*KZ11 -> 0 | LA27: =LA4*LA11 -> 0 | LB27: =LB4*LB11 -> 0 | LC27: =LC4*LC11 -> 0 | LD27: =LD4*LD11 -> 0 | LE27: =LE4*LE11 -> 0 | LF27: =LF4*LF11 -> 0 | LG27: =LG4*LG11 -> 0 | LH27: =LH4*LH11 -> 0 | LI27: =LI4*LI11 -> 0 | LJ27: =LJ4*LJ11 -> 0 | LK27: =LK4*LK11 -> 0 | LL27: =LL4*LL11 -> 0 | LM27: =LM4*LM11 -> 0 | LN27: =LN4*LN11 -> 0 | LO27: =LO4*LO11 -> 0 | LP27: =LP4*LP11 -> 0 | LQ27: =LQ4*LQ11 -> 0 | LR27: =LR4*LR11 -> 0 | LS27: =LS4*LS11 -> 0 | LT27: =LT4*LT11 -> 0 | LU27: =LU4*LU11 -> 0 | LV27: =LV4*LV11 -> 0 | LW27: =LW4*LW11 -> 0 | LX27: =LX4*LX11 -> 0 | LY27: =LY4*LY11 -> 0 | LZ27: =LZ4*LZ11 -> 0 | MA27: =MA4*MA11 -> 0 | MB27: =MB4*MB11 -> 0 | MC27: =MC4*MC11 -> 0 | MD27: =MD4*MD11 -> 0 | ME27: =ME4*ME11 -> 0 | MF27: =MF4*MF11 -> 0 | MG27: =MG4*MG11 -> 0 | MH27: =MH4*MH11 -> 0 | MI27: =MI4*MI11 -> 0 | MJ27: =MJ4*MJ11 -> 0 | MK27: =MK4*MK11 -> 0 | ML27: =ML4*ML11 -> 0 | MM27: =MM4*MM11 -> 0 | MN27: =MN4*MN11 -> 0 | MO27: =MO4*MO11 -> 0 | MP27: =MP4*MP11 -> 0 | MQ27: =MQ4*MQ11 -> 0 | MR27: =MR4*MR11 -> 0 | MS27: =MS4*MS11 -> 0 | MT27: =MT4*MT11 -> 0 | MU27: =MU4*MU11 -> 0 | MV27: =MV4*MV11 -> 0 | MW27: =MW4*MW11 -> 0 | MX27: =MX4*MX11 -> 0 | MY27: =MY4*MY11 -> 0 | MZ27: =MZ4*MZ11 -> 0 | NA27: =NA4*NA11 -> 0 | NB27: =NB4*NB11 -> 0 | NC27: =NC4*NC11 -> 0 | ND27: =ND4*ND11 -> 0 | NE27: =NE4*NE11 -> 0 | NF27: =NF4*NF11 -> 0 | NG27: =NG4*NG11 -> 0 | NH27: =NH4*NH11 -> 0 | NI27: =NI4*NI11 -> 0 | NJ27: =NJ4*NJ11 -> 0 | NK27: =NK4*NK11 -> 0 | NL27: =NL4*NL11 -> 0 | NM27: =NM4*NM11 -> 0 | NN27: =NN4*NN11 -> 0 | NO27: =NO4*NO11 -> 0 | NP27: =NP4*NP11 -> 0 | NQ27: =NQ4*NQ11 -> 0 | NR27: =NR4*NR11 -> 0 | NS27: =NS4*NS11 -> 0 | NT27: =NT4*NT11 -> 0 | NU27: =NU4*NU11 -> 0 | NV27: =NV4*NV11 -> 0 | NW27: =NW4*NW11 -> 0 | NX27: =NX4*NX11 -> 0 | NY27: =NY4*NY11 -> 0 | NZ27: =NZ4*NZ11 -> 0 | OA27: =OA4*OA11 -> 0 | OB27: =OB4*OB11 -> 0 | OC27: =OC4*OC11 -> 0 | OD27: =OD4*OD11 -> 0 | OE27: =OE4*OE11 -> 0 | OF27: =OF4*OF11 -> 0 | OG27: =OG4*OG11 -> 0 | OH27: =OH4*OH11 -> 0 | OI27: =OI4*OI11 -> 0 | OJ27: =OJ4*OJ11 -> 0 | OK27: =OK4*OK11 -> 0 | OL27: =OL4*OL11 -> 0 | OM27: =OM4*OM11 -> 0 | ON27: =ON4*ON11 -> 0 | OO27: =OO4*OO11 -> 0 | OP27: =OP4*OP11 -> 0 | OQ27: =OQ4*OQ11 -> 0 | OR27: =OR4*OR11 -> 0 | OS27: =OS4*OS11 -> 0 | OT27: =OT4*OT11 -> 0 | OU27: =OU4*OU11 -> 0 | OV27: =OV4*OV11 -> 0 | OW27: =OW4*OW11 -> 0 | OX27: =OX4*OX11 -> 0 | OY27: =OY4*OY11 -> 0 | OZ27: =OZ4*OZ11 -> 0 | PA27: =PA4*PA11 -> 0 | PB27: =PB4*PB11 -> 0 | PC27: =PC4*PC11 -> 0 | PD27: =PD4*PD11 -> 0 | PE27: =PE4*PE11 -> 0 | PF27: =PF4*PF11 -> 0 | PG27: =PG4*PG11 -> 0 | PH27: =PH4*PH11 -> 0 | PI27: =PI4*PI11 -> 0 | PJ27: =PJ4*PJ11 -> 0 | PK27: =PK4*PK11 -> 0 | PL27: =PL4*PL11 -> 0 | PM27: =PM4*PM11 -> 0 | PN27: =PN4*PN11 -> 0 | PO27: =PO4*PO11 -> 0 | PP27: =PP4*PP11 -> 0 | PQ27: =PQ4*PQ11 -> 0 | PR27: =PR4*PR11 -> 0 | PS27: =PS4*PS11 -> 0 | PT27: =PT4*PT11 -> 0 | PU27: =PU4*PU11 -> 0 | PV27: =PV4*PV11 -> 0 | PW27: =PW4*PW11 -> 0 | PX27: =PX4*PX11 -> 0 | PY27: =PY4*PY11 -> 0 | PZ27: =PZ4*PZ11 -> 0 | QA27: =QA4*QA11 -> 0 | QB27: =QB4*QB11 -> 0 | QC27: =QC4*QC11 -> 0 | QD27: =QD4*QD11 -> 0 | QE27: =QE4*QE11 -> 0 | QF27: =QF4*QF11 -> 0 | QG27: =QG4*QG11 -> 0 | QH27: =QH4*QH11 -> 0 | QI27: =QI4*QI11 -> 0 | QJ27: =QJ4*QJ11 -> 0 | QK27: =QK4*QK11 -> 0 | QL27: =QL4*QL11 -> 0 | QM27: =QM4*QM11 -> 0 | QN27: =QN4*QN11 -> 0 | QO27: =QO4*QO11 -> 0 | QP27: =QP4*QP11 -> 0 | QQ27: =QQ4*QQ11 -> 0 | QR27: =QR4*QR11 -> 0 | QS27: =QS4*QS11 -> 0 | QT27: =QT4*QT11 -> 0 | QU27: =QU4*QU11 -> 0 | QV27: =QV4*QV11 -> 0 | QW27: =QW4*QW11 -> 0 | QX27: =QX4*QX11 -> 0 | QY27: =QY4*QY11 -> 0 | QZ27: =QZ4*QZ11 -> 0 | RA27: =RA4*RA11 -> 0 | RB27: =RB4*RB11 -> 0 | RC27: =RC4*RC11 -> 0 | RD27: =RD4*RD11 -> 0 | RE27: =RE4*RE11 -> 0 | RF27: =RF4*RF11 -> 0 | RG27: =RG4*RG11 -> 0 | RH27: =RH4*RH11 -> 0 | RI27: =RI4*RI11 -> 0 | RJ27: =RJ4*RJ11 -> 0 | RK27: =RK4*RK11 -> 0 | RL27: =RL4*RL11 -> 0 | RM27: =RM4*RM11 -> 0 | RN27: =RN4*RN11 -> 0 | RO27: =RO4*RO11 -> 0 | RP27: =RP4*RP11 -> 0 | RQ27: =RQ4*RQ11 -> 0 | RR27: =RR4*RR11 -> 0 | RS27: =RS4*RS11 -> 0 | RT27: =RT4*RT11 -> 0 | RU27: =RU4*RU11 -> 0 | RV27: =RV4*RV11 -> 0 | RW27: =RW4*RW11 -> 0 | RX27: =RX4*RX11 -> 0 | RY27: =RY4*RY11 -> 0 | RZ27: =RZ4*RZ11 -> 0 | SA27: =SA4*SA11 -> 0 | SB27: =SB4*SB11 -> 0 | SC27: =SC4*SC11 -> 0 | SD27: =SD4*SD11 -> 0 | SE27: =SE4*SE11 -> 0 | SF27: =SF4*SF11 -> 0 | SG27: =SG4*SG11 -> 0 | SH27: =SH4*SH11 -> 0 | SI27: =SI4*SI11 -> 0 | SJ27: =SJ4*SJ11 -> 0 | SK27: =SK4*SK11 -> 0 | SL27: =SL4*SL11 -> 0 | SM27: =SM4*SM11 -> 0 | SN27: =SN4*SN11 -> 0 | SO27: =SO4*SO11 -> 0 | SP27: =SP4*SP11 -> 0 | SQ27: =SQ4*SQ11 -> 0 | SR27: =SR4*SR11 -> 0 | SS27: =SS4*SS11 -> 0 | ST27: =ST4*ST11 -> 0 | SU27: =SU4*SU11 -> 0 | SV27: =SV4*SV11 -> 0 | SW27: =SW4*SW11 -> 0 | SX27: =SX4*SX11 -> 0 | SY27: =SY4*SY11 -> 0 | SZ27: =SZ4*SZ11 -> 0 | TA27: =TA4*TA11 -> 0 | TB27: =TB4*TB11 -> 0 | TC27: =TC4*TC11 -> 0
D28: Prior Cash Flow (t-t) | K28: =J12*K5 -> 0 | L28: =K12*L5 -> 0 | M28: =L12*M5 -> 0 | N28: =M12*N5 -> 0 | O28: =N12*O5 -> 0 | P28: =O12*P5 -> 0 | Q28: =P12*Q5 -> 0 | R28: =Q12*R5 -> 0 | S28: =R12*S5 -> 0 | T28: =S12*T5 -> 0 | U28: =T12*U5 -> 0 | V28: =U12*V5 -> 0 | W28: =V12*W5 -> 0 | X28: =W12*X5 -> 0 | Y28: =X12*Y5 -> 0 | Z28: =Y12*Z5 -> 0 | AA28: =Z12*AA5 -> 0 | AB28: =AA12*AB5 -> 0 | AC28: =AB12*AC5 -> 0 | AD28: =AC12*AD5 -> 0 | AE28: =AD12*AE5 -> 0 | AF28: =AE12*AF5 -> 0 | AG28: =AF12*AG5 -> 0 | AH28: =AG12*AH5 -> 0 | AI28: =AH12*AI5 -> 0 | AJ28: =AI12*AJ5 -> 0 | AK28: =AJ12*AK5 -> 0 | AL28: =AK12*AL5 -> 0 | AM28: =AL12*AM5 -> 0 | AN28: =AM12*AN5 -> 0 | AO28: =AN12*AO5 -> 0 | AP28: =AO12*AP5 -> 0 | AQ28: =AP12*AQ5 -> 0 | AR28: =AQ12*AR5 -> 0 | AS28: =AR12*AS5 -> 0 | AT28: =AS12*AT5 -> 0 | AU28: =AT12*AU5 -> 0 | AV28: =AU12*AV5 -> 0 | AW28: =AV12*AW5 -> 0 | AX28: =AW12*AX5 -> 0 | AY28: =AX12*AY5 -> 0 | AZ28: =AY12*AZ5 -> 0 | BA28: =AZ12*BA5 -> 0 | BB28: =BA12*BB5 -> 0 | BC28: =BB12*BC5 -> 0 | BD28: =BC12*BD5 -> 0 | BE28: =BD12*BE5 -> 0 | BF28: =BE12*BF5 -> 0 | BG28: =BF12*BG5 -> 0 | BH28: =BG12*BH5 -> 0 | BI28: =BH12*BI5 -> 0 | BJ28: =BI12*BJ5 -> 0 | BK28: =BJ12*BK5 -> 0 | BL28: =BK12*BL5 -> 0 | BM28: =BL12*BM5 -> 0 | BN28: =BM12*BN5 -> 0 | BO28: =BN12*BO5 -> 0 | BP28: =BO12*BP5 -> 0 | BQ28: =BP12*BQ5 -> 0 | BR28: =BQ12*BR5 -> 0 | BS28: =BR12*BS5 -> 0 | BT28: =BS12*BT5 -> 0 | BU28: =BT12*BU5 -> 0 | BV28: =BU12*BV5 -> 0 | BW28: =BV12*BW5 -> 0 | BX28: =BW12*BX5 -> 0 | BY28: =BX12*BY5 -> 0 | BZ28: =BY12*BZ5 -> 0 | CA28: =BZ12*CA5 -> 0 | CB28: =CA12*CB5 -> 0 | CC28: =CB12*CC5 -> 0 | CD28: =CC12*CD5 -> 0 | CE28: =CD12*CE5 -> 0 | CF28: =CE12*CF5 -> 0 | CG28: =CF12*CG5 -> 0 | CH28: =CG12*CH5 -> 0 | CI28: =CH12*CI5 -> 0 | CJ28: =CI12*CJ5 -> 0 | CK28: =CJ12*CK5 -> 0 | CL28: =CK12*CL5 -> 0 | CM28: =CL12*CM5 -> 0 | CN28: =CM12*CN5 -> 0 | CO28: =CN12*CO5 -> 0 | CP28: =CO12*CP5 -> 0 | CQ28: =CP12*CQ5 -> 0 | CR28: =CQ12*CR5 -> 0 | CS28: =CR12*CS5 -> 0 | CT28: =CS12*CT5 -> 0 | CU28: =CT12*CU5 -> 0 | CV28: =CU12*CV5 -> 0 | CW28: =CV12*CW5 -> 0 | CX28: =CW12*CX5 -> 0 | CY28: =CX12*CY5 -> 0 | CZ28: =CY12*CZ5 -> 0 | DA28: =CZ12*DA5 -> 0 | DB28: =DA12*DB5 -> 0 | DC28: =DB12*DC5 -> 0 | DD28: =DC12*DD5 -> 0 | DE28: =DD12*DE5 -> 0 | DF28: =DE12*DF5 -> 0 | DG28: =DF12*DG5 -> 0 | DH28: =DG12*DH5 -> 0 | DI28: =DH12*DI5 -> 0 | DJ28: =DI12*DJ5 -> 0 | DK28: =DJ12*DK5 -> 0 | DL28: =DK12*DL5 -> 0 | DM28: =DL12*DM5 -> 0 | DN28: =DM12*DN5 -> 0 | DO28: =DN12*DO5 -> 0 | DP28: =DO12*DP5 -> 0 | DQ28: =DP12*DQ5 -> 0 | DR28: =DQ12*DR5 -> 0 | DS28: =DR12*DS5 -> 0 | DT28: =DS12*DT5 -> 0 | DU28: =DT12*DU5 -> 0 | DV28: =DU12*DV5 -> 0 | DW28: =DV12*DW5 -> 0 | DX28: =DW12*DX5 -> 0 | DY28: =DX12*DY5 -> 0 | DZ28: =DY12*DZ5 -> 0 | EA28: =DZ12*EA5 -> 0 | EB28: =EA12*EB5 -> 0 | EC28: =EB12*EC5 -> 0 | ED28: =EC12*ED5 -> 0 | EE28: =ED12*EE5 -> 0 | EF28: =EE12*EF5 -> 0 | EG28: =EF12*EG5 -> 0 | EH28: =EG12*EH5 -> 0 | EI28: =EH12*EI5 -> 0 | EJ28: =EI12*EJ5 -> 0 | EK28: =EJ12*EK5 -> 0 | EL28: =EK12*EL5 -> 0 | EM28: =EL12*EM5 -> 0 | EN28: =EM12*EN5 -> 0 | EO28: =EN12*EO5 -> 0 | EP28: =EO12*EP5 -> 0 | EQ28: =EP12*EQ5 -> 0 | ER28: =EQ12*ER5 -> 0 | ES28: =ER12*ES5 -> 0 | ET28: =ES12*ET5 -> 0 | EU28: =ET12*EU5 -> 0 | EV28: =EU12*EV5 -> 0 | EW28: =EV12*EW5 -> 0 | EX28: =EW12*EX5 -> 0 | EY28: =EX12*EY5 -> 0 | EZ28: =EY12*EZ5 -> 0 | FA28: =EZ12*FA5 -> 0 | FB28: =FA12*FB5 -> 0 | FC28: =FB12*FC5 -> 0 | FD28: =FC12*FD5 -> 0 | FE28: =FD12*FE5 -> 0 | FF28: =FE12*FF5 -> 0 | FG28: =FF12*FG5 -> 0 | FH28: =FG12*FH5 -> 0 | FI28: =FH12*FI5 -> 0 | FJ28: =FI12*FJ5 -> 0 | FK28: =FJ12*FK5 -> 0 | FL28: =FK12*FL5 -> 0 | FM28: =FL12*FM5 -> 0 | FN28: =FM12*FN5 -> 0 | FO28: =FN12*FO5 -> 0 | FP28: =FO12*FP5 -> 0 | FQ28: =FP12*FQ5 -> 0 | FR28: =FQ12*FR5 -> 0 | FS28: =FR12*FS5 -> 0 | FT28: =FS12*FT5 -> 0 | FU28: =FT12*FU5 -> 0 | FV28: =FU12*FV5 -> 0 | FW28: =FV12*FW5 -> 0 | FX28: =FW12*FX5 -> 0 | FY28: =FX12*FY5 -> 0 | FZ28: =FY12*FZ5 -> 0 | GA28: =FZ12*GA5 -> 0 | GB28: =GA12*GB5 -> 0 | GC28: =GB12*GC5 -> 0 | GD28: =GC12*GD5 -> 0 | GE28: =GD12*GE5 -> 0 | GF28: =GE12*GF5 -> 0 | GG28: =GF12*GG5 -> 0 | GH28: =GG12*GH5 -> 0 | GI28: =GH12*GI5 -> 0 | GJ28: =GI12*GJ5 -> 0 | GK28: =GJ12*GK5 -> 0 | GL28: =GK12*GL5 -> 0 | GM28: =GL12*GM5 -> 0 | GN28: =GM12*GN5 -> 0 | GO28: =GN12*GO5 -> 0 | GP28: =GO12*GP5 -> 0 | GQ28: =GP12*GQ5 -> 0 | GR28: =GQ12*GR5 -> 0 | GS28: =GR12*GS5 -> 0 | GT28: =GS12*GT5 -> 0 | GU28: =GT12*GU5 -> 0 | GV28: =GU12*GV5 -> 0 | GW28: =GV12*GW5 -> 0 | GX28: =GW12*GX5 -> 0 | GY28: =GX12*GY5 -> 0 | GZ28: =GY12*GZ5 -> 0 | HA28: =GZ12*HA5 -> 0 | HB28: =HA12*HB5 -> 0 | HC28: =HB12*HC5 -> 0 | HD28: =HC12*HD5 -> 0 | HE28: =HD12*HE5 -> 0 | HF28: =HE12*HF5 -> 0 | HG28: =HF12*HG5 -> 0 | HH28: =HG12*HH5 -> 0 | HI28: =HH12*HI5 -> 0 | HJ28: =HI12*HJ5 -> 0 | HK28: =HJ12*HK5 -> 0 | HL28: =HK12*HL5 -> 0 | HM28: =HL12*HM5 -> 0 | HN28: =HM12*HN5 -> 0 | HO28: =HN12*HO5 -> 0 | HP28: =HO12*HP5 -> 0 | HQ28: =HP12*HQ5 -> 0 | HR28: =HQ12*HR5 -> 0 | HS28: =HR12*HS5 -> 0 | HT28: =HS12*HT5 -> 0 | HU28: =HT12*HU5 -> 0 | HV28: =HU12*HV5 -> 0 | HW28: =HV12*HW5 -> 0 | HX28: =HW12*HX5 -> 0 | HY28: =HX12*HY5 -> 0 | HZ28: =HY12*HZ5 -> 0 | IA28: =HZ12*IA5 -> 0 | IB28: =IA12*IB5 -> 0 | IC28: =IB12*IC5 -> 0 | ID28: =IC12*ID5 -> 0 | IE28: =ID12*IE5 -> 0 | IF28: =IE12*IF5 -> 0 | IG28: =IF12*IG5 -> 0 | IH28: =IG12*IH5 -> 0 | II28: =IH12*II5 -> 0 | IJ28: =II12*IJ5 -> 0 | IK28: =IJ12*IK5 -> 0 | IL28: =IK12*IL5 -> 0 | IM28: =IL12*IM5 -> 0 | IN28: =IM12*IN5 -> 0 | IO28: =IN12*IO5 -> 0 | IP28: =IO12*IP5 -> 0 | IQ28: =IP12*IQ5 -> 0 | IR28: =IQ12*IR5 -> 0 | IS28: =IR12*IS5 -> 0 | IT28: =IS12*IT5 -> 0 | IU28: =IT12*IU5 -> 0 | IV28: =IU12*IV5 -> 0 | IW28: =IV12*IW5 -> 0 | IX28: =IW12*IX5 -> 0 | IY28: =IX12*IY5 -> 0 | IZ28: =IY12*IZ5 -> 0 | JA28: =IZ12*JA5 -> 0 | JB28: =JA12*JB5 -> 0 | JC28: =JB12*JC5 -> 0 | JD28: =JC12*JD5 -> 0 | JE28: =JD12*JE5 -> 0 | JF28: =JE12*JF5 -> 0 | JG28: =JF12*JG5 -> 0 | JH28: =JG12*JH5 -> 0 | JI28: =JH12*JI5 -> 0 | JJ28: =JI12*JJ5 -> 0 | JK28: =JJ12*JK5 -> 0 | JL28: =JK12*JL5 -> 0 | JM28: =JL12*JM5 -> 0 | JN28: =JM12*JN5 -> 0 | JO28: =JN12*JO5 -> 0 | JP28: =JO12*JP5 -> 0 | JQ28: =JP12*JQ5 -> 0 | JR28: =JQ12*JR5 -> 0 | JS28: =JR12*JS5 -> 0 | JT28: =JS12*JT5 -> 0 | JU28: =JT12*JU5 -> 0 | JV28: =JU12*JV5 -> 0 | JW28: =JV12*JW5 -> 0 | JX28: =JW12*JX5 -> 0 | JY28: =JX12*JY5 -> 0 | JZ28: =JY12*JZ5 -> 0 | KA28: =JZ12*KA5 -> 0 | KB28: =KA12*KB5 -> 0 | KC28: =KB12*KC5 -> 0 | KD28: =KC12*KD5 -> 0 | KE28: =KD12*KE5 -> 0 | KF28: =KE12*KF5 -> 0 | KG28: =KF12*KG5 -> 0 | KH28: =KG12*KH5 -> 0 | KI28: =KH12*KI5 -> 0 | KJ28: =KI12*KJ5 -> 0 | KK28: =KJ12*KK5 -> 0 | KL28: =KK12*KL5 -> 0 | KM28: =KL12*KM5 -> 0 | KN28: =KM12*KN5 -> 0 | KO28: =KN12*KO5 -> 0 | KP28: =KO12*KP5 -> 0 | KQ28: =KP12*KQ5 -> 0 | KR28: =KQ12*KR5 -> 0 | KS28: =KR12*KS5 -> 0 | KT28: =KS12*KT5 -> 0 | KU28: =KT12*KU5 -> 0 | KV28: =KU12*KV5 -> 0 | KW28: =KV12*KW5 -> 0 | KX28: =KW12*KX5 -> 0 | KY28: =KX12*KY5 -> 0 | KZ28: =KY12*KZ5 -> 0 | LA28: =KZ12*LA5 -> 0 | LB28: =LA12*LB5 -> 0 | LC28: =LB12*LC5 -> 0 | LD28: =LC12*LD5 -> 0 | LE28: =LD12*LE5 -> 0 | LF28: =LE12*LF5 -> 0 | LG28: =LF12*LG5 -> 0 | LH28: =LG12*LH5 -> 0 | LI28: =LH12*LI5 -> 0 | LJ28: =LI12*LJ5 -> 0 | LK28: =LJ12*LK5 -> 0 | LL28: =LK12*LL5 -> 0 | LM28: =LL12*LM5 -> 0 | LN28: =LM12*LN5 -> 0 | LO28: =LN12*LO5 -> 0 | LP28: =LO12*LP5 -> 0 | LQ28: =LP12*LQ5 -> 0 | LR28: =LQ12*LR5 -> 0 | LS28: =LR12*LS5 -> 0 | LT28: =LS12*LT5 -> 0 | LU28: =LT12*LU5 -> 0 | LV28: =LU12*LV5 -> 0 | LW28: =LV12*LW5 -> 0 | LX28: =LW12*LX5 -> 0 | LY28: =LX12*LY5 -> 0 | LZ28: =LY12*LZ5 -> 0 | MA28: =LZ12*MA5 -> 0 | MB28: =MA12*MB5 -> 0 | MC28: =MB12*MC5 -> 0 | MD28: =MC12*MD5 -> 0 | ME28: =MD12*ME5 -> 0 | MF28: =ME12*MF5 -> 0 | MG28: =MF12*MG5 -> 0 | MH28: =MG12*MH5 -> 0 | MI28: =MH12*MI5 -> 0 | MJ28: =MI12*MJ5 -> 0 | MK28: =MJ12*MK5 -> 0 | ML28: =MK12*ML5 -> 0 | MM28: =ML12*MM5 -> 0 | MN28: =MM12*MN5 -> 0 | MO28: =MN12*MO5 -> 0 | MP28: =MO12*MP5 -> 0 | MQ28: =MP12*MQ5 -> 0 | MR28: =MQ12*MR5 -> 0 | MS28: =MR12*MS5 -> 0 | MT28: =MS12*MT5 -> 0 | MU28: =MT12*MU5 -> 0 | MV28: =MU12*MV5 -> 0 | MW28: =MV12*MW5 -> 0 | MX28: =MW12*MX5 -> 0 | MY28: =MX12*MY5 -> 0 | MZ28: =MY12*MZ5 -> 0 | NA28: =MZ12*NA5 -> 0 | NB28: =NA12*NB5 -> 0 | NC28: =NB12*NC5 -> 0 | ND28: =NC12*ND5 -> 0 | NE28: =ND12*NE5 -> 0 | NF28: =NE12*NF5 -> 0 | NG28: =NF12*NG5 -> 0 | NH28: =NG12*NH5 -> 0 | NI28: =NH12*NI5 -> 0 | NJ28: =NI12*NJ5 -> 0 | NK28: =NJ12*NK5 -> 0 | NL28: =NK12*NL5 -> 0 | NM28: =NL12*NM5 -> 0 | NN28: =NM12*NN5 -> 0 | NO28: =NN12*NO5 -> 0 | NP28: =NO12*NP5 -> 0 | NQ28: =NP12*NQ5 -> 0 | NR28: =NQ12*NR5 -> 0 | NS28: =NR12*NS5 -> 0 | NT28: =NS12*NT5 -> 0 | NU28: =NT12*NU5 -> 0 | NV28: =NU12*NV5 -> 0 | NW28: =NV12*NW5 -> 0 | NX28: =NW12*NX5 -> 0 | NY28: =NX12*NY5 -> 0 | NZ28: =NY12*NZ5 -> 0 | OA28: =NZ12*OA5 -> 0 | OB28: =OA12*OB5 -> 0 | OC28: =OB12*OC5 -> 0 | OD28: =OC12*OD5 -> 0 | OE28: =OD12*OE5 -> 0 | OF28: =OE12*OF5 -> 0 | OG28: =OF12*OG5 -> 0 | OH28: =OG12*OH5 -> 0 | OI28: =OH12*OI5 -> 0 | OJ28: =OI12*OJ5 -> 0 | OK28: =OJ12*OK5 -> 0 | OL28: =OK12*OL5 -> 0 | OM28: =OL12*OM5 -> 0 | ON28: =OM12*ON5 -> 0 | OO28: =ON12*OO5 -> 0 | OP28: =OO12*OP5 -> 0 | OQ28: =OP12*OQ5 -> 0 | OR28: =OQ12*OR5 -> 0 | OS28: =OR12*OS5 -> 0 | OT28: =OS12*OT5 -> 0 | OU28: =OT12*OU5 -> 0 | OV28: =OU12*OV5 -> 0 | OW28: =OV12*OW5 -> 0 | OX28: =OW12*OX5 -> 0 | OY28: =OX12*OY5 -> 0 | OZ28: =OY12*OZ5 -> 0 | PA28: =OZ12*PA5 -> 0 | PB28: =PA12*PB5 -> 0 | PC28: =PB12*PC5 -> 0 | PD28: =PC12*PD5 -> 0 | PE28: =PD12*PE5 -> 0 | PF28: =PE12*PF5 -> 0 | PG28: =PF12*PG5 -> 0 | PH28: =PG12*PH5 -> 0 | PI28: =PH12*PI5 -> 0 | PJ28: =PI12*PJ5 -> 0 | PK28: =PJ12*PK5 -> 0 | PL28: =PK12*PL5 -> 0 | PM28: =PL12*PM5 -> 0 | PN28: =PM12*PN5 -> 0 | PO28: =PN12*PO5 -> 0 | PP28: =PO12*PP5 -> 0 | PQ28: =PP12*PQ5 -> 0 | PR28: =PQ12*PR5 -> 0 | PS28: =PR12*PS5 -> 0 | PT28: =PS12*PT5 -> 0 | PU28: =PT12*PU5 -> 0 | PV28: =PU12*PV5 -> 0 | PW28: =PV12*PW5 -> 0 | PX28: =PW12*PX5 -> 0 | PY28: =PX12*PY5 -> 0 | PZ28: =PY12*PZ5 -> 0 | QA28: =PZ12*QA5 -> 0 | QB28: =QA12*QB5 -> 0 | QC28: =QB12*QC5 -> 0 | QD28: =QC12*QD5 -> 0 | QE28: =QD12*QE5 -> 0 | QF28: =QE12*QF5 -> 0 | QG28: =QF12*QG5 -> 0 | QH28: =QG12*QH5 -> 0 | QI28: =QH12*QI5 -> 0 | QJ28: =QI12*QJ5 -> 0 | QK28: =QJ12*QK5 -> 0 | QL28: =QK12*QL5 -> 0 | QM28: =QL12*QM5 -> 0 | QN28: =QM12*QN5 -> 0 | QO28: =QN12*QO5 -> 0 | QP28: =QO12*QP5 -> 0 | QQ28: =QP12*QQ5 -> 0 | QR28: =QQ12*QR5 -> 0 | QS28: =QR12*QS5 -> 0 | QT28: =QS12*QT5 -> 0 | QU28: =QT12*QU5 -> 0 | QV28: =QU12*QV5 -> 0 | QW28: =QV12*QW5 -> 0 | QX28: =QW12*QX5 -> 0 | QY28: =QX12*QY5 -> 0 | QZ28: =QY12*QZ5 -> 0 | RA28: =QZ12*RA5 -> 0 | RB28: =RA12*RB5 -> 0 | RC28: =RB12*RC5 -> 0 | RD28: =RC12*RD5 -> 0 | RE28: =RD12*RE5 -> 0 | RF28: =RE12*RF5 -> 0 | RG28: =RF12*RG5 -> 0 | RH28: =RG12*RH5 -> 0 | RI28: =RH12*RI5 -> 0 | RJ28: =RI12*RJ5 -> 0 | RK28: =RJ12*RK5 -> 0 | RL28: =RK12*RL5 -> 0 | RM28: =RL12*RM5 -> 0 | RN28: =RM12*RN5 -> 0 | RO28: =RN12*RO5 -> 0 | RP28: =RO12*RP5 -> 0 | RQ28: =RP12*RQ5 -> 0 | RR28: =RQ12*RR5 -> 0 | RS28: =RR12*RS5 -> 0 | RT28: =RS12*RT5 -> 0 | RU28: =RT12*RU5 -> 0 | RV28: =RU12*RV5 -> 0 | RW28: =RV12*RW5 -> 0 | RX28: =RW12*RX5 -> 0 | RY28: =RX12*RY5 -> 0 | RZ28: =RY12*RZ5 -> 0 | SA28: =RZ12*SA5 -> 0 | SB28: =SA12*SB5 -> 0 | SC28: =SB12*SC5 -> 0 | SD28: =SC12*SD5 -> 0 | SE28: =SD12*SE5 -> 0 | SF28: =SE12*SF5 -> 0 | SG28: =SF12*SG5 -> 0 | SH28: =SG12*SH5 -> 0 | SI28: =SH12*SI5 -> 0 | SJ28: =SI12*SJ5 -> 0 | SK28: =SJ12*SK5 -> 0 | SL28: =SK12*SL5 -> 0 | SM28: =SL12*SM5 -> 0 | SN28: =SM12*SN5 -> 0 | SO28: =SN12*SO5 -> 0 | SP28: =SO12*SP5 -> 0 | SQ28: =SP12*SQ5 -> 0 | SR28: =SQ12*SR5 -> 0 | SS28: =SR12*SS5 -> 0 | ST28: =SS12*ST5 -> 0 | SU28: =ST12*SU5 -> 0 | SV28: =SU12*SV5 -> 0 | SW28: =SV12*SW5 -> 0 | SX28: =SW12*SX5 -> 0 | SY28: =SX12*SY5 -> 0 | SZ28: =SY12*SZ5 -> 0 | TA28: =SZ12*TA5 -> 0 | TB28: =TA12*TB5 -> 0 | TC28: =TB12*TC5 -> 0
D29: Value over Explicit Period | E29: =NPV(F29,K29:KW29) -> 0 | F29: =Scenarios!D3 -> 0.084 | K29: =K12*K4 -> 0 | L29: =L12*L4 -> 0 | M29: =M12*M4 -> 0 | N29: =N12*N4 -> 0 | O29: =O12*O4 -> 0 | P29: =P12*P4 -> 0 | Q29: =Q12*Q4 -> 0 | R29: =R12*R4 -> 0 | S29: =S12*S4 -> 0 | T29: =T12*T4 -> 0 | U29: =U12*U4 -> 0 | V29: =V12*V4 -> 0 | W29: =W12*W4 -> 0 | X29: =X12*X4 -> 0 | Y29: =Y12*Y4 -> 0 | Z29: =Z12*Z4 -> 0 | AA29: =AA12*AA4 -> 0 | AB29: =AB12*AB4 -> 0 | AC29: =AC12*AC4 -> 0 | AD29: =AD12*AD4 -> 0 | AE29: =AE12*AE4 -> 0 | AF29: =AF12*AF4 -> 0 | AG29: =AG12*AG4 -> 0 | AH29: =AH12*AH4 -> 0 | AI29: =AI12*AI4 -> 0 | AJ29: =AJ12*AJ4 -> 0 | AK29: =AK12*AK4 -> 0 | AL29: =AL12*AL4 -> 0 | AM29: =AM12*AM4 -> 0 | AN29: =AN12*AN4 -> 0 | AO29: =AO12*AO4 -> 0 | AP29: =AP12*AP4 -> 0 | AQ29: =AQ12*AQ4 -> 0 | AR29: =AR12*AR4 -> 0 | AS29: =AS12*AS4 -> 0 | AT29: =AT12*AT4 -> 0 | AU29: =AU12*AU4 -> 0 | AV29: =AV12*AV4 -> 0 | AW29: =AW12*AW4 -> 0 | AX29: =AX12*AX4 -> 0 | AY29: =AY12*AY4 -> 0 | AZ29: =AZ12*AZ4 -> 0 | BA29: =BA12*BA4 -> 0 | BB29: =BB12*BB4 -> 0 | BC29: =BC12*BC4 -> 0 | BD29: =BD12*BD4 -> 0 | BE29: =BE12*BE4 -> 0 | BF29: =BF12*BF4 -> 0 | BG29: =BG12*BG4 -> 0 | BH29: =BH12*BH4 -> 0 | BI29: =BI12*BI4 -> 0 | BJ29: =BJ12*BJ4 -> 0 | BK29: =BK12*BK4 -> 0 | BL29: =BL12*BL4 -> 0 | BM29: =BM12*BM4 -> 0 | BN29: =BN12*BN4 -> 0 | BO29: =BO12*BO4 -> 0 | BP29: =BP12*BP4 -> 0 | BQ29: =BQ12*BQ4 -> 0 | BR29: =BR12*BR4 -> 0 | BS29: =BS12*BS4 -> 0 | BT29: =BT12*BT4 -> 0 | BU29: =BU12*BU4 -> 0 | BV29: =BV12*BV4 -> 0 | BW29: =BW12*BW4 -> 0 | BX29: =BX12*BX4 -> 0 | BY29: =BY12*BY4 -> 0 | BZ29: =BZ12*BZ4 -> 0 | CA29: =CA12*CA4 -> 0 | CB29: =CB12*CB4 -> 0 | CC29: =CC12*CC4 -> 0 | CD29: =CD12*CD4 -> 0 | CE29: =CE12*CE4 -> 0 | CF29: =CF12*CF4 -> 0 | CG29: =CG12*CG4 -> 0 | CH29: =CH12*CH4 -> 0 | CI29: =CI12*CI4 -> 0 | CJ29: =CJ12*CJ4 -> 0 | CK29: =CK12*CK4 -> 0 | CL29: =CL12*CL4 -> 0 | CM29: =CM12*CM4 -> 0 | CN29: =CN12*CN4 -> 0 | CO29: =CO12*CO4 -> 0 | CP29: =CP12*CP4 -> 0 | CQ29: =CQ12*CQ4 -> 0 | CR29: =CR12*CR4 -> 0 | CS29: =CS12*CS4 -> 0 | CT29: =CT12*CT4 -> 0 | CU29: =CU12*CU4 -> 0 | CV29: =CV12*CV4 -> 0 | CW29: =CW12*CW4 -> 0 | CX29: =CX12*CX4 -> 0 | CY29: =CY12*CY4 -> 0 | CZ29: =CZ12*CZ4 -> 0 | DA29: =DA12*DA4 -> 0 | DB29: =DB12*DB4 -> 0 | DC29: =DC12*DC4 -> 0 | DD29: =DD12*DD4 -> 0 | DE29: =DE12*DE4 -> 0 | DF29: =DF12*DF4 -> 0 | DG29: =DG12*DG4 -> 0 | DH29: =DH12*DH4 -> 0 | DI29: =DI12*DI4 -> 0 | DJ29: =DJ12*DJ4 -> 0 | DK29: =DK12*DK4 -> 0 | DL29: =DL12*DL4 -> 0 | DM29: =DM12*DM4 -> 0 | DN29: =DN12*DN4 -> 0 | DO29: =DO12*DO4 -> 0 | DP29: =DP12*DP4 -> 0 | DQ29: =DQ12*DQ4 -> 0 | DR29: =DR12*DR4 -> 0 | DS29: =DS12*DS4 -> 0 | DT29: =DT12*DT4 -> 0 | DU29: =DU12*DU4 -> 0 | DV29: =DV12*DV4 -> 0 | DW29: =DW12*DW4 -> 0 | DX29: =DX12*DX4 -> 0 | DY29: =DY12*DY4 -> 0 | DZ29: =DZ12*DZ4 -> 0 | EA29: =EA12*EA4 -> 0 | EB29: =EB12*EB4 -> 0 | EC29: =EC12*EC4 -> 0 | ED29: =ED12*ED4 -> 0 | EE29: =EE12*EE4 -> 0 | EF29: =EF12*EF4 -> 0 | EG29: =EG12*EG4 -> 0 | EH29: =EH12*EH4 -> 0 | EI29: =EI12*EI4 -> 0 | EJ29: =EJ12*EJ4 -> 0 | EK29: =EK12*EK4 -> 0 | EL29: =EL12*EL4 -> 0 | EM29: =EM12*EM4 -> 0 | EN29: =EN12*EN4 -> 0 | EO29: =EO12*EO4 -> 0 | EP29: =EP12*EP4 -> 0 | EQ29: =EQ12*EQ4 -> 0 | ER29: =ER12*ER4 -> 0 | ES29: =ES12*ES4 -> 0 | ET29: =ET12*ET4 -> 0 | EU29: =EU12*EU4 -> 0 | EV29: =EV12*EV4 -> 0 | EW29: =EW12*EW4 -> 0 | EX29: =EX12*EX4 -> 0 | EY29: =EY12*EY4 -> 0 | EZ29: =EZ12*EZ4 -> 0 | FA29: =FA12*FA4 -> 0 | FB29: =FB12*FB4 -> 0 | FC29: =FC12*FC4 -> 0 | FD29: =FD12*FD4 -> 0 | FE29: =FE12*FE4 -> 0 | FF29: =FF12*FF4 -> 0 | FG29: =FG12*FG4 -> 0 | FH29: =FH12*FH4 -> 0 | FI29: =FI12*FI4 -> 0 | FJ29: =FJ12*FJ4 -> 0 | FK29: =FK12*FK4 -> 0 | FL29: =FL12*FL4 -> 0 | FM29: =FM12*FM4 -> 0 | FN29: =FN12*FN4 -> 0 | FO29: =FO12*FO4 -> 0 | FP29: =FP12*FP4 -> 0 | FQ29: =FQ12*FQ4 -> 0 | FR29: =FR12*FR4 -> 0 | FS29: =FS12*FS4 -> 0 | FT29: =FT12*FT4 -> 0 | FU29: =FU12*FU4 -> 0 | FV29: =FV12*FV4 -> 0 | FW29: =FW12*FW4 -> 0 | FX29: =FX12*FX4 -> 0 | FY29: =FY12*FY4 -> 0 | FZ29: =FZ12*FZ4 -> 0 | GA29: =GA12*GA4 -> 0 | GB29: =GB12*GB4 -> 0 | GC29: =GC12*GC4 -> 0 | GD29: =GD12*GD4 -> 0 | GE29: =GE12*GE4 -> 0 | GF29: =GF12*GF4 -> 0 | GG29: =GG12*GG4 -> 0 | GH29: =GH12*GH4 -> 0 | GI29: =GI12*GI4 -> 0 | GJ29: =GJ12*GJ4 -> 0 | GK29: =GK12*GK4 -> 0 | GL29: =GL12*GL4 -> 0 | GM29: =GM12*GM4 -> 0 | GN29: =GN12*GN4 -> 0 | GO29: =GO12*GO4 -> 0 | GP29: =GP12*GP4 -> 0 | GQ29: =GQ12*GQ4 -> 0 | GR29: =GR12*GR4 -> 0 | GS29: =GS12*GS4 -> 0 | GT29: =GT12*GT4 -> 0 | GU29: =GU12*GU4 -> 0 | GV29: =GV12*GV4 -> 0 | GW29: =GW12*GW4 -> 0 | GX29: =GX12*GX4 -> 0 | GY29: =GY12*GY4 -> 0 | GZ29: =GZ12*GZ4 -> 0 | HA29: =HA12*HA4 -> 0 | HB29: =HB12*HB4 -> 0 | HC29: =HC12*HC4 -> 0 | HD29: =HD12*HD4 -> 0 | HE29: =HE12*HE4 -> 0 | HF29: =HF12*HF4 -> 0 | HG29: =HG12*HG4 -> 0 | HH29: =HH12*HH4 -> 0 | HI29: =HI12*HI4 -> 0 | HJ29: =HJ12*HJ4 -> 0 | HK29: =HK12*HK4 -> 0 | HL29: =HL12*HL4 -> 0 | HM29: =HM12*HM4 -> 0 | HN29: =HN12*HN4 -> 0 | HO29: =HO12*HO4 -> 0 | HP29: =HP12*HP4 -> 0 | HQ29: =HQ12*HQ4 -> 0 | HR29: =HR12*HR4 -> 0 | HS29: =HS12*HS4 -> 0 | HT29: =HT12*HT4 -> 0 | HU29: =HU12*HU4 -> 0 | HV29: =HV12*HV4 -> 0 | HW29: =HW12*HW4 -> 0 | HX29: =HX12*HX4 -> 0 | HY29: =HY12*HY4 -> 0 | HZ29: =HZ12*HZ4 -> 0 | IA29: =IA12*IA4 -> 0 | IB29: =IB12*IB4 -> 0 | IC29: =IC12*IC4 -> 0 | ID29: =ID12*ID4 -> 0 | IE29: =IE12*IE4 -> 0 | IF29: =IF12*IF4 -> 0 | IG29: =IG12*IG4 -> 0 | IH29: =IH12*IH4 -> 0 | II29: =II12*II4 -> 0 | IJ29: =IJ12*IJ4 -> 0 | IK29: =IK12*IK4 -> 0 | IL29: =IL12*IL4 -> 0 | IM29: =IM12*IM4 -> 0 | IN29: =IN12*IN4 -> 0 | IO29: =IO12*IO4 -> 0 | IP29: =IP12*IP4 -> 0 | IQ29: =IQ12*IQ4 -> 0 | IR29: =IR12*IR4 -> 0 | IS29: =IS12*IS4 -> 0 | IT29: =IT12*IT4 -> 0 | IU29: =IU12*IU4 -> 0 | IV29: =IV12*IV4 -> 0 | IW29: =IW12*IW4 -> 0 | IX29: =IX12*IX4 -> 0 | IY29: =IY12*IY4 -> 0 | IZ29: =IZ12*IZ4 -> 0 | JA29: =JA12*JA4 -> 0 | JB29: =JB12*JB4 -> 0 | JC29: =JC12*JC4 -> 0 | JD29: =JD12*JD4 -> 0 | JE29: =JE12*JE4 -> 0 | JF29: =JF12*JF4 -> 0 | JG29: =JG12*JG4 -> 0 | JH29: =JH12*JH4 -> 0 | JI29: =JI12*JI4 -> 0 | JJ29: =JJ12*JJ4 -> 0 | JK29: =JK12*JK4 -> 0 | JL29: =JL12*JL4 -> 0 | JM29: =JM12*JM4 -> 0 | JN29: =JN12*JN4 -> 0 | JO29: =JO12*JO4 -> 0 | JP29: =JP12*JP4 -> 0 | JQ29: =JQ12*JQ4 -> 0 | JR29: =JR12*JR4 -> 0 | JS29: =JS12*JS4 -> 0 | JT29: =JT12*JT4 -> 0 | JU29: =JU12*JU4 -> 0 | JV29: =JV12*JV4 -> 0 | JW29: =JW12*JW4 -> 0 | JX29: =JX12*JX4 -> 0 | JY29: =JY12*JY4 -> 0 | JZ29: =JZ12*JZ4 -> 0 | KA29: =KA12*KA4 -> 0 | KB29: =KB12*KB4 -> 0 | KC29: =KC12*KC4 -> 0 | KD29: =KD12*KD4 -> 0 | KE29: =KE12*KE4 -> 0 | KF29: =KF12*KF4 -> 0 | KG29: =KG12*KG4 -> 0 | KH29: =KH12*KH4 -> 0 | KI29: =KI12*KI4 -> 0 | KJ29: =KJ12*KJ4 -> 0 | KK29: =KK12*KK4 -> 0 | KL29: =KL12*KL4 -> 0 | KM29: =KM12*KM4 -> 0 | KN29: =KN12*KN4 -> 0 | KO29: =KO12*KO4 -> 0 | KP29: =KP12*KP4 -> 0 | KQ29: =KQ12*KQ4 -> 0 | KR29: =KR12*KR4 -> 0 | KS29: =KS12*KS4 -> 0 | KT29: =KT12*KT4 -> 0 | KU29: =KU12*KU4 -> 0 | KV29: =KV12*KV4 -> 0 | KW29: =KW12*KW4 -> 0 | KX29: =KX12*KX4 -> 0 | KY29: =KY12*KY4 -> 0 | KZ29: =KZ12*KZ4 -> 0 | LA29: =LA12*LA4 -> 0 | LB29: =LB12*LB4 -> 0 | LC29: =LC12*LC4 -> 0 | LD29: =LD12*LD4 -> 0 | LE29: =LE12*LE4 -> 0 | LF29: =LF12*LF4 -> 0 | LG29: =LG12*LG4 -> 0 | LH29: =LH12*LH4 -> 0 | LI29: =LI12*LI4 -> 0 | LJ29: =LJ12*LJ4 -> 0 | LK29: =LK12*LK4 -> 0 | LL29: =LL12*LL4 -> 0 | LM29: =LM12*LM4 -> 0 | LN29: =LN12*LN4 -> 0 | LO29: =LO12*LO4 -> 0 | LP29: =LP12*LP4 -> 0 | LQ29: =LQ12*LQ4 -> 0 | LR29: =LR12*LR4 -> 0 | LS29: =LS12*LS4 -> 0 | LT29: =LT12*LT4 -> 0 | LU29: =LU12*LU4 -> 0 | LV29: =LV12*LV4 -> 0 | LW29: =LW12*LW4 -> 0 | LX29: =LX12*LX4 -> 0 | LY29: =LY12*LY4 -> 0 | LZ29: =LZ12*LZ4 -> 0 | MA29: =MA12*MA4 -> 0 | MB29: =MB12*MB4 -> 0 | MC29: =MC12*MC4 -> 0 | MD29: =MD12*MD4 -> 0 | ME29: =ME12*ME4 -> 0 | MF29: =MF12*MF4 -> 0 | MG29: =MG12*MG4 -> 0 | MH29: =MH12*MH4 -> 0 | MI29: =MI12*MI4 -> 0 | MJ29: =MJ12*MJ4 -> 0 | MK29: =MK12*MK4 -> 0 | ML29: =ML12*ML4 -> 0 | MM29: =MM12*MM4 -> 0 | MN29: =MN12*MN4 -> 0 | MO29: =MO12*MO4 -> 0 | MP29: =MP12*MP4 -> 0 | MQ29: =MQ12*MQ4 -> 0 | MR29: =MR12*MR4 -> 0 | MS29: =MS12*MS4 -> 0 | MT29: =MT12*MT4 -> 0 | MU29: =MU12*MU4 -> 0 | MV29: =MV12*MV4 -> 0 | MW29: =MW12*MW4 -> 0 | MX29: =MX12*MX4 -> 0 | MY29: =MY12*MY4 -> 0 | MZ29: =MZ12*MZ4 -> 0 | NA29: =NA12*NA4 -> 0 | NB29: =NB12*NB4 -> 0 | NC29: =NC12*NC4 -> 0 | ND29: =ND12*ND4 -> 0 | NE29: =NE12*NE4 -> 0 | NF29: =NF12*NF4 -> 0 | NG29: =NG12*NG4 -> 0 | NH29: =NH12*NH4 -> 0 | NI29: =NI12*NI4 -> 0 | NJ29: =NJ12*NJ4 -> 0 | NK29: =NK12*NK4 -> 0 | NL29: =NL12*NL4 -> 0 | NM29: =NM12*NM4 -> 0 | NN29: =NN12*NN4 -> 0 | NO29: =NO12*NO4 -> 0 | NP29: =NP12*NP4 -> 0 | NQ29: =NQ12*NQ4 -> 0 | NR29: =NR12*NR4 -> 0 | NS29: =NS12*NS4 -> 0 | NT29: =NT12*NT4 -> 0 | NU29: =NU12*NU4 -> 0 | NV29: =NV12*NV4 -> 0 | NW29: =NW12*NW4 -> 0 | NX29: =NX12*NX4 -> 0 | NY29: =NY12*NY4 -> 0 | NZ29: =NZ12*NZ4 -> 0 | OA29: =OA12*OA4 -> 0 | OB29: =OB12*OB4 -> 0 | OC29: =OC12*OC4 -> 0 | OD29: =OD12*OD4 -> 0 | OE29: =OE12*OE4 -> 0 | OF29: =OF12*OF4 -> 0 | OG29: =OG12*OG4 -> 0 | OH29: =OH12*OH4 -> 0 | OI29: =OI12*OI4 -> 0 | OJ29: =OJ12*OJ4 -> 0 | OK29: =OK12*OK4 -> 0 | OL29: =OL12*OL4 -> 0 | OM29: =OM12*OM4 -> 0 | ON29: =ON12*ON4 -> 0 | OO29: =OO12*OO4 -> 0 | OP29: =OP12*OP4 -> 0 | OQ29: =OQ12*OQ4 -> 0 | OR29: =OR12*OR4 -> 0 | OS29: =OS12*OS4 -> 0 | OT29: =OT12*OT4 -> 0 | OU29: =OU12*OU4 -> 0 | OV29: =OV12*OV4 -> 0 | OW29: =OW12*OW4 -> 0 | OX29: =OX12*OX4 -> 0 | OY29: =OY12*OY4 -> 0 | OZ29: =OZ12*OZ4 -> 0 | PA29: =PA12*PA4 -> 0 | PB29: =PB12*PB4 -> 0 | PC29: =PC12*PC4 -> 0 | PD29: =PD12*PD4 -> 0 | PE29: =PE12*PE4 -> 0 | PF29: =PF12*PF4 -> 0 | PG29: =PG12*PG4 -> 0 | PH29: =PH12*PH4 -> 0 | PI29: =PI12*PI4 -> 0 | PJ29: =PJ12*PJ4 -> 0 | PK29: =PK12*PK4 -> 0 | PL29: =PL12*PL4 -> 0 | PM29: =PM12*PM4 -> 0 | PN29: =PN12*PN4 -> 0 | PO29: =PO12*PO4 -> 0 | PP29: =PP12*PP4 -> 0 | PQ29: =PQ12*PQ4 -> 0 | PR29: =PR12*PR4 -> 0 | PS29: =PS12*PS4 -> 0 | PT29: =PT12*PT4 -> 0 | PU29: =PU12*PU4 -> 0 | PV29: =PV12*PV4 -> 0 | PW29: =PW12*PW4 -> 0 | PX29: =PX12*PX4 -> 0 | PY29: =PY12*PY4 -> 0 | PZ29: =PZ12*PZ4 -> 0 | QA29: =QA12*QA4 -> 0 | QB29: =QB12*QB4 -> 0 | QC29: =QC12*QC4 -> 0 | QD29: =QD12*QD4 -> 0 | QE29: =QE12*QE4 -> 0 | QF29: =QF12*QF4 -> 0 | QG29: =QG12*QG4 -> 0 | QH29: =QH12*QH4 -> 0 | QI29: =QI12*QI4 -> 0 | QJ29: =QJ12*QJ4 -> 0 | QK29: =QK12*QK4 -> 0 | QL29: =QL12*QL4 -> 0 | QM29: =QM12*QM4 -> 0 | QN29: =QN12*QN4 -> 0 | QO29: =QO12*QO4 -> 0 | QP29: =QP12*QP4 -> 0 | QQ29: =QQ12*QQ4 -> 0 | QR29: =QR12*QR4 -> 0 | QS29: =QS12*QS4 -> 0 | QT29: =QT12*QT4 -> 0 | QU29: =QU12*QU4 -> 0 | QV29: =QV12*QV4 -> 0 | QW29: =QW12*QW4 -> 0 | QX29: =QX12*QX4 -> 0 | QY29: =QY12*QY4 -> 0 | QZ29: =QZ12*QZ4 -> 0 | RA29: =RA12*RA4 -> 0 | RB29: =RB12*RB4 -> 0 | RC29: =RC12*RC4 -> 0 | RD29: =RD12*RD4 -> 0 | RE29: =RE12*RE4 -> 0 | RF29: =RF12*RF4 -> 0 | RG29: =RG12*RG4 -> 0 | RH29: =RH12*RH4 -> 0 | RI29: =RI12*RI4 -> 0 | RJ29: =RJ12*RJ4 -> 0 | RK29: =RK12*RK4 -> 0 | RL29: =RL12*RL4 -> 0 | RM29: =RM12*RM4 -> 0 | RN29: =RN12*RN4 -> 0 | RO29: =RO12*RO4 -> 0 | RP29: =RP12*RP4 -> 0 | RQ29: =RQ12*RQ4 -> 0 | RR29: =RR12*RR4 -> 0 | RS29: =RS12*RS4 -> 0 | RT29: =RT12*RT4 -> 0 | RU29: =RU12*RU4 -> 0 | RV29: =RV12*RV4 -> 0 | RW29: =RW12*RW4 -> 0 | RX29: =RX12*RX4 -> 0 | RY29: =RY12*RY4 -> 0 | RZ29: =RZ12*RZ4 -> 0 | SA29: =SA12*SA4 -> 0 | SB29: =SB12*SB4 -> 0 | SC29: =SC12*SC4 -> 0 | SD29: =SD12*SD4 -> 0 | SE29: =SE12*SE4 -> 0 | SF29: =SF12*SF4 -> 0 | SG29: =SG12*SG4 -> 0 | SH29: =SH12*SH4 -> 0 | SI29: =SI12*SI4 -> 0 | SJ29: =SJ12*SJ4 -> 0 | SK29: =SK12*SK4 -> 0 | SL29: =SL12*SL4 -> 0 | SM29: =SM12*SM4 -> 0 | SN29: =SN12*SN4 -> 0 | SO29: =SO12*SO4 -> 0 | SP29: =SP12*SP4 -> 0 | SQ29: =SQ12*SQ4 -> 0 | SR29: =SR12*SR4 -> 0 | SS29: =SS12*SS4 -> 0 | ST29: =ST12*ST4 -> 0 | SU29: =SU12*SU4 -> 0 | SV29: =SV12*SV4 -> 0 | SW29: =SW12*SW4 -> 0 | SX29: =SX12*SX4 -> 0 | SY29: =SY12*SY4 -> 0 | SZ29: =SZ12*SZ4 -> 0 | TA29: =TA12*TA4 -> 0 | TB29: =TB12*TB4 -> 0 | TC29: =TC12*TC4 -> 0
D30: Growth Rate Model (1+g)/(k-g) | E30: =(1+F30)/(G30-F30) -> 17.37288136 | F30: =G18 -> 0.025 | G30: =F18 -> 0.084 | K30: =K28*K5*$E$30*(1+$F$30) -> 0 | L30: =L28*L5*$E$30*(1+$F$30) -> 0 | M30: =M28*M5*$E$30*(1+$F$30) -> 0 | N30: =N28*N5*$E$30*(1+$F$30) -> 0 | O30: =O28*O5*$E$30*(1+$F$30) -> 0 | P30: =P28*P5*$E$30*(1+$F$30) -> 0 | Q30: =Q28*Q5*$E$30*(1+$F$30) -> 0 | R30: =R28*R5*$E$30*(1+$F$30) -> 0 | S30: =S28*S5*$E$30*(1+$F$30) -> 0 | T30: =T28*T5*$E$30*(1+$F$30) -> 0 | U30: =U28*U5*$E$30*(1+$F$30) -> 0 | V30: =V28*V5*$E$30*(1+$F$30) -> 0 | W30: =W28*W5*$E$30*(1+$F$30) -> 0 | X30: =X28*X5*$E$30*(1+$F$30) -> 0 | Y30: =Y28*Y5*$E$30*(1+$F$30) -> 0 | Z30: =Z28*Z5*$E$30*(1+$F$30) -> 0 | AA30: =AA28*AA5*$E$30*(1+$F$30) -> 0 | AB30: =AB28*AB5*$E$30*(1+$F$30) -> 0 | AC30: =AC28*AC5*$E$30*(1+$F$30) -> 0 | AD30: =AD28*AD5*$E$30*(1+$F$30) -> 0 | AE30: =AE28*AE5*$E$30*(1+$F$30) -> 0 | AF30: =AF28*AF5*$E$30*(1+$F$30) -> 0 | AG30: =AG28*AG5*$E$30*(1+$F$30) -> 0 | AH30: =AH28*AH5*$E$30*(1+$F$30) -> 0 | AI30: =AI28*AI5*$E$30*(1+$F$30) -> 0 | AJ30: =AJ28*AJ5*$E$30*(1+$F$30) -> 0 | AK30: =AK28*AK5*$E$30*(1+$F$30) -> 0 | AL30: =AL28*AL5*$E$30*(1+$F$30) -> 0 | AM30: =AM28*AM5*$E$30*(1+$F$30) -> 0 | AN30: =AN28*AN5*$E$30*(1+$F$30) -> 0 | AO30: =AO28*AO5*$E$30*(1+$F$30) -> 0 | AP30: =AP28*AP5*$E$30*(1+$F$30) -> 0 | AQ30: =AQ28*AQ5*$E$30*(1+$F$30) -> 0 | AR30: =AR28*AR5*$E$30*(1+$F$30) -> 0 | AS30: =AS28*AS5*$E$30*(1+$F$30) -> 0 | AT30: =AT28*AT5*$E$30*(1+$F$30) -> 0 | AU30: =AU28*AU5*$E$30*(1+$F$30) -> 0 | AV30: =AV28*AV5*$E$30*(1+$F$30) -> 0 | AW30: =AW28*AW5*$E$30*(1+$F$30) -> 0 | AX30: =AX28*AX5*$E$30*(1+$F$30) -> 0 | AY30: =AY28*AY5*$E$30*(1+$F$30) -> 0 | AZ30: =AZ28*AZ5*$E$30*(1+$F$30) -> 0 | BA30: =BA28*BA5*$E$30*(1+$F$30) -> 0 | BB30: =BB28*BB5*$E$30*(1+$F$30) -> 0 | BC30: =BC28*BC5*$E$30*(1+$F$30) -> 0 | BD30: =BD28*BD5*$E$30*(1+$F$30) -> 0 | BE30: =BE28*BE5*$E$30*(1+$F$30) -> 0 | BF30: =BF28*BF5*$E$30*(1+$F$30) -> 0 | BG30: =BG28*BG5*$E$30*(1+$F$30) -> 0 | BH30: =BH28*BH5*$E$30*(1+$F$30) -> 0 | BI30: =BI28*BI5*$E$30*(1+$F$30) -> 0 | BJ30: =BJ28*BJ5*$E$30*(1+$F$30) -> 0 | BK30: =BK28*BK5*$E$30*(1+$F$30) -> 0 | BL30: =BL28*BL5*$E$30*(1+$F$30) -> 0 | BM30: =BM28*BM5*$E$30*(1+$F$30) -> 0 | BN30: =BN28*BN5*$E$30*(1+$F$30) -> 0 | BO30: =BO28*BO5*$E$30*(1+$F$30) -> 0 | BP30: =BP28*BP5*$E$30*(1+$F$30) -> 0 | BQ30: =BQ28*BQ5*$E$30*(1+$F$30) -> 0 | BR30: =BR28*BR5*$E$30*(1+$F$30) -> 0 | BS30: =BS28*BS5*$E$30*(1+$F$30) -> 0 | BT30: =BT28*BT5*$E$30*(1+$F$30) -> 0 | BU30: =BU28*BU5*$E$30*(1+$F$30) -> 0 | BV30: =BV28*BV5*$E$30*(1+$F$30) -> 0 | BW30: =BW28*BW5*$E$30*(1+$F$30) -> 0 | BX30: =BX28*BX5*$E$30*(1+$F$30) -> 0 | BY30: =BY28*BY5*$E$30*(1+$F$30) -> 0 | BZ30: =BZ28*BZ5*$E$30*(1+$F$30) -> 0 | CA30: =CA28*CA5*$E$30*(1+$F$30) -> 0 | CB30: =CB28*CB5*$E$30*(1+$F$30) -> 0 | CC30: =CC28*CC5*$E$30*(1+$F$30) -> 0 | CD30: =CD28*CD5*$E$30*(1+$F$30) -> 0 | CE30: =CE28*CE5*$E$30*(1+$F$30) -> 0 | CF30: =CF28*CF5*$E$30*(1+$F$30) -> 0 | CG30: =CG28*CG5*$E$30*(1+$F$30) -> 0 | CH30: =CH28*CH5*$E$30*(1+$F$30) -> 0 | CI30: =CI28*CI5*$E$30*(1+$F$30) -> 0 | CJ30: =CJ28*CJ5*$E$30*(1+$F$30) -> 0 | CK30: =CK28*CK5*$E$30*(1+$F$30) -> 0 | CL30: =CL28*CL5*$E$30*(1+$F$30) -> 0 | CM30: =CM28*CM5*$E$30*(1+$F$30) -> 0 | CN30: =CN28*CN5*$E$30*(1+$F$30) -> 0 | CO30: =CO28*CO5*$E$30*(1+$F$30) -> 0 | CP30: =CP28*CP5*$E$30*(1+$F$30) -> 0 | CQ30: =CQ28*CQ5*$E$30*(1+$F$30) -> 0 | CR30: =CR28*CR5*$E$30*(1+$F$30) -> 0 | CS30: =CS28*CS5*$E$30*(1+$F$30) -> 0 | CT30: =CT28*CT5*$E$30*(1+$F$30) -> 0 | CU30: =CU28*CU5*$E$30*(1+$F$30) -> 0 | CV30: =CV28*CV5*$E$30*(1+$F$30) -> 0 | CW30: =CW28*CW5*$E$30*(1+$F$30) -> 0 | CX30: =CX28*CX5*$E$30*(1+$F$30) -> 0 | CY30: =CY28*CY5*$E$30*(1+$F$30) -> 0 | CZ30: =CZ28*CZ5*$E$30*(1+$F$30) -> 0 | DA30: =DA28*DA5*$E$30*(1+$F$30) -> 0 | DB30: =DB28*DB5*$E$30*(1+$F$30) -> 0 | DC30: =DC28*DC5*$E$30*(1+$F$30) -> 0 | DD30: =DD28*DD5*$E$30*(1+$F$30) -> 0 | DE30: =DE28*DE5*$E$30*(1+$F$30) -> 0 | DF30: =DF28*DF5*$E$30*(1+$F$30) -> 0 | DG30: =DG28*DG5*$E$30*(1+$F$30) -> 0 | DH30: =DH28*DH5*$E$30*(1+$F$30) -> 0 | DI30: =DI28*DI5*$E$30*(1+$F$30) -> 0 | DJ30: =DJ28*DJ5*$E$30*(1+$F$30) -> 0 | DK30: =DK28*DK5*$E$30*(1+$F$30) -> 0 | DL30: =DL28*DL5*$E$30*(1+$F$30) -> 0 | DM30: =DM28*DM5*$E$30*(1+$F$30) -> 0 | DN30: =DN28*DN5*$E$30*(1+$F$30) -> 0 | DO30: =DO28*DO5*$E$30*(1+$F$30) -> 0 | DP30: =DP28*DP5*$E$30*(1+$F$30) -> 0 | DQ30: =DQ28*DQ5*$E$30*(1+$F$30) -> 0 | DR30: =DR28*DR5*$E$30*(1+$F$30) -> 0 | DS30: =DS28*DS5*$E$30*(1+$F$30) -> 0 | DT30: =DT28*DT5*$E$30*(1+$F$30) -> 0 | DU30: =DU28*DU5*$E$30*(1+$F$30) -> 0 | DV30: =DV28*DV5*$E$30*(1+$F$30) -> 0 | DW30: =DW28*DW5*$E$30*(1+$F$30) -> 0 | DX30: =DX28*DX5*$E$30*(1+$F$30) -> 0 | DY30: =DY28*DY5*$E$30*(1+$F$30) -> 0 | DZ30: =DZ28*DZ5*$E$30*(1+$F$30) -> 0 | EA30: =EA28*EA5*$E$30*(1+$F$30) -> 0 | EB30: =EB28*EB5*$E$30*(1+$F$30) -> 0 | EC30: =EC28*EC5*$E$30*(1+$F$30) -> 0 | ED30: =ED28*ED5*$E$30*(1+$F$30) -> 0 | EE30: =EE28*EE5*$E$30*(1+$F$30) -> 0 | EF30: =EF28*EF5*$E$30*(1+$F$30) -> 0 | EG30: =EG28*EG5*$E$30*(1+$F$30) -> 0 | EH30: =EH28*EH5*$E$30*(1+$F$30) -> 0 | EI30: =EI28*EI5*$E$30*(1+$F$30) -> 0 | EJ30: =EJ28*EJ5*$E$30*(1+$F$30) -> 0 | EK30: =EK28*EK5*$E$30*(1+$F$30) -> 0 | EL30: =EL28*EL5*$E$30*(1+$F$30) -> 0 | EM30: =EM28*EM5*$E$30*(1+$F$30) -> 0 | EN30: =EN28*EN5*$E$30*(1+$F$30) -> 0 | EO30: =EO28*EO5*$E$30*(1+$F$30) -> 0 | EP30: =EP28*EP5*$E$30*(1+$F$30) -> 0 | EQ30: =EQ28*EQ5*$E$30*(1+$F$30) -> 0 | ER30: =ER28*ER5*$E$30*(1+$F$30) -> 0 | ES30: =ES28*ES5*$E$30*(1+$F$30) -> 0 | ET30: =ET28*ET5*$E$30*(1+$F$30) -> 0 | EU30: =EU28*EU5*$E$30*(1+$F$30) -> 0 | EV30: =EV28*EV5*$E$30*(1+$F$30) -> 0 | EW30: =EW28*EW5*$E$30*(1+$F$30) -> 0 | EX30: =EX28*EX5*$E$30*(1+$F$30) -> 0 | EY30: =EY28*EY5*$E$30*(1+$F$30) -> 0 | EZ30: =EZ28*EZ5*$E$30*(1+$F$30) -> 0 | FA30: =FA28*FA5*$E$30*(1+$F$30) -> 0 | FB30: =FB28*FB5*$E$30*(1+$F$30) -> 0 | FC30: =FC28*FC5*$E$30*(1+$F$30) -> 0 | FD30: =FD28*FD5*$E$30*(1+$F$30) -> 0 | FE30: =FE28*FE5*$E$30*(1+$F$30) -> 0 | FF30: =FF28*FF5*$E$30*(1+$F$30) -> 0 | FG30: =FG28*FG5*$E$30*(1+$F$30) -> 0 | FH30: =FH28*FH5*$E$30*(1+$F$30) -> 0 | FI30: =FI28*FI5*$E$30*(1+$F$30) -> 0 | FJ30: =FJ28*FJ5*$E$30*(1+$F$30) -> 0 | FK30: =FK28*FK5*$E$30*(1+$F$30) -> 0 | FL30: =FL28*FL5*$E$30*(1+$F$30) -> 0 | FM30: =FM28*FM5*$E$30*(1+$F$30) -> 0 | FN30: =FN28*FN5*$E$30*(1+$F$30) -> 0 | FO30: =FO28*FO5*$E$30*(1+$F$30) -> 0 | FP30: =FP28*FP5*$E$30*(1+$F$30) -> 0 | FQ30: =FQ28*FQ5*$E$30*(1+$F$30) -> 0 | FR30: =FR28*FR5*$E$30*(1+$F$30) -> 0 | FS30: =FS28*FS5*$E$30*(1+$F$30) -> 0 | FT30: =FT28*FT5*$E$30*(1+$F$30) -> 0 | FU30: =FU28*FU5*$E$30*(1+$F$30) -> 0 | FV30: =FV28*FV5*$E$30*(1+$F$30) -> 0 | FW30: =FW28*FW5*$E$30*(1+$F$30) -> 0 | FX30: =FX28*FX5*$E$30*(1+$F$30) -> 0 | FY30: =FY28*FY5*$E$30*(1+$F$30) -> 0 | FZ30: =FZ28*FZ5*$E$30*(1+$F$30) -> 0 | GA30: =GA28*GA5*$E$30*(1+$F$30) -> 0 | GB30: =GB28*GB5*$E$30*(1+$F$30) -> 0 | GC30: =GC28*GC5*$E$30*(1+$F$30) -> 0 | GD30: =GD28*GD5*$E$30*(1+$F$30) -> 0 | GE30: =GE28*GE5*$E$30*(1+$F$30) -> 0 | GF30: =GF28*GF5*$E$30*(1+$F$30) -> 0 | GG30: =GG28*GG5*$E$30*(1+$F$30) -> 0 | GH30: =GH28*GH5*$E$30*(1+$F$30) -> 0 | GI30: =GI28*GI5*$E$30*(1+$F$30) -> 0 | GJ30: =GJ28*GJ5*$E$30*(1+$F$30) -> 0 | GK30: =GK28*GK5*$E$30*(1+$F$30) -> 0 | GL30: =GL28*GL5*$E$30*(1+$F$30) -> 0 | GM30: =GM28*GM5*$E$30*(1+$F$30) -> 0 | GN30: =GN28*GN5*$E$30*(1+$F$30) -> 0 | GO30: =GO28*GO5*$E$30*(1+$F$30) -> 0 | GP30: =GP28*GP5*$E$30*(1+$F$30) -> 0 | GQ30: =GQ28*GQ5*$E$30*(1+$F$30) -> 0 | GR30: =GR28*GR5*$E$30*(1+$F$30) -> 0 | GS30: =GS28*GS5*$E$30*(1+$F$30) -> 0 | GT30: =GT28*GT5*$E$30*(1+$F$30) -> 0 | GU30: =GU28*GU5*$E$30*(1+$F$30) -> 0 | GV30: =GV28*GV5*$E$30*(1+$F$30) -> 0 | GW30: =GW28*GW5*$E$30*(1+$F$30) -> 0 | GX30: =GX28*GX5*$E$30*(1+$F$30) -> 0 | GY30: =GY28*GY5*$E$30*(1+$F$30) -> 0 | GZ30: =GZ28*GZ5*$E$30*(1+$F$30) -> 0 | HA30: =HA28*HA5*$E$30*(1+$F$30) -> 0 | HB30: =HB28*HB5*$E$30*(1+$F$30) -> 0 | HC30: =HC28*HC5*$E$30*(1+$F$30) -> 0 | HD30: =HD28*HD5*$E$30*(1+$F$30) -> 0 | HE30: =HE28*HE5*$E$30*(1+$F$30) -> 0 | HF30: =HF28*HF5*$E$30*(1+$F$30) -> 0 | HG30: =HG28*HG5*$E$30*(1+$F$30) -> 0 | HH30: =HH28*HH5*$E$30*(1+$F$30) -> 0 | HI30: =HI28*HI5*$E$30*(1+$F$30) -> 0 | HJ30: =HJ28*HJ5*$E$30*(1+$F$30) -> 0 | HK30: =HK28*HK5*$E$30*(1+$F$30) -> 0 | HL30: =HL28*HL5*$E$30*(1+$F$30) -> 0 | HM30: =HM28*HM5*$E$30*(1+$F$30) -> 0 | HN30: =HN28*HN5*$E$30*(1+$F$30) -> 0 | HO30: =HO28*HO5*$E$30*(1+$F$30) -> 0 | HP30: =HP28*HP5*$E$30*(1+$F$30) -> 0 | HQ30: =HQ28*HQ5*$E$30*(1+$F$30) -> 0 | HR30: =HR28*HR5*$E$30*(1+$F$30) -> 0 | HS30: =HS28*HS5*$E$30*(1+$F$30) -> 0 | HT30: =HT28*HT5*$E$30*(1+$F$30) -> 0 | HU30: =HU28*HU5*$E$30*(1+$F$30) -> 0 | HV30: =HV28*HV5*$E$30*(1+$F$30) -> 0 | HW30: =HW28*HW5*$E$30*(1+$F$30) -> 0 | HX30: =HX28*HX5*$E$30*(1+$F$30) -> 0 | HY30: =HY28*HY5*$E$30*(1+$F$30) -> 0 | HZ30: =HZ28*HZ5*$E$30*(1+$F$30) -> 0 | IA30: =IA28*IA5*$E$30*(1+$F$30) -> 0 | IB30: =IB28*IB5*$E$30*(1+$F$30) -> 0 | IC30: =IC28*IC5*$E$30*(1+$F$30) -> 0 | ID30: =ID28*ID5*$E$30*(1+$F$30) -> 0 | IE30: =IE28*IE5*$E$30*(1+$F$30) -> 0 | IF30: =IF28*IF5*$E$30*(1+$F$30) -> 0 | IG30: =IG28*IG5*$E$30*(1+$F$30) -> 0 | IH30: =IH28*IH5*$E$30*(1+$F$30) -> 0 | II30: =II28*II5*$E$30*(1+$F$30) -> 0 | IJ30: =IJ28*IJ5*$E$30*(1+$F$30) -> 0 | IK30: =IK28*IK5*$E$30*(1+$F$30) -> 0 | IL30: =IL28*IL5*$E$30*(1+$F$30) -> 0 | IM30: =IM28*IM5*$E$30*(1+$F$30) -> 0 | IN30: =IN28*IN5*$E$30*(1+$F$30) -> 0 | IO30: =IO28*IO5*$E$30*(1+$F$30) -> 0 | IP30: =IP28*IP5*$E$30*(1+$F$30) -> 0 | IQ30: =IQ28*IQ5*$E$30*(1+$F$30) -> 0 | IR30: =IR28*IR5*$E$30*(1+$F$30) -> 0 | IS30: =IS28*IS5*$E$30*(1+$F$30) -> 0 | IT30: =IT28*IT5*$E$30*(1+$F$30) -> 0 | IU30: =IU28*IU5*$E$30*(1+$F$30) -> 0 | IV30: =IV28*IV5*$E$30*(1+$F$30) -> 0 | IW30: =IW28*IW5*$E$30*(1+$F$30) -> 0 | IX30: =IX28*IX5*$E$30*(1+$F$30) -> 0 | IY30: =IY28*IY5*$E$30*(1+$F$30) -> 0 | IZ30: =IZ28*IZ5*$E$30*(1+$F$30) -> 0 | JA30: =JA28*JA5*$E$30*(1+$F$30) -> 0 | JB30: =JB28*JB5*$E$30*(1+$F$30) -> 0 | JC30: =JC28*JC5*$E$30*(1+$F$30) -> 0 | JD30: =JD28*JD5*$E$30*(1+$F$30) -> 0 | JE30: =JE28*JE5*$E$30*(1+$F$30) -> 0 | JF30: =JF28*JF5*$E$30*(1+$F$30) -> 0 | JG30: =JG28*JG5*$E$30*(1+$F$30) -> 0 | JH30: =JH28*JH5*$E$30*(1+$F$30) -> 0 | JI30: =JI28*JI5*$E$30*(1+$F$30) -> 0 | JJ30: =JJ28*JJ5*$E$30*(1+$F$30) -> 0 | JK30: =JK28*JK5*$E$30*(1+$F$30) -> 0 | JL30: =JL28*JL5*$E$30*(1+$F$30) -> 0 | JM30: =JM28*JM5*$E$30*(1+$F$30) -> 0 | JN30: =JN28*JN5*$E$30*(1+$F$30) -> 0 | JO30: =JO28*JO5*$E$30*(1+$F$30) -> 0 | JP30: =JP28*JP5*$E$30*(1+$F$30) -> 0 | JQ30: =JQ28*JQ5*$E$30*(1+$F$30) -> 0 | JR30: =JR28*JR5*$E$30*(1+$F$30) -> 0 | JS30: =JS28*JS5*$E$30*(1+$F$30) -> 0 | JT30: =JT28*JT5*$E$30*(1+$F$30) -> 0 | JU30: =JU28*JU5*$E$30*(1+$F$30) -> 0 | JV30: =JV28*JV5*$E$30*(1+$F$30) -> 0 | JW30: =JW28*JW5*$E$30*(1+$F$30) -> 0 | JX30: =JX28*JX5*$E$30*(1+$F$30) -> 0 | JY30: =JY28*JY5*$E$30*(1+$F$30) -> 0 | JZ30: =JZ28*JZ5*$E$30*(1+$F$30) -> 0 | KA30: =KA28*KA5*$E$30*(1+$F$30) -> 0 | KB30: =KB28*KB5*$E$30*(1+$F$30) -> 0 | KC30: =KC28*KC5*$E$30*(1+$F$30) -> 0 | KD30: =KD28*KD5*$E$30*(1+$F$30) -> 0 | KE30: =KE28*KE5*$E$30*(1+$F$30) -> 0 | KF30: =KF28*KF5*$E$30*(1+$F$30) -> 0 | KG30: =KG28*KG5*$E$30*(1+$F$30) -> 0 | KH30: =KH28*KH5*$E$30*(1+$F$30) -> 0 | KI30: =KI28*KI5*$E$30*(1+$F$30) -> 0 | KJ30: =KJ28*KJ5*$E$30*(1+$F$30) -> 0 | KK30: =KK28*KK5*$E$30*(1+$F$30) -> 0 | KL30: =KL28*KL5*$E$30*(1+$F$30) -> 0 | KM30: =KM28*KM5*$E$30*(1+$F$30) -> 0 | KN30: =KN28*KN5*$E$30*(1+$F$30) -> 0 | KO30: =KO28*KO5*$E$30*(1+$F$30) -> 0 | KP30: =KP28*KP5*$E$30*(1+$F$30) -> 0 | KQ30: =KQ28*KQ5*$E$30*(1+$F$30) -> 0 | KR30: =KR28*KR5*$E$30*(1+$F$30) -> 0 | KS30: =KS28*KS5*$E$30*(1+$F$30) -> 0 | KT30: =KT28*KT5*$E$30*(1+$F$30) -> 0 | KU30: =KU28*KU5*$E$30*(1+$F$30) -> 0 | KV30: =KV28*KV5*$E$30*(1+$F$30) -> 0 | KW30: =KW28*KW5*$E$30*(1+$F$30) -> 0 | KX30: =KX28*KX5*$E$30*(1+$F$30) -> 0 | KY30: =KY28*KY5*$E$30*(1+$F$30) -> 0 | KZ30: =KZ28*KZ5*$E$30*(1+$F$30) -> 0 | LA30: =LA28*LA5*$E$30*(1+$F$30) -> 0 | LB30: =LB28*LB5*$E$30*(1+$F$30) -> 0 | LC30: =LC28*LC5*$E$30*(1+$F$30) -> 0 | LD30: =LD28*LD5*$E$30*(1+$F$30) -> 0 | LE30: =LE28*LE5*$E$30*(1+$F$30) -> 0 | LF30: =LF28*LF5*$E$30*(1+$F$30) -> 0 | LG30: =LG28*LG5*$E$30*(1+$F$30) -> 0 | LH30: =LH28*LH5*$E$30*(1+$F$30) -> 0 | LI30: =LI28*LI5*$E$30*(1+$F$30) -> 0 | LJ30: =LJ28*LJ5*$E$30*(1+$F$30) -> 0 | LK30: =LK28*LK5*$E$30*(1+$F$30) -> 0 | LL30: =LL28*LL5*$E$30*(1+$F$30) -> 0 | LM30: =LM28*LM5*$E$30*(1+$F$30) -> 0 | LN30: =LN28*LN5*$E$30*(1+$F$30) -> 0 | LO30: =LO28*LO5*$E$30*(1+$F$30) -> 0 | LP30: =LP28*LP5*$E$30*(1+$F$30) -> 0 | LQ30: =LQ28*LQ5*$E$30*(1+$F$30) -> 0 | LR30: =LR28*LR5*$E$30*(1+$F$30) -> 0 | LS30: =LS28*LS5*$E$30*(1+$F$30) -> 0 | LT30: =LT28*LT5*$E$30*(1+$F$30) -> 0 | LU30: =LU28*LU5*$E$30*(1+$F$30) -> 0 | LV30: =LV28*LV5*$E$30*(1+$F$30) -> 0 | LW30: =LW28*LW5*$E$30*(1+$F$30) -> 0 | LX30: =LX28*LX5*$E$30*(1+$F$30) -> 0 | LY30: =LY28*LY5*$E$30*(1+$F$30) -> 0 | LZ30: =LZ28*LZ5*$E$30*(1+$F$30) -> 0 | MA30: =MA28*MA5*$E$30*(1+$F$30) -> 0 | MB30: =MB28*MB5*$E$30*(1+$F$30) -> 0 | MC30: =MC28*MC5*$E$30*(1+$F$30) -> 0 | MD30: =MD28*MD5*$E$30*(1+$F$30) -> 0 | ME30: =ME28*ME5*$E$30*(1+$F$30) -> 0 | MF30: =MF28*MF5*$E$30*(1+$F$30) -> 0 | MG30: =MG28*MG5*$E$30*(1+$F$30) -> 0 | MH30: =MH28*MH5*$E$30*(1+$F$30) -> 0 | MI30: =MI28*MI5*$E$30*(1+$F$30) -> 0 | MJ30: =MJ28*MJ5*$E$30*(1+$F$30) -> 0 | MK30: =MK28*MK5*$E$30*(1+$F$30) -> 0 | ML30: =ML28*ML5*$E$30*(1+$F$30) -> 0 | MM30: =MM28*MM5*$E$30*(1+$F$30) -> 0 | MN30: =MN28*MN5*$E$30*(1+$F$30) -> 0 | MO30: =MO28*MO5*$E$30*(1+$F$30) -> 0 | MP30: =MP28*MP5*$E$30*(1+$F$30) -> 0 | MQ30: =MQ28*MQ5*$E$30*(1+$F$30) -> 0 | MR30: =MR28*MR5*$E$30*(1+$F$30) -> 0 | MS30: =MS28*MS5*$E$30*(1+$F$30) -> 0 | MT30: =MT28*MT5*$E$30*(1+$F$30) -> 0 | MU30: =MU28*MU5*$E$30*(1+$F$30) -> 0 | MV30: =MV28*MV5*$E$30*(1+$F$30) -> 0 | MW30: =MW28*MW5*$E$30*(1+$F$30) -> 0 | MX30: =MX28*MX5*$E$30*(1+$F$30) -> 0 | MY30: =MY28*MY5*$E$30*(1+$F$30) -> 0 | MZ30: =MZ28*MZ5*$E$30*(1+$F$30) -> 0 | NA30: =NA28*NA5*$E$30*(1+$F$30) -> 0 | NB30: =NB28*NB5*$E$30*(1+$F$30) -> 0 | NC30: =NC28*NC5*$E$30*(1+$F$30) -> 0 | ND30: =ND28*ND5*$E$30*(1+$F$30) -> 0 | NE30: =NE28*NE5*$E$30*(1+$F$30) -> 0 | NF30: =NF28*NF5*$E$30*(1+$F$30) -> 0 | NG30: =NG28*NG5*$E$30*(1+$F$30) -> 0 | NH30: =NH28*NH5*$E$30*(1+$F$30) -> 0 | NI30: =NI28*NI5*$E$30*(1+$F$30) -> 0 | NJ30: =NJ28*NJ5*$E$30*(1+$F$30) -> 0 | NK30: =NK28*NK5*$E$30*(1+$F$30) -> 0 | NL30: =NL28*NL5*$E$30*(1+$F$30) -> 0 | NM30: =NM28*NM5*$E$30*(1+$F$30) -> 0 | NN30: =NN28*NN5*$E$30*(1+$F$30) -> 0 | NO30: =NO28*NO5*$E$30*(1+$F$30) -> 0 | NP30: =NP28*NP5*$E$30*(1+$F$30) -> 0 | NQ30: =NQ28*NQ5*$E$30*(1+$F$30) -> 0 | NR30: =NR28*NR5*$E$30*(1+$F$30) -> 0 | NS30: =NS28*NS5*$E$30*(1+$F$30) -> 0 | NT30: =NT28*NT5*$E$30*(1+$F$30) -> 0 | NU30: =NU28*NU5*$E$30*(1+$F$30) -> 0 | NV30: =NV28*NV5*$E$30*(1+$F$30) -> 0 | NW30: =NW28*NW5*$E$30*(1+$F$30) -> 0 | NX30: =NX28*NX5*$E$30*(1+$F$30) -> 0 | NY30: =NY28*NY5*$E$30*(1+$F$30) -> 0 | NZ30: =NZ28*NZ5*$E$30*(1+$F$30) -> 0 | OA30: =OA28*OA5*$E$30*(1+$F$30) -> 0 | OB30: =OB28*OB5*$E$30*(1+$F$30) -> 0 | OC30: =OC28*OC5*$E$30*(1+$F$30) -> 0 | OD30: =OD28*OD5*$E$30*(1+$F$30) -> 0 | OE30: =OE28*OE5*$E$30*(1+$F$30) -> 0 | OF30: =OF28*OF5*$E$30*(1+$F$30) -> 0 | OG30: =OG28*OG5*$E$30*(1+$F$30) -> 0 | OH30: =OH28*OH5*$E$30*(1+$F$30) -> 0 | OI30: =OI28*OI5*$E$30*(1+$F$30) -> 0 | OJ30: =OJ28*OJ5*$E$30*(1+$F$30) -> 0 | OK30: =OK28*OK5*$E$30*(1+$F$30) -> 0 | OL30: =OL28*OL5*$E$30*(1+$F$30) -> 0 | OM30: =OM28*OM5*$E$30*(1+$F$30) -> 0 | ON30: =ON28*ON5*$E$30*(1+$F$30) -> 0 | OO30: =OO28*OO5*$E$30*(1+$F$30) -> 0 | OP30: =OP28*OP5*$E$30*(1+$F$30) -> 0 | OQ30: =OQ28*OQ5*$E$30*(1+$F$30) -> 0 | OR30: =OR28*OR5*$E$30*(1+$F$30) -> 0 | OS30: =OS28*OS5*$E$30*(1+$F$30) -> 0 | OT30: =OT28*OT5*$E$30*(1+$F$30) -> 0 | OU30: =OU28*OU5*$E$30*(1+$F$30) -> 0 | OV30: =OV28*OV5*$E$30*(1+$F$30) -> 0 | OW30: =OW28*OW5*$E$30*(1+$F$30) -> 0 | OX30: =OX28*OX5*$E$30*(1+$F$30) -> 0 | OY30: =OY28*OY5*$E$30*(1+$F$30) -> 0 | OZ30: =OZ28*OZ5*$E$30*(1+$F$30) -> 0 | PA30: =PA28*PA5*$E$30*(1+$F$30) -> 0 | PB30: =PB28*PB5*$E$30*(1+$F$30) -> 0 | PC30: =PC28*PC5*$E$30*(1+$F$30) -> 0 | PD30: =PD28*PD5*$E$30*(1+$F$30) -> 0 | PE30: =PE28*PE5*$E$30*(1+$F$30) -> 0 | PF30: =PF28*PF5*$E$30*(1+$F$30) -> 0 | PG30: =PG28*PG5*$E$30*(1+$F$30) -> 0 | PH30: =PH28*PH5*$E$30*(1+$F$30) -> 0 | PI30: =PI28*PI5*$E$30*(1+$F$30) -> 0 | PJ30: =PJ28*PJ5*$E$30*(1+$F$30) -> 0 | PK30: =PK28*PK5*$E$30*(1+$F$30) -> 0 | PL30: =PL28*PL5*$E$30*(1+$F$30) -> 0 | PM30: =PM28*PM5*$E$30*(1+$F$30) -> 0 | PN30: =PN28*PN5*$E$30*(1+$F$30) -> 0 | PO30: =PO28*PO5*$E$30*(1+$F$30) -> 0 | PP30: =PP28*PP5*$E$30*(1+$F$30) -> 0 | PQ30: =PQ28*PQ5*$E$30*(1+$F$30) -> 0 | PR30: =PR28*PR5*$E$30*(1+$F$30) -> 0 | PS30: =PS28*PS5*$E$30*(1+$F$30) -> 0 | PT30: =PT28*PT5*$E$30*(1+$F$30) -> 0 | PU30: =PU28*PU5*$E$30*(1+$F$30) -> 0 | PV30: =PV28*PV5*$E$30*(1+$F$30) -> 0 | PW30: =PW28*PW5*$E$30*(1+$F$30) -> 0 | PX30: =PX28*PX5*$E$30*(1+$F$30) -> 0 | PY30: =PY28*PY5*$E$30*(1+$F$30) -> 0 | PZ30: =PZ28*PZ5*$E$30*(1+$F$30) -> 0 | QA30: =QA28*QA5*$E$30*(1+$F$30) -> 0 | QB30: =QB28*QB5*$E$30*(1+$F$30) -> 0 | QC30: =QC28*QC5*$E$30*(1+$F$30) -> 0 | QD30: =QD28*QD5*$E$30*(1+$F$30) -> 0 | QE30: =QE28*QE5*$E$30*(1+$F$30) -> 0 | QF30: =QF28*QF5*$E$30*(1+$F$30) -> 0 | QG30: =QG28*QG5*$E$30*(1+$F$30) -> 0 | QH30: =QH28*QH5*$E$30*(1+$F$30) -> 0 | QI30: =QI28*QI5*$E$30*(1+$F$30) -> 0 | QJ30: =QJ28*QJ5*$E$30*(1+$F$30) -> 0 | QK30: =QK28*QK5*$E$30*(1+$F$30) -> 0 | QL30: =QL28*QL5*$E$30*(1+$F$30) -> 0 | QM30: =QM28*QM5*$E$30*(1+$F$30) -> 0 | QN30: =QN28*QN5*$E$30*(1+$F$30) -> 0 | QO30: =QO28*QO5*$E$30*(1+$F$30) -> 0 | QP30: =QP28*QP5*$E$30*(1+$F$30) -> 0 | QQ30: =QQ28*QQ5*$E$30*(1+$F$30) -> 0 | QR30: =QR28*QR5*$E$30*(1+$F$30) -> 0 | QS30: =QS28*QS5*$E$30*(1+$F$30) -> 0 | QT30: =QT28*QT5*$E$30*(1+$F$30) -> 0 | QU30: =QU28*QU5*$E$30*(1+$F$30) -> 0 | QV30: =QV28*QV5*$E$30*(1+$F$30) -> 0 | QW30: =QW28*QW5*$E$30*(1+$F$30) -> 0 | QX30: =QX28*QX5*$E$30*(1+$F$30) -> 0 | QY30: =QY28*QY5*$E$30*(1+$F$30) -> 0 | QZ30: =QZ28*QZ5*$E$30*(1+$F$30) -> 0 | RA30: =RA28*RA5*$E$30*(1+$F$30) -> 0 | RB30: =RB28*RB5*$E$30*(1+$F$30) -> 0 | RC30: =RC28*RC5*$E$30*(1+$F$30) -> 0 | RD30: =RD28*RD5*$E$30*(1+$F$30) -> 0 | RE30: =RE28*RE5*$E$30*(1+$F$30) -> 0 | RF30: =RF28*RF5*$E$30*(1+$F$30) -> 0 | RG30: =RG28*RG5*$E$30*(1+$F$30) -> 0 | RH30: =RH28*RH5*$E$30*(1+$F$30) -> 0 | RI30: =RI28*RI5*$E$30*(1+$F$30) -> 0 | RJ30: =RJ28*RJ5*$E$30*(1+$F$30) -> 0 | RK30: =RK28*RK5*$E$30*(1+$F$30) -> 0 | RL30: =RL28*RL5*$E$30*(1+$F$30) -> 0 | RM30: =RM28*RM5*$E$30*(1+$F$30) -> 0 | RN30: =RN28*RN5*$E$30*(1+$F$30) -> 0 | RO30: =RO28*RO5*$E$30*(1+$F$30) -> 0 | RP30: =RP28*RP5*$E$30*(1+$F$30) -> 0 | RQ30: =RQ28*RQ5*$E$30*(1+$F$30) -> 0 | RR30: =RR28*RR5*$E$30*(1+$F$30) -> 0 | RS30: =RS28*RS5*$E$30*(1+$F$30) -> 0 | RT30: =RT28*RT5*$E$30*(1+$F$30) -> 0 | RU30: =RU28*RU5*$E$30*(1+$F$30) -> 0 | RV30: =RV28*RV5*$E$30*(1+$F$30) -> 0 | RW30: =RW28*RW5*$E$30*(1+$F$30) -> 0 | RX30: =RX28*RX5*$E$30*(1+$F$30) -> 0 | RY30: =RY28*RY5*$E$30*(1+$F$30) -> 0 | RZ30: =RZ28*RZ5*$E$30*(1+$F$30) -> 0 | SA30: =SA28*SA5*$E$30*(1+$F$30) -> 0 | SB30: =SB28*SB5*$E$30*(1+$F$30) -> 0 | SC30: =SC28*SC5*$E$30*(1+$F$30) -> 0 | SD30: =SD28*SD5*$E$30*(1+$F$30) -> 0 | SE30: =SE28*SE5*$E$30*(1+$F$30) -> 0 | SF30: =SF28*SF5*$E$30*(1+$F$30) -> 0 | SG30: =SG28*SG5*$E$30*(1+$F$30) -> 0 | SH30: =SH28*SH5*$E$30*(1+$F$30) -> 0 | SI30: =SI28*SI5*$E$30*(1+$F$30) -> 0 | SJ30: =SJ28*SJ5*$E$30*(1+$F$30) -> 0 | SK30: =SK28*SK5*$E$30*(1+$F$30) -> 0 | SL30: =SL28*SL5*$E$30*(1+$F$30) -> 0 | SM30: =SM28*SM5*$E$30*(1+$F$30) -> 0 | SN30: =SN28*SN5*$E$30*(1+$F$30) -> 0 | SO30: =SO28*SO5*$E$30*(1+$F$30) -> 0 | SP30: =SP28*SP5*$E$30*(1+$F$30) -> 0 | SQ30: =SQ28*SQ5*$E$30*(1+$F$30) -> 0 | SR30: =SR28*SR5*$E$30*(1+$F$30) -> 0 | SS30: =SS28*SS5*$E$30*(1+$F$30) -> 0 | ST30: =ST28*ST5*$E$30*(1+$F$30) -> 0 | SU30: =SU28*SU5*$E$30*(1+$F$30) -> 0 | SV30: =SV28*SV5*$E$30*(1+$F$30) -> 0 | SW30: =SW28*SW5*$E$30*(1+$F$30) -> 0 | SX30: =SX28*SX5*$E$30*(1+$F$30) -> 0 | SY30: =SY28*SY5*$E$30*(1+$F$30) -> 0 | SZ30: =SZ28*SZ5*$E$30*(1+$F$30) -> 0 | TA30: =TA28*TA5*$E$30*(1+$F$30) -> 0 | TB30: =TB28*TB5*$E$30*(1+$F$30) -> 0 | TC30: =TC28*TC5*$E$30*(1+$F$30) -> 0
D31: NPV of Terminal - Growth | E31: =NPV(F31,K30:KW30) -> 0 | F31: =Scenarios!D3 -> 0.084
D32: Total Value | E32: =E29+E31 -> 0
B34: Value Driver Method - V =NI x (1-g/ROE)/(k-g) | F34: g | G34: k | H34: ROC
D35: Net Income (t-1)
D36: Part 1 - (1-g/ROE)/(k-g) Multiple | E36: =(1-F36/H36)/(G36-F36) -> 10.89588378 | F36: =Scenarios!$H$41 -> 0.025 | G36: =Scenarios!D3 -> 0.084 | H36: =Scenarios!I47 -> 0.07
D37: Part 1a - Muliply by (1+g) | E37: =E36*(1+F37) -> 11.16828087 | F37: =F36 -> 0.025
D38: Part 2 - TV =Part 1 x NI
D39: PV of Terminal Value | E39: =NPV(G39,K38:KW38) -> 0 | G39: =Scenarios!D3 -> 0.084
D40: Explict Period Value | E40: =E29 -> 0
D41: Total Value | E41: =SUM(E39:E40) -> 0
B43: Value Driver Method - Sudden Change | F43: g | G43: k | H43: ROC
D44: Opening Balance of Investment (Invested Capital)
D45: Terminal ROIC x Terminal ROIC
D46: V =BV * ROE * (1-g/ROE)/(k-g) | E46: =(1-F46/H46)/(G46-F46) -> 10.89588378 | F46: =Scenarios!H48 -> 0.025 | G46: =Scenarios!D3 -> 0.084 | H46: =Scenarios!I25 -> 0.07
D47: PV of Terminal Value x (1+g) | E47: =NPV(G47,K47:KW47) -> 0 | G47: =Scenarios!D3 -> 0.084
D48: Explicit Period Value | E48: =E40 -> 0
D49: Total Value | E49: =SUM(E47:E48) -> 0
B51: Value Driver Method - Incremental Change | F51: g | G51: k | H51: ROC
C52: Post Exit Period | F52: =Scenarios!$H$45 -> 15 | G52: =Scenarios!$I$45 -> 20 | J52: =AND(J3>$F$52) -> FALSE | K52: =AND(K3>$F$52) -> FALSE | L52: FALSE | M52: FALSE | N52: FALSE | O52: FALSE | P52: FALSE | Q52: FALSE | R52: FALSE | S52: FALSE | T52: FALSE | U52: FALSE | V52: FALSE | W52: FALSE | X52: FALSE | Y52: FALSE | Z52: TRUE | AA52: TRUE | AB52: TRUE | AC52: TRUE | AD52: TRUE | AE52: TRUE | AF52: TRUE | AG52: TRUE | AH52: TRUE | AI52: TRUE | AJ52: TRUE | AK52: TRUE | AL52: TRUE | AM52: TRUE | AN52: TRUE | AO52: TRUE | AP52: TRUE | AQ52: TRUE | AR52: TRUE | AS52: TRUE | AT52: TRUE | AU52: TRUE | AV52: TRUE | AW52: TRUE | AX52: TRUE | AY52: TRUE | AZ52: TRUE | BA52: TRUE | BB52: TRUE | BC52: TRUE | BD52: TRUE | BE52: TRUE | BF52: TRUE | BG52: TRUE | BH52: TRUE | BI52: TRUE | BJ52: TRUE | BK52: TRUE | BL52: TRUE | BM52: TRUE | BN52: TRUE | BO52: TRUE | BP52: TRUE | BQ52: TRUE | BR52: TRUE | BS52: TRUE | BT52: TRUE | BU52: TRUE | BV52: TRUE | BW52: =AND(BW3>$F$52) -> TRUE | BX52: TRUE | BY52: TRUE | BZ52: TRUE | CA52: TRUE | CB52: TRUE | CC52: TRUE | CD52: TRUE | CE52: TRUE | CF52: TRUE | CG52: TRUE | CH52: TRUE | CI52: TRUE | CJ52: TRUE | CK52: TRUE | CL52: TRUE | CM52: TRUE | CN52: TRUE | CO52: TRUE | CP52: TRUE | CQ52: TRUE | CR52: TRUE | CS52: TRUE | CT52: TRUE | CU52: TRUE | CV52: TRUE | CW52: TRUE | CX52: TRUE | CY52: TRUE | CZ52: TRUE | DA52: TRUE | DB52: TRUE | DC52: TRUE | DD52: TRUE | DE52: TRUE | DF52: TRUE | DG52: TRUE | DH52: TRUE | DI52: TRUE | DJ52: TRUE | DK52: TRUE | DL52: TRUE | DM52: TRUE | DN52: TRUE | DO52: TRUE | DP52: TRUE | DQ52: TRUE | DR52: TRUE | DS52: TRUE | DT52: TRUE | DU52: TRUE | DV52: TRUE | DW52: TRUE | DX52: TRUE | DY52: TRUE | DZ52: TRUE | EA52: TRUE | EB52: TRUE | EC52: TRUE | ED52: TRUE | EE52: TRUE | EF52: TRUE | EG52: TRUE | EH52: TRUE | EI52: =AND(EI3>$F$52) -> TRUE | EJ52: TRUE | EK52: TRUE | EL52: TRUE | EM52: TRUE | EN52: TRUE | EO52: TRUE | EP52: TRUE | EQ52: TRUE | ER52: TRUE | ES52: TRUE | ET52: TRUE | EU52: TRUE | EV52: TRUE | EW52: TRUE | EX52: TRUE | EY52: TRUE | EZ52: TRUE | FA52: TRUE | FB52: TRUE | FC52: TRUE | FD52: TRUE | FE52: TRUE | FF52: TRUE | FG52: TRUE | FH52: TRUE | FI52: TRUE | FJ52: TRUE | FK52: TRUE | FL52: TRUE | FM52: TRUE | FN52: TRUE | FO52: TRUE | FP52: TRUE | FQ52: TRUE | FR52: TRUE | FS52: TRUE | FT52: TRUE | FU52: TRUE | FV52: TRUE | FW52: TRUE | FX52: TRUE | FY52: TRUE | FZ52: TRUE | GA52: TRUE | GB52: TRUE | GC52: TRUE | GD52: TRUE | GE52: TRUE | GF52: TRUE | GG52: TRUE | GH52: TRUE | GI52: TRUE | GJ52: TRUE | GK52: TRUE | GL52: TRUE | GM52: TRUE | GN52: TRUE | GO52: TRUE | GP52: TRUE | GQ52: TRUE | GR52: TRUE | GS52: TRUE | GT52: TRUE | GU52: =AND(GU3>$F$52) -> TRUE | GV52: TRUE | GW52: TRUE | GX52: TRUE | GY52: TRUE | GZ52: TRUE | HA52: TRUE | HB52: TRUE | HC52: TRUE | HD52: TRUE | HE52: TRUE | HF52: TRUE | HG52: TRUE | HH52: TRUE | HI52: TRUE | HJ52: TRUE | HK52: TRUE | HL52: TRUE | HM52: TRUE | HN52: TRUE | HO52: TRUE | HP52: TRUE | HQ52: TRUE | HR52: TRUE | HS52: TRUE | HT52: TRUE | HU52: TRUE | HV52: TRUE | HW52: TRUE | HX52: TRUE | HY52: TRUE | HZ52: TRUE | IA52: TRUE | IB52: TRUE | IC52: TRUE | ID52: TRUE | IE52: TRUE | IF52: TRUE | IG52: TRUE | IH52: TRUE | II52: TRUE | IJ52: TRUE | IK52: TRUE | IL52: TRUE | IM52: TRUE | IN52: TRUE | IO52: TRUE | IP52: TRUE | IQ52: TRUE | IR52: TRUE | IS52: TRUE | IT52: TRUE | IU52: TRUE | IV52: TRUE | IW52: TRUE | IX52: TRUE | IY52: TRUE | IZ52: TRUE | JA52: TRUE | JB52: TRUE | JC52: TRUE | JD52: TRUE | JE52: TRUE | JF52: TRUE | JG52: =AND(JG3>$F$52) -> TRUE | JH52: TRUE | JI52: TRUE | JJ52: TRUE | JK52: TRUE | JL52: TRUE | JM52: TRUE | JN52: TRUE | JO52: TRUE | JP52: TRUE | JQ52: TRUE | JR52: TRUE | JS52: TRUE | JT52: TRUE | JU52: TRUE | JV52: TRUE | JW52: TRUE | JX52: TRUE | JY52: TRUE | JZ52: TRUE | KA52: TRUE | KB52: TRUE | KC52: TRUE | KD52: TRUE | KE52: TRUE | KF52: TRUE | KG52: TRUE | KH52: TRUE | KI52: TRUE | KJ52: TRUE | KK52: TRUE | KL52: TRUE | KM52: TRUE | KN52: TRUE | KO52: TRUE | KP52: TRUE | KQ52: TRUE | KR52: TRUE | KS52: TRUE | KT52: TRUE | KU52: TRUE | KV52: TRUE | KW52: TRUE | KX52: TRUE | KY52: TRUE | KZ52: TRUE | LA52: TRUE | LB52: TRUE | LC52: TRUE | LD52: TRUE | LE52: TRUE | LF52: TRUE | LG52: TRUE | LH52: TRUE | LI52: TRUE | LJ52: TRUE | LK52: TRUE | LL52: TRUE | LM52: TRUE | LN52: TRUE | LO52: TRUE | LP52: TRUE | LQ52: TRUE | LR52: TRUE | LS52: =AND(LS3>$F$52) -> TRUE | LT52: TRUE | LU52: TRUE | LV52: TRUE | LW52: TRUE | LX52: TRUE | LY52: TRUE | LZ52: TRUE | MA52: TRUE | MB52: TRUE | MC52: TRUE | MD52: TRUE | ME52: TRUE | MF52: TRUE | MG52: TRUE | MH52: TRUE | MI52: TRUE | MJ52: TRUE | MK52: TRUE | ML52: TRUE | MM52: TRUE | MN52: TRUE | MO52: TRUE | MP52: TRUE | MQ52: TRUE | MR52: TRUE | MS52: TRUE | MT52: TRUE | MU52: TRUE | MV52: TRUE | MW52: TRUE | MX52: TRUE | MY52: TRUE | MZ52: TRUE | NA52: TRUE | NB52: TRUE | NC52: TRUE | ND52: TRUE | NE52: TRUE | NF52: TRUE | NG52: TRUE | NH52: TRUE | NI52: TRUE | NJ52: TRUE | NK52: TRUE | NL52: TRUE | NM52: TRUE | NN52: TRUE | NO52: TRUE | NP52: TRUE | NQ52: TRUE | NR52: TRUE | NS52: TRUE | NT52: TRUE | NU52: TRUE | NV52: TRUE | NW52: TRUE | NX52: TRUE | NY52: TRUE | NZ52: TRUE | OA52: TRUE | OB52: TRUE | OC52: TRUE | OD52: TRUE | OE52: =AND(OE3>$F$52) -> TRUE | OF52: TRUE | OG52: TRUE | OH52: TRUE | OI52: TRUE | OJ52: TRUE | OK52: TRUE | OL52: TRUE | OM52: TRUE | ON52: TRUE | OO52: TRUE | OP52: TRUE | OQ52: TRUE | OR52: TRUE | OS52: TRUE | OT52: TRUE | OU52: TRUE | OV52: TRUE | OW52: TRUE | OX52: TRUE | OY52: TRUE | OZ52: TRUE | PA52: TRUE | PB52: TRUE | PC52: TRUE | PD52: TRUE | PE52: TRUE | PF52: TRUE | PG52: TRUE | PH52: TRUE | PI52: TRUE | PJ52: TRUE | PK52: TRUE | PL52: TRUE | PM52: TRUE | PN52: TRUE | PO52: TRUE | PP52: TRUE | PQ52: TRUE | PR52: TRUE | PS52: TRUE | PT52: TRUE | PU52: TRUE | PV52: TRUE | PW52: TRUE | PX52: TRUE | PY52: TRUE | PZ52: TRUE | QA52: TRUE | QB52: TRUE | QC52: TRUE | QD52: TRUE | QE52: TRUE | QF52: TRUE | QG52: TRUE | QH52: TRUE | QI52: TRUE | QJ52: TRUE | QK52: TRUE | QL52: TRUE | QM52: TRUE | QN52: TRUE | QO52: TRUE | QP52: TRUE | QQ52: =AND(QQ3>$F$52) -> TRUE | QR52: TRUE | QS52: TRUE | QT52: TRUE | QU52: TRUE | QV52: TRUE | QW52: TRUE | QX52: TRUE | QY52: TRUE | QZ52: TRUE | RA52: TRUE | RB52: TRUE | RC52: TRUE | RD52: TRUE | RE52: TRUE | RF52: TRUE | RG52: TRUE | RH52: TRUE | RI52: TRUE | RJ52: TRUE | RK52: TRUE | RL52: TRUE | RM52: TRUE | RN52: TRUE | RO52: TRUE | RP52: TRUE | RQ52: TRUE | RR52: TRUE | RS52: TRUE | RT52: TRUE | RU52: TRUE | RV52: TRUE | RW52: TRUE | RX52: TRUE | RY52: TRUE | RZ52: TRUE | SA52: TRUE | SB52: TRUE | SC52: TRUE | SD52: TRUE | SE52: TRUE | SF52: TRUE | SG52: TRUE | SH52: TRUE | SI52: TRUE | SJ52: TRUE | SK52: TRUE | SL52: TRUE | SM52: TRUE | SN52: TRUE | SO52: TRUE | SP52: TRUE | SQ52: TRUE | SR52: TRUE | SS52: TRUE | ST52: TRUE | SU52: TRUE | SV52: TRUE | SW52: TRUE | SX52: TRUE | SY52: TRUE | SZ52: TRUE | TA52: TRUE | TB52: TRUE | TC52: =AND(TC3>$F$52) -> TRUE
C53: Final Terminal Period | F53: =Scenarios!$I$45 -> 20 | J53: =J3=$F$53 -> FALSE | K53: =K3=$F$53 -> FALSE | L53: =L3=$F$53 -> FALSE | M53: =M3=$F$53 -> FALSE | N53: =N3=$F$53 -> FALSE | O53: =O3=$F$53 -> FALSE | P53: =P3=$F$53 -> FALSE | Q53: =Q3=$F$53 -> FALSE | R53: =R3=$F$53 -> FALSE | S53: =S3=$F$53 -> FALSE | T53: =T3=$F$53 -> FALSE | U53: =U3=$F$53 -> FALSE | V53: =V3=$F$53 -> FALSE | W53: =W3=$F$53 -> FALSE | X53: =X3=$F$53 -> FALSE | Y53: =Y3=$F$53 -> FALSE | Z53: =Z3=$F$53 -> FALSE | AA53: =AA3=$F$53 -> FALSE | AB53: =AB3=$F$53 -> FALSE | AC53: =AC3=$F$53 -> FALSE | AD53: =AD3=$F$53 -> TRUE | AE53: =AE3=$F$53 -> FALSE | AF53: =AF3=$F$53 -> FALSE | AG53: =AG3=$F$53 -> FALSE | AH53: =AH3=$F$53 -> FALSE | AI53: =AI3=$F$53 -> FALSE | AJ53: =AJ3=$F$53 -> FALSE | AK53: =AK3=$F$53 -> FALSE | AL53: =AL3=$F$53 -> FALSE | AM53: =AM3=$F$53 -> FALSE | AN53: =AN3=$F$53 -> FALSE | AO53: =AO3=$F$53 -> FALSE | AP53: =AP3=$F$53 -> FALSE | AQ53: =AQ3=$F$53 -> FALSE | AR53: =AR3=$F$53 -> FALSE | AS53: =AS3=$F$53 -> FALSE | AT53: =AT3=$F$53 -> FALSE | AU53: =AU3=$F$53 -> FALSE | AV53: =AV3=$F$53 -> FALSE | AW53: =AW3=$F$53 -> FALSE | AX53: =AX3=$F$53 -> FALSE | AY53: =AY3=$F$53 -> FALSE | AZ53: =AZ3=$F$53 -> FALSE | BA53: =BA3=$F$53 -> FALSE | BB53: =BB3=$F$53 -> FALSE | BC53: =BC3=$F$53 -> FALSE | BD53: =BD3=$F$53 -> FALSE | BE53: =BE3=$F$53 -> FALSE | BF53: =BF3=$F$53 -> FALSE | BG53: =BG3=$F$53 -> FALSE | BH53: =BH3=$F$53 -> FALSE | BI53: =BI3=$F$53 -> FALSE | BJ53: =BJ3=$F$53 -> FALSE | BK53: =BK3=$F$53 -> FALSE | BL53: =BL3=$F$53 -> FALSE | BM53: =BM3=$F$53 -> FALSE | BN53: =BN3=$F$53 -> FALSE | BO53: =BO3=$F$53 -> FALSE | BP53: =BP3=$F$53 -> FALSE | BQ53: =BQ3=$F$53 -> FALSE | BR53: =BR3=$F$53 -> FALSE | BS53: =BS3=$F$53 -> FALSE | BT53: =BT3=$F$53 -> FALSE | BU53: =BU3=$F$53 -> FALSE | BV53: =BV3=$F$53 -> FALSE | BW53: =BW3=$F$53 -> FALSE | BX53: =BX3=$F$53 -> FALSE | BY53: =BY3=$F$53 -> FALSE | BZ53: =BZ3=$F$53 -> FALSE | CA53: =CA3=$F$53 -> FALSE | CB53: =CB3=$F$53 -> FALSE | CC53: =CC3=$F$53 -> FALSE | CD53: =CD3=$F$53 -> FALSE | CE53: =CE3=$F$53 -> FALSE | CF53: =CF3=$F$53 -> FALSE | CG53: =CG3=$F$53 -> FALSE | CH53: =CH3=$F$53 -> FALSE | CI53: =CI3=$F$53 -> FALSE | CJ53: =CJ3=$F$53 -> FALSE | CK53: =CK3=$F$53 -> FALSE | CL53: =CL3=$F$53 -> FALSE | CM53: =CM3=$F$53 -> FALSE | CN53: =CN3=$F$53 -> FALSE | CO53: =CO3=$F$53 -> FALSE | CP53: =CP3=$F$53 -> FALSE | CQ53: =CQ3=$F$53 -> FALSE | CR53: =CR3=$F$53 -> FALSE | CS53: =CS3=$F$53 -> FALSE | CT53: =CT3=$F$53 -> FALSE | CU53: =CU3=$F$53 -> FALSE | CV53: =CV3=$F$53 -> FALSE | CW53: =CW3=$F$53 -> FALSE | CX53: =CX3=$F$53 -> FALSE | CY53: =CY3=$F$53 -> FALSE | CZ53: =CZ3=$F$53 -> FALSE | DA53: =DA3=$F$53 -> FALSE | DB53: =DB3=$F$53 -> FALSE | DC53: =DC3=$F$53 -> FALSE | DD53: =DD3=$F$53 -> FALSE | DE53: =DE3=$F$53 -> FALSE | DF53: =DF3=$F$53 -> FALSE | DG53: =DG3=$F$53 -> FALSE | DH53: =DH3=$F$53 -> FALSE | DI53: =DI3=$F$53 -> FALSE | DJ53: =DJ3=$F$53 -> FALSE | DK53: =DK3=$F$53 -> FALSE | DL53: =DL3=$F$53 -> FALSE | DM53: =DM3=$F$53 -> FALSE | DN53: =DN3=$F$53 -> FALSE | DO53: =DO3=$F$53 -> FALSE | DP53: =DP3=$F$53 -> FALSE | DQ53: =DQ3=$F$53 -> FALSE | DR53: =DR3=$F$53 -> FALSE | DS53: =DS3=$F$53 -> FALSE | DT53: =DT3=$F$53 -> FALSE | DU53: =DU3=$F$53 -> FALSE | DV53: =DV3=$F$53 -> FALSE | DW53: =DW3=$F$53 -> FALSE | DX53: =DX3=$F$53 -> FALSE | DY53: =DY3=$F$53 -> FALSE | DZ53: =DZ3=$F$53 -> FALSE | EA53: =EA3=$F$53 -> FALSE | EB53: =EB3=$F$53 -> FALSE | EC53: =EC3=$F$53 -> FALSE | ED53: =ED3=$F$53 -> FALSE | EE53: =EE3=$F$53 -> FALSE | EF53: =EF3=$F$53 -> FALSE | EG53: =EG3=$F$53 -> FALSE | EH53: =EH3=$F$53 -> FALSE | EI53: =EI3=$F$53 -> FALSE | EJ53: =EJ3=$F$53 -> FALSE | EK53: =EK3=$F$53 -> FALSE | EL53: =EL3=$F$53 -> FALSE | EM53: =EM3=$F$53 -> FALSE | EN53: =EN3=$F$53 -> FALSE | EO53: =EO3=$F$53 -> FALSE | EP53: =EP3=$F$53 -> FALSE | EQ53: =EQ3=$F$53 -> FALSE | ER53: =ER3=$F$53 -> FALSE | ES53: =ES3=$F$53 -> FALSE | ET53: =ET3=$F$53 -> FALSE | EU53: =EU3=$F$53 -> FALSE | EV53: =EV3=$F$53 -> FALSE | EW53: =EW3=$F$53 -> FALSE | EX53: =EX3=$F$53 -> FALSE | EY53: =EY3=$F$53 -> FALSE | EZ53: =EZ3=$F$53 -> FALSE | FA53: =FA3=$F$53 -> FALSE | FB53: =FB3=$F$53 -> FALSE | FC53: =FC3=$F$53 -> FALSE | FD53: =FD3=$F$53 -> FALSE | FE53: =FE3=$F$53 -> FALSE | FF53: =FF3=$F$53 -> FALSE | FG53: =FG3=$F$53 -> FALSE | FH53: =FH3=$F$53 -> FALSE | FI53: =FI3=$F$53 -> FALSE | FJ53: =FJ3=$F$53 -> FALSE | FK53: =FK3=$F$53 -> FALSE | FL53: =FL3=$F$53 -> FALSE | FM53: =FM3=$F$53 -> FALSE | FN53: =FN3=$F$53 -> FALSE | FO53: =FO3=$F$53 -> FALSE | FP53: =FP3=$F$53 -> FALSE | FQ53: =FQ3=$F$53 -> FALSE | FR53: =FR3=$F$53 -> FALSE | FS53: =FS3=$F$53 -> FALSE | FT53: =FT3=$F$53 -> FALSE | FU53: =FU3=$F$53 -> FALSE | FV53: =FV3=$F$53 -> FALSE | FW53: =FW3=$F$53 -> FALSE | FX53: =FX3=$F$53 -> FALSE | FY53: =FY3=$F$53 -> FALSE | FZ53: =FZ3=$F$53 -> FALSE | GA53: =GA3=$F$53 -> FALSE | GB53: =GB3=$F$53 -> FALSE | GC53: =GC3=$F$53 -> FALSE | GD53: =GD3=$F$53 -> FALSE | GE53: =GE3=$F$53 -> FALSE | GF53: =GF3=$F$53 -> FALSE | GG53: =GG3=$F$53 -> FALSE | GH53: =GH3=$F$53 -> FALSE | GI53: =GI3=$F$53 -> FALSE | GJ53: =GJ3=$F$53 -> FALSE | GK53: =GK3=$F$53 -> FALSE | GL53: =GL3=$F$53 -> FALSE | GM53: =GM3=$F$53 -> FALSE | GN53: =GN3=$F$53 -> FALSE | GO53: =GO3=$F$53 -> FALSE | GP53: =GP3=$F$53 -> FALSE | GQ53: =GQ3=$F$53 -> FALSE | GR53: =GR3=$F$53 -> FALSE | GS53: =GS3=$F$53 -> FALSE | GT53: =GT3=$F$53 -> FALSE | GU53: =GU3=$F$53 -> FALSE | GV53: =GV3=$F$53 -> FALSE | GW53: =GW3=$F$53 -> FALSE | GX53: =GX3=$F$53 -> FALSE | GY53: =GY3=$F$53 -> FALSE | GZ53: =GZ3=$F$53 -> FALSE | HA53: =HA3=$F$53 -> FALSE | HB53: =HB3=$F$53 -> FALSE | HC53: =HC3=$F$53 -> FALSE | HD53: =HD3=$F$53 -> FALSE | HE53: =HE3=$F$53 -> FALSE | HF53: =HF3=$F$53 -> FALSE | HG53: =HG3=$F$53 -> FALSE | HH53: =HH3=$F$53 -> FALSE | HI53: =HI3=$F$53 -> FALSE | HJ53: =HJ3=$F$53 -> FALSE | HK53: =HK3=$F$53 -> FALSE | HL53: =HL3=$F$53 -> FALSE | HM53: =HM3=$F$53 -> FALSE | HN53: =HN3=$F$53 -> FALSE | HO53: =HO3=$F$53 -> FALSE | HP53: =HP3=$F$53 -> FALSE | HQ53: =HQ3=$F$53 -> FALSE | HR53: =HR3=$F$53 -> FALSE | HS53: =HS3=$F$53 -> FALSE | HT53: =HT3=$F$53 -> FALSE | HU53: =HU3=$F$53 -> FALSE | HV53: =HV3=$F$53 -> FALSE | HW53: =HW3=$F$53 -> FALSE | HX53: =HX3=$F$53 -> FALSE | HY53: =HY3=$F$53 -> FALSE | HZ53: =HZ3=$F$53 -> FALSE | IA53: =IA3=$F$53 -> FALSE | IB53: =IB3=$F$53 -> FALSE | IC53: =IC3=$F$53 -> FALSE | ID53: =ID3=$F$53 -> FALSE | IE53: =IE3=$F$53 -> FALSE | IF53: =IF3=$F$53 -> FALSE | IG53: =IG3=$F$53 -> FALSE | IH53: =IH3=$F$53 -> FALSE | II53: =II3=$F$53 -> FALSE | IJ53: =IJ3=$F$53 -> FALSE | IK53: =IK3=$F$53 -> FALSE | IL53: =IL3=$F$53 -> FALSE | IM53: =IM3=$F$53 -> FALSE | IN53: =IN3=$F$53 -> FALSE | IO53: =IO3=$F$53 -> FALSE | IP53: =IP3=$F$53 -> FALSE | IQ53: =IQ3=$F$53 -> FALSE | IR53: =IR3=$F$53 -> FALSE | IS53: =IS3=$F$53 -> FALSE | IT53: =IT3=$F$53 -> FALSE | IU53: =IU3=$F$53 -> FALSE | IV53: =IV3=$F$53 -> FALSE | IW53: =IW3=$F$53 -> FALSE | IX53: =IX3=$F$53 -> FALSE | IY53: =IY3=$F$53 -> FALSE | IZ53: =IZ3=$F$53 -> FALSE | JA53: =JA3=$F$53 -> FALSE | JB53: =JB3=$F$53 -> FALSE | JC53: =JC3=$F$53 -> FALSE | JD53: =JD3=$F$53 -> FALSE | JE53: =JE3=$F$53 -> FALSE | JF53: =JF3=$F$53 -> FALSE | JG53: =JG3=$F$53 -> FALSE | JH53: =JH3=$F$53 -> FALSE | JI53: =JI3=$F$53 -> FALSE | JJ53: =JJ3=$F$53 -> FALSE | JK53: =JK3=$F$53 -> FALSE | JL53: =JL3=$F$53 -> FALSE | JM53: =JM3=$F$53 -> FALSE | JN53: =JN3=$F$53 -> FALSE | JO53: =JO3=$F$53 -> FALSE | JP53: =JP3=$F$53 -> FALSE | JQ53: =JQ3=$F$53 -> FALSE | JR53: =JR3=$F$53 -> FALSE | JS53: =JS3=$F$53 -> FALSE | JT53: =JT3=$F$53 -> FALSE | JU53: =JU3=$F$53 -> FALSE | JV53: =JV3=$F$53 -> FALSE | JW53: =JW3=$F$53 -> FALSE | JX53: =JX3=$F$53 -> FALSE | JY53: =JY3=$F$53 -> FALSE | JZ53: =JZ3=$F$53 -> FALSE | KA53: =KA3=$F$53 -> FALSE | KB53: =KB3=$F$53 -> FALSE | KC53: =KC3=$F$53 -> FALSE | KD53: =KD3=$F$53 -> FALSE | KE53: =KE3=$F$53 -> FALSE | KF53: =KF3=$F$53 -> FALSE | KG53: =KG3=$F$53 -> FALSE | KH53: =KH3=$F$53 -> FALSE | KI53: =KI3=$F$53 -> FALSE | KJ53: =KJ3=$F$53 -> FALSE | KK53: =KK3=$F$53 -> FALSE | KL53: =KL3=$F$53 -> FALSE | KM53: =KM3=$F$53 -> FALSE | KN53: =KN3=$F$53 -> FALSE | KO53: =KO3=$F$53 -> FALSE | KP53: =KP3=$F$53 -> FALSE | KQ53: =KQ3=$F$53 -> FALSE | KR53: =KR3=$F$53 -> FALSE | KS53: =KS3=$F$53 -> FALSE | KT53: =KT3=$F$53 -> FALSE | KU53: =KU3=$F$53 -> FALSE | KV53: =KV3=$F$53 -> FALSE | KW53: =KW3=$F$53 -> FALSE | KX53: =KX3=$F$53 -> FALSE | KY53: =KY3=$F$53 -> FALSE | KZ53: =KZ3=$F$53 -> FALSE | LA53: =LA3=$F$53 -> FALSE | LB53: =LB3=$F$53 -> FALSE | LC53: =LC3=$F$53 -> FALSE | LD53: =LD3=$F$53 -> FALSE | LE53: =LE3=$F$53 -> FALSE | LF53: =LF3=$F$53 -> FALSE | LG53: =LG3=$F$53 -> FALSE | LH53: =LH3=$F$53 -> FALSE | LI53: =LI3=$F$53 -> FALSE | LJ53: =LJ3=$F$53 -> FALSE | LK53: =LK3=$F$53 -> FALSE | LL53: =LL3=$F$53 -> FALSE | LM53: =LM3=$F$53 -> FALSE | LN53: =LN3=$F$53 -> FALSE | LO53: =LO3=$F$53 -> FALSE | LP53: =LP3=$F$53 -> FALSE | LQ53: =LQ3=$F$53 -> FALSE | LR53: =LR3=$F$53 -> FALSE | LS53: =LS3=$F$53 -> FALSE | LT53: =LT3=$F$53 -> FALSE | LU53: =LU3=$F$53 -> FALSE | LV53: =LV3=$F$53 -> FALSE | LW53: =LW3=$F$53 -> FALSE | LX53: =LX3=$F$53 -> FALSE | LY53: =LY3=$F$53 -> FALSE | LZ53: =LZ3=$F$53 -> FALSE | MA53: =MA3=$F$53 -> FALSE | MB53: =MB3=$F$53 -> FALSE | MC53: =MC3=$F$53 -> FALSE | MD53: =MD3=$F$53 -> FALSE | ME53: =ME3=$F$53 -> FALSE | MF53: =MF3=$F$53 -> FALSE | MG53: =MG3=$F$53 -> FALSE | MH53: =MH3=$F$53 -> FALSE | MI53: =MI3=$F$53 -> FALSE | MJ53: =MJ3=$F$53 -> FALSE | MK53: =MK3=$F$53 -> FALSE | ML53: =ML3=$F$53 -> FALSE | MM53: =MM3=$F$53 -> FALSE | MN53: =MN3=$F$53 -> FALSE | MO53: =MO3=$F$53 -> FALSE | MP53: =MP3=$F$53 -> FALSE | MQ53: =MQ3=$F$53 -> FALSE | MR53: =MR3=$F$53 -> FALSE | MS53: =MS3=$F$53 -> FALSE | MT53: =MT3=$F$53 -> FALSE | MU53: =MU3=$F$53 -> FALSE | MV53: =MV3=$F$53 -> FALSE | MW53: =MW3=$F$53 -> FALSE | MX53: =MX3=$F$53 -> FALSE | MY53: =MY3=$F$53 -> FALSE | MZ53: =MZ3=$F$53 -> FALSE | NA53: =NA3=$F$53 -> FALSE | NB53: =NB3=$F$53 -> FALSE | NC53: =NC3=$F$53 -> FALSE | ND53: =ND3=$F$53 -> FALSE | NE53: =NE3=$F$53 -> FALSE | NF53: =NF3=$F$53 -> FALSE | NG53: =NG3=$F$53 -> FALSE | NH53: =NH3=$F$53 -> FALSE | NI53: =NI3=$F$53 -> FALSE | NJ53: =NJ3=$F$53 -> FALSE | NK53: =NK3=$F$53 -> FALSE | NL53: =NL3=$F$53 -> FALSE | NM53: =NM3=$F$53 -> FALSE | NN53: =NN3=$F$53 -> FALSE | NO53: =NO3=$F$53 -> FALSE | NP53: =NP3=$F$53 -> FALSE | NQ53: =NQ3=$F$53 -> FALSE | NR53: =NR3=$F$53 -> FALSE | NS53: =NS3=$F$53 -> FALSE | NT53: =NT3=$F$53 -> FALSE | NU53: =NU3=$F$53 -> FALSE | NV53: =NV3=$F$53 -> FALSE | NW53: =NW3=$F$53 -> FALSE | NX53: =NX3=$F$53 -> FALSE | NY53: =NY3=$F$53 -> FALSE | NZ53: =NZ3=$F$53 -> FALSE | OA53: =OA3=$F$53 -> FALSE | OB53: =OB3=$F$53 -> FALSE | OC53: =OC3=$F$53 -> FALSE | OD53: =OD3=$F$53 -> FALSE | OE53: =OE3=$F$53 -> FALSE | OF53: =OF3=$F$53 -> FALSE | OG53: =OG3=$F$53 -> FALSE | OH53: =OH3=$F$53 -> FALSE | OI53: =OI3=$F$53 -> FALSE | OJ53: =OJ3=$F$53 -> FALSE | OK53: =OK3=$F$53 -> FALSE | OL53: =OL3=$F$53 -> FALSE | OM53: =OM3=$F$53 -> FALSE | ON53: =ON3=$F$53 -> FALSE | OO53: =OO3=$F$53 -> FALSE | OP53: =OP3=$F$53 -> FALSE | OQ53: =OQ3=$F$53 -> FALSE | OR53: =OR3=$F$53 -> FALSE | OS53: =OS3=$F$53 -> FALSE | OT53: =OT3=$F$53 -> FALSE | OU53: =OU3=$F$53 -> FALSE | OV53: =OV3=$F$53 -> FALSE | OW53: =OW3=$F$53 -> FALSE | OX53: =OX3=$F$53 -> FALSE | OY53: =OY3=$F$53 -> FALSE | OZ53: =OZ3=$F$53 -> FALSE | PA53: =PA3=$F$53 -> FALSE | PB53: =PB3=$F$53 -> FALSE | PC53: =PC3=$F$53 -> FALSE | PD53: =PD3=$F$53 -> FALSE | PE53: =PE3=$F$53 -> FALSE | PF53: =PF3=$F$53 -> FALSE | PG53: =PG3=$F$53 -> FALSE | PH53: =PH3=$F$53 -> FALSE | PI53: =PI3=$F$53 -> FALSE | PJ53: =PJ3=$F$53 -> FALSE | PK53: =PK3=$F$53 -> FALSE | PL53: =PL3=$F$53 -> FALSE | PM53: =PM3=$F$53 -> FALSE | PN53: =PN3=$F$53 -> FALSE | PO53: =PO3=$F$53 -> FALSE | PP53: =PP3=$F$53 -> FALSE | PQ53: =PQ3=$F$53 -> FALSE | PR53: =PR3=$F$53 -> FALSE | PS53: =PS3=$F$53 -> FALSE | PT53: =PT3=$F$53 -> FALSE | PU53: =PU3=$F$53 -> FALSE | PV53: =PV3=$F$53 -> FALSE | PW53: =PW3=$F$53 -> FALSE | PX53: =PX3=$F$53 -> FALSE | PY53: =PY3=$F$53 -> FALSE | PZ53: =PZ3=$F$53 -> FALSE | QA53: =QA3=$F$53 -> FALSE | QB53: =QB3=$F$53 -> FALSE | QC53: =QC3=$F$53 -> FALSE | QD53: =QD3=$F$53 -> FALSE | QE53: =QE3=$F$53 -> FALSE | QF53: =QF3=$F$53 -> FALSE | QG53: =QG3=$F$53 -> FALSE | QH53: =QH3=$F$53 -> FALSE | QI53: =QI3=$F$53 -> FALSE | QJ53: =QJ3=$F$53 -> FALSE | QK53: =QK3=$F$53 -> FALSE | QL53: =QL3=$F$53 -> FALSE | QM53: =QM3=$F$53 -> FALSE | QN53: =QN3=$F$53 -> FALSE | QO53: =QO3=$F$53 -> FALSE | QP53: =QP3=$F$53 -> FALSE | QQ53: =QQ3=$F$53 -> FALSE | QR53: =QR3=$F$53 -> FALSE | QS53: =QS3=$F$53 -> FALSE | QT53: =QT3=$F$53 -> FALSE | QU53: =QU3=$F$53 -> FALSE | QV53: =QV3=$F$53 -> FALSE | QW53: =QW3=$F$53 -> FALSE | QX53: =QX3=$F$53 -> FALSE | QY53: =QY3=$F$53 -> FALSE | QZ53: =QZ3=$F$53 -> FALSE | RA53: =RA3=$F$53 -> FALSE | RB53: =RB3=$F$53 -> FALSE | RC53: =RC3=$F$53 -> FALSE | RD53: =RD3=$F$53 -> FALSE | RE53: =RE3=$F$53 -> FALSE | RF53: =RF3=$F$53 -> FALSE | RG53: =RG3=$F$53 -> FALSE | RH53: =RH3=$F$53 -> FALSE | RI53: =RI3=$F$53 -> FALSE | RJ53: =RJ3=$F$53 -> FALSE | RK53: =RK3=$F$53 -> FALSE | RL53: =RL3=$F$53 -> FALSE | RM53: =RM3=$F$53 -> FALSE | RN53: =RN3=$F$53 -> FALSE | RO53: =RO3=$F$53 -> FALSE | RP53: =RP3=$F$53 -> FALSE | RQ53: =RQ3=$F$53 -> FALSE | RR53: =RR3=$F$53 -> FALSE | RS53: =RS3=$F$53 -> FALSE | RT53: =RT3=$F$53 -> FALSE | RU53: =RU3=$F$53 -> FALSE | RV53: =RV3=$F$53 -> FALSE | RW53: =RW3=$F$53 -> FALSE | RX53: =RX3=$F$53 -> FALSE | RY53: =RY3=$F$53 -> FALSE | RZ53: =RZ3=$F$53 -> FALSE | SA53: =SA3=$F$53 -> FALSE | SB53: =SB3=$F$53 -> FALSE | SC53: =SC3=$F$53 -> FALSE | SD53: =SD3=$F$53 -> FALSE | SE53: =SE3=$F$53 -> FALSE | SF53: =SF3=$F$53 -> FALSE | SG53: =SG3=$F$53 -> FALSE | SH53: =SH3=$F$53 -> FALSE | SI53: =SI3=$F$53 -> FALSE | SJ53: =SJ3=$F$53 -> FALSE | SK53: =SK3=$F$53 -> FALSE | SL53: =SL3=$F$53 -> FALSE | SM53: =SM3=$F$53 -> FALSE | SN53: =SN3=$F$53 -> FALSE | SO53: =SO3=$F$53 -> FALSE | SP53: =SP3=$F$53 -> FALSE | SQ53: =SQ3=$F$53 -> FALSE | SR53: =SR3=$F$53 -> FALSE | SS53: =SS3=$F$53 -> FALSE | ST53: =ST3=$F$53 -> FALSE | SU53: =SU3=$F$53 -> FALSE | SV53: =SV3=$F$53 -> FALSE | SW53: =SW3=$F$53 -> FALSE | SX53: =SX3=$F$53 -> FALSE | SY53: =SY3=$F$53 -> FALSE | SZ53: =SZ3=$F$53 -> FALSE | TA53: =TA3=$F$53 -> FALSE | TB53: =TB3=$F$53 -> FALSE | TC53: =TC3=$F$53 -> FALSE
C54: Post Terminal Holding Period | F54: =Scenarios!D5 -> 15 | G54: =Scenarios!D5+Scenarios!D6 -> 20 | J54: =AND(J3>$F$54,J3<=$G$54) -> FALSE | K54: =AND(K3>$F$54,K3<=$G$54) -> FALSE | L54: FALSE | M54: FALSE | N54: FALSE | O54: FALSE | P54: FALSE | Q54: FALSE | R54: FALSE | S54: FALSE | T54: FALSE | U54: FALSE | V54: FALSE | W54: FALSE | X54: FALSE | Y54: FALSE | Z54: TRUE | AA54: TRUE | AB54: TRUE | AC54: TRUE | AD54: TRUE | AE54: FALSE | AF54: FALSE | AG54: FALSE | AH54: FALSE | AI54: FALSE | AJ54: FALSE | AK54: FALSE | AL54: FALSE | AM54: FALSE | AN54: FALSE | AO54: FALSE | AP54: FALSE | AQ54: FALSE | AR54: FALSE | AS54: FALSE | AT54: FALSE | AU54: FALSE | AV54: FALSE | AW54: FALSE | AX54: FALSE | AY54: FALSE | AZ54: FALSE | BA54: FALSE | BB54: FALSE | BC54: FALSE | BD54: FALSE | BE54: FALSE | BF54: FALSE | BG54: FALSE | BH54: FALSE | BI54: FALSE | BJ54: FALSE | BK54: FALSE | BL54: FALSE | BM54: FALSE | BN54: FALSE | BO54: FALSE | BP54: FALSE | BQ54: FALSE | BR54: FALSE | BS54: FALSE | BT54: FALSE | BU54: FALSE | BV54: FALSE | BW54: =AND(BW3>$F$54,BW3<=$G$54) -> FALSE | BX54: FALSE | BY54: FALSE | BZ54: FALSE | CA54: FALSE | CB54: FALSE | CC54: FALSE | CD54: FALSE | CE54: FALSE | CF54: FALSE | CG54: FALSE | CH54: FALSE | CI54: FALSE | CJ54: FALSE | CK54: FALSE | CL54: FALSE | CM54: FALSE | CN54: FALSE | CO54: FALSE | CP54: FALSE | CQ54: FALSE | CR54: FALSE | CS54: FALSE | CT54: FALSE | CU54: FALSE | CV54: FALSE | CW54: FALSE | CX54: FALSE | CY54: FALSE | CZ54: FALSE | DA54: FALSE | DB54: FALSE | DC54: FALSE | DD54: FALSE | DE54: FALSE | DF54: FALSE | DG54: FALSE | DH54: FALSE | DI54: FALSE | DJ54: FALSE | DK54: FALSE | DL54: FALSE | DM54: FALSE | DN54: FALSE | DO54: FALSE | DP54: FALSE | DQ54: FALSE | DR54: FALSE | DS54: FALSE | DT54: FALSE | DU54: FALSE | DV54: FALSE | DW54: FALSE | DX54: FALSE | DY54: FALSE | DZ54: FALSE | EA54: FALSE | EB54: FALSE | EC54: FALSE | ED54: FALSE | EE54: FALSE | EF54: FALSE | EG54: FALSE | EH54: FALSE | EI54: =AND(EI3>$F$54,EI3<=$G$54) -> FALSE | EJ54: FALSE | EK54: FALSE | EL54: FALSE | EM54: FALSE | EN54: FALSE | EO54: FALSE | EP54: FALSE | EQ54: FALSE | ER54: FALSE | ES54: FALSE | ET54: FALSE | EU54: FALSE | EV54: FALSE | EW54: FALSE | EX54: FALSE | EY54: FALSE | EZ54: FALSE | FA54: FALSE | FB54: FALSE | FC54: FALSE | FD54: FALSE | FE54: FALSE | FF54: FALSE | FG54: FALSE | FH54: FALSE | FI54: FALSE | FJ54: FALSE | FK54: FALSE | FL54: FALSE | FM54: FALSE | FN54: FALSE | FO54: FALSE | FP54: FALSE | FQ54: FALSE | FR54: FALSE | FS54: FALSE | FT54: FALSE | FU54: FALSE | FV54: FALSE | FW54: FALSE | FX54: FALSE | FY54: FALSE | FZ54: FALSE | GA54: FALSE | GB54: FALSE | GC54: FALSE | GD54: FALSE | GE54: FALSE | GF54: FALSE | GG54: FALSE | GH54: FALSE | GI54: FALSE | GJ54: FALSE | GK54: FALSE | GL54: FALSE | GM54: FALSE | GN54: FALSE | GO54: FALSE | GP54: FALSE | GQ54: FALSE | GR54: FALSE | GS54: FALSE | GT54: FALSE | GU54: =AND(GU3>$F$54,GU3<=$G$54) -> FALSE | GV54: FALSE | GW54: FALSE | GX54: FALSE | GY54: FALSE | GZ54: FALSE | HA54: FALSE | HB54: FALSE | HC54: FALSE | HD54: FALSE | HE54: FALSE | HF54: FALSE | HG54: FALSE | HH54: FALSE | HI54: FALSE | HJ54: FALSE | HK54: FALSE | HL54: FALSE | HM54: FALSE | HN54: FALSE | HO54: FALSE | HP54: FALSE | HQ54: FALSE | HR54: FALSE | HS54: FALSE | HT54: FALSE | HU54: FALSE | HV54: FALSE | HW54: FALSE | HX54: FALSE | HY54: FALSE | HZ54: FALSE | IA54: FALSE | IB54: FALSE | IC54: FALSE | ID54: FALSE | IE54: FALSE | IF54: FALSE | IG54: FALSE | IH54: FALSE | II54: FALSE | IJ54: FALSE | IK54: FALSE | IL54: FALSE | IM54: FALSE | IN54: FALSE | IO54: FALSE | IP54: FALSE | IQ54: FALSE | IR54: FALSE | IS54: FALSE | IT54: FALSE | IU54: FALSE | IV54: FALSE | IW54: FALSE | IX54: FALSE | IY54: FALSE | IZ54: FALSE | JA54: FALSE | JB54: FALSE | JC54: FALSE | JD54: FALSE | JE54: FALSE | JF54: FALSE | JG54: =AND(JG3>$F$54,JG3<=$G$54) -> FALSE | JH54: FALSE | JI54: FALSE | JJ54: FALSE | JK54: FALSE | JL54: FALSE | JM54: FALSE | JN54: FALSE | JO54: FALSE | JP54: FALSE | JQ54: FALSE | JR54: FALSE | JS54: FALSE | JT54: FALSE | JU54: FALSE | JV54: FALSE | JW54: FALSE | JX54: FALSE | JY54: FALSE | JZ54: FALSE | KA54: FALSE | KB54: FALSE | KC54: FALSE | KD54: FALSE | KE54: FALSE | KF54: FALSE | KG54: FALSE | KH54: FALSE | KI54: FALSE | KJ54: FALSE | KK54: FALSE | KL54: FALSE | KM54: FALSE | KN54: FALSE | KO54: FALSE | KP54: FALSE | KQ54: FALSE | KR54: FALSE | KS54: FALSE | KT54: FALSE | KU54: FALSE | KV54: FALSE | KW54: FALSE | KX54: FALSE | KY54: FALSE | KZ54: FALSE | LA54: FALSE | LB54: FALSE | LC54: FALSE | LD54: FALSE | LE54: FALSE | LF54: FALSE | LG54: FALSE | LH54: FALSE | LI54: FALSE | LJ54: FALSE | LK54: FALSE | LL54: FALSE | LM54: FALSE | LN54: FALSE | LO54: FALSE | LP54: FALSE | LQ54: FALSE | LR54: FALSE | LS54: =AND(LS3>$F$54,LS3<=$G$54) -> FALSE | LT54: FALSE | LU54: FALSE | LV54: FALSE | LW54: FALSE | LX54: FALSE | LY54: FALSE | LZ54: FALSE | MA54: FALSE | MB54: FALSE | MC54: FALSE | MD54: FALSE | ME54: FALSE | MF54: FALSE | MG54: FALSE | MH54: FALSE | MI54: FALSE | MJ54: FALSE | MK54: FALSE | ML54: FALSE | MM54: FALSE | MN54: FALSE | MO54: FALSE | MP54: FALSE | MQ54: FALSE | MR54: FALSE | MS54: FALSE | MT54: FALSE | MU54: FALSE | MV54: FALSE | MW54: FALSE | MX54: FALSE | MY54: FALSE | MZ54: FALSE | NA54: FALSE | NB54: FALSE | NC54: FALSE | ND54: FALSE | NE54: FALSE | NF54: FALSE | NG54: FALSE | NH54: FALSE | NI54: FALSE | NJ54: FALSE | NK54: FALSE | NL54: FALSE | NM54: FALSE | NN54: FALSE | NO54: FALSE | NP54: FALSE | NQ54: FALSE | NR54: FALSE | NS54: FALSE | NT54: FALSE | NU54: FALSE | NV54: FALSE | NW54: FALSE | NX54: FALSE | NY54: FALSE | NZ54: FALSE | OA54: FALSE | OB54: FALSE | OC54: FALSE | OD54: FALSE | OE54: =AND(OE3>$F$54,OE3<=$G$54) -> FALSE | OF54: FALSE | OG54: FALSE | OH54: FALSE | OI54: FALSE | OJ54: FALSE | OK54: FALSE | OL54: FALSE | OM54: FALSE | ON54: FALSE | OO54: FALSE | OP54: FALSE | OQ54: FALSE | OR54: FALSE | OS54: FALSE | OT54: FALSE | OU54: FALSE | OV54: FALSE | OW54: FALSE | OX54: FALSE | OY54: FALSE | OZ54: FALSE | PA54: FALSE | PB54: FALSE | PC54: FALSE | PD54: FALSE | PE54: FALSE | PF54: FALSE | PG54: FALSE | PH54: FALSE | PI54: FALSE | PJ54: FALSE | PK54: FALSE | PL54: FALSE | PM54: FALSE | PN54: FALSE | PO54: FALSE | PP54: FALSE | PQ54: FALSE | PR54: FALSE | PS54: FALSE | PT54: FALSE | PU54: FALSE | PV54: FALSE | PW54: FALSE | PX54: FALSE | PY54: FALSE | PZ54: FALSE | QA54: FALSE | QB54: FALSE | QC54: FALSE | QD54: FALSE | QE54: FALSE | QF54: FALSE | QG54: FALSE | QH54: FALSE | QI54: FALSE | QJ54: FALSE | QK54: FALSE | QL54: FALSE | QM54: FALSE | QN54: FALSE | QO54: FALSE | QP54: FALSE | QQ54: =AND(QQ3>$F$54,QQ3<=$G$54) -> FALSE | QR54: FALSE | QS54: FALSE | QT54: FALSE | QU54: FALSE | QV54: FALSE | QW54: FALSE | QX54: FALSE | QY54: FALSE | QZ54: FALSE | RA54: FALSE | RB54: FALSE | RC54: FALSE | RD54: FALSE | RE54: FALSE | RF54: FALSE | RG54: FALSE | RH54: FALSE | RI54: FALSE | RJ54: FALSE | RK54: FALSE | RL54: FALSE | RM54: FALSE | RN54: FALSE | RO54: FALSE | RP54: FALSE | RQ54: FALSE | RR54: FALSE | RS54: FALSE | RT54: FALSE | RU54: FALSE | RV54: FALSE | RW54: FALSE | RX54: FALSE | RY54: FALSE | RZ54: FALSE | SA54: FALSE | SB54: FALSE | SC54: FALSE | SD54: FALSE | SE54: FALSE | SF54: FALSE | SG54: FALSE | SH54: FALSE | SI54: FALSE | SJ54: FALSE | SK54: FALSE | SL54: FALSE | SM54: FALSE | SN54: FALSE | SO54: FALSE | SP54: FALSE | SQ54: FALSE | SR54: FALSE | SS54: FALSE | ST54: FALSE | SU54: FALSE | SV54: FALSE | SW54: FALSE | SX54: FALSE | SY54: FALSE | SZ54: FALSE | TA54: FALSE | TB54: FALSE | TC54: =AND(TC3>$F$54,TC3<=$G$54) -> FALSE
D56: Invested Capital Balance Terminal | E56: =LOOKUP(F52,3:3,10:10) -> 0 | K56: =$E$56 -> 0 | L56: =$E$56 -> 0 | M56: =$E$56 -> 0 | N56: =$E$56 -> 0 | O56: =$E$56 -> 0 | P56: =$E$56 -> 0 | Q56: =$E$56 -> 0 | R56: =$E$56 -> 0 | S56: =$E$56 -> 0 | T56: =$E$56 -> 0 | U56: =$E$56 -> 0 | V56: =$E$56 -> 0 | W56: =$E$56 -> 0 | X56: =$E$56 -> 0 | Y56: =$E$56 -> 0 | Z56: =$E$56 -> 0 | AA56: =$E$56 -> 0 | AB56: =$E$56 -> 0 | AC56: =$E$56 -> 0 | AD56: =$E$56 -> 0 | AE56: =$E$56 -> 0 | AF56: =$E$56 -> 0 | AG56: =$E$56 -> 0 | AH56: =$E$56 -> 0 | AI56: =$E$56 -> 0 | AJ56: =$E$56 -> 0 | AK56: =$E$56 -> 0 | AL56: =$E$56 -> 0 | AM56: =$E$56 -> 0 | AN56: =$E$56 -> 0 | AO56: =$E$56 -> 0 | AP56: =$E$56 -> 0 | AQ56: =$E$56 -> 0 | AR56: =$E$56 -> 0 | AS56: =$E$56 -> 0 | AT56: =$E$56 -> 0 | AU56: =$E$56 -> 0 | AV56: =$E$56 -> 0 | AW56: =$E$56 -> 0 | AX56: =$E$56 -> 0 | AY56: =$E$56 -> 0 | AZ56: =$E$56 -> 0 | BA56: =$E$56 -> 0 | BB56: =$E$56 -> 0 | BC56: =$E$56 -> 0 | BD56: =$E$56 -> 0 | BE56: =$E$56 -> 0 | BF56: =$E$56 -> 0 | BG56: =$E$56 -> 0 | BH56: =$E$56 -> 0 | BI56: =$E$56 -> 0 | BJ56: =$E$56 -> 0 | BK56: =$E$56 -> 0 | BL56: =$E$56 -> 0 | BM56: =$E$56 -> 0 | BN56: =$E$56 -> 0 | BO56: =$E$56 -> 0 | BP56: =$E$56 -> 0 | BQ56: =$E$56 -> 0 | BR56: =$E$56 -> 0 | BS56: =$E$56 -> 0 | BT56: =$E$56 -> 0 | BU56: =$E$56 -> 0 | BV56: =$E$56 -> 0 | BW56: =$E$56 -> 0 | BX56: =$E$56 -> 0 | BY56: =$E$56 -> 0 | BZ56: =$E$56 -> 0 | CA56: =$E$56 -> 0 | CB56: =$E$56 -> 0 | CC56: =$E$56 -> 0 | CD56: =$E$56 -> 0 | CE56: =$E$56 -> 0 | CF56: =$E$56 -> 0 | CG56: =$E$56 -> 0 | CH56: =$E$56 -> 0 | CI56: =$E$56 -> 0 | CJ56: =$E$56 -> 0 | CK56: =$E$56 -> 0 | CL56: =$E$56 -> 0 | CM56: =$E$56 -> 0 | CN56: =$E$56 -> 0 | CO56: =$E$56 -> 0 | CP56: =$E$56 -> 0 | CQ56: =$E$56 -> 0 | CR56: =$E$56 -> 0 | CS56: =$E$56 -> 0 | CT56: =$E$56 -> 0 | CU56: =$E$56 -> 0 | CV56: =$E$56 -> 0 | CW56: =$E$56 -> 0 | CX56: =$E$56 -> 0 | CY56: =$E$56 -> 0 | CZ56: =$E$56 -> 0 | DA56: =$E$56 -> 0 | DB56: =$E$56 -> 0 | DC56: =$E$56 -> 0 | DD56: =$E$56 -> 0 | DE56: =$E$56 -> 0 | DF56: =$E$56 -> 0 | DG56: =$E$56 -> 0 | DH56: =$E$56 -> 0 | DI56: =$E$56 -> 0 | DJ56: =$E$56 -> 0 | DK56: =$E$56 -> 0 | DL56: =$E$56 -> 0 | DM56: =$E$56 -> 0 | DN56: =$E$56 -> 0 | DO56: =$E$56 -> 0 | DP56: =$E$56 -> 0 | DQ56: =$E$56 -> 0 | DR56: =$E$56 -> 0 | DS56: =$E$56 -> 0 | DT56: =$E$56 -> 0 | DU56: =$E$56 -> 0 | DV56: =$E$56 -> 0 | DW56: =$E$56 -> 0 | DX56: =$E$56 -> 0 | DY56: =$E$56 -> 0 | DZ56: =$E$56 -> 0 | EA56: =$E$56 -> 0 | EB56: =$E$56 -> 0 | EC56: =$E$56 -> 0 | ED56: =$E$56 -> 0 | EE56: =$E$56 -> 0 | EF56: =$E$56 -> 0 | EG56: =$E$56 -> 0 | EH56: =$E$56 -> 0 | EI56: =$E$56 -> 0 | EJ56: =$E$56 -> 0 | EK56: =$E$56 -> 0 | EL56: =$E$56 -> 0 | EM56: =$E$56 -> 0 | EN56: =$E$56 -> 0 | EO56: =$E$56 -> 0 | EP56: =$E$56 -> 0 | EQ56: =$E$56 -> 0 | ER56: =$E$56 -> 0 | ES56: =$E$56 -> 0 | ET56: =$E$56 -> 0 | EU56: =$E$56 -> 0 | EV56: =$E$56 -> 0 | EW56: =$E$56 -> 0 | EX56: =$E$56 -> 0 | EY56: =$E$56 -> 0 | EZ56: =$E$56 -> 0 | FA56: =$E$56 -> 0 | FB56: =$E$56 -> 0 | FC56: =$E$56 -> 0 | FD56: =$E$56 -> 0 | FE56: =$E$56 -> 0 | FF56: =$E$56 -> 0 | FG56: =$E$56 -> 0 | FH56: =$E$56 -> 0 | FI56: =$E$56 -> 0 | FJ56: =$E$56 -> 0 | FK56: =$E$56 -> 0 | FL56: =$E$56 -> 0 | FM56: =$E$56 -> 0 | FN56: =$E$56 -> 0 | FO56: =$E$56 -> 0 | FP56: =$E$56 -> 0 | FQ56: =$E$56 -> 0 | FR56: =$E$56 -> 0 | FS56: =$E$56 -> 0 | FT56: =$E$56 -> 0 | FU56: =$E$56 -> 0 | FV56: =$E$56 -> 0 | FW56: =$E$56 -> 0 | FX56: =$E$56 -> 0 | FY56: =$E$56 -> 0 | FZ56: =$E$56 -> 0 | GA56: =$E$56 -> 0 | GB56: =$E$56 -> 0 | GC56: =$E$56 -> 0 | GD56: =$E$56 -> 0 | GE56: =$E$56 -> 0 | GF56: =$E$56 -> 0 | GG56: =$E$56 -> 0 | GH56: =$E$56 -> 0 | GI56: =$E$56 -> 0 | GJ56: =$E$56 -> 0 | GK56: =$E$56 -> 0 | GL56: =$E$56 -> 0 | GM56: =$E$56 -> 0 | GN56: =$E$56 -> 0 | GO56: =$E$56 -> 0 | GP56: =$E$56 -> 0 | GQ56: =$E$56 -> 0 | GR56: =$E$56 -> 0 | GS56: =$E$56 -> 0 | GT56: =$E$56 -> 0 | GU56: =$E$56 -> 0 | GV56: =$E$56 -> 0 | GW56: =$E$56 -> 0 | GX56: =$E$56 -> 0 | GY56: =$E$56 -> 0 | GZ56: =$E$56 -> 0 | HA56: =$E$56 -> 0 | HB56: =$E$56 -> 0 | HC56: =$E$56 -> 0 | HD56: =$E$56 -> 0 | HE56: =$E$56 -> 0 | HF56: =$E$56 -> 0 | HG56: =$E$56 -> 0 | HH56: =$E$56 -> 0 | HI56: =$E$56 -> 0 | HJ56: =$E$56 -> 0 | HK56: =$E$56 -> 0 | HL56: =$E$56 -> 0 | HM56: =$E$56 -> 0 | HN56: =$E$56 -> 0 | HO56: =$E$56 -> 0 | HP56: =$E$56 -> 0 | HQ56: =$E$56 -> 0 | HR56: =$E$56 -> 0 | HS56: =$E$56 -> 0 | HT56: =$E$56 -> 0 | HU56: =$E$56 -> 0 | HV56: =$E$56 -> 0 | HW56: =$E$56 -> 0 | HX56: =$E$56 -> 0 | HY56: =$E$56 -> 0 | HZ56: =$E$56 -> 0 | IA56: =$E$56 -> 0 | IB56: =$E$56 -> 0 | IC56: =$E$56 -> 0 | ID56: =$E$56 -> 0 | IE56: =$E$56 -> 0 | IF56: =$E$56 -> 0 | IG56: =$E$56 -> 0 | IH56: =$E$56 -> 0 | II56: =$E$56 -> 0 | IJ56: =$E$56 -> 0 | IK56: =$E$56 -> 0 | IL56: =$E$56 -> 0 | IM56: =$E$56 -> 0 | IN56: =$E$56 -> 0 | IO56: =$E$56 -> 0 | IP56: =$E$56 -> 0 | IQ56: =$E$56 -> 0 | IR56: =$E$56 -> 0 | IS56: =$E$56 -> 0 | IT56: =$E$56 -> 0 | IU56: =$E$56 -> 0 | IV56: =$E$56 -> 0 | IW56: =$E$56 -> 0 | IX56: =$E$56 -> 0 | IY56: =$E$56 -> 0 | IZ56: =$E$56 -> 0 | JA56: =$E$56 -> 0 | JB56: =$E$56 -> 0 | JC56: =$E$56 -> 0 | JD56: =$E$56 -> 0 | JE56: =$E$56 -> 0 | JF56: =$E$56 -> 0 | JG56: =$E$56 -> 0 | JH56: =$E$56 -> 0 | JI56: =$E$56 -> 0 | JJ56: =$E$56 -> 0 | JK56: =$E$56 -> 0 | JL56: =$E$56 -> 0 | JM56: =$E$56 -> 0 | JN56: =$E$56 -> 0 | JO56: =$E$56 -> 0 | JP56: =$E$56 -> 0 | JQ56: =$E$56 -> 0 | JR56: =$E$56 -> 0 | JS56: =$E$56 -> 0 | JT56: =$E$56 -> 0 | JU56: =$E$56 -> 0 | JV56: =$E$56 -> 0 | JW56: =$E$56 -> 0 | JX56: =$E$56 -> 0 | JY56: =$E$56 -> 0 | JZ56: =$E$56 -> 0 | KA56: =$E$56 -> 0 | KB56: =$E$56 -> 0 | KC56: =$E$56 -> 0 | KD56: =$E$56 -> 0 | KE56: =$E$56 -> 0 | KF56: =$E$56 -> 0 | KG56: =$E$56 -> 0 | KH56: =$E$56 -> 0 | KI56: =$E$56 -> 0 | KJ56: =$E$56 -> 0 | KK56: =$E$56 -> 0 | KL56: =$E$56 -> 0 | KM56: =$E$56 -> 0 | KN56: =$E$56 -> 0 | KO56: =$E$56 -> 0 | KP56: =$E$56 -> 0 | KQ56: =$E$56 -> 0 | KR56: =$E$56 -> 0 | KS56: =$E$56 -> 0 | KT56: =$E$56 -> 0 | KU56: =$E$56 -> 0 | KV56: =$E$56 -> 0 | KW56: =$E$56 -> 0 | KX56: =$E$56 -> 0 | KY56: =$E$56 -> 0 | KZ56: =$E$56 -> 0 | LA56: =$E$56 -> 0 | LB56: =$E$56 -> 0 | LC56: =$E$56 -> 0 | LD56: =$E$56 -> 0 | LE56: =$E$56 -> 0 | LF56: =$E$56 -> 0 | LG56: =$E$56 -> 0 | LH56: =$E$56 -> 0 | LI56: =$E$56 -> 0 | LJ56: =$E$56 -> 0 | LK56: =$E$56 -> 0 | LL56: =$E$56 -> 0 | LM56: =$E$56 -> 0 | LN56: =$E$56 -> 0 | LO56: =$E$56 -> 0 | LP56: =$E$56 -> 0 | LQ56: =$E$56 -> 0 | LR56: =$E$56 -> 0 | LS56: =$E$56 -> 0 | LT56: =$E$56 -> 0 | LU56: =$E$56 -> 0 | LV56: =$E$56 -> 0 | LW56: =$E$56 -> 0 | LX56: =$E$56 -> 0 | LY56: =$E$56 -> 0 | LZ56: =$E$56 -> 0 | MA56: =$E$56 -> 0 | MB56: =$E$56 -> 0 | MC56: =$E$56 -> 0 | MD56: =$E$56 -> 0 | ME56: =$E$56 -> 0 | MF56: =$E$56 -> 0 | MG56: =$E$56 -> 0 | MH56: =$E$56 -> 0 | MI56: =$E$56 -> 0 | MJ56: =$E$56 -> 0 | MK56: =$E$56 -> 0 | ML56: =$E$56 -> 0 | MM56: =$E$56 -> 0 | MN56: =$E$56 -> 0 | MO56: =$E$56 -> 0 | MP56: =$E$56 -> 0 | MQ56: =$E$56 -> 0 | MR56: =$E$56 -> 0 | MS56: =$E$56 -> 0 | MT56: =$E$56 -> 0 | MU56: =$E$56 -> 0 | MV56: =$E$56 -> 0 | MW56: =$E$56 -> 0 | MX56: =$E$56 -> 0 | MY56: =$E$56 -> 0 | MZ56: =$E$56 -> 0 | NA56: =$E$56 -> 0 | NB56: =$E$56 -> 0 | NC56: =$E$56 -> 0 | ND56: =$E$56 -> 0 | NE56: =$E$56 -> 0 | NF56: =$E$56 -> 0 | NG56: =$E$56 -> 0 | NH56: =$E$56 -> 0 | NI56: =$E$56 -> 0 | NJ56: =$E$56 -> 0 | NK56: =$E$56 -> 0 | NL56: =$E$56 -> 0 | NM56: =$E$56 -> 0 | NN56: =$E$56 -> 0 | NO56: =$E$56 -> 0 | NP56: =$E$56 -> 0 | NQ56: =$E$56 -> 0 | NR56: =$E$56 -> 0 | NS56: =$E$56 -> 0 | NT56: =$E$56 -> 0 | NU56: =$E$56 -> 0 | NV56: =$E$56 -> 0 | NW56: =$E$56 -> 0 | NX56: =$E$56 -> 0 | NY56: =$E$56 -> 0 | NZ56: =$E$56 -> 0 | OA56: =$E$56 -> 0 | OB56: =$E$56 -> 0 | OC56: =$E$56 -> 0 | OD56: =$E$56 -> 0 | OE56: =$E$56 -> 0 | OF56: =$E$56 -> 0 | OG56: =$E$56 -> 0 | OH56: =$E$56 -> 0 | OI56: =$E$56 -> 0 | OJ56: =$E$56 -> 0 | OK56: =$E$56 -> 0 | OL56: =$E$56 -> 0 | OM56: =$E$56 -> 0 | ON56: =$E$56 -> 0 | OO56: =$E$56 -> 0 | OP56: =$E$56 -> 0 | OQ56: =$E$56 -> 0 | OR56: =$E$56 -> 0 | OS56: =$E$56 -> 0 | OT56: =$E$56 -> 0 | OU56: =$E$56 -> 0 | OV56: =$E$56 -> 0 | OW56: =$E$56 -> 0 | OX56: =$E$56 -> 0 | OY56: =$E$56 -> 0 | OZ56: =$E$56 -> 0 | PA56: =$E$56 -> 0 | PB56: =$E$56 -> 0 | PC56: =$E$56 -> 0 | PD56: =$E$56 -> 0 | PE56: =$E$56 -> 0 | PF56: =$E$56 -> 0 | PG56: =$E$56 -> 0 | PH56: =$E$56 -> 0 | PI56: =$E$56 -> 0 | PJ56: =$E$56 -> 0 | PK56: =$E$56 -> 0 | PL56: =$E$56 -> 0 | PM56: =$E$56 -> 0 | PN56: =$E$56 -> 0 | PO56: =$E$56 -> 0 | PP56: =$E$56 -> 0 | PQ56: =$E$56 -> 0 | PR56: =$E$56 -> 0 | PS56: =$E$56 -> 0 | PT56: =$E$56 -> 0 | PU56: =$E$56 -> 0 | PV56: =$E$56 -> 0 | PW56: =$E$56 -> 0 | PX56: =$E$56 -> 0 | PY56: =$E$56 -> 0 | PZ56: =$E$56 -> 0 | QA56: =$E$56 -> 0 | QB56: =$E$56 -> 0 | QC56: =$E$56 -> 0 | QD56: =$E$56 -> 0 | QE56: =$E$56 -> 0 | QF56: =$E$56 -> 0 | QG56: =$E$56 -> 0 | QH56: =$E$56 -> 0 | QI56: =$E$56 -> 0 | QJ56: =$E$56 -> 0 | QK56: =$E$56 -> 0 | QL56: =$E$56 -> 0 | QM56: =$E$56 -> 0 | QN56: =$E$56 -> 0 | QO56: =$E$56 -> 0 | QP56: =$E$56 -> 0 | QQ56: =$E$56 -> 0 | QR56: =$E$56 -> 0 | QS56: =$E$56 -> 0 | QT56: =$E$56 -> 0 | QU56: =$E$56 -> 0 | QV56: =$E$56 -> 0 | QW56: =$E$56 -> 0 | QX56: =$E$56 -> 0 | QY56: =$E$56 -> 0 | QZ56: =$E$56 -> 0 | RA56: =$E$56 -> 0 | RB56: =$E$56 -> 0 | RC56: =$E$56 -> 0 | RD56: =$E$56 -> 0 | RE56: =$E$56 -> 0 | RF56: =$E$56 -> 0 | RG56: =$E$56 -> 0 | RH56: =$E$56 -> 0 | RI56: =$E$56 -> 0 | RJ56: =$E$56 -> 0 | RK56: =$E$56 -> 0 | RL56: =$E$56 -> 0 | RM56: =$E$56 -> 0 | RN56: =$E$56 -> 0 | RO56: =$E$56 -> 0 | RP56: =$E$56 -> 0 | RQ56: =$E$56 -> 0 | RR56: =$E$56 -> 0 | RS56: =$E$56 -> 0 | RT56: =$E$56 -> 0 | RU56: =$E$56 -> 0 | RV56: =$E$56 -> 0 | RW56: =$E$56 -> 0 | RX56: =$E$56 -> 0 | RY56: =$E$56 -> 0 | RZ56: =$E$56 -> 0 | SA56: =$E$56 -> 0 | SB56: =$E$56 -> 0 | SC56: =$E$56 -> 0 | SD56: =$E$56 -> 0 | SE56: =$E$56 -> 0 | SF56: =$E$56 -> 0 | SG56: =$E$56 -> 0 | SH56: =$E$56 -> 0 | SI56: =$E$56 -> 0 | SJ56: =$E$56 -> 0 | SK56: =$E$56 -> 0 | SL56: =$E$56 -> 0 | SM56: =$E$56 -> 0 | SN56: =$E$56 -> 0 | SO56: =$E$56 -> 0 | SP56: =$E$56 -> 0 | SQ56: =$E$56 -> 0 | SR56: =$E$56 -> 0 | SS56: =$E$56 -> 0 | ST56: =$E$56 -> 0 | SU56: =$E$56 -> 0 | SV56: =$E$56 -> 0 | SW56: =$E$56 -> 0 | SX56: =$E$56 -> 0 | SY56: =$E$56 -> 0 | SZ56: =$E$56 -> 0 | TA56: =$E$56 -> 0 | TB56: =$E$56 -> 0 | TC56: =$E$56 -> 0
D57: Post Terminal Growth Index | J57: 1 | K57: =J57*(1+K7*K52) -> 1 | L57: =K57*(1+L7*L52) -> 1 | M57: =L57*(1+M7*M52) -> 1 | N57: =M57*(1+N7*N52) -> 1 | O57: =N57*(1+O7*O52) -> 1 | P57: =O57*(1+P7*P52) -> 1 | Q57: =P57*(1+Q7*Q52) -> 1 | R57: =Q57*(1+R7*R52) -> 1 | S57: =R57*(1+S7*S52) -> 1 | T57: =S57*(1+T7*T52) -> 1 | U57: =T57*(1+U7*U52) -> 1 | V57: =U57*(1+V7*V52) -> 1 | W57: =V57*(1+W7*W52) -> 1 | X57: =W57*(1+X7*X52) -> 1 | Y57: =X57*(1+Y7*Y52) -> 1 | Z57: =Y57*(1+Z7*Z52) -> 1 | AA57: =Z57*(1+AA7*AA52) -> 1 | AB57: =AA57*(1+AB7*AB52) -> 1 | AC57: =AB57*(1+AC7*AC52) -> 1 | AD57: =AC57*(1+AD7*AD52) -> 1 | AE57: =AD57*(1+AE7) -> 1 | AF57: =AE57*(1+AF7*AF52) -> 1 | AG57: =AF57*(1+AG7*AG52) -> 1 | AH57: =AG57*(1+AH7*AH52) -> 1 | AI57: =AH57*(1+AI7*AI52) -> 1 | AJ57: =AI57*(1+AJ7*AJ52) -> 1 | AK57: =AJ57*(1+AK7*AK52) -> 1 | AL57: =AK57*(1+AL7*AL52) -> 1 | AM57: =AL57*(1+AM7*AM52) -> 1 | AN57: =AM57*(1+AN7*AN52) -> 1 | AO57: =AN57*(1+AO7*AO52) -> 1 | AP57: =AO57*(1+AP7*AP52) -> 1 | AQ57: =AP57*(1+AQ7*AQ52) -> 1 | AR57: =AQ57*(1+AR7*AR52) -> 1 | AS57: =AR57*(1+AS7*AS52) -> 1 | AT57: =AS57*(1+AT7*AT52) -> 1 | AU57: =AT57*(1+AU7*AU52) -> 1 | AV57: =AU57*(1+AV7*AV52) -> 1 | AW57: =AV57*(1+AW7*AW52) -> 1 | AX57: =AW57*(1+AX7*AX52) -> 1 | AY57: =AX57*(1+AY7*AY52) -> 1 | AZ57: =AY57*(1+AZ7*AZ52) -> 1 | BA57: =AZ57*(1+BA7*BA52) -> 1 | BB57: =BA57*(1+BB7*BB52) -> 1 | BC57: =BB57*(1+BC7*BC52) -> 1 | BD57: =BC57*(1+BD7*BD52) -> 1 | BE57: =BD57*(1+BE7*BE52) -> 1 | BF57: =BE57*(1+BF7*BF52) -> 1 | BG57: =BF57*(1+BG7*BG52) -> 1 | BH57: =BG57*(1+BH7*BH52) -> 1 | BI57: =BH57*(1+BI7*BI52) -> 1 | BJ57: =BI57*(1+BJ7*BJ52) -> 1 | BK57: =BJ57*(1+BK7*BK52) -> 1 | BL57: =BK57*(1+BL7*BL52) -> 1 | BM57: =BL57*(1+BM7*BM52) -> 1 | BN57: =BM57*(1+BN7*BN52) -> 1 | BO57: =BN57*(1+BO7*BO52) -> 1 | BP57: =BO57*(1+BP7*BP52) -> 1 | BQ57: =BP57*(1+BQ7*BQ52) -> 1 | BR57: =BQ57*(1+BR7*BR52) -> 1 | BS57: =BR57*(1+BS7*BS52) -> 1 | BT57: =BS57*(1+BT7*BT52) -> 1 | BU57: =BT57*(1+BU7*BU52) -> 1 | BV57: =BU57*(1+BV7*BV52) -> 1 | BW57: =BV57*(1+BW7*BW52) -> 1 | BX57: =BW57*(1+BX7*BX52) -> 1 | BY57: =BX57*(1+BY7*BY52) -> 1 | BZ57: =BY57*(1+BZ7*BZ52) -> 1 | CA57: =BZ57*(1+CA7*CA52) -> 1 | CB57: =CA57*(1+CB7*CB52) -> 1 | CC57: =CB57*(1+CC7*CC52) -> 1 | CD57: =CC57*(1+CD7*CD52) -> 1 | CE57: =CD57*(1+CE7*CE52) -> 1 | CF57: =CE57*(1+CF7*CF52) -> 1 | CG57: =CF57*(1+CG7*CG52) -> 1 | CH57: =CG57*(1+CH7*CH52) -> 1 | CI57: =CH57*(1+CI7*CI52) -> 1 | CJ57: =CI57*(1+CJ7*CJ52) -> 1 | CK57: =CJ57*(1+CK7*CK52) -> 1 | CL57: =CK57*(1+CL7*CL52) -> 1 | CM57: =CL57*(1+CM7*CM52) -> 1 | CN57: =CM57*(1+CN7*CN52) -> 1 | CO57: =CN57*(1+CO7*CO52) -> 1 | CP57: =CO57*(1+CP7*CP52) -> 1 | CQ57: =CP57*(1+CQ7*CQ52) -> 1 | CR57: =CQ57*(1+CR7*CR52) -> 1 | CS57: =CR57*(1+CS7*CS52) -> 1 | CT57: =CS57*(1+CT7*CT52) -> 1 | CU57: =CT57*(1+CU7*CU52) -> 1 | CV57: =CU57*(1+CV7*CV52) -> 1 | CW57: =CV57*(1+CW7*CW52) -> 1 | CX57: =CW57*(1+CX7*CX52) -> 1 | CY57: =CX57*(1+CY7*CY52) -> 1 | CZ57: =CY57*(1+CZ7*CZ52) -> 1 | DA57: =CZ57*(1+DA7*DA52) -> 1 | DB57: =DA57*(1+DB7*DB52) -> 1 | DC57: =DB57*(1+DC7*DC52) -> 1 | DD57: =DC57*(1+DD7*DD52) -> 1 | DE57: =DD57*(1+DE7*DE52) -> 1 | DF57: =DE57*(1+DF7*DF52) -> 1 | DG57: =DF57*(1+DG7*DG52) -> 1 | DH57: =DG57*(1+DH7*DH52) -> 1 | DI57: =DH57*(1+DI7*DI52) -> 1 | DJ57: =DI57*(1+DJ7*DJ52) -> 1 | DK57: =DJ57*(1+DK7*DK52) -> 1 | DL57: =DK57*(1+DL7*DL52) -> 1 | DM57: =DL57*(1+DM7*DM52) -> 1 | DN57: =DM57*(1+DN7*DN52) -> 1 | DO57: =DN57*(1+DO7*DO52) -> 1 | DP57: =DO57*(1+DP7*DP52) -> 1 | DQ57: =DP57*(1+DQ7*DQ52) -> 1 | DR57: =DQ57*(1+DR7*DR52) -> 1 | DS57: =DR57*(1+DS7*DS52) -> 1 | DT57: =DS57*(1+DT7*DT52) -> 1 | DU57: =DT57*(1+DU7*DU52) -> 1 | DV57: =DU57*(1+DV7*DV52) -> 1 | DW57: =DV57*(1+DW7*DW52) -> 1 | DX57: =DW57*(1+DX7*DX52) -> 1 | DY57: =DX57*(1+DY7*DY52) -> 1 | DZ57: =DY57*(1+DZ7*DZ52) -> 1 | EA57: =DZ57*(1+EA7*EA52) -> 1 | EB57: =EA57*(1+EB7*EB52) -> 1 | EC57: =EB57*(1+EC7*EC52) -> 1 | ED57: =EC57*(1+ED7*ED52) -> 1 | EE57: =ED57*(1+EE7*EE52) -> 1 | EF57: =EE57*(1+EF7*EF52) -> 1 | EG57: =EF57*(1+EG7*EG52) -> 1 | EH57: =EG57*(1+EH7*EH52) -> 1 | EI57: =EH57*(1+EI7*EI52) -> 1 | EJ57: =EI57*(1+EJ7*EJ52) -> 1 | EK57: =EJ57*(1+EK7*EK52) -> 1 | EL57: =EK57*(1+EL7*EL52) -> 1 | EM57: =EL57*(1+EM7*EM52) -> 1 | EN57: =EM57*(1+EN7*EN52) -> 1 | EO57: =EN57*(1+EO7*EO52) -> 1 | EP57: =EO57*(1+EP7*EP52) -> 1 | EQ57: =EP57*(1+EQ7*EQ52) -> 1 | ER57: =EQ57*(1+ER7*ER52) -> 1 | ES57: =ER57*(1+ES7*ES52) -> 1 | ET57: =ES57*(1+ET7*ET52) -> 1 | EU57: =ET57*(1+EU7*EU52) -> 1 | EV57: =EU57*(1+EV7*EV52) -> 1 | EW57: =EV57*(1+EW7*EW52) -> 1 | EX57: =EW57*(1+EX7*EX52) -> 1 | EY57: =EX57*(1+EY7*EY52) -> 1 | EZ57: =EY57*(1+EZ7*EZ52) -> 1 | FA57: =EZ57*(1+FA7*FA52) -> 1 | FB57: =FA57*(1+FB7*FB52) -> 1 | FC57: =FB57*(1+FC7*FC52) -> 1 | FD57: =FC57*(1+FD7*FD52) -> 1 | FE57: =FD57*(1+FE7*FE52) -> 1 | FF57: =FE57*(1+FF7*FF52) -> 1 | FG57: =FF57*(1+FG7*FG52) -> 1 | FH57: =FG57*(1+FH7*FH52) -> 1 | FI57: =FH57*(1+FI7*FI52) -> 1 | FJ57: =FI57*(1+FJ7*FJ52) -> 1 | FK57: =FJ57*(1+FK7*FK52) -> 1 | FL57: =FK57*(1+FL7*FL52) -> 1 | FM57: =FL57*(1+FM7*FM52) -> 1 | FN57: =FM57*(1+FN7*FN52) -> 1 | FO57: =FN57*(1+FO7*FO52) -> 1 | FP57: =FO57*(1+FP7*FP52) -> 1 | FQ57: =FP57*(1+FQ7*FQ52) -> 1 | FR57: =FQ57*(1+FR7*FR52) -> 1 | FS57: =FR57*(1+FS7*FS52) -> 1 | FT57: =FS57*(1+FT7*FT52) -> 1 | FU57: =FT57*(1+FU7*FU52) -> 1 | FV57: =FU57*(1+FV7*FV52) -> 1 | FW57: =FV57*(1+FW7*FW52) -> 1 | FX57: =FW57*(1+FX7*FX52) -> 1 | FY57: =FX57*(1+FY7*FY52) -> 1 | FZ57: =FY57*(1+FZ7*FZ52) -> 1 | GA57: =FZ57*(1+GA7*GA52) -> 1 | GB57: =GA57*(1+GB7*GB52) -> 1 | GC57: =GB57*(1+GC7*GC52) -> 1 | GD57: =GC57*(1+GD7*GD52) -> 1 | GE57: =GD57*(1+GE7*GE52) -> 1 | GF57: =GE57*(1+GF7*GF52) -> 1 | GG57: =GF57*(1+GG7*GG52) -> 1 | GH57: =GG57*(1+GH7*GH52) -> 1 | GI57: =GH57*(1+GI7*GI52) -> 1 | GJ57: =GI57*(1+GJ7*GJ52) -> 1 | GK57: =GJ57*(1+GK7*GK52) -> 1 | GL57: =GK57*(1+GL7*GL52) -> 1 | GM57: =GL57*(1+GM7*GM52) -> 1 | GN57: =GM57*(1+GN7*GN52) -> 1 | GO57: =GN57*(1+GO7*GO52) -> 1 | GP57: =GO57*(1+GP7*GP52) -> 1 | GQ57: =GP57*(1+GQ7*GQ52) -> 1 | GR57: =GQ57*(1+GR7*GR52) -> 1 | GS57: =GR57*(1+GS7*GS52) -> 1 | GT57: =GS57*(1+GT7*GT52) -> 1 | GU57: =GT57*(1+GU7*GU52) -> 1 | GV57: =GU57*(1+GV7*GV52) -> 1 | GW57: =GV57*(1+GW7*GW52) -> 1 | GX57: =GW57*(1+GX7*GX52) -> 1 | GY57: =GX57*(1+GY7*GY52) -> 1 | GZ57: =GY57*(1+GZ7*GZ52) -> 1 | HA57: =GZ57*(1+HA7*HA52) -> 1 | HB57: =HA57*(1+HB7*HB52) -> 1 | HC57: =HB57*(1+HC7*HC52) -> 1 | HD57: =HC57*(1+HD7*HD52) -> 1 | HE57: =HD57*(1+HE7*HE52) -> 1 | HF57: =HE57*(1+HF7*HF52) -> 1 | HG57: =HF57*(1+HG7*HG52) -> 1 | HH57: =HG57*(1+HH7*HH52) -> 1 | HI57: =HH57*(1+HI7*HI52) -> 1 | HJ57: =HI57*(1+HJ7*HJ52) -> 1 | HK57: =HJ57*(1+HK7*HK52) -> 1 | HL57: =HK57*(1+HL7*HL52) -> 1 | HM57: =HL57*(1+HM7*HM52) -> 1 | HN57: =HM57*(1+HN7*HN52) -> 1 | HO57: =HN57*(1+HO7*HO52) -> 1 | HP57: =HO57*(1+HP7*HP52) -> 1 | HQ57: =HP57*(1+HQ7*HQ52) -> 1 | HR57: =HQ57*(1+HR7*HR52) -> 1 | HS57: =HR57*(1+HS7*HS52) -> 1 | HT57: =HS57*(1+HT7*HT52) -> 1 | HU57: =HT57*(1+HU7*HU52) -> 1 | HV57: =HU57*(1+HV7*HV52) -> 1 | HW57: =HV57*(1+HW7*HW52) -> 1 | HX57: =HW57*(1+HX7*HX52) -> 1 | HY57: =HX57*(1+HY7*HY52) -> 1 | HZ57: =HY57*(1+HZ7*HZ52) -> 1 | IA57: =HZ57*(1+IA7*IA52) -> 1 | IB57: =IA57*(1+IB7*IB52) -> 1 | IC57: =IB57*(1+IC7*IC52) -> 1 | ID57: =IC57*(1+ID7*ID52) -> 1 | IE57: =ID57*(1+IE7*IE52) -> 1 | IF57: =IE57*(1+IF7*IF52) -> 1 | IG57: =IF57*(1+IG7*IG52) -> 1 | IH57: =IG57*(1+IH7*IH52) -> 1 | II57: =IH57*(1+II7*II52) -> 1 | IJ57: =II57*(1+IJ7*IJ52) -> 1 | IK57: =IJ57*(1+IK7*IK52) -> 1 | IL57: =IK57*(1+IL7*IL52) -> 1 | IM57: =IL57*(1+IM7*IM52) -> 1 | IN57: =IM57*(1+IN7*IN52) -> 1 | IO57: =IN57*(1+IO7*IO52) -> 1 | IP57: =IO57*(1+IP7*IP52) -> 1 | IQ57: =IP57*(1+IQ7*IQ52) -> 1 | IR57: =IQ57*(1+IR7*IR52) -> 1 | IS57: =IR57*(1+IS7*IS52) -> 1 | IT57: =IS57*(1+IT7*IT52) -> 1 | IU57: =IT57*(1+IU7*IU52) -> 1 | IV57: =IU57*(1+IV7*IV52) -> 1 | IW57: =IV57*(1+IW7*IW52) -> 1 | IX57: =IW57*(1+IX7*IX52) -> 1 | IY57: =IX57*(1+IY7*IY52) -> 1 | IZ57: =IY57*(1+IZ7*IZ52) -> 1 | JA57: =IZ57*(1+JA7*JA52) -> 1 | JB57: =JA57*(1+JB7*JB52) -> 1 | JC57: =JB57*(1+JC7*JC52) -> 1 | JD57: =JC57*(1+JD7*JD52) -> 1 | JE57: =JD57*(1+JE7*JE52) -> 1 | JF57: =JE57*(1+JF7*JF52) -> 1 | JG57: =JF57*(1+JG7*JG52) -> 1 | JH57: =JG57*(1+JH7*JH52) -> 1 | JI57: =JH57*(1+JI7*JI52) -> 1 | JJ57: =JI57*(1+JJ7*JJ52) -> 1 | JK57: =JJ57*(1+JK7*JK52) -> 1 | JL57: =JK57*(1+JL7*JL52) -> 1 | JM57: =JL57*(1+JM7*JM52) -> 1 | JN57: =JM57*(1+JN7*JN52) -> 1 | JO57: =JN57*(1+JO7*JO52) -> 1 | JP57: =JO57*(1+JP7*JP52) -> 1 | JQ57: =JP57*(1+JQ7*JQ52) -> 1 | JR57: =JQ57*(1+JR7*JR52) -> 1 | JS57: =JR57*(1+JS7*JS52) -> 1 | JT57: =JS57*(1+JT7*JT52) -> 1 | JU57: =JT57*(1+JU7*JU52) -> 1 | JV57: =JU57*(1+JV7*JV52) -> 1 | JW57: =JV57*(1+JW7*JW52) -> 1 | JX57: =JW57*(1+JX7*JX52) -> 1 | JY57: =JX57*(1+JY7*JY52) -> 1 | JZ57: =JY57*(1+JZ7*JZ52) -> 1 | KA57: =JZ57*(1+KA7*KA52) -> 1 | KB57: =KA57*(1+KB7*KB52) -> 1 | KC57: =KB57*(1+KC7*KC52) -> 1 | KD57: =KC57*(1+KD7*KD52) -> 1 | KE57: =KD57*(1+KE7*KE52) -> 1 | KF57: =KE57*(1+KF7*KF52) -> 1 | KG57: =KF57*(1+KG7*KG52) -> 1 | KH57: =KG57*(1+KH7*KH52) -> 1 | KI57: =KH57*(1+KI7*KI52) -> 1 | KJ57: =KI57*(1+KJ7*KJ52) -> 1 | KK57: =KJ57*(1+KK7*KK52) -> 1 | KL57: =KK57*(1+KL7*KL52) -> 1 | KM57: =KL57*(1+KM7*KM52) -> 1 | KN57: =KM57*(1+KN7*KN52) -> 1 | KO57: =KN57*(1+KO7*KO52) -> 1 | KP57: =KO57*(1+KP7*KP52) -> 1 | KQ57: =KP57*(1+KQ7*KQ52) -> 1 | KR57: =KQ57*(1+KR7*KR52) -> 1 | KS57: =KR57*(1+KS7*KS52) -> 1 | KT57: =KS57*(1+KT7*KT52) -> 1 | KU57: =KT57*(1+KU7*KU52) -> 1 | KV57: =KU57*(1+KV7*KV52) -> 1 | KW57: =KV57*(1+KW7*KW52) -> 1 | KX57: =KW57*(1+KX7*KX52) -> 1 | KY57: =KX57*(1+KY7*KY52) -> 1 | KZ57: =KY57*(1+KZ7*KZ52) -> 1 | LA57: =KZ57*(1+LA7*LA52) -> 1 | LB57: =LA57*(1+LB7*LB52) -> 1 | LC57: =LB57*(1+LC7*LC52) -> 1 | LD57: =LC57*(1+LD7*LD52) -> 1 | LE57: =LD57*(1+LE7*LE52) -> 1 | LF57: =LE57*(1+LF7*LF52) -> 1 | LG57: =LF57*(1+LG7*LG52) -> 1 | LH57: =LG57*(1+LH7*LH52) -> 1 | LI57: =LH57*(1+LI7*LI52) -> 1 | LJ57: =LI57*(1+LJ7*LJ52) -> 1 | LK57: =LJ57*(1+LK7*LK52) -> 1 | LL57: =LK57*(1+LL7*LL52) -> 1 | LM57: =LL57*(1+LM7*LM52) -> 1 | LN57: =LM57*(1+LN7*LN52) -> 1 | LO57: =LN57*(1+LO7*LO52) -> 1 | LP57: =LO57*(1+LP7*LP52) -> 1 | LQ57: =LP57*(1+LQ7*LQ52) -> 1 | LR57: =LQ57*(1+LR7*LR52) -> 1 | LS57: =LR57*(1+LS7*LS52) -> 1 | LT57: =LS57*(1+LT7*LT52) -> 1 | LU57: =LT57*(1+LU7*LU52) -> 1 | LV57: =LU57*(1+LV7*LV52) -> 1 | LW57: =LV57*(1+LW7*LW52) -> 1 | LX57: =LW57*(1+LX7*LX52) -> 1 | LY57: =LX57*(1+LY7*LY52) -> 1 | LZ57: =LY57*(1+LZ7*LZ52) -> 1 | MA57: =LZ57*(1+MA7*MA52) -> 1 | MB57: =MA57*(1+MB7*MB52) -> 1 | MC57: =MB57*(1+MC7*MC52) -> 1 | MD57: =MC57*(1+MD7*MD52) -> 1 | ME57: =MD57*(1+ME7*ME52) -> 1 | MF57: =ME57*(1+MF7*MF52) -> 1 | MG57: =MF57*(1+MG7*MG52) -> 1 | MH57: =MG57*(1+MH7*MH52) -> 1 | MI57: =MH57*(1+MI7*MI52) -> 1 | MJ57: =MI57*(1+MJ7*MJ52) -> 1 | MK57: =MJ57*(1+MK7*MK52) -> 1 | ML57: =MK57*(1+ML7*ML52) -> 1 | MM57: =ML57*(1+MM7*MM52) -> 1 | MN57: =MM57*(1+MN7*MN52) -> 1 | MO57: =MN57*(1+MO7*MO52) -> 1 | MP57: =MO57*(1+MP7*MP52) -> 1 | MQ57: =MP57*(1+MQ7*MQ52) -> 1 | MR57: =MQ57*(1+MR7*MR52) -> 1 | MS57: =MR57*(1+MS7*MS52) -> 1 | MT57: =MS57*(1+MT7*MT52) -> 1 | MU57: =MT57*(1+MU7*MU52) -> 1 | MV57: =MU57*(1+MV7*MV52) -> 1 | MW57: =MV57*(1+MW7*MW52) -> 1 | MX57: =MW57*(1+MX7*MX52) -> 1 | MY57: =MX57*(1+MY7*MY52) -> 1 | MZ57: =MY57*(1+MZ7*MZ52) -> 1 | NA57: =MZ57*(1+NA7*NA52) -> 1 | NB57: =NA57*(1+NB7*NB52) -> 1 | NC57: =NB57*(1+NC7*NC52) -> 1 | ND57: =NC57*(1+ND7*ND52) -> 1 | NE57: =ND57*(1+NE7*NE52) -> 1 | NF57: =NE57*(1+NF7*NF52) -> 1 | NG57: =NF57*(1+NG7*NG52) -> 1 | NH57: =NG57*(1+NH7*NH52) -> 1 | NI57: =NH57*(1+NI7*NI52) -> 1 | NJ57: =NI57*(1+NJ7*NJ52) -> 1 | NK57: =NJ57*(1+NK7*NK52) -> 1 | NL57: =NK57*(1+NL7*NL52) -> 1 | NM57: =NL57*(1+NM7*NM52) -> 1 | NN57: =NM57*(1+NN7*NN52) -> 1 | NO57: =NN57*(1+NO7*NO52) -> 1 | NP57: =NO57*(1+NP7*NP52) -> 1 | NQ57: =NP57*(1+NQ7*NQ52) -> 1 | NR57: =NQ57*(1+NR7*NR52) -> 1 | NS57: =NR57*(1+NS7*NS52) -> 1 | NT57: =NS57*(1+NT7*NT52) -> 1 | NU57: =NT57*(1+NU7*NU52) -> 1 | NV57: =NU57*(1+NV7*NV52) -> 1 | NW57: =NV57*(1+NW7*NW52) -> 1 | NX57: =NW57*(1+NX7*NX52) -> 1 | NY57: =NX57*(1+NY7*NY52) -> 1 | NZ57: =NY57*(1+NZ7*NZ52) -> 1 | OA57: =NZ57*(1+OA7*OA52) -> 1 | OB57: =OA57*(1+OB7*OB52) -> 1 | OC57: =OB57*(1+OC7*OC52) -> 1 | OD57: =OC57*(1+OD7*OD52) -> 1 | OE57: =OD57*(1+OE7*OE52) -> 1 | OF57: =OE57*(1+OF7*OF52) -> 1 | OG57: =OF57*(1+OG7*OG52) -> 1 | OH57: =OG57*(1+OH7*OH52) -> 1 | OI57: =OH57*(1+OI7*OI52) -> 1 | OJ57: =OI57*(1+OJ7*OJ52) -> 1 | OK57: =OJ57*(1+OK7*OK52) -> 1 | OL57: =OK57*(1+OL7*OL52) -> 1 | OM57: =OL57*(1+OM7*OM52) -> 1 | ON57: =OM57*(1+ON7*ON52) -> 1 | OO57: =ON57*(1+OO7*OO52) -> 1 | OP57: =OO57*(1+OP7*OP52) -> 1 | OQ57: =OP57*(1+OQ7*OQ52) -> 1 | OR57: =OQ57*(1+OR7*OR52) -> 1 | OS57: =OR57*(1+OS7*OS52) -> 1 | OT57: =OS57*(1+OT7*OT52) -> 1 | OU57: =OT57*(1+OU7*OU52) -> 1 | OV57: =OU57*(1+OV7*OV52) -> 1 | OW57: =OV57*(1+OW7*OW52) -> 1 | OX57: =OW57*(1+OX7*OX52) -> 1 | OY57: =OX57*(1+OY7*OY52) -> 1 | OZ57: =OY57*(1+OZ7*OZ52) -> 1 | PA57: =OZ57*(1+PA7*PA52) -> 1 | PB57: =PA57*(1+PB7*PB52) -> 1 | PC57: =PB57*(1+PC7*PC52) -> 1 | PD57: =PC57*(1+PD7*PD52) -> 1 | PE57: =PD57*(1+PE7*PE52) -> 1 | PF57: =PE57*(1+PF7*PF52) -> 1 | PG57: =PF57*(1+PG7*PG52) -> 1 | PH57: =PG57*(1+PH7*PH52) -> 1 | PI57: =PH57*(1+PI7*PI52) -> 1 | PJ57: =PI57*(1+PJ7*PJ52) -> 1 | PK57: =PJ57*(1+PK7*PK52) -> 1 | PL57: =PK57*(1+PL7*PL52) -> 1 | PM57: =PL57*(1+PM7*PM52) -> 1 | PN57: =PM57*(1+PN7*PN52) -> 1 | PO57: =PN57*(1+PO7*PO52) -> 1 | PP57: =PO57*(1+PP7*PP52) -> 1 | PQ57: =PP57*(1+PQ7*PQ52) -> 1 | PR57: =PQ57*(1+PR7*PR52) -> 1 | PS57: =PR57*(1+PS7*PS52) -> 1 | PT57: =PS57*(1+PT7*PT52) -> 1 | PU57: =PT57*(1+PU7*PU52) -> 1 | PV57: =PU57*(1+PV7*PV52) -> 1 | PW57: =PV57*(1+PW7*PW52) -> 1 | PX57: =PW57*(1+PX7*PX52) -> 1 | PY57: =PX57*(1+PY7*PY52) -> 1 | PZ57: =PY57*(1+PZ7*PZ52) -> 1 | QA57: =PZ57*(1+QA7*QA52) -> 1 | QB57: =QA57*(1+QB7*QB52) -> 1 | QC57: =QB57*(1+QC7*QC52) -> 1 | QD57: =QC57*(1+QD7*QD52) -> 1 | QE57: =QD57*(1+QE7*QE52) -> 1 | QF57: =QE57*(1+QF7*QF52) -> 1 | QG57: =QF57*(1+QG7*QG52) -> 1 | QH57: =QG57*(1+QH7*QH52) -> 1 | QI57: =QH57*(1+QI7*QI52) -> 1 | QJ57: =QI57*(1+QJ7*QJ52) -> 1 | QK57: =QJ57*(1+QK7*QK52) -> 1 | QL57: =QK57*(1+QL7*QL52) -> 1 | QM57: =QL57*(1+QM7*QM52) -> 1 | QN57: =QM57*(1+QN7*QN52) -> 1 | QO57: =QN57*(1+QO7*QO52) -> 1 | QP57: =QO57*(1+QP7*QP52) -> 1 | QQ57: =QP57*(1+QQ7*QQ52) -> 1 | QR57: =QQ57*(1+QR7*QR52) -> 1 | QS57: =QR57*(1+QS7*QS52) -> 1 | QT57: =QS57*(1+QT7*QT52) -> 1 | QU57: =QT57*(1+QU7*QU52) -> 1 | QV57: =QU57*(1+QV7*QV52) -> 1 | QW57: =QV57*(1+QW7*QW52) -> 1 | QX57: =QW57*(1+QX7*QX52) -> 1 | QY57: =QX57*(1+QY7*QY52) -> 1 | QZ57: =QY57*(1+QZ7*QZ52) -> 1 | RA57: =QZ57*(1+RA7*RA52) -> 1 | RB57: =RA57*(1+RB7*RB52) -> 1 | RC57: =RB57*(1+RC7*RC52) -> 1 | RD57: =RC57*(1+RD7*RD52) -> 1 | RE57: =RD57*(1+RE7*RE52) -> 1 | RF57: =RE57*(1+RF7*RF52) -> 1 | RG57: =RF57*(1+RG7*RG52) -> 1 | RH57: =RG57*(1+RH7*RH52) -> 1 | RI57: =RH57*(1+RI7*RI52) -> 1 | RJ57: =RI57*(1+RJ7*RJ52) -> 1 | RK57: =RJ57*(1+RK7*RK52) -> 1 | RL57: =RK57*(1+RL7*RL52) -> 1 | RM57: =RL57*(1+RM7*RM52) -> 1 | RN57: =RM57*(1+RN7*RN52) -> 1 | RO57: =RN57*(1+RO7*RO52) -> 1 | RP57: =RO57*(1+RP7*RP52) -> 1 | RQ57: =RP57*(1+RQ7*RQ52) -> 1 | RR57: =RQ57*(1+RR7*RR52) -> 1 | RS57: =RR57*(1+RS7*RS52) -> 1 | RT57: =RS57*(1+RT7*RT52) -> 1 | RU57: =RT57*(1+RU7*RU52) -> 1 | RV57: =RU57*(1+RV7*RV52) -> 1 | RW57: =RV57*(1+RW7*RW52) -> 1 | RX57: =RW57*(1+RX7*RX52) -> 1 | RY57: =RX57*(1+RY7*RY52) -> 1 | RZ57: =RY57*(1+RZ7*RZ52) -> 1 | SA57: =RZ57*(1+SA7*SA52) -> 1 | SB57: =SA57*(1+SB7*SB52) -> 1 | SC57: =SB57*(1+SC7*SC52) -> 1 | SD57: =SC57*(1+SD7*SD52) -> 1 | SE57: =SD57*(1+SE7*SE52) -> 1 | SF57: =SE57*(1+SF7*SF52) -> 1 | SG57: =SF57*(1+SG7*SG52) -> 1 | SH57: =SG57*(1+SH7*SH52) -> 1 | SI57: =SH57*(1+SI7*SI52) -> 1 | SJ57: =SI57*(1+SJ7*SJ52) -> 1 | SK57: =SJ57*(1+SK7*SK52) -> 1 | SL57: =SK57*(1+SL7*SL52) -> 1 | SM57: =SL57*(1+SM7*SM52) -> 1 | SN57: =SM57*(1+SN7*SN52) -> 1 | SO57: =SN57*(1+SO7*SO52) -> 1 | SP57: =SO57*(1+SP7*SP52) -> 1 | SQ57: =SP57*(1+SQ7*SQ52) -> 1 | SR57: =SQ57*(1+SR7*SR52) -> 1 | SS57: =SR57*(1+SS7*SS52) -> 1 | ST57: =SS57*(1+ST7*ST52) -> 1 | SU57: =ST57*(1+SU7*SU52) -> 1 | SV57: =SU57*(1+SV7*SV52) -> 1 | SW57: =SV57*(1+SW7*SW52) -> 1 | SX57: =SW57*(1+SX7*SX52) -> 1 | SY57: =SX57*(1+SY7*SY52) -> 1 | SZ57: =SY57*(1+SZ7*SZ52) -> 1 | TA57: =SZ57*(1+TA7*TA52) -> 1 | TB57: =TA57*(1+TB7*TB52) -> 1 | TC57: =TB57*(1+TC7*TC52) -> 1
D58: Invested Capital at Beginning of Period | K58: =K56*K57 -> 0 | L58: =L56*L57 -> 0 | M58: =M56*M57 -> 0 | N58: =N56*N57 -> 0 | O58: =O56*O57 -> 0 | P58: =P56*P57 -> 0 | Q58: =Q56*Q57 -> 0 | R58: =R56*R57 -> 0 | S58: =S56*S57 -> 0 | T58: =T56*T57 -> 0 | U58: =U56*U57 -> 0 | V58: =V56*V57 -> 0 | W58: =W56*W57 -> 0 | X58: =X56*X57 -> 0 | Y58: =Y56*Y57 -> 0 | Z58: =Z56*Z57 -> 0 | AA58: =AA56*AA57 -> 0 | AB58: =AB56*AB57 -> 0 | AC58: =AC56*AC57 -> 0 | AD58: =AD56*AD57 -> 0 | AE58: =AE56*AE57 -> 0 | AF58: =AF56*AF57 -> 0 | AG58: =AG56*AG57 -> 0 | AH58: =AH56*AH57 -> 0 | AI58: =AI56*AI57 -> 0 | AJ58: =AJ56*AJ57 -> 0 | AK58: =AK56*AK57 -> 0 | AL58: =AL56*AL57 -> 0 | AM58: =AM56*AM57 -> 0 | AN58: =AN56*AN57 -> 0 | AO58: =AO56*AO57 -> 0 | AP58: =AP56*AP57 -> 0 | AQ58: =AQ56*AQ57 -> 0 | AR58: =AR56*AR57 -> 0 | AS58: =AS56*AS57 -> 0 | AT58: =AT56*AT57 -> 0 | AU58: =AU56*AU57 -> 0 | AV58: =AV56*AV57 -> 0 | AW58: =AW56*AW57 -> 0 | AX58: =AX56*AX57 -> 0 | AY58: =AY56*AY57 -> 0 | AZ58: =AZ56*AZ57 -> 0 | BA58: =BA56*BA57 -> 0 | BB58: =BB56*BB57 -> 0 | BC58: =BC56*BC57 -> 0 | BD58: =BD56*BD57 -> 0 | BE58: =BE56*BE57 -> 0 | BF58: =BF56*BF57 -> 0 | BG58: =BG56*BG57 -> 0 | BH58: =BH56*BH57 -> 0 | BI58: =BI56*BI57 -> 0 | BJ58: =BJ56*BJ57 -> 0 | BK58: =BK56*BK57 -> 0 | BL58: =BL56*BL57 -> 0 | BM58: =BM56*BM57 -> 0 | BN58: =BN56*BN57 -> 0 | BO58: =BO56*BO57 -> 0 | BP58: =BP56*BP57 -> 0 | BQ58: =BQ56*BQ57 -> 0 | BR58: =BR56*BR57 -> 0 | BS58: =BS56*BS57 -> 0 | BT58: =BT56*BT57 -> 0 | BU58: =BU56*BU57 -> 0 | BV58: =BV56*BV57 -> 0 | BW58: =BW56*BW57 -> 0 | BX58: =BX56*BX57 -> 0 | BY58: =BY56*BY57 -> 0 | BZ58: =BZ56*BZ57 -> 0 | CA58: =CA56*CA57 -> 0 | CB58: =CB56*CB57 -> 0 | CC58: =CC56*CC57 -> 0 | CD58: =CD56*CD57 -> 0 | CE58: =CE56*CE57 -> 0 | CF58: =CF56*CF57 -> 0 | CG58: =CG56*CG57 -> 0 | CH58: =CH56*CH57 -> 0 | CI58: =CI56*CI57 -> 0 | CJ58: =CJ56*CJ57 -> 0 | CK58: =CK56*CK57 -> 0 | CL58: =CL56*CL57 -> 0 | CM58: =CM56*CM57 -> 0 | CN58: =CN56*CN57 -> 0 | CO58: =CO56*CO57 -> 0 | CP58: =CP56*CP57 -> 0 | CQ58: =CQ56*CQ57 -> 0 | CR58: =CR56*CR57 -> 0 | CS58: =CS56*CS57 -> 0 | CT58: =CT56*CT57 -> 0 | CU58: =CU56*CU57 -> 0 | CV58: =CV56*CV57 -> 0 | CW58: =CW56*CW57 -> 0 | CX58: =CX56*CX57 -> 0 | CY58: =CY56*CY57 -> 0 | CZ58: =CZ56*CZ57 -> 0 | DA58: =DA56*DA57 -> 0 | DB58: =DB56*DB57 -> 0 | DC58: =DC56*DC57 -> 0 | DD58: =DD56*DD57 -> 0 | DE58: =DE56*DE57 -> 0 | DF58: =DF56*DF57 -> 0 | DG58: =DG56*DG57 -> 0 | DH58: =DH56*DH57 -> 0 | DI58: =DI56*DI57 -> 0 | DJ58: =DJ56*DJ57 -> 0 | DK58: =DK56*DK57 -> 0 | DL58: =DL56*DL57 -> 0 | DM58: =DM56*DM57 -> 0 | DN58: =DN56*DN57 -> 0 | DO58: =DO56*DO57 -> 0 | DP58: =DP56*DP57 -> 0 | DQ58: =DQ56*DQ57 -> 0 | DR58: =DR56*DR57 -> 0 | DS58: =DS56*DS57 -> 0 | DT58: =DT56*DT57 -> 0 | DU58: =DU56*DU57 -> 0 | DV58: =DV56*DV57 -> 0 | DW58: =DW56*DW57 -> 0 | DX58: =DX56*DX57 -> 0 | DY58: =DY56*DY57 -> 0 | DZ58: =DZ56*DZ57 -> 0 | EA58: =EA56*EA57 -> 0 | EB58: =EB56*EB57 -> 0 | EC58: =EC56*EC57 -> 0 | ED58: =ED56*ED57 -> 0 | EE58: =EE56*EE57 -> 0 | EF58: =EF56*EF57 -> 0 | EG58: =EG56*EG57 -> 0 | EH58: =EH56*EH57 -> 0 | EI58: =EI56*EI57 -> 0 | EJ58: =EJ56*EJ57 -> 0 | EK58: =EK56*EK57 -> 0 | EL58: =EL56*EL57 -> 0 | EM58: =EM56*EM57 -> 0 | EN58: =EN56*EN57 -> 0 | EO58: =EO56*EO57 -> 0 | EP58: =EP56*EP57 -> 0 | EQ58: =EQ56*EQ57 -> 0 | ER58: =ER56*ER57 -> 0 | ES58: =ES56*ES57 -> 0 | ET58: =ET56*ET57 -> 0 | EU58: =EU56*EU57 -> 0 | EV58: =EV56*EV57 -> 0 | EW58: =EW56*EW57 -> 0 | EX58: =EX56*EX57 -> 0 | EY58: =EY56*EY57 -> 0 | EZ58: =EZ56*EZ57 -> 0 | FA58: =FA56*FA57 -> 0 | FB58: =FB56*FB57 -> 0 | FC58: =FC56*FC57 -> 0 | FD58: =FD56*FD57 -> 0 | FE58: =FE56*FE57 -> 0 | FF58: =FF56*FF57 -> 0 | FG58: =FG56*FG57 -> 0 | FH58: =FH56*FH57 -> 0 | FI58: =FI56*FI57 -> 0 | FJ58: =FJ56*FJ57 -> 0 | FK58: =FK56*FK57 -> 0 | FL58: =FL56*FL57 -> 0 | FM58: =FM56*FM57 -> 0 | FN58: =FN56*FN57 -> 0 | FO58: =FO56*FO57 -> 0 | FP58: =FP56*FP57 -> 0 | FQ58: =FQ56*FQ57 -> 0 | FR58: =FR56*FR57 -> 0 | FS58: =FS56*FS57 -> 0 | FT58: =FT56*FT57 -> 0 | FU58: =FU56*FU57 -> 0 | FV58: =FV56*FV57 -> 0 | FW58: =FW56*FW57 -> 0 | FX58: =FX56*FX57 -> 0 | FY58: =FY56*FY57 -> 0 | FZ58: =FZ56*FZ57 -> 0 | GA58: =GA56*GA57 -> 0 | GB58: =GB56*GB57 -> 0 | GC58: =GC56*GC57 -> 0 | GD58: =GD56*GD57 -> 0 | GE58: =GE56*GE57 -> 0 | GF58: =GF56*GF57 -> 0 | GG58: =GG56*GG57 -> 0 | GH58: =GH56*GH57 -> 0 | GI58: =GI56*GI57 -> 0 | GJ58: =GJ56*GJ57 -> 0 | GK58: =GK56*GK57 -> 0 | GL58: =GL56*GL57 -> 0 | GM58: =GM56*GM57 -> 0 | GN58: =GN56*GN57 -> 0 | GO58: =GO56*GO57 -> 0 | GP58: =GP56*GP57 -> 0 | GQ58: =GQ56*GQ57 -> 0 | GR58: =GR56*GR57 -> 0 | GS58: =GS56*GS57 -> 0 | GT58: =GT56*GT57 -> 0 | GU58: =GU56*GU57 -> 0 | GV58: =GV56*GV57 -> 0 | GW58: =GW56*GW57 -> 0 | GX58: =GX56*GX57 -> 0 | GY58: =GY56*GY57 -> 0 | GZ58: =GZ56*GZ57 -> 0 | HA58: =HA56*HA57 -> 0 | HB58: =HB56*HB57 -> 0 | HC58: =HC56*HC57 -> 0 | HD58: =HD56*HD57 -> 0 | HE58: =HE56*HE57 -> 0 | HF58: =HF56*HF57 -> 0 | HG58: =HG56*HG57 -> 0 | HH58: =HH56*HH57 -> 0 | HI58: =HI56*HI57 -> 0 | HJ58: =HJ56*HJ57 -> 0 | HK58: =HK56*HK57 -> 0 | HL58: =HL56*HL57 -> 0 | HM58: =HM56*HM57 -> 0 | HN58: =HN56*HN57 -> 0 | HO58: =HO56*HO57 -> 0 | HP58: =HP56*HP57 -> 0 | HQ58: =HQ56*HQ57 -> 0 | HR58: =HR56*HR57 -> 0 | HS58: =HS56*HS57 -> 0 | HT58: =HT56*HT57 -> 0 | HU58: =HU56*HU57 -> 0 | HV58: =HV56*HV57 -> 0 | HW58: =HW56*HW57 -> 0 | HX58: =HX56*HX57 -> 0 | HY58: =HY56*HY57 -> 0 | HZ58: =HZ56*HZ57 -> 0 | IA58: =IA56*IA57 -> 0 | IB58: =IB56*IB57 -> 0 | IC58: =IC56*IC57 -> 0 | ID58: =ID56*ID57 -> 0 | IE58: =IE56*IE57 -> 0 | IF58: =IF56*IF57 -> 0 | IG58: =IG56*IG57 -> 0 | IH58: =IH56*IH57 -> 0 | II58: =II56*II57 -> 0 | IJ58: =IJ56*IJ57 -> 0 | IK58: =IK56*IK57 -> 0 | IL58: =IL56*IL57 -> 0 | IM58: =IM56*IM57 -> 0 | IN58: =IN56*IN57 -> 0 | IO58: =IO56*IO57 -> 0 | IP58: =IP56*IP57 -> 0 | IQ58: =IQ56*IQ57 -> 0 | IR58: =IR56*IR57 -> 0 | IS58: =IS56*IS57 -> 0 | IT58: =IT56*IT57 -> 0 | IU58: =IU56*IU57 -> 0 | IV58: =IV56*IV57 -> 0 | IW58: =IW56*IW57 -> 0 | IX58: =IX56*IX57 -> 0 | IY58: =IY56*IY57 -> 0 | IZ58: =IZ56*IZ57 -> 0 | JA58: =JA56*JA57 -> 0 | JB58: =JB56*JB57 -> 0 | JC58: =JC56*JC57 -> 0 | JD58: =JD56*JD57 -> 0 | JE58: =JE56*JE57 -> 0 | JF58: =JF56*JF57 -> 0 | JG58: =JG56*JG57 -> 0 | JH58: =JH56*JH57 -> 0 | JI58: =JI56*JI57 -> 0 | JJ58: =JJ56*JJ57 -> 0 | JK58: =JK56*JK57 -> 0 | JL58: =JL56*JL57 -> 0 | JM58: =JM56*JM57 -> 0 | JN58: =JN56*JN57 -> 0 | JO58: =JO56*JO57 -> 0 | JP58: =JP56*JP57 -> 0 | JQ58: =JQ56*JQ57 -> 0 | JR58: =JR56*JR57 -> 0 | JS58: =JS56*JS57 -> 0 | JT58: =JT56*JT57 -> 0 | JU58: =JU56*JU57 -> 0 | JV58: =JV56*JV57 -> 0 | JW58: =JW56*JW57 -> 0 | JX58: =JX56*JX57 -> 0 | JY58: =JY56*JY57 -> 0 | JZ58: =JZ56*JZ57 -> 0 | KA58: =KA56*KA57 -> 0 | KB58: =KB56*KB57 -> 0 | KC58: =KC56*KC57 -> 0 | KD58: =KD56*KD57 -> 0 | KE58: =KE56*KE57 -> 0 | KF58: =KF56*KF57 -> 0 | KG58: =KG56*KG57 -> 0 | KH58: =KH56*KH57 -> 0 | KI58: =KI56*KI57 -> 0 | KJ58: =KJ56*KJ57 -> 0 | KK58: =KK56*KK57 -> 0 | KL58: =KL56*KL57 -> 0 | KM58: =KM56*KM57 -> 0 | KN58: =KN56*KN57 -> 0 | KO58: =KO56*KO57 -> 0 | KP58: =KP56*KP57 -> 0 | KQ58: =KQ56*KQ57 -> 0 | KR58: =KR56*KR57 -> 0 | KS58: =KS56*KS57 -> 0 | KT58: =KT56*KT57 -> 0 | KU58: =KU56*KU57 -> 0 | KV58: =KV56*KV57 -> 0 | KW58: =KW56*KW57 -> 0 | KX58: =KX56*KX57 -> 0 | KY58: =KY56*KY57 -> 0 | KZ58: =KZ56*KZ57 -> 0 | LA58: =LA56*LA57 -> 0 | LB58: =LB56*LB57 -> 0 | LC58: =LC56*LC57 -> 0 | LD58: =LD56*LD57 -> 0 | LE58: =LE56*LE57 -> 0 | LF58: =LF56*LF57 -> 0 | LG58: =LG56*LG57 -> 0 | LH58: =LH56*LH57 -> 0 | LI58: =LI56*LI57 -> 0 | LJ58: =LJ56*LJ57 -> 0 | LK58: =LK56*LK57 -> 0 | LL58: =LL56*LL57 -> 0 | LM58: =LM56*LM57 -> 0 | LN58: =LN56*LN57 -> 0 | LO58: =LO56*LO57 -> 0 | LP58: =LP56*LP57 -> 0 | LQ58: =LQ56*LQ57 -> 0 | LR58: =LR56*LR57 -> 0 | LS58: =LS56*LS57 -> 0 | LT58: =LT56*LT57 -> 0 | LU58: =LU56*LU57 -> 0 | LV58: =LV56*LV57 -> 0 | LW58: =LW56*LW57 -> 0 | LX58: =LX56*LX57 -> 0 | LY58: =LY56*LY57 -> 0 | LZ58: =LZ56*LZ57 -> 0 | MA58: =MA56*MA57 -> 0 | MB58: =MB56*MB57 -> 0 | MC58: =MC56*MC57 -> 0 | MD58: =MD56*MD57 -> 0 | ME58: =ME56*ME57 -> 0 | MF58: =MF56*MF57 -> 0 | MG58: =MG56*MG57 -> 0 | MH58: =MH56*MH57 -> 0 | MI58: =MI56*MI57 -> 0 | MJ58: =MJ56*MJ57 -> 0 | MK58: =MK56*MK57 -> 0 | ML58: =ML56*ML57 -> 0 | MM58: =MM56*MM57 -> 0 | MN58: =MN56*MN57 -> 0 | MO58: =MO56*MO57 -> 0 | MP58: =MP56*MP57 -> 0 | MQ58: =MQ56*MQ57 -> 0 | MR58: =MR56*MR57 -> 0 | MS58: =MS56*MS57 -> 0 | MT58: =MT56*MT57 -> 0 | MU58: =MU56*MU57 -> 0 | MV58: =MV56*MV57 -> 0 | MW58: =MW56*MW57 -> 0 | MX58: =MX56*MX57 -> 0 | MY58: =MY56*MY57 -> 0 | MZ58: =MZ56*MZ57 -> 0 | NA58: =NA56*NA57 -> 0 | NB58: =NB56*NB57 -> 0 | NC58: =NC56*NC57 -> 0 | ND58: =ND56*ND57 -> 0 | NE58: =NE56*NE57 -> 0 | NF58: =NF56*NF57 -> 0 | NG58: =NG56*NG57 -> 0 | NH58: =NH56*NH57 -> 0 | NI58: =NI56*NI57 -> 0 | NJ58: =NJ56*NJ57 -> 0 | NK58: =NK56*NK57 -> 0 | NL58: =NL56*NL57 -> 0 | NM58: =NM56*NM57 -> 0 | NN58: =NN56*NN57 -> 0 | NO58: =NO56*NO57 -> 0 | NP58: =NP56*NP57 -> 0 | NQ58: =NQ56*NQ57 -> 0 | NR58: =NR56*NR57 -> 0 | NS58: =NS56*NS57 -> 0 | NT58: =NT56*NT57 -> 0 | NU58: =NU56*NU57 -> 0 | NV58: =NV56*NV57 -> 0 | NW58: =NW56*NW57 -> 0 | NX58: =NX56*NX57 -> 0 | NY58: =NY56*NY57 -> 0 | NZ58: =NZ56*NZ57 -> 0 | OA58: =OA56*OA57 -> 0 | OB58: =OB56*OB57 -> 0 | OC58: =OC56*OC57 -> 0 | OD58: =OD56*OD57 -> 0 | OE58: =OE56*OE57 -> 0 | OF58: =OF56*OF57 -> 0 | OG58: =OG56*OG57 -> 0 | OH58: =OH56*OH57 -> 0 | OI58: =OI56*OI57 -> 0 | OJ58: =OJ56*OJ57 -> 0 | OK58: =OK56*OK57 -> 0 | OL58: =OL56*OL57 -> 0 | OM58: =OM56*OM57 -> 0 | ON58: =ON56*ON57 -> 0 | OO58: =OO56*OO57 -> 0 | OP58: =OP56*OP57 -> 0 | OQ58: =OQ56*OQ57 -> 0 | OR58: =OR56*OR57 -> 0 | OS58: =OS56*OS57 -> 0 | OT58: =OT56*OT57 -> 0 | OU58: =OU56*OU57 -> 0 | OV58: =OV56*OV57 -> 0 | OW58: =OW56*OW57 -> 0 | OX58: =OX56*OX57 -> 0 | OY58: =OY56*OY57 -> 0 | OZ58: =OZ56*OZ57 -> 0 | PA58: =PA56*PA57 -> 0 | PB58: =PB56*PB57 -> 0 | PC58: =PC56*PC57 -> 0 | PD58: =PD56*PD57 -> 0 | PE58: =PE56*PE57 -> 0 | PF58: =PF56*PF57 -> 0 | PG58: =PG56*PG57 -> 0 | PH58: =PH56*PH57 -> 0 | PI58: =PI56*PI57 -> 0 | PJ58: =PJ56*PJ57 -> 0 | PK58: =PK56*PK57 -> 0 | PL58: =PL56*PL57 -> 0 | PM58: =PM56*PM57 -> 0 | PN58: =PN56*PN57 -> 0 | PO58: =PO56*PO57 -> 0 | PP58: =PP56*PP57 -> 0 | PQ58: =PQ56*PQ57 -> 0 | PR58: =PR56*PR57 -> 0 | PS58: =PS56*PS57 -> 0 | PT58: =PT56*PT57 -> 0 | PU58: =PU56*PU57 -> 0 | PV58: =PV56*PV57 -> 0 | PW58: =PW56*PW57 -> 0 | PX58: =PX56*PX57 -> 0 | PY58: =PY56*PY57 -> 0 | PZ58: =PZ56*PZ57 -> 0 | QA58: =QA56*QA57 -> 0 | QB58: =QB56*QB57 -> 0 | QC58: =QC56*QC57 -> 0 | QD58: =QD56*QD57 -> 0 | QE58: =QE56*QE57 -> 0 | QF58: =QF56*QF57 -> 0 | QG58: =QG56*QG57 -> 0 | QH58: =QH56*QH57 -> 0 | QI58: =QI56*QI57 -> 0 | QJ58: =QJ56*QJ57 -> 0 | QK58: =QK56*QK57 -> 0 | QL58: =QL56*QL57 -> 0 | QM58: =QM56*QM57 -> 0 | QN58: =QN56*QN57 -> 0 | QO58: =QO56*QO57 -> 0 | QP58: =QP56*QP57 -> 0 | QQ58: =QQ56*QQ57 -> 0 | QR58: =QR56*QR57 -> 0 | QS58: =QS56*QS57 -> 0 | QT58: =QT56*QT57 -> 0 | QU58: =QU56*QU57 -> 0 | QV58: =QV56*QV57 -> 0 | QW58: =QW56*QW57 -> 0 | QX58: =QX56*QX57 -> 0 | QY58: =QY56*QY57 -> 0 | QZ58: =QZ56*QZ57 -> 0 | RA58: =RA56*RA57 -> 0 | RB58: =RB56*RB57 -> 0 | RC58: =RC56*RC57 -> 0 | RD58: =RD56*RD57 -> 0 | RE58: =RE56*RE57 -> 0 | RF58: =RF56*RF57 -> 0 | RG58: =RG56*RG57 -> 0 | RH58: =RH56*RH57 -> 0 | RI58: =RI56*RI57 -> 0 | RJ58: =RJ56*RJ57 -> 0 | RK58: =RK56*RK57 -> 0 | RL58: =RL56*RL57 -> 0 | RM58: =RM56*RM57 -> 0 | RN58: =RN56*RN57 -> 0 | RO58: =RO56*RO57 -> 0 | RP58: =RP56*RP57 -> 0 | RQ58: =RQ56*RQ57 -> 0 | RR58: =RR56*RR57 -> 0 | RS58: =RS56*RS57 -> 0 | RT58: =RT56*RT57 -> 0 | RU58: =RU56*RU57 -> 0 | RV58: =RV56*RV57 -> 0 | RW58: =RW56*RW57 -> 0 | RX58: =RX56*RX57 -> 0 | RY58: =RY56*RY57 -> 0 | RZ58: =RZ56*RZ57 -> 0 | SA58: =SA56*SA57 -> 0 | SB58: =SB56*SB57 -> 0 | SC58: =SC56*SC57 -> 0 | SD58: =SD56*SD57 -> 0 | SE58: =SE56*SE57 -> 0 | SF58: =SF56*SF57 -> 0 | SG58: =SG56*SG57 -> 0 | SH58: =SH56*SH57 -> 0 | SI58: =SI56*SI57 -> 0 | SJ58: =SJ56*SJ57 -> 0 | SK58: =SK56*SK57 -> 0 | SL58: =SL56*SL57 -> 0 | SM58: =SM56*SM57 -> 0 | SN58: =SN56*SN57 -> 0 | SO58: =SO56*SO57 -> 0 | SP58: =SP56*SP57 -> 0 | SQ58: =SQ56*SQ57 -> 0 | SR58: =SR56*SR57 -> 0 | SS58: =SS56*SS57 -> 0 | ST58: =ST56*ST57 -> 0 | SU58: =SU56*SU57 -> 0 | SV58: =SV56*SV57 -> 0 | SW58: =SW56*SW57 -> 0 | SX58: =SX56*SX57 -> 0 | SY58: =SY56*SY57 -> 0 | SZ58: =SZ56*SZ57 -> 0 | TA58: =TA56*TA57 -> 0 | TB58: =TB56*TB57 -> 0 | TC58: =TC56*TC57 -> 0
D59: Increase in Invested Capital | K59: =(L58-K58)*K54 -> 0 | L59: =(M58-L58)*L54 -> 0 | M59: 0 | N59: 0 | O59: 0 | P59: 0 | Q59: 0 | R59: 0 | S59: 0 | T59: 0 | U59: 0 | V59: 0 | W59: 0 | X59: 0 | Y59: 0 | Z59: 0 | AA59: 0 | AB59: 0 | AC59: 0 | AD59: 0 | AE59: 0 | AF59: 0 | AG59: 0 | AH59: 0 | AI59: 0 | AJ59: 0 | AK59: 0 | AL59: 0 | AM59: 0 | AN59: 0 | AO59: 0 | AP59: 0 | AQ59: 0 | AR59: 0 | AS59: 0 | AT59: 0 | AU59: 0 | AV59: 0 | AW59: 0 | AX59: 0 | AY59: 0 | AZ59: 0 | BA59: 0 | BB59: 0 | BC59: 0 | BD59: 0 | BE59: 0 | BF59: 0 | BG59: 0 | BH59: 0 | BI59: 0 | BJ59: 0 | BK59: 0 | BL59: 0 | BM59: 0 | BN59: 0 | BO59: 0 | BP59: 0 | BQ59: 0 | BR59: 0 | BS59: 0 | BT59: 0 | BU59: 0 | BV59: 0 | BW59: 0 | BX59: =(BY58-BX58)*BX54 -> 0 | BY59: 0 | BZ59: 0 | CA59: 0 | CB59: 0 | CC59: 0 | CD59: 0 | CE59: 0 | CF59: 0 | CG59: 0 | CH59: 0 | CI59: 0 | CJ59: 0 | CK59: 0 | CL59: 0 | CM59: 0 | CN59: 0 | CO59: 0 | CP59: 0 | CQ59: 0 | CR59: 0 | CS59: 0 | CT59: 0 | CU59: 0 | CV59: 0 | CW59: 0 | CX59: 0 | CY59: 0 | CZ59: 0 | DA59: 0 | DB59: 0 | DC59: 0 | DD59: 0 | DE59: 0 | DF59: 0 | DG59: 0 | DH59: 0 | DI59: 0 | DJ59: 0 | DK59: 0 | DL59: 0 | DM59: 0 | DN59: 0 | DO59: 0 | DP59: 0 | DQ59: 0 | DR59: 0 | DS59: 0 | DT59: 0 | DU59: 0 | DV59: 0 | DW59: 0 | DX59: 0 | DY59: 0 | DZ59: 0 | EA59: 0 | EB59: 0 | EC59: 0 | ED59: 0 | EE59: 0 | EF59: 0 | EG59: 0 | EH59: 0 | EI59: 0 | EJ59: =(EK58-EJ58)*EJ54 -> 0 | EK59: 0 | EL59: 0 | EM59: 0 | EN59: 0 | EO59: 0 | EP59: 0 | EQ59: 0 | ER59: 0 | ES59: 0 | ET59: 0 | EU59: 0 | EV59: 0 | EW59: 0 | EX59: 0 | EY59: 0 | EZ59: 0 | FA59: 0 | FB59: 0 | FC59: 0 | FD59: 0 | FE59: 0 | FF59: 0 | FG59: 0 | FH59: 0 | FI59: 0 | FJ59: 0 | FK59: 0 | FL59: 0 | FM59: 0 | FN59: 0 | FO59: 0 | FP59: 0 | FQ59: 0 | FR59: 0 | FS59: 0 | FT59: 0 | FU59: 0 | FV59: 0 | FW59: 0 | FX59: 0 | FY59: 0 | FZ59: 0 | GA59: 0 | GB59: 0 | GC59: 0 | GD59: 0 | GE59: 0 | GF59: 0 | GG59: 0 | GH59: 0 | GI59: 0 | GJ59: 0 | GK59: 0 | GL59: 0 | GM59: 0 | GN59: 0 | GO59: 0 | GP59: 0 | GQ59: 0 | GR59: 0 | GS59: 0 | GT59: 0 | GU59: 0 | GV59: =(GW58-GV58)*GV54 -> 0 | GW59: 0 | GX59: 0 | GY59: 0 | GZ59: 0 | HA59: 0 | HB59: 0 | HC59: 0 | HD59: 0 | HE59: 0 | HF59: 0 | HG59: 0 | HH59: 0 | HI59: 0 | HJ59: 0 | HK59: 0 | HL59: 0 | HM59: 0 | HN59: 0 | HO59: 0 | HP59: 0 | HQ59: 0 | HR59: 0 | HS59: 0 | HT59: 0 | HU59: 0 | HV59: 0 | HW59: 0 | HX59: 0 | HY59: 0 | HZ59: 0 | IA59: 0 | IB59: 0 | IC59: 0 | ID59: 0 | IE59: 0 | IF59: 0 | IG59: 0 | IH59: 0 | II59: 0 | IJ59: 0 | IK59: 0 | IL59: 0 | IM59: 0 | IN59: 0 | IO59: 0 | IP59: 0 | IQ59: 0 | IR59: 0 | IS59: 0 | IT59: 0 | IU59: 0 | IV59: 0 | IW59: 0 | IX59: 0 | IY59: 0 | IZ59: 0 | JA59: 0 | JB59: 0 | JC59: 0 | JD59: 0 | JE59: 0 | JF59: 0 | JG59: 0 | JH59: =(JI58-JH58)*JH54 -> 0 | JI59: 0 | JJ59: 0 | JK59: 0 | JL59: 0 | JM59: 0 | JN59: 0 | JO59: 0 | JP59: 0 | JQ59: 0 | JR59: 0 | JS59: 0 | JT59: 0 | JU59: 0 | JV59: 0 | JW59: 0 | JX59: 0 | JY59: 0 | JZ59: 0 | KA59: 0 | KB59: 0 | KC59: 0 | KD59: 0 | KE59: 0 | KF59: 0 | KG59: 0 | KH59: 0 | KI59: 0 | KJ59: 0 | KK59: 0 | KL59: 0 | KM59: 0 | KN59: 0 | KO59: 0 | KP59: 0 | KQ59: 0 | KR59: 0 | KS59: 0 | KT59: 0 | KU59: 0 | KV59: 0 | KW59: 0 | KX59: 0 | KY59: 0 | KZ59: 0 | LA59: 0 | LB59: 0 | LC59: 0 | LD59: 0 | LE59: 0 | LF59: 0 | LG59: 0 | LH59: 0 | LI59: 0 | LJ59: 0 | LK59: 0 | LL59: 0 | LM59: 0 | LN59: 0 | LO59: 0 | LP59: 0 | LQ59: 0 | LR59: 0 | LS59: 0 | LT59: =(LU58-LT58)*LT54 -> 0 | LU59: 0 | LV59: 0 | LW59: 0 | LX59: 0 | LY59: 0 | LZ59: 0 | MA59: 0 | MB59: 0 | MC59: 0 | MD59: 0 | ME59: 0 | MF59: 0 | MG59: 0 | MH59: 0 | MI59: 0 | MJ59: 0 | MK59: 0 | ML59: 0 | MM59: 0 | MN59: 0 | MO59: 0 | MP59: 0 | MQ59: 0 | MR59: 0 | MS59: 0 | MT59: 0 | MU59: 0 | MV59: 0 | MW59: 0 | MX59: 0 | MY59: 0 | MZ59: 0 | NA59: 0 | NB59: 0 | NC59: 0 | ND59: 0 | NE59: 0 | NF59: 0 | NG59: 0 | NH59: 0 | NI59: 0 | NJ59: 0 | NK59: 0 | NL59: 0 | NM59: 0 | NN59: 0 | NO59: 0 | NP59: 0 | NQ59: 0 | NR59: 0 | NS59: 0 | NT59: 0 | NU59: 0 | NV59: 0 | NW59: 0 | NX59: 0 | NY59: 0 | NZ59: 0 | OA59: 0 | OB59: 0 | OC59: 0 | OD59: 0 | OE59: 0 | OF59: =(OG58-OF58)*OF54 -> 0 | OG59: 0 | OH59: 0 | OI59: 0 | OJ59: 0 | OK59: 0 | OL59: 0 | OM59: 0 | ON59: 0 | OO59: 0 | OP59: 0 | OQ59: 0 | OR59: 0 | OS59: 0 | OT59: 0 | OU59: 0 | OV59: 0 | OW59: 0 | OX59: 0 | OY59: 0 | OZ59: 0 | PA59: 0 | PB59: 0 | PC59: 0 | PD59: 0 | PE59: 0 | PF59: 0 | PG59: 0 | PH59: 0 | PI59: 0 | PJ59: 0 | PK59: 0 | PL59: 0 | PM59: 0 | PN59: 0 | PO59: 0 | PP59: 0 | PQ59: 0 | PR59: 0 | PS59: 0 | PT59: 0 | PU59: 0 | PV59: 0 | PW59: 0 | PX59: 0 | PY59: 0 | PZ59: 0 | QA59: 0 | QB59: 0 | QC59: 0 | QD59: 0 | QE59: 0 | QF59: 0 | QG59: 0 | QH59: 0 | QI59: 0 | QJ59: 0 | QK59: 0 | QL59: 0 | QM59: 0 | QN59: 0 | QO59: 0 | QP59: 0 | QQ59: 0 | QR59: =(QS58-QR58)*QR54 -> 0 | QS59: 0 | QT59: 0 | QU59: 0 | QV59: 0 | QW59: 0 | QX59: 0 | QY59: 0 | QZ59: 0 | RA59: 0 | RB59: 0 | RC59: 0 | RD59: 0 | RE59: 0 | RF59: 0 | RG59: 0 | RH59: 0 | RI59: 0 | RJ59: 0 | RK59: 0 | RL59: 0 | RM59: 0 | RN59: 0 | RO59: 0 | RP59: 0 | RQ59: 0 | RR59: 0 | RS59: 0 | RT59: 0 | RU59: 0 | RV59: 0 | RW59: 0 | RX59: 0 | RY59: 0 | RZ59: 0 | SA59: 0 | SB59: 0 | SC59: 0 | SD59: 0 | SE59: 0 | SF59: 0 | SG59: 0 | SH59: 0 | SI59: 0 | SJ59: 0 | SK59: 0 | SL59: 0 | SM59: 0 | SN59: 0 | SO59: 0 | SP59: 0 | SQ59: 0 | SR59: 0 | SS59: 0 | ST59: 0 | SU59: 0 | SV59: 0 | SW59: 0 | SX59: 0 | SY59: 0 | SZ59: 0 | TA59: 0 | TB59: 0 | TC59: 0
D60: ROIC | K60: =K6 -> 0 | L60: =L6 -> 0 | M60: =M6 -> 0 | N60: =N6 -> 0 | O60: =O6 -> 0 | P60: =P6 -> 0 | Q60: =Q6 -> 0 | R60: =R6 -> 0 | S60: =S6 -> 0 | T60: =T6 -> 0 | U60: =U6 -> 0 | V60: =V6 -> 0 | W60: =W6 -> 0 | X60: =X6 -> 0 | Y60: =Y6 -> 0 | Z60: =Z6 -> 0 | AA60: =AA6 -> 0 | AB60: =AB6 -> 0 | AC60: =AC6 -> 0 | AD60: =AD6 -> 0 | AE60: =AE6 -> 0 | AF60: =AF6 -> 0 | AG60: =AG6 -> 0 | AH60: =AH6 -> 0 | AI60: =AI6 -> 0 | AJ60: =AJ6 -> 0 | AK60: =AK6 -> 0 | AL60: =AL6 -> 0 | AM60: =AM6 -> 0 | AN60: =AN6 -> 0 | AO60: =AO6 -> 0 | AP60: =AP6 -> 0 | AQ60: =AQ6 -> 0 | AR60: =AR6 -> 0 | AS60: =AS6 -> 0 | AT60: =AT6 -> 0 | AU60: =AU6 -> 0 | AV60: =AV6 -> 0 | AW60: =AW6 -> 0 | AX60: =AX6 -> 0 | AY60: =AY6 -> 0 | AZ60: =AZ6 -> 0 | BA60: =BA6 -> 0 | BB60: =BB6 -> 0 | BC60: =BC6 -> 0 | BD60: =BD6 -> 0 | BE60: =BE6 -> 0 | BF60: =BF6 -> 0 | BG60: =BG6 -> 0 | BH60: =BH6 -> 0 | BI60: =BI6 -> 0 | BJ60: =BJ6 -> 0 | BK60: =BK6 -> 0 | BL60: =BL6 -> 0 | BM60: =BM6 -> 0 | BN60: =BN6 -> 0 | BO60: =BO6 -> 0 | BP60: =BP6 -> 0 | BQ60: =BQ6 -> 0 | BR60: =BR6 -> 0 | BS60: =BS6 -> 0 | BT60: =BT6 -> 0 | BU60: =BU6 -> 0 | BV60: =BV6 -> 0 | BW60: =BW6 -> 0 | BX60: =BX6 -> 0 | BY60: =BY6 -> 0 | BZ60: =BZ6 -> 0 | CA60: =CA6 -> 0 | CB60: =CB6 -> 0 | CC60: =CC6 -> 0 | CD60: =CD6 -> 0 | CE60: =CE6 -> 0 | CF60: =CF6 -> 0 | CG60: =CG6 -> 0 | CH60: =CH6 -> 0 | CI60: =CI6 -> 0 | CJ60: =CJ6 -> 0 | CK60: =CK6 -> 0 | CL60: =CL6 -> 0 | CM60: =CM6 -> 0 | CN60: =CN6 -> 0 | CO60: =CO6 -> 0 | CP60: =CP6 -> 0 | CQ60: =CQ6 -> 0 | CR60: =CR6 -> 0 | CS60: =CS6 -> 0 | CT60: =CT6 -> 0 | CU60: =CU6 -> 0 | CV60: =CV6 -> 0 | CW60: =CW6 -> 0 | CX60: =CX6 -> 0 | CY60: =CY6 -> 0 | CZ60: =CZ6 -> 0 | DA60: =DA6 -> 0 | DB60: =DB6 -> 0 | DC60: =DC6 -> 0 | DD60: =DD6 -> 0 | DE60: =DE6 -> 0 | DF60: =DF6 -> 0 | DG60: =DG6 -> 0 | DH60: =DH6 -> 0 | DI60: =DI6 -> 0 | DJ60: =DJ6 -> 0 | DK60: =DK6 -> 0 | DL60: =DL6 -> 0 | DM60: =DM6 -> 0 | DN60: =DN6 -> 0 | DO60: =DO6 -> 0 | DP60: =DP6 -> 0 | DQ60: =DQ6 -> 0 | DR60: =DR6 -> 0 | DS60: =DS6 -> 0 | DT60: =DT6 -> 0 | DU60: =DU6 -> 0 | DV60: =DV6 -> 0 | DW60: =DW6 -> 0 | DX60: =DX6 -> 0 | DY60: =DY6 -> 0 | DZ60: =DZ6 -> 0 | EA60: =EA6 -> 0 | EB60: =EB6 -> 0 | EC60: =EC6 -> 0 | ED60: =ED6 -> 0 | EE60: =EE6 -> 0 | EF60: =EF6 -> 0 | EG60: =EG6 -> 0 | EH60: =EH6 -> 0 | EI60: =EI6 -> 0 | EJ60: =EJ6 -> 0 | EK60: =EK6 -> 0 | EL60: =EL6 -> 0 | EM60: =EM6 -> 0 | EN60: =EN6 -> 0 | EO60: =EO6 -> 0 | EP60: =EP6 -> 0 | EQ60: =EQ6 -> 0 | ER60: =ER6 -> 0 | ES60: =ES6 -> 0 | ET60: =ET6 -> 0 | EU60: =EU6 -> 0 | EV60: =EV6 -> 0 | EW60: =EW6 -> 0 | EX60: =EX6 -> 0 | EY60: =EY6 -> 0 | EZ60: =EZ6 -> 0 | FA60: =FA6 -> 0 | FB60: =FB6 -> 0 | FC60: =FC6 -> 0 | FD60: =FD6 -> 0 | FE60: =FE6 -> 0 | FF60: =FF6 -> 0 | FG60: =FG6 -> 0 | FH60: =FH6 -> 0 | FI60: =FI6 -> 0 | FJ60: =FJ6 -> 0 | FK60: =FK6 -> 0 | FL60: =FL6 -> 0 | FM60: =FM6 -> 0 | FN60: =FN6 -> 0 | FO60: =FO6 -> 0 | FP60: =FP6 -> 0 | FQ60: =FQ6 -> 0 | FR60: =FR6 -> 0 | FS60: =FS6 -> 0 | FT60: =FT6 -> 0 | FU60: =FU6 -> 0 | FV60: =FV6 -> 0 | FW60: =FW6 -> 0 | FX60: =FX6 -> 0 | FY60: =FY6 -> 0 | FZ60: =FZ6 -> 0 | GA60: =GA6 -> 0 | GB60: =GB6 -> 0 | GC60: =GC6 -> 0 | GD60: =GD6 -> 0 | GE60: =GE6 -> 0 | GF60: =GF6 -> 0 | GG60: =GG6 -> 0 | GH60: =GH6 -> 0 | GI60: =GI6 -> 0 | GJ60: =GJ6 -> 0 | GK60: =GK6 -> 0 | GL60: =GL6 -> 0 | GM60: =GM6 -> 0 | GN60: =GN6 -> 0 | GO60: =GO6 -> 0 | GP60: =GP6 -> 0 | GQ60: =GQ6 -> 0 | GR60: =GR6 -> 0 | GS60: =GS6 -> 0 | GT60: =GT6 -> 0 | GU60: =GU6 -> 0 | GV60: =GV6 -> 0 | GW60: =GW6 -> 0 | GX60: =GX6 -> 0 | GY60: =GY6 -> 0 | GZ60: =GZ6 -> 0 | HA60: =HA6 -> 0 | HB60: =HB6 -> 0 | HC60: =HC6 -> 0 | HD60: =HD6 -> 0 | HE60: =HE6 -> 0 | HF60: =HF6 -> 0 | HG60: =HG6 -> 0 | HH60: =HH6 -> 0 | HI60: =HI6 -> 0 | HJ60: =HJ6 -> 0 | HK60: =HK6 -> 0 | HL60: =HL6 -> 0 | HM60: =HM6 -> 0 | HN60: =HN6 -> 0 | HO60: =HO6 -> 0 | HP60: =HP6 -> 0 | HQ60: =HQ6 -> 0 | HR60: =HR6 -> 0 | HS60: =HS6 -> 0 | HT60: =HT6 -> 0 | HU60: =HU6 -> 0 | HV60: =HV6 -> 0 | HW60: =HW6 -> 0 | HX60: =HX6 -> 0 | HY60: =HY6 -> 0 | HZ60: =HZ6 -> 0 | IA60: =IA6 -> 0 | IB60: =IB6 -> 0 | IC60: =IC6 -> 0 | ID60: =ID6 -> 0 | IE60: =IE6 -> 0 | IF60: =IF6 -> 0 | IG60: =IG6 -> 0 | IH60: =IH6 -> 0 | II60: =II6 -> 0 | IJ60: =IJ6 -> 0 | IK60: =IK6 -> 0 | IL60: =IL6 -> 0 | IM60: =IM6 -> 0 | IN60: =IN6 -> 0 | IO60: =IO6 -> 0 | IP60: =IP6 -> 0 | IQ60: =IQ6 -> 0 | IR60: =IR6 -> 0 | IS60: =IS6 -> 0 | IT60: =IT6 -> 0 | IU60: =IU6 -> 0 | IV60: =IV6 -> 0 | IW60: =IW6 -> 0 | IX60: =IX6 -> 0 | IY60: =IY6 -> 0 | IZ60: =IZ6 -> 0 | JA60: =JA6 -> 0 | JB60: =JB6 -> 0 | JC60: =JC6 -> 0 | JD60: =JD6 -> 0 | JE60: =JE6 -> 0 | JF60: =JF6 -> 0 | JG60: =JG6 -> 0 | JH60: =JH6 -> 0 | JI60: =JI6 -> 0 | JJ60: =JJ6 -> 0 | JK60: =JK6 -> 0 | JL60: =JL6 -> 0 | JM60: =JM6 -> 0 | JN60: =JN6 -> 0 | JO60: =JO6 -> 0 | JP60: =JP6 -> 0 | JQ60: =JQ6 -> 0 | JR60: =JR6 -> 0 | JS60: =JS6 -> 0 | JT60: =JT6 -> 0 | JU60: =JU6 -> 0 | JV60: =JV6 -> 0 | JW60: =JW6 -> 0 | JX60: =JX6 -> 0 | JY60: =JY6 -> 0 | JZ60: =JZ6 -> 0 | KA60: =KA6 -> 0 | KB60: =KB6 -> 0 | KC60: =KC6 -> 0 | KD60: =KD6 -> 0 | KE60: =KE6 -> 0 | KF60: =KF6 -> 0 | KG60: =KG6 -> 0 | KH60: =KH6 -> 0 | KI60: =KI6 -> 0 | KJ60: =KJ6 -> 0 | KK60: =KK6 -> 0 | KL60: =KL6 -> 0 | KM60: =KM6 -> 0 | KN60: =KN6 -> 0 | KO60: =KO6 -> 0 | KP60: =KP6 -> 0 | KQ60: =KQ6 -> 0 | KR60: =KR6 -> 0 | KS60: =KS6 -> 0 | KT60: =KT6 -> 0 | KU60: =KU6 -> 0 | KV60: =KV6 -> 0 | KW60: =KW6 -> 0 | KX60: =KX6 -> 0 | KY60: =KY6 -> 0 | KZ60: =KZ6 -> 0 | LA60: =LA6 -> 0 | LB60: =LB6 -> 0 | LC60: =LC6 -> 0 | LD60: =LD6 -> 0 | LE60: =LE6 -> 0 | LF60: =LF6 -> 0 | LG60: =LG6 -> 0 | LH60: =LH6 -> 0 | LI60: =LI6 -> 0 | LJ60: =LJ6 -> 0 | LK60: =LK6 -> 0 | LL60: =LL6 -> 0 | LM60: =LM6 -> 0 | LN60: =LN6 -> 0 | LO60: =LO6 -> 0 | LP60: =LP6 -> 0 | LQ60: =LQ6 -> 0 | LR60: =LR6 -> 0 | LS60: =LS6 -> 0 | LT60: =LT6 -> 0 | LU60: =LU6 -> 0 | LV60: =LV6 -> 0 | LW60: =LW6 -> 0 | LX60: =LX6 -> 0 | LY60: =LY6 -> 0 | LZ60: =LZ6 -> 0 | MA60: =MA6 -> 0 | MB60: =MB6 -> 0 | MC60: =MC6 -> 0 | MD60: =MD6 -> 0 | ME60: =ME6 -> 0 | MF60: =MF6 -> 0 | MG60: =MG6 -> 0 | MH60: =MH6 -> 0 | MI60: =MI6 -> 0 | MJ60: =MJ6 -> 0 | MK60: =MK6 -> 0 | ML60: =ML6 -> 0 | MM60: =MM6 -> 0 | MN60: =MN6 -> 0 | MO60: =MO6 -> 0 | MP60: =MP6 -> 0 | MQ60: =MQ6 -> 0 | MR60: =MR6 -> 0 | MS60: =MS6 -> 0 | MT60: =MT6 -> 0 | MU60: =MU6 -> 0 | MV60: =MV6 -> 0 | MW60: =MW6 -> 0 | MX60: =MX6 -> 0 | MY60: =MY6 -> 0 | MZ60: =MZ6 -> 0 | NA60: =NA6 -> 0 | NB60: =NB6 -> 0 | NC60: =NC6 -> 0 | ND60: =ND6 -> 0 | NE60: =NE6 -> 0 | NF60: =NF6 -> 0 | NG60: =NG6 -> 0 | NH60: =NH6 -> 0 | NI60: =NI6 -> 0 | NJ60: =NJ6 -> 0 | NK60: =NK6 -> 0 | NL60: =NL6 -> 0 | NM60: =NM6 -> 0 | NN60: =NN6 -> 0 | NO60: =NO6 -> 0 | NP60: =NP6 -> 0 | NQ60: =NQ6 -> 0 | NR60: =NR6 -> 0 | NS60: =NS6 -> 0 | NT60: =NT6 -> 0 | NU60: =NU6 -> 0 | NV60: =NV6 -> 0 | NW60: =NW6 -> 0 | NX60: =NX6 -> 0 | NY60: =NY6 -> 0 | NZ60: =NZ6 -> 0 | OA60: =OA6 -> 0 | OB60: =OB6 -> 0 | OC60: =OC6 -> 0 | OD60: =OD6 -> 0 | OE60: =OE6 -> 0 | OF60: =OF6 -> 0 | OG60: =OG6 -> 0 | OH60: =OH6 -> 0 | OI60: =OI6 -> 0 | OJ60: =OJ6 -> 0 | OK60: =OK6 -> 0 | OL60: =OL6 -> 0 | OM60: =OM6 -> 0 | ON60: =ON6 -> 0 | OO60: =OO6 -> 0 | OP60: =OP6 -> 0 | OQ60: =OQ6 -> 0 | OR60: =OR6 -> 0 | OS60: =OS6 -> 0 | OT60: =OT6 -> 0 | OU60: =OU6 -> 0 | OV60: =OV6 -> 0 | OW60: =OW6 -> 0 | OX60: =OX6 -> 0 | OY60: =OY6 -> 0 | OZ60: =OZ6 -> 0 | PA60: =PA6 -> 0 | PB60: =PB6 -> 0 | PC60: =PC6 -> 0 | PD60: =PD6 -> 0 | PE60: =PE6 -> 0 | PF60: =PF6 -> 0 | PG60: =PG6 -> 0 | PH60: =PH6 -> 0 | PI60: =PI6 -> 0 | PJ60: =PJ6 -> 0 | PK60: =PK6 -> 0 | PL60: =PL6 -> 0 | PM60: =PM6 -> 0 | PN60: =PN6 -> 0 | PO60: =PO6 -> 0 | PP60: =PP6 -> 0 | PQ60: =PQ6 -> 0 | PR60: =PR6 -> 0 | PS60: =PS6 -> 0 | PT60: =PT6 -> 0 | PU60: =PU6 -> 0 | PV60: =PV6 -> 0 | PW60: =PW6 -> 0 | PX60: =PX6 -> 0 | PY60: =PY6 -> 0 | PZ60: =PZ6 -> 0 | QA60: =QA6 -> 0 | QB60: =QB6 -> 0 | QC60: =QC6 -> 0 | QD60: =QD6 -> 0 | QE60: =QE6 -> 0 | QF60: =QF6 -> 0 | QG60: =QG6 -> 0 | QH60: =QH6 -> 0 | QI60: =QI6 -> 0 | QJ60: =QJ6 -> 0 | QK60: =QK6 -> 0 | QL60: =QL6 -> 0 | QM60: =QM6 -> 0 | QN60: =QN6 -> 0 | QO60: =QO6 -> 0 | QP60: =QP6 -> 0 | QQ60: =QQ6 -> 0 | QR60: =QR6 -> 0 | QS60: =QS6 -> 0 | QT60: =QT6 -> 0 | QU60: =QU6 -> 0 | QV60: =QV6 -> 0 | QW60: =QW6 -> 0 | QX60: =QX6 -> 0 | QY60: =QY6 -> 0 | QZ60: =QZ6 -> 0 | RA60: =RA6 -> 0 | RB60: =RB6 -> 0 | RC60: =RC6 -> 0 | RD60: =RD6 -> 0 | RE60: =RE6 -> 0 | RF60: =RF6 -> 0 | RG60: =RG6 -> 0 | RH60: =RH6 -> 0 | RI60: =RI6 -> 0 | RJ60: =RJ6 -> 0 | RK60: =RK6 -> 0 | RL60: =RL6 -> 0 | RM60: =RM6 -> 0 | RN60: =RN6 -> 0 | RO60: =RO6 -> 0 | RP60: =RP6 -> 0 | RQ60: =RQ6 -> 0 | RR60: =RR6 -> 0 | RS60: =RS6 -> 0 | RT60: =RT6 -> 0 | RU60: =RU6 -> 0 | RV60: =RV6 -> 0 | RW60: =RW6 -> 0 | RX60: =RX6 -> 0 | RY60: =RY6 -> 0 | RZ60: =RZ6 -> 0 | SA60: =SA6 -> 0 | SB60: =SB6 -> 0 | SC60: =SC6 -> 0 | SD60: =SD6 -> 0 | SE60: =SE6 -> 0 | SF60: =SF6 -> 0 | SG60: =SG6 -> 0 | SH60: =SH6 -> 0 | SI60: =SI6 -> 0 | SJ60: =SJ6 -> 0 | SK60: =SK6 -> 0 | SL60: =SL6 -> 0 | SM60: =SM6 -> 0 | SN60: =SN6 -> 0 | SO60: =SO6 -> 0 | SP60: =SP6 -> 0 | SQ60: =SQ6 -> 0 | SR60: =SR6 -> 0 | SS60: =SS6 -> 0 | ST60: =ST6 -> 0 | SU60: =SU6 -> 0 | SV60: =SV6 -> 0 | SW60: =SW6 -> 0 | SX60: =SX6 -> 0 | SY60: =SY6 -> 0 | SZ60: =SZ6 -> 0 | TA60: =TA6 -> 0 | TB60: =TB6 -> 0 | TC60: =TC6 -> 0
D61: NOPAT | K61: =K60*J58*K52 -> 0 | L61: =L60*K58*L52 -> 0 | M61: =M60*L58*M52 -> 0 | N61: =N60*M58*N52 -> 0 | O61: =O60*N58*O52 -> 0 | P61: =P60*O58*P52 -> 0 | Q61: =Q60*P58*Q52 -> 0 | R61: =R60*Q58*R52 -> 0 | S61: =S60*R58*S52 -> 0 | T61: =T60*S58*T52 -> 0 | U61: =U60*T58*U52 -> 0 | V61: =V60*U58*V52 -> 0 | W61: =W60*V58*W52 -> 0 | X61: =X60*W58*X52 -> 0 | Y61: =Y60*X58*Y52 -> 0 | Z61: =Z60*Z58*Z52 -> 0 | AA61: =AA60*AA58*AA52 -> 0 | AB61: =AB60*AB58*AB52 -> 0 | AC61: =AC60*AC58*AC52 -> 0 | AD61: =AD60*AD58*AD52 -> 0 | AE61: =AE60*AE58*AE52 -> 0 | AF61: =AF60*AF58*AF52 -> 0 | AG61: =AG60*AG58*AG52 -> 0 | AH61: =AH60*AH58*AH52 -> 0 | AI61: =AI60*AI58*AI52 -> 0 | AJ61: =AJ60*AJ58*AJ52 -> 0 | AK61: =AK60*AK58*AK52 -> 0 | AL61: =AL60*AL58*AL52 -> 0 | AM61: =AM60*AM58*AM52 -> 0 | AN61: =AN60*AN58*AN52 -> 0 | AO61: =AO60*AO58*AO52 -> 0 | AP61: =AP60*AP58*AP52 -> 0 | AQ61: =AQ60*AQ58*AQ52 -> 0 | AR61: =AR60*AR58*AR52 -> 0 | AS61: =AS60*AS58*AS52 -> 0 | AT61: =AT60*AT58*AT52 -> 0 | AU61: =AU60*AU58*AU52 -> 0 | AV61: =AV60*AV58*AV52 -> 0 | AW61: =AW60*AW58*AW52 -> 0 | AX61: =AX60*AX58*AX52 -> 0 | AY61: =AY60*AY58*AY52 -> 0 | AZ61: =AZ60*AZ58*AZ52 -> 0 | BA61: =BA60*BA58*BA52 -> 0 | BB61: =BB60*BB58*BB52 -> 0 | BC61: =BC60*BC58*BC52 -> 0 | BD61: =BD60*BD58*BD52 -> 0 | BE61: =BE60*BE58*BE52 -> 0 | BF61: =BF60*BF58*BF52 -> 0 | BG61: =BG60*BG58*BG52 -> 0 | BH61: =BH60*BH58*BH52 -> 0 | BI61: =BI60*BI58*BI52 -> 0 | BJ61: =BJ60*BJ58*BJ52 -> 0 | BK61: =BK60*BK58*BK52 -> 0 | BL61: =BL60*BL58*BL52 -> 0 | BM61: =BM60*BM58*BM52 -> 0 | BN61: =BN60*BN58*BN52 -> 0 | BO61: =BO60*BO58*BO52 -> 0 | BP61: =BP60*BP58*BP52 -> 0 | BQ61: =BQ60*BQ58*BQ52 -> 0 | BR61: =BR60*BR58*BR52 -> 0 | BS61: =BS60*BS58*BS52 -> 0 | BT61: =BT60*BT58*BT52 -> 0 | BU61: =BU60*BU58*BU52 -> 0 | BV61: =BV60*BV58*BV52 -> 0 | BW61: =BW60*BW58*BW52 -> 0 | BX61: =BX60*BX58*BX52 -> 0 | BY61: =BY60*BY58*BY52 -> 0 | BZ61: =BZ60*BZ58*BZ52 -> 0 | CA61: =CA60*CA58*CA52 -> 0 | CB61: =CB60*CB58*CB52 -> 0 | CC61: =CC60*CC58*CC52 -> 0 | CD61: =CD60*CD58*CD52 -> 0 | CE61: =CE60*CE58*CE52 -> 0 | CF61: =CF60*CF58*CF52 -> 0 | CG61: =CG60*CG58*CG52 -> 0 | CH61: =CH60*CH58*CH52 -> 0 | CI61: =CI60*CI58*CI52 -> 0 | CJ61: =CJ60*CJ58*CJ52 -> 0 | CK61: =CK60*CK58*CK52 -> 0 | CL61: =CL60*CL58*CL52 -> 0 | CM61: =CM60*CM58*CM52 -> 0 | CN61: =CN60*CN58*CN52 -> 0 | CO61: =CO60*CO58*CO52 -> 0 | CP61: =CP60*CP58*CP52 -> 0 | CQ61: =CQ60*CQ58*CQ52 -> 0 | CR61: =CR60*CR58*CR52 -> 0 | CS61: =CS60*CS58*CS52 -> 0 | CT61: =CT60*CT58*CT52 -> 0 | CU61: =CU60*CU58*CU52 -> 0 | CV61: =CV60*CV58*CV52 -> 0 | CW61: =CW60*CW58*CW52 -> 0 | CX61: =CX60*CX58*CX52 -> 0 | CY61: =CY60*CY58*CY52 -> 0 | CZ61: =CZ60*CZ58*CZ52 -> 0 | DA61: =DA60*DA58*DA52 -> 0 | DB61: =DB60*DB58*DB52 -> 0 | DC61: =DC60*DC58*DC52 -> 0 | DD61: =DD60*DD58*DD52 -> 0 | DE61: =DE60*DE58*DE52 -> 0 | DF61: =DF60*DF58*DF52 -> 0 | DG61: =DG60*DG58*DG52 -> 0 | DH61: =DH60*DH58*DH52 -> 0 | DI61: =DI60*DI58*DI52 -> 0 | DJ61: =DJ60*DJ58*DJ52 -> 0 | DK61: =DK60*DK58*DK52 -> 0 | DL61: =DL60*DL58*DL52 -> 0 | DM61: =DM60*DM58*DM52 -> 0 | DN61: =DN60*DN58*DN52 -> 0 | DO61: =DO60*DO58*DO52 -> 0 | DP61: =DP60*DP58*DP52 -> 0 | DQ61: =DQ60*DQ58*DQ52 -> 0 | DR61: =DR60*DR58*DR52 -> 0 | DS61: =DS60*DS58*DS52 -> 0 | DT61: =DT60*DT58*DT52 -> 0 | DU61: =DU60*DU58*DU52 -> 0 | DV61: =DV60*DV58*DV52 -> 0 | DW61: =DW60*DW58*DW52 -> 0 | DX61: =DX60*DX58*DX52 -> 0 | DY61: =DY60*DY58*DY52 -> 0 | DZ61: =DZ60*DZ58*DZ52 -> 0 | EA61: =EA60*EA58*EA52 -> 0 | EB61: =EB60*EB58*EB52 -> 0 | EC61: =EC60*EC58*EC52 -> 0 | ED61: =ED60*ED58*ED52 -> 0 | EE61: =EE60*EE58*EE52 -> 0 | EF61: =EF60*EF58*EF52 -> 0 | EG61: =EG60*EG58*EG52 -> 0 | EH61: =EH60*EH58*EH52 -> 0 | EI61: =EI60*EI58*EI52 -> 0 | EJ61: =EJ60*EJ58*EJ52 -> 0 | EK61: =EK60*EK58*EK52 -> 0 | EL61: =EL60*EL58*EL52 -> 0 | EM61: =EM60*EM58*EM52 -> 0 | EN61: =EN60*EN58*EN52 -> 0 | EO61: =EO60*EO58*EO52 -> 0 | EP61: =EP60*EP58*EP52 -> 0 | EQ61: =EQ60*EQ58*EQ52 -> 0 | ER61: =ER60*ER58*ER52 -> 0 | ES61: =ES60*ES58*ES52 -> 0 | ET61: =ET60*ET58*ET52 -> 0 | EU61: =EU60*EU58*EU52 -> 0 | EV61: =EV60*EV58*EV52 -> 0 | EW61: =EW60*EW58*EW52 -> 0 | EX61: =EX60*EX58*EX52 -> 0 | EY61: =EY60*EY58*EY52 -> 0 | EZ61: =EZ60*EZ58*EZ52 -> 0 | FA61: =FA60*FA58*FA52 -> 0 | FB61: =FB60*FB58*FB52 -> 0 | FC61: =FC60*FC58*FC52 -> 0 | FD61: =FD60*FD58*FD52 -> 0 | FE61: =FE60*FE58*FE52 -> 0 | FF61: =FF60*FF58*FF52 -> 0 | FG61: =FG60*FG58*FG52 -> 0 | FH61: =FH60*FH58*FH52 -> 0 | FI61: =FI60*FI58*FI52 -> 0 | FJ61: =FJ60*FJ58*FJ52 -> 0 | FK61: =FK60*FK58*FK52 -> 0 | FL61: =FL60*FL58*FL52 -> 0 | FM61: =FM60*FM58*FM52 -> 0 | FN61: =FN60*FN58*FN52 -> 0 | FO61: =FO60*FO58*FO52 -> 0 | FP61: =FP60*FP58*FP52 -> 0 | FQ61: =FQ60*FQ58*FQ52 -> 0 | FR61: =FR60*FR58*FR52 -> 0 | FS61: =FS60*FS58*FS52 -> 0 | FT61: =FT60*FT58*FT52 -> 0 | FU61: =FU60*FU58*FU52 -> 0 | FV61: =FV60*FV58*FV52 -> 0 | FW61: =FW60*FW58*FW52 -> 0 | FX61: =FX60*FX58*FX52 -> 0 | FY61: =FY60*FY58*FY52 -> 0 | FZ61: =FZ60*FZ58*FZ52 -> 0 | GA61: =GA60*GA58*GA52 -> 0 | GB61: =GB60*GB58*GB52 -> 0 | GC61: =GC60*GC58*GC52 -> 0 | GD61: =GD60*GD58*GD52 -> 0 | GE61: =GE60*GE58*GE52 -> 0 | GF61: =GF60*GF58*GF52 -> 0 | GG61: =GG60*GG58*GG52 -> 0 | GH61: =GH60*GH58*GH52 -> 0 | GI61: =GI60*GI58*GI52 -> 0 | GJ61: =GJ60*GJ58*GJ52 -> 0 | GK61: =GK60*GK58*GK52 -> 0 | GL61: =GL60*GL58*GL52 -> 0 | GM61: =GM60*GM58*GM52 -> 0 | GN61: =GN60*GN58*GN52 -> 0 | GO61: =GO60*GO58*GO52 -> 0 | GP61: =GP60*GP58*GP52 -> 0 | GQ61: =GQ60*GQ58*GQ52 -> 0 | GR61: =GR60*GR58*GR52 -> 0 | GS61: =GS60*GS58*GS52 -> 0 | GT61: =GT60*GT58*GT52 -> 0 | GU61: =GU60*GU58*GU52 -> 0 | GV61: =GV60*GV58*GV52 -> 0 | GW61: =GW60*GW58*GW52 -> 0 | GX61: =GX60*GX58*GX52 -> 0 | GY61: =GY60*GY58*GY52 -> 0 | GZ61: =GZ60*GZ58*GZ52 -> 0 | HA61: =HA60*HA58*HA52 -> 0 | HB61: =HB60*HB58*HB52 -> 0 | HC61: =HC60*HC58*HC52 -> 0 | HD61: =HD60*HD58*HD52 -> 0 | HE61: =HE60*HE58*HE52 -> 0 | HF61: =HF60*HF58*HF52 -> 0 | HG61: =HG60*HG58*HG52 -> 0 | HH61: =HH60*HH58*HH52 -> 0 | HI61: =HI60*HI58*HI52 -> 0 | HJ61: =HJ60*HJ58*HJ52 -> 0 | HK61: =HK60*HK58*HK52 -> 0 | HL61: =HL60*HL58*HL52 -> 0 | HM61: =HM60*HM58*HM52 -> 0 | HN61: =HN60*HN58*HN52 -> 0 | HO61: =HO60*HO58*HO52 -> 0 | HP61: =HP60*HP58*HP52 -> 0 | HQ61: =HQ60*HQ58*HQ52 -> 0 | HR61: =HR60*HR58*HR52 -> 0 | HS61: =HS60*HS58*HS52 -> 0 | HT61: =HT60*HT58*HT52 -> 0 | HU61: =HU60*HU58*HU52 -> 0 | HV61: =HV60*HV58*HV52 -> 0 | HW61: =HW60*HW58*HW52 -> 0 | HX61: =HX60*HX58*HX52 -> 0 | HY61: =HY60*HY58*HY52 -> 0 | HZ61: =HZ60*HZ58*HZ52 -> 0 | IA61: =IA60*IA58*IA52 -> 0 | IB61: =IB60*IB58*IB52 -> 0 | IC61: =IC60*IC58*IC52 -> 0 | ID61: =ID60*ID58*ID52 -> 0 | IE61: =IE60*IE58*IE52 -> 0 | IF61: =IF60*IF58*IF52 -> 0 | IG61: =IG60*IG58*IG52 -> 0 | IH61: =IH60*IH58*IH52 -> 0 | II61: =II60*II58*II52 -> 0 | IJ61: =IJ60*IJ58*IJ52 -> 0 | IK61: =IK60*IK58*IK52 -> 0 | IL61: =IL60*IL58*IL52 -> 0 | IM61: =IM60*IM58*IM52 -> 0 | IN61: =IN60*IN58*IN52 -> 0 | IO61: =IO60*IO58*IO52 -> 0 | IP61: =IP60*IP58*IP52 -> 0 | IQ61: =IQ60*IQ58*IQ52 -> 0 | IR61: =IR60*IR58*IR52 -> 0 | IS61: =IS60*IS58*IS52 -> 0 | IT61: =IT60*IT58*IT52 -> 0 | IU61: =IU60*IU58*IU52 -> 0 | IV61: =IV60*IV58*IV52 -> 0 | IW61: =IW60*IW58*IW52 -> 0 | IX61: =IX60*IX58*IX52 -> 0 | IY61: =IY60*IY58*IY52 -> 0 | IZ61: =IZ60*IZ58*IZ52 -> 0 | JA61: =JA60*JA58*JA52 -> 0 | JB61: =JB60*JB58*JB52 -> 0 | JC61: =JC60*JC58*JC52 -> 0 | JD61: =JD60*JD58*JD52 -> 0 | JE61: =JE60*JE58*JE52 -> 0 | JF61: =JF60*JF58*JF52 -> 0 | JG61: =JG60*JG58*JG52 -> 0 | JH61: =JH60*JH58*JH52 -> 0 | JI61: =JI60*JI58*JI52 -> 0 | JJ61: =JJ60*JJ58*JJ52 -> 0 | JK61: =JK60*JK58*JK52 -> 0 | JL61: =JL60*JL58*JL52 -> 0 | JM61: =JM60*JM58*JM52 -> 0 | JN61: =JN60*JN58*JN52 -> 0 | JO61: =JO60*JO58*JO52 -> 0 | JP61: =JP60*JP58*JP52 -> 0 | JQ61: =JQ60*JQ58*JQ52 -> 0 | JR61: =JR60*JR58*JR52 -> 0 | JS61: =JS60*JS58*JS52 -> 0 | JT61: =JT60*JT58*JT52 -> 0 | JU61: =JU60*JU58*JU52 -> 0 | JV61: =JV60*JV58*JV52 -> 0 | JW61: =JW60*JW58*JW52 -> 0 | JX61: =JX60*JX58*JX52 -> 0 | JY61: =JY60*JY58*JY52 -> 0 | JZ61: =JZ60*JZ58*JZ52 -> 0 | KA61: =KA60*KA58*KA52 -> 0 | KB61: =KB60*KB58*KB52 -> 0 | KC61: =KC60*KC58*KC52 -> 0 | KD61: =KD60*KD58*KD52 -> 0 | KE61: =KE60*KE58*KE52 -> 0 | KF61: =KF60*KF58*KF52 -> 0 | KG61: =KG60*KG58*KG52 -> 0 | KH61: =KH60*KH58*KH52 -> 0 | KI61: =KI60*KI58*KI52 -> 0 | KJ61: =KJ60*KJ58*KJ52 -> 0 | KK61: =KK60*KK58*KK52 -> 0 | KL61: =KL60*KL58*KL52 -> 0 | KM61: =KM60*KM58*KM52 -> 0 | KN61: =KN60*KN58*KN52 -> 0 | KO61: =KO60*KO58*KO52 -> 0 | KP61: =KP60*KP58*KP52 -> 0 | KQ61: =KQ60*KQ58*KQ52 -> 0 | KR61: =KR60*KR58*KR52 -> 0 | KS61: =KS60*KS58*KS52 -> 0 | KT61: =KT60*KT58*KT52 -> 0 | KU61: =KU60*KU58*KU52 -> 0 | KV61: =KV60*KV58*KV52 -> 0 | KW61: =KW60*KW58*KW52 -> 0 | KX61: =KX60*KX58*KX52 -> 0 | KY61: =KY60*KY58*KY52 -> 0 | KZ61: =KZ60*KZ58*KZ52 -> 0 | LA61: =LA60*LA58*LA52 -> 0 | LB61: =LB60*LB58*LB52 -> 0 | LC61: =LC60*LC58*LC52 -> 0 | LD61: =LD60*LD58*LD52 -> 0 | LE61: =LE60*LE58*LE52 -> 0 | LF61: =LF60*LF58*LF52 -> 0 | LG61: =LG60*LG58*LG52 -> 0 | LH61: =LH60*LH58*LH52 -> 0 | LI61: =LI60*LI58*LI52 -> 0 | LJ61: =LJ60*LJ58*LJ52 -> 0 | LK61: =LK60*LK58*LK52 -> 0 | LL61: =LL60*LL58*LL52 -> 0 | LM61: =LM60*LM58*LM52 -> 0 | LN61: =LN60*LN58*LN52 -> 0 | LO61: =LO60*LO58*LO52 -> 0 | LP61: =LP60*LP58*LP52 -> 0 | LQ61: =LQ60*LQ58*LQ52 -> 0 | LR61: =LR60*LR58*LR52 -> 0 | LS61: =LS60*LS58*LS52 -> 0 | LT61: =LT60*LT58*LT52 -> 0 | LU61: =LU60*LU58*LU52 -> 0 | LV61: =LV60*LV58*LV52 -> 0 | LW61: =LW60*LW58*LW52 -> 0 | LX61: =LX60*LX58*LX52 -> 0 | LY61: =LY60*LY58*LY52 -> 0 | LZ61: =LZ60*LZ58*LZ52 -> 0 | MA61: =MA60*MA58*MA52 -> 0 | MB61: =MB60*MB58*MB52 -> 0 | MC61: =MC60*MC58*MC52 -> 0 | MD61: =MD60*MD58*MD52 -> 0 | ME61: =ME60*ME58*ME52 -> 0 | MF61: =MF60*MF58*MF52 -> 0 | MG61: =MG60*MG58*MG52 -> 0 | MH61: =MH60*MH58*MH52 -> 0 | MI61: =MI60*MI58*MI52 -> 0 | MJ61: =MJ60*MJ58*MJ52 -> 0 | MK61: =MK60*MK58*MK52 -> 0 | ML61: =ML60*ML58*ML52 -> 0 | MM61: =MM60*MM58*MM52 -> 0 | MN61: =MN60*MN58*MN52 -> 0 | MO61: =MO60*MO58*MO52 -> 0 | MP61: =MP60*MP58*MP52 -> 0 | MQ61: =MQ60*MQ58*MQ52 -> 0 | MR61: =MR60*MR58*MR52 -> 0 | MS61: =MS60*MS58*MS52 -> 0 | MT61: =MT60*MT58*MT52 -> 0 | MU61: =MU60*MU58*MU52 -> 0 | MV61: =MV60*MV58*MV52 -> 0 | MW61: =MW60*MW58*MW52 -> 0 | MX61: =MX60*MX58*MX52 -> 0 | MY61: =MY60*MY58*MY52 -> 0 | MZ61: =MZ60*MZ58*MZ52 -> 0 | NA61: =NA60*NA58*NA52 -> 0 | NB61: =NB60*NB58*NB52 -> 0 | NC61: =NC60*NC58*NC52 -> 0 | ND61: =ND60*ND58*ND52 -> 0 | NE61: =NE60*NE58*NE52 -> 0 | NF61: =NF60*NF58*NF52 -> 0 | NG61: =NG60*NG58*NG52 -> 0 | NH61: =NH60*NH58*NH52 -> 0 | NI61: =NI60*NI58*NI52 -> 0 | NJ61: =NJ60*NJ58*NJ52 -> 0 | NK61: =NK60*NK58*NK52 -> 0 | NL61: =NL60*NL58*NL52 -> 0 | NM61: =NM60*NM58*NM52 -> 0 | NN61: =NN60*NN58*NN52 -> 0 | NO61: =NO60*NO58*NO52 -> 0 | NP61: =NP60*NP58*NP52 -> 0 | NQ61: =NQ60*NQ58*NQ52 -> 0 | NR61: =NR60*NR58*NR52 -> 0 | NS61: =NS60*NS58*NS52 -> 0 | NT61: =NT60*NT58*NT52 -> 0 | NU61: =NU60*NU58*NU52 -> 0 | NV61: =NV60*NV58*NV52 -> 0 | NW61: =NW60*NW58*NW52 -> 0 | NX61: =NX60*NX58*NX52 -> 0 | NY61: =NY60*NY58*NY52 -> 0 | NZ61: =NZ60*NZ58*NZ52 -> 0 | OA61: =OA60*OA58*OA52 -> 0 | OB61: =OB60*OB58*OB52 -> 0 | OC61: =OC60*OC58*OC52 -> 0 | OD61: =OD60*OD58*OD52 -> 0 | OE61: =OE60*OE58*OE52 -> 0 | OF61: =OF60*OF58*OF52 -> 0 | OG61: =OG60*OG58*OG52 -> 0 | OH61: =OH60*OH58*OH52 -> 0 | OI61: =OI60*OI58*OI52 -> 0 | OJ61: =OJ60*OJ58*OJ52 -> 0 | OK61: =OK60*OK58*OK52 -> 0 | OL61: =OL60*OL58*OL52 -> 0 | OM61: =OM60*OM58*OM52 -> 0 | ON61: =ON60*ON58*ON52 -> 0 | OO61: =OO60*OO58*OO52 -> 0 | OP61: =OP60*OP58*OP52 -> 0 | OQ61: =OQ60*OQ58*OQ52 -> 0 | OR61: =OR60*OR58*OR52 -> 0 | OS61: =OS60*OS58*OS52 -> 0 | OT61: =OT60*OT58*OT52 -> 0 | OU61: =OU60*OU58*OU52 -> 0 | OV61: =OV60*OV58*OV52 -> 0 | OW61: =OW60*OW58*OW52 -> 0 | OX61: =OX60*OX58*OX52 -> 0 | OY61: =OY60*OY58*OY52 -> 0 | OZ61: =OZ60*OZ58*OZ52 -> 0 | PA61: =PA60*PA58*PA52 -> 0 | PB61: =PB60*PB58*PB52 -> 0 | PC61: =PC60*PC58*PC52 -> 0 | PD61: =PD60*PD58*PD52 -> 0 | PE61: =PE60*PE58*PE52 -> 0 | PF61: =PF60*PF58*PF52 -> 0 | PG61: =PG60*PG58*PG52 -> 0 | PH61: =PH60*PH58*PH52 -> 0 | PI61: =PI60*PI58*PI52 -> 0 | PJ61: =PJ60*PJ58*PJ52 -> 0 | PK61: =PK60*PK58*PK52 -> 0 | PL61: =PL60*PL58*PL52 -> 0 | PM61: =PM60*PM58*PM52 -> 0 | PN61: =PN60*PN58*PN52 -> 0 | PO61: =PO60*PO58*PO52 -> 0 | PP61: =PP60*PP58*PP52 -> 0 | PQ61: =PQ60*PQ58*PQ52 -> 0 | PR61: =PR60*PR58*PR52 -> 0 | PS61: =PS60*PS58*PS52 -> 0 | PT61: =PT60*PT58*PT52 -> 0 | PU61: =PU60*PU58*PU52 -> 0 | PV61: =PV60*PV58*PV52 -> 0 | PW61: =PW60*PW58*PW52 -> 0 | PX61: =PX60*PX58*PX52 -> 0 | PY61: =PY60*PY58*PY52 -> 0 | PZ61: =PZ60*PZ58*PZ52 -> 0 | QA61: =QA60*QA58*QA52 -> 0 | QB61: =QB60*QB58*QB52 -> 0 | QC61: =QC60*QC58*QC52 -> 0 | QD61: =QD60*QD58*QD52 -> 0 | QE61: =QE60*QE58*QE52 -> 0 | QF61: =QF60*QF58*QF52 -> 0 | QG61: =QG60*QG58*QG52 -> 0 | QH61: =QH60*QH58*QH52 -> 0 | QI61: =QI60*QI58*QI52 -> 0 | QJ61: =QJ60*QJ58*QJ52 -> 0 | QK61: =QK60*QK58*QK52 -> 0 | QL61: =QL60*QL58*QL52 -> 0 | QM61: =QM60*QM58*QM52 -> 0 | QN61: =QN60*QN58*QN52 -> 0 | QO61: =QO60*QO58*QO52 -> 0 | QP61: =QP60*QP58*QP52 -> 0 | QQ61: =QQ60*QQ58*QQ52 -> 0 | QR61: =QR60*QR58*QR52 -> 0 | QS61: =QS60*QS58*QS52 -> 0 | QT61: =QT60*QT58*QT52 -> 0 | QU61: =QU60*QU58*QU52 -> 0 | QV61: =QV60*QV58*QV52 -> 0 | QW61: =QW60*QW58*QW52 -> 0 | QX61: =QX60*QX58*QX52 -> 0 | QY61: =QY60*QY58*QY52 -> 0 | QZ61: =QZ60*QZ58*QZ52 -> 0 | RA61: =RA60*RA58*RA52 -> 0 | RB61: =RB60*RB58*RB52 -> 0 | RC61: =RC60*RC58*RC52 -> 0 | RD61: =RD60*RD58*RD52 -> 0 | RE61: =RE60*RE58*RE52 -> 0 | RF61: =RF60*RF58*RF52 -> 0 | RG61: =RG60*RG58*RG52 -> 0 | RH61: =RH60*RH58*RH52 -> 0 | RI61: =RI60*RI58*RI52 -> 0 | RJ61: =RJ60*RJ58*RJ52 -> 0 | RK61: =RK60*RK58*RK52 -> 0 | RL61: =RL60*RL58*RL52 -> 0 | RM61: =RM60*RM58*RM52 -> 0 | RN61: =RN60*RN58*RN52 -> 0 | RO61: =RO60*RO58*RO52 -> 0 | RP61: =RP60*RP58*RP52 -> 0 | RQ61: =RQ60*RQ58*RQ52 -> 0 | RR61: =RR60*RR58*RR52 -> 0 | RS61: =RS60*RS58*RS52 -> 0 | RT61: =RT60*RT58*RT52 -> 0 | RU61: =RU60*RU58*RU52 -> 0 | RV61: =RV60*RV58*RV52 -> 0 | RW61: =RW60*RW58*RW52 -> 0 | RX61: =RX60*RX58*RX52 -> 0 | RY61: =RY60*RY58*RY52 -> 0 | RZ61: =RZ60*RZ58*RZ52 -> 0 | SA61: =SA60*SA58*SA52 -> 0 | SB61: =SB60*SB58*SB52 -> 0 | SC61: =SC60*SC58*SC52 -> 0 | SD61: =SD60*SD58*SD52 -> 0 | SE61: =SE60*SE58*SE52 -> 0 | SF61: =SF60*SF58*SF52 -> 0 | SG61: =SG60*SG58*SG52 -> 0 | SH61: =SH60*SH58*SH52 -> 0 | SI61: =SI60*SI58*SI52 -> 0 | SJ61: =SJ60*SJ58*SJ52 -> 0 | SK61: =SK60*SK58*SK52 -> 0 | SL61: =SL60*SL58*SL52 -> 0 | SM61: =SM60*SM58*SM52 -> 0 | SN61: =SN60*SN58*SN52 -> 0 | SO61: =SO60*SO58*SO52 -> 0 | SP61: =SP60*SP58*SP52 -> 0 | SQ61: =SQ60*SQ58*SQ52 -> 0 | SR61: =SR60*SR58*SR52 -> 0 | SS61: =SS60*SS58*SS52 -> 0 | ST61: =ST60*ST58*ST52 -> 0 | SU61: =SU60*SU58*SU52 -> 0 | SV61: =SV60*SV58*SV52 -> 0 | SW61: =SW60*SW58*SW52 -> 0 | SX61: =SX60*SX58*SX52 -> 0 | SY61: =SY60*SY58*SY52 -> 0 | SZ61: =SZ60*SZ58*SZ52 -> 0 | TA61: =TA60*TA58*TA52 -> 0 | TB61: =TB60*TB58*TB52 -> 0 | TC61: =TC60*TC58*TC52 -> 0
D62: Cash Flow | K62: =(K61-K59)*K54 -> 0 | L62: =(L61-L59)*L54 -> 0 | M62: 0 | N62: 0 | O62: 0 | P62: 0 | Q62: 0 | R62: 0 | S62: 0 | T62: 0 | U62: 0 | V62: 0 | W62: 0 | X62: 0 | Y62: 0 | Z62: 0 | AA62: 0 | AB62: 0 | AC62: 0 | AD62: 0 | AE62: 0 | AF62: 0 | AG62: 0 | AH62: 0 | AI62: 0 | AJ62: 0 | AK62: 0 | AL62: 0 | AM62: 0 | AN62: 0 | AO62: 0 | AP62: 0 | AQ62: 0 | AR62: 0 | AS62: 0 | AT62: 0 | AU62: 0 | AV62: 0 | AW62: 0 | AX62: 0 | AY62: 0 | AZ62: 0 | BA62: 0 | BB62: 0 | BC62: 0 | BD62: 0 | BE62: 0 | BF62: 0 | BG62: 0 | BH62: 0 | BI62: 0 | BJ62: 0 | BK62: 0 | BL62: 0 | BM62: 0 | BN62: 0 | BO62: 0 | BP62: 0 | BQ62: 0 | BR62: 0 | BS62: 0 | BT62: 0 | BU62: 0 | BV62: 0 | BW62: 0 | BX62: =(BX61-BX59)*BX54 -> 0 | BY62: 0 | BZ62: 0 | CA62: 0 | CB62: 0 | CC62: 0 | CD62: 0 | CE62: 0 | CF62: 0 | CG62: 0 | CH62: 0 | CI62: 0 | CJ62: 0 | CK62: 0 | CL62: 0 | CM62: 0 | CN62: 0 | CO62: 0 | CP62: 0 | CQ62: 0 | CR62: 0 | CS62: 0 | CT62: 0 | CU62: 0 | CV62: 0 | CW62: 0 | CX62: 0 | CY62: 0 | CZ62: 0 | DA62: 0 | DB62: 0 | DC62: 0 | DD62: 0 | DE62: 0 | DF62: 0 | DG62: 0 | DH62: 0 | DI62: 0 | DJ62: 0 | DK62: 0 | DL62: 0 | DM62: 0 | DN62: 0 | DO62: 0 | DP62: 0 | DQ62: 0 | DR62: 0 | DS62: 0 | DT62: 0 | DU62: 0 | DV62: 0 | DW62: 0 | DX62: 0 | DY62: 0 | DZ62: 0 | EA62: 0 | EB62: 0 | EC62: 0 | ED62: 0 | EE62: 0 | EF62: 0 | EG62: 0 | EH62: 0 | EI62: 0 | EJ62: =(EJ61-EJ59)*EJ54 -> 0 | EK62: 0 | EL62: 0 | EM62: 0 | EN62: 0 | EO62: 0 | EP62: 0 | EQ62: 0 | ER62: 0 | ES62: 0 | ET62: 0 | EU62: 0 | EV62: 0 | EW62: 0 | EX62: 0 | EY62: 0 | EZ62: 0 | FA62: 0 | FB62: 0 | FC62: 0 | FD62: 0 | FE62: 0 | FF62: 0 | FG62: 0 | FH62: 0 | FI62: 0 | FJ62: 0 | FK62: 0 | FL62: 0 | FM62: 0 | FN62: 0 | FO62: 0 | FP62: 0 | FQ62: 0 | FR62: 0 | FS62: 0 | FT62: 0 | FU62: 0 | FV62: 0 | FW62: 0 | FX62: 0 | FY62: 0 | FZ62: 0 | GA62: 0 | GB62: 0 | GC62: 0 | GD62: 0 | GE62: 0 | GF62: 0 | GG62: 0 | GH62: 0 | GI62: 0 | GJ62: 0 | GK62: 0 | GL62: 0 | GM62: 0 | GN62: 0 | GO62: 0 | GP62: 0 | GQ62: 0 | GR62: 0 | GS62: 0 | GT62: 0 | GU62: 0 | GV62: =(GV61-GV59)*GV54 -> 0 | GW62: 0 | GX62: 0 | GY62: 0 | GZ62: 0 | HA62: 0 | HB62: 0 | HC62: 0 | HD62: 0 | HE62: 0 | HF62: 0 | HG62: 0 | HH62: 0 | HI62: 0 | HJ62: 0 | HK62: 0 | HL62: 0 | HM62: 0 | HN62: 0 | HO62: 0 | HP62: 0 | HQ62: 0 | HR62: 0 | HS62: 0 | HT62: 0 | HU62: 0 | HV62: 0 | HW62: 0 | HX62: 0 | HY62: 0 | HZ62: 0 | IA62: 0 | IB62: 0 | IC62: 0 | ID62: 0 | IE62: 0 | IF62: 0 | IG62: 0 | IH62: 0 | II62: 0 | IJ62: 0 | IK62: 0 | IL62: 0 | IM62: 0 | IN62: 0 | IO62: 0 | IP62: 0 | IQ62: 0 | IR62: 0 | IS62: 0 | IT62: 0 | IU62: 0 | IV62: 0 | IW62: 0 | IX62: 0 | IY62: 0 | IZ62: 0 | JA62: 0 | JB62: 0 | JC62: 0 | JD62: 0 | JE62: 0 | JF62: 0 | JG62: 0 | JH62: =(JH61-JH59)*JH54 -> 0 | JI62: 0 | JJ62: 0 | JK62: 0 | JL62: 0 | JM62: 0 | JN62: 0 | JO62: 0 | JP62: 0 | JQ62: 0 | JR62: 0 | JS62: 0 | JT62: 0 | JU62: 0 | JV62: 0 | JW62: 0 | JX62: 0 | JY62: 0 | JZ62: 0 | KA62: 0 | KB62: 0 | KC62: 0 | KD62: 0 | KE62: 0 | KF62: 0 | KG62: 0 | KH62: 0 | KI62: 0 | KJ62: 0 | KK62: 0 | KL62: 0 | KM62: 0 | KN62: 0 | KO62: 0 | KP62: 0 | KQ62: 0 | KR62: 0 | KS62: 0 | KT62: 0 | KU62: 0 | KV62: 0 | KW62: 0 | KX62: 0 | KY62: 0 | KZ62: 0 | LA62: 0 | LB62: 0 | LC62: 0 | LD62: 0 | LE62: 0 | LF62: 0 | LG62: 0 | LH62: 0 | LI62: 0 | LJ62: 0 | LK62: 0 | LL62: 0 | LM62: 0 | LN62: 0 | LO62: 0 | LP62: 0 | LQ62: 0 | LR62: 0 | LS62: 0 | LT62: =(LT61-LT59)*LT54 -> 0 | LU62: 0 | LV62: 0 | LW62: 0 | LX62: 0 | LY62: 0 | LZ62: 0 | MA62: 0 | MB62: 0 | MC62: 0 | MD62: 0 | ME62: 0 | MF62: 0 | MG62: 0 | MH62: 0 | MI62: 0 | MJ62: 0 | MK62: 0 | ML62: 0 | MM62: 0 | MN62: 0 | MO62: 0 | MP62: 0 | MQ62: 0 | MR62: 0 | MS62: 0 | MT62: 0 | MU62: 0 | MV62: 0 | MW62: 0 | MX62: 0 | MY62: 0 | MZ62: 0 | NA62: 0 | NB62: 0 | NC62: 0 | ND62: 0 | NE62: 0 | NF62: 0 | NG62: 0 | NH62: 0 | NI62: 0 | NJ62: 0 | NK62: 0 | NL62: 0 | NM62: 0 | NN62: 0 | NO62: 0 | NP62: 0 | NQ62: 0 | NR62: 0 | NS62: 0 | NT62: 0 | NU62: 0 | NV62: 0 | NW62: 0 | NX62: 0 | NY62: 0 | NZ62: 0 | OA62: 0 | OB62: 0 | OC62: 0 | OD62: 0 | OE62: 0 | OF62: =(OF61-OF59)*OF54 -> 0 | OG62: 0 | OH62: 0 | OI62: 0 | OJ62: 0 | OK62: 0 | OL62: 0 | OM62: 0 | ON62: 0 | OO62: 0 | OP62: 0 | OQ62: 0 | OR62: 0 | OS62: 0 | OT62: 0 | OU62: 0 | OV62: 0 | OW62: 0 | OX62: 0 | OY62: 0 | OZ62: 0 | PA62: 0 | PB62: 0 | PC62: 0 | PD62: 0 | PE62: 0 | PF62: 0 | PG62: 0 | PH62: 0 | PI62: 0 | PJ62: 0 | PK62: 0 | PL62: 0 | PM62: 0 | PN62: 0 | PO62: 0 | PP62: 0 | PQ62: 0 | PR62: 0 | PS62: 0 | PT62: 0 | PU62: 0 | PV62: 0 | PW62: 0 | PX62: 0 | PY62: 0 | PZ62: 0 | QA62: 0 | QB62: 0 | QC62: 0 | QD62: 0 | QE62: 0 | QF62: 0 | QG62: 0 | QH62: 0 | QI62: 0 | QJ62: 0 | QK62: 0 | QL62: 0 | QM62: 0 | QN62: 0 | QO62: 0 | QP62: 0 | QQ62: 0 | QR62: =(QR61-QR59)*QR54 -> 0 | QS62: 0 | QT62: 0 | QU62: 0 | QV62: 0 | QW62: 0 | QX62: 0 | QY62: 0 | QZ62: 0 | RA62: 0 | RB62: 0 | RC62: 0 | RD62: 0 | RE62: 0 | RF62: 0 | RG62: 0 | RH62: 0 | RI62: 0 | RJ62: 0 | RK62: 0 | RL62: 0 | RM62: 0 | RN62: 0 | RO62: 0 | RP62: 0 | RQ62: 0 | RR62: 0 | RS62: 0 | RT62: 0 | RU62: 0 | RV62: 0 | RW62: 0 | RX62: 0 | RY62: 0 | RZ62: 0 | SA62: 0 | SB62: 0 | SC62: 0 | SD62: 0 | SE62: 0 | SF62: 0 | SG62: 0 | SH62: 0 | SI62: 0 | SJ62: 0 | SK62: 0 | SL62: 0 | SM62: 0 | SN62: 0 | SO62: 0 | SP62: 0 | SQ62: 0 | SR62: 0 | SS62: 0 | ST62: 0 | SU62: 0 | SV62: 0 | SW62: 0 | SX62: 0 | SY62: 0 | SZ62: 0 | TA62: 0 | TB62: 0 | TC62: 0
D63: Value Driver Multipler with Final ROIC | E63: =(1-F63/H63)/(G63-F63) -> 11.58301158 | F63: =Scenarios!$I$48 -> 0.01 | G63: =Scenarios!$D$3 -> 0.084 | H63: =Scenarios!$I$47 -> 0.07 | K63: =$E$63 -> 11.58301158 | L63: =$E$63 -> 11.58301158 | M63: 11.58301158 | N63: 11.58301158 | O63: 11.58301158 | P63: 11.58301158 | Q63: 11.58301158 | R63: 11.58301158 | S63: 11.58301158 | T63: 11.58301158 | U63: 11.58301158 | V63: 11.58301158 | W63: 11.58301158 | X63: 11.58301158 | Y63: 11.58301158 | Z63: 11.58301158 | AA63: 11.58301158 | AB63: 11.58301158 | AC63: 11.58301158 | AD63: 11.58301158 | AE63: 11.58301158 | AF63: 11.58301158 | AG63: 11.58301158 | AH63: 11.58301158 | AI63: 11.58301158 | AJ63: 11.58301158 | AK63: 11.58301158 | AL63: 11.58301158 | AM63: 11.58301158 | AN63: 11.58301158 | AO63: 11.58301158 | AP63: 11.58301158 | AQ63: 11.58301158 | AR63: 11.58301158 | AS63: 11.58301158 | AT63: 11.58301158 | AU63: 11.58301158 | AV63: 11.58301158 | AW63: 11.58301158 | AX63: 11.58301158 | AY63: 11.58301158 | AZ63: 11.58301158 | BA63: 11.58301158 | BB63: 11.58301158 | BC63: 11.58301158 | BD63: 11.58301158 | BE63: 11.58301158 | BF63: 11.58301158 | BG63: 11.58301158 | BH63: 11.58301158 | BI63: 11.58301158 | BJ63: 11.58301158 | BK63: 11.58301158 | BL63: 11.58301158 | BM63: 11.58301158 | BN63: 11.58301158 | BO63: 11.58301158 | BP63: 11.58301158 | BQ63: 11.58301158 | BR63: 11.58301158 | BS63: 11.58301158 | BT63: 11.58301158 | BU63: 11.58301158 | BV63: 11.58301158 | BW63: 11.58301158 | BX63: =$E$63 -> 11.58301158 | BY63: 11.58301158 | BZ63: 11.58301158 | CA63: 11.58301158 | CB63: 11.58301158 | CC63: 11.58301158 | CD63: 11.58301158 | CE63: 11.58301158 | CF63: 11.58301158 | CG63: 11.58301158 | CH63: 11.58301158 | CI63: 11.58301158 | CJ63: 11.58301158 | CK63: 11.58301158 | CL63: 11.58301158 | CM63: 11.58301158 | CN63: 11.58301158 | CO63: 11.58301158 | CP63: 11.58301158 | CQ63: 11.58301158 | CR63: 11.58301158 | CS63: 11.58301158 | CT63: 11.58301158 | CU63: 11.58301158 | CV63: 11.58301158 | CW63: 11.58301158 | CX63: 11.58301158 | CY63: 11.58301158 | CZ63: 11.58301158 | DA63: 11.58301158 | DB63: 11.58301158 | DC63: 11.58301158 | DD63: 11.58301158 | DE63: 11.58301158 | DF63: 11.58301158 | DG63: 11.58301158 | DH63: 11.58301158 | DI63: 11.58301158 | DJ63: 11.58301158 | DK63: 11.58301158 | DL63: 11.58301158 | DM63: 11.58301158 | DN63: 11.58301158 | DO63: 11.58301158 | DP63: 11.58301158 | DQ63: 11.58301158 | DR63: 11.58301158 | DS63: 11.58301158 | DT63: 11.58301158 | DU63: 11.58301158 | DV63: 11.58301158 | DW63: 11.58301158 | DX63: 11.58301158 | DY63: 11.58301158 | DZ63: 11.58301158 | EA63: 11.58301158 | EB63: 11.58301158 | EC63: 11.58301158 | ED63: 11.58301158 | EE63: 11.58301158 | EF63: 11.58301158 | EG63: 11.58301158 | EH63: 11.58301158 | EI63: 11.58301158 | EJ63: =$E$63 -> 11.58301158 | EK63: 11.58301158 | EL63: 11.58301158 | EM63: 11.58301158 | EN63: 11.58301158 | EO63: 11.58301158 | EP63: 11.58301158 | EQ63: 11.58301158 | ER63: 11.58301158 | ES63: 11.58301158 | ET63: 11.58301158 | EU63: 11.58301158 | EV63: 11.58301158 | EW63: 11.58301158 | EX63: 11.58301158 | EY63: 11.58301158 | EZ63: 11.58301158 | FA63: 11.58301158 | FB63: 11.58301158 | FC63: 11.58301158 | FD63: 11.58301158 | FE63: 11.58301158 | FF63: 11.58301158 | FG63: 11.58301158 | FH63: 11.58301158 | FI63: 11.58301158 | FJ63: 11.58301158 | FK63: 11.58301158 | FL63: 11.58301158 | FM63: 11.58301158 | FN63: 11.58301158 | FO63: 11.58301158 | FP63: 11.58301158 | FQ63: 11.58301158 | FR63: 11.58301158 | FS63: 11.58301158 | FT63: 11.58301158 | FU63: 11.58301158 | FV63: 11.58301158 | FW63: 11.58301158 | FX63: 11.58301158 | FY63: 11.58301158 | FZ63: 11.58301158 | GA63: 11.58301158 | GB63: 11.58301158 | GC63: 11.58301158 | GD63: 11.58301158 | GE63: 11.58301158 | GF63: 11.58301158 | GG63: 11.58301158 | GH63: 11.58301158 | GI63: 11.58301158 | GJ63: 11.58301158 | GK63: 11.58301158 | GL63: 11.58301158 | GM63: 11.58301158 | GN63: 11.58301158 | GO63: 11.58301158 | GP63: 11.58301158 | GQ63: 11.58301158 | GR63: 11.58301158 | GS63: 11.58301158 | GT63: 11.58301158 | GU63: 11.58301158 | GV63: =$E$63 -> 11.58301158 | GW63: 11.58301158 | GX63: 11.58301158 | GY63: 11.58301158 | GZ63: 11.58301158 | HA63: 11.58301158 | HB63: 11.58301158 | HC63: 11.58301158 | HD63: 11.58301158 | HE63: 11.58301158 | HF63: 11.58301158 | HG63: 11.58301158 | HH63: 11.58301158 | HI63: 11.58301158 | HJ63: 11.58301158 | HK63: 11.58301158 | HL63: 11.58301158 | HM63: 11.58301158 | HN63: 11.58301158 | HO63: 11.58301158 | HP63: 11.58301158 | HQ63: 11.58301158 | HR63: 11.58301158 | HS63: 11.58301158 | HT63: 11.58301158 | HU63: 11.58301158 | HV63: 11.58301158 | HW63: 11.58301158 | HX63: 11.58301158 | HY63: 11.58301158 | HZ63: 11.58301158 | IA63: 11.58301158 | IB63: 11.58301158 | IC63: 11.58301158 | ID63: 11.58301158 | IE63: 11.58301158 | IF63: 11.58301158 | IG63: 11.58301158 | IH63: 11.58301158 | II63: 11.58301158 | IJ63: 11.58301158 | IK63: 11.58301158 | IL63: 11.58301158 | IM63: 11.58301158 | IN63: 11.58301158 | IO63: 11.58301158 | IP63: 11.58301158 | IQ63: 11.58301158 | IR63: 11.58301158 | IS63: 11.58301158 | IT63: 11.58301158 | IU63: 11.58301158 | IV63: 11.58301158 | IW63: 11.58301158 | IX63: 11.58301158 | IY63: 11.58301158 | IZ63: 11.58301158 | JA63: 11.58301158 | JB63: 11.58301158 | JC63: 11.58301158 | JD63: 11.58301158 | JE63: 11.58301158 | JF63: 11.58301158 | JG63: 11.58301158 | JH63: =$E$63 -> 11.58301158 | JI63: 11.58301158 | JJ63: 11.58301158 | JK63: 11.58301158 | JL63: 11.58301158 | JM63: 11.58301158 | JN63: 11.58301158 | JO63: 11.58301158 | JP63: 11.58301158 | JQ63: 11.58301158 | JR63: 11.58301158 | JS63: 11.58301158 | JT63: 11.58301158 | JU63: 11.58301158 | JV63: 11.58301158 | JW63: 11.58301158 | JX63: 11.58301158 | JY63: 11.58301158 | JZ63: 11.58301158 | KA63: 11.58301158 | KB63: 11.58301158 | KC63: 11.58301158 | KD63: 11.58301158 | KE63: 11.58301158 | KF63: 11.58301158 | KG63: 11.58301158 | KH63: 11.58301158 | KI63: 11.58301158 | KJ63: 11.58301158 | KK63: 11.58301158 | KL63: 11.58301158 | KM63: 11.58301158 | KN63: 11.58301158 | KO63: 11.58301158 | KP63: 11.58301158 | KQ63: 11.58301158 | KR63: 11.58301158 | KS63: 11.58301158 | KT63: 11.58301158 | KU63: 11.58301158 | KV63: 11.58301158 | KW63: 11.58301158 | KX63: 11.58301158 | KY63: 11.58301158 | KZ63: 11.58301158 | LA63: 11.58301158 | LB63: 11.58301158 | LC63: 11.58301158 | LD63: 11.58301158 | LE63: 11.58301158 | LF63: 11.58301158 | LG63: 11.58301158 | LH63: 11.58301158 | LI63: 11.58301158 | LJ63: 11.58301158 | LK63: 11.58301158 | LL63: 11.58301158 | LM63: 11.58301158 | LN63: 11.58301158 | LO63: 11.58301158 | LP63: 11.58301158 | LQ63: 11.58301158 | LR63: 11.58301158 | LS63: 11.58301158 | LT63: =$E$63 -> 11.58301158 | LU63: 11.58301158 | LV63: 11.58301158 | LW63: 11.58301158 | LX63: 11.58301158 | LY63: 11.58301158 | LZ63: 11.58301158 | MA63: 11.58301158 | MB63: 11.58301158 | MC63: 11.58301158 | MD63: 11.58301158 | ME63: 11.58301158 | MF63: 11.58301158 | MG63: 11.58301158 | MH63: 11.58301158 | MI63: 11.58301158 | MJ63: 11.58301158 | MK63: 11.58301158 | ML63: 11.58301158 | MM63: 11.58301158 | MN63: 11.58301158 | MO63: 11.58301158 | MP63: 11.58301158 | MQ63: 11.58301158 | MR63: 11.58301158 | MS63: 11.58301158 | MT63: 11.58301158 | MU63: 11.58301158 | MV63: 11.58301158 | MW63: 11.58301158 | MX63: 11.58301158 | MY63: 11.58301158 | MZ63: 11.58301158 | NA63: 11.58301158 | NB63: 11.58301158 | NC63: 11.58301158 | ND63: 11.58301158 | NE63: 11.58301158 | NF63: 11.58301158 | NG63: 11.58301158 | NH63: 11.58301158 | NI63: 11.58301158 | NJ63: 11.58301158 | NK63: 11.58301158 | NL63: 11.58301158 | NM63: 11.58301158 | NN63: 11.58301158 | NO63: 11.58301158 | NP63: 11.58301158 | NQ63: 11.58301158 | NR63: 11.58301158 | NS63: 11.58301158 | NT63: 11.58301158 | NU63: 11.58301158 | NV63: 11.58301158 | NW63: 11.58301158 | NX63: 11.58301158 | NY63: 11.58301158 | NZ63: 11.58301158 | OA63: 11.58301158 | OB63: 11.58301158 | OC63: 11.58301158 | OD63: 11.58301158 | OE63: 11.58301158 | OF63: =$E$63 -> 11.58301158 | OG63: 11.58301158 | OH63: 11.58301158 | OI63: 11.58301158 | OJ63: 11.58301158 | OK63: 11.58301158 | OL63: 11.58301158 | OM63: 11.58301158 | ON63: 11.58301158 | OO63: 11.58301158 | OP63: 11.58301158 | OQ63: 11.58301158 | OR63: 11.58301158 | OS63: 11.58301158 | OT63: 11.58301158 | OU63: 11.58301158 | OV63: 11.58301158 | OW63: 11.58301158 | OX63: 11.58301158 | OY63: 11.58301158 | OZ63: 11.58301158 | PA63: 11.58301158 | PB63: 11.58301158 | PC63: 11.58301158 | PD63: 11.58301158 | PE63: 11.58301158 | PF63: 11.58301158 | PG63: 11.58301158 | PH63: 11.58301158 | PI63: 11.58301158 | PJ63: 11.58301158 | PK63: 11.58301158 | PL63: 11.58301158 | PM63: 11.58301158 | PN63: 11.58301158 | PO63: 11.58301158 | PP63: 11.58301158 | PQ63: 11.58301158 | PR63: 11.58301158 | PS63: 11.58301158 | PT63: 11.58301158 | PU63: 11.58301158 | PV63: 11.58301158 | PW63: 11.58301158 | PX63: 11.58301158 | PY63: 11.58301158 | PZ63: 11.58301158 | QA63: 11.58301158 | QB63: 11.58301158 | QC63: 11.58301158 | QD63: 11.58301158 | QE63: 11.58301158 | QF63: 11.58301158 | QG63: 11.58301158 | QH63: 11.58301158 | QI63: 11.58301158 | QJ63: 11.58301158 | QK63: 11.58301158 | QL63: 11.58301158 | QM63: 11.58301158 | QN63: 11.58301158 | QO63: 11.58301158 | QP63: 11.58301158 | QQ63: 11.58301158 | QR63: =$E$63 -> 11.58301158 | QS63: 11.58301158 | QT63: 11.58301158 | QU63: 11.58301158 | QV63: 11.58301158 | QW63: 11.58301158 | QX63: 11.58301158 | QY63: 11.58301158 | QZ63: 11.58301158 | RA63: 11.58301158 | RB63: 11.58301158 | RC63: 11.58301158 | RD63: 11.58301158 | RE63: 11.58301158 | RF63: 11.58301158 | RG63: 11.58301158 | RH63: 11.58301158 | RI63: 11.58301158 | RJ63: 11.58301158 | RK63: 11.58301158 | RL63: 11.58301158 | RM63: 11.58301158 | RN63: 11.58301158 | RO63: 11.58301158 | RP63: 11.58301158 | RQ63: 11.58301158 | RR63: 11.58301158 | RS63: 11.58301158 | RT63: 11.58301158 | RU63: 11.58301158 | RV63: 11.58301158 | RW63: 11.58301158 | RX63: 11.58301158 | RY63: 11.58301158 | RZ63: 11.58301158 | SA63: 11.58301158 | SB63: 11.58301158 | SC63: 11.58301158 | SD63: 11.58301158 | SE63: 11.58301158 | SF63: 11.58301158 | SG63: 11.58301158 | SH63: 11.58301158 | SI63: 11.58301158 | SJ63: 11.58301158 | SK63: 11.58301158 | SL63: 11.58301158 | SM63: 11.58301158 | SN63: 11.58301158 | SO63: 11.58301158 | SP63: 11.58301158 | SQ63: 11.58301158 | SR63: 11.58301158 | SS63: 11.58301158 | ST63: 11.58301158 | SU63: 11.58301158 | SV63: 11.58301158 | SW63: 11.58301158 | SX63: 11.58301158 | SY63: 11.58301158 | SZ63: 11.58301158 | TA63: 11.58301158 | TB63: 11.58301158 | TC63: 11.58301158
D64: Value at Final Terminal Period | K64: =K63*K58*K53*K6*(1+$F$63) -> 0 | L64: =L63*L58*L53*L6*(1+$F$63) -> 0 | M64: =M63*M58*M53*M6*(1+$F$63) -> 0 | N64: =N63*N58*N53*N6*(1+$F$63) -> 0 | O64: =O63*O58*O53*O6*(1+$F$63) -> 0 | P64: =P63*P58*P53*P6*(1+$F$63) -> 0 | Q64: =Q63*Q58*Q53*Q6*(1+$F$63) -> 0 | R64: =R63*R58*R53*R6*(1+$F$63) -> 0 | S64: =S63*S58*S53*S6*(1+$F$63) -> 0 | T64: =T63*T58*T53*T6*(1+$F$63) -> 0 | U64: =U63*U58*U53*U6*(1+$F$63) -> 0 | V64: =V63*V58*V53*V6*(1+$F$63) -> 0 | W64: =W63*W58*W53*W6*(1+$F$63) -> 0 | X64: =X63*X58*X53*X6*(1+$F$63) -> 0 | Y64: =Y63*Y58*Y53*Y6*(1+$F$63) -> 0 | Z64: =Z63*Z58*Z53*Z6*(1+$F$63) -> 0 | AA64: =AA63*AA58*AA53*AA6*(1+$F$63) -> 0 | AB64: =AB63*AB58*AB53*AB6*(1+$F$63) -> 0 | AC64: =AC63*AC58*AC53*AC6*(1+$F$63) -> 0 | AD64: =AD63*AD58*AD53*AD6*(1+$F$63) -> 0 | AE64: =AE63*AE58*AE53*AE6*(1+$F$63) -> 0 | AF64: =AF63*AF58*AF53*AF6*(1+$F$63) -> 0 | AG64: =AG63*AG58*AG53*AG6*(1+$F$63) -> 0 | AH64: =AH63*AH58*AH53*AH6*(1+$F$63) -> 0 | AI64: =AI63*AI58*AI53*AI6*(1+$F$63) -> 0 | AJ64: =AJ63*AJ58*AJ53*AJ6*(1+$F$63) -> 0 | AK64: =AK63*AK58*AK53*AK6*(1+$F$63) -> 0 | AL64: =AL63*AL58*AL53*AL6*(1+$F$63) -> 0 | AM64: =AM63*AM58*AM53*AM6*(1+$F$63) -> 0 | AN64: =AN63*AN58*AN53*AN6*(1+$F$63) -> 0 | AO64: =AO63*AO58*AO53*AO6*(1+$F$63) -> 0 | AP64: =AP63*AP58*AP53*AP6*(1+$F$63) -> 0 | AQ64: =AQ63*AQ58*AQ53*AQ6*(1+$F$63) -> 0 | AR64: =AR63*AR58*AR53*AR6*(1+$F$63) -> 0 | AS64: =AS63*AS58*AS53*AS6*(1+$F$63) -> 0 | AT64: =AT63*AT58*AT53*AT6*(1+$F$63) -> 0 | AU64: =AU63*AU58*AU53*AU6*(1+$F$63) -> 0 | AV64: =AV63*AV58*AV53*AV6*(1+$F$63) -> 0 | AW64: =AW63*AW58*AW53*AW6*(1+$F$63) -> 0 | AX64: =AX63*AX58*AX53*AX6*(1+$F$63) -> 0 | AY64: =AY63*AY58*AY53*AY6*(1+$F$63) -> 0 | AZ64: =AZ63*AZ58*AZ53*AZ6*(1+$F$63) -> 0 | BA64: =BA63*BA58*BA53*BA6*(1+$F$63) -> 0 | BB64: =BB63*BB58*BB53*BB6*(1+$F$63) -> 0 | BC64: =BC63*BC58*BC53*BC6*(1+$F$63) -> 0 | BD64: =BD63*BD58*BD53*BD6*(1+$F$63) -> 0 | BE64: =BE63*BE58*BE53*BE6*(1+$F$63) -> 0 | BF64: =BF63*BF58*BF53*BF6*(1+$F$63) -> 0 | BG64: =BG63*BG58*BG53*BG6*(1+$F$63) -> 0 | BH64: =BH63*BH58*BH53*BH6*(1+$F$63) -> 0 | BI64: =BI63*BI58*BI53*BI6*(1+$F$63) -> 0 | BJ64: =BJ63*BJ58*BJ53*BJ6*(1+$F$63) -> 0 | BK64: =BK63*BK58*BK53*BK6*(1+$F$63) -> 0 | BL64: =BL63*BL58*BL53*BL6*(1+$F$63) -> 0 | BM64: =BM63*BM58*BM53*BM6*(1+$F$63) -> 0 | BN64: =BN63*BN58*BN53*BN6*(1+$F$63) -> 0 | BO64: =BO63*BO58*BO53*BO6*(1+$F$63) -> 0 | BP64: =BP63*BP58*BP53*BP6*(1+$F$63) -> 0 | BQ64: =BQ63*BQ58*BQ53*BQ6*(1+$F$63) -> 0 | BR64: =BR63*BR58*BR53*BR6*(1+$F$63) -> 0 | BS64: =BS63*BS58*BS53*BS6*(1+$F$63) -> 0 | BT64: =BT63*BT58*BT53*BT6*(1+$F$63) -> 0 | BU64: =BU63*BU58*BU53*BU6*(1+$F$63) -> 0 | BV64: =BV63*BV58*BV53*BV6*(1+$F$63) -> 0 | BW64: =BW63*BW58*BW53*BW6*(1+$F$63) -> 0 | BX64: =BX63*BX58*BX53*BX6*(1+$F$63) -> 0 | BY64: =BY63*BY58*BY53*BY6*(1+$F$63) -> 0 | BZ64: =BZ63*BZ58*BZ53*BZ6*(1+$F$63) -> 0 | CA64: =CA63*CA58*CA53*CA6*(1+$F$63) -> 0 | CB64: =CB63*CB58*CB53*CB6*(1+$F$63) -> 0 | CC64: =CC63*CC58*CC53*CC6*(1+$F$63) -> 0 | CD64: =CD63*CD58*CD53*CD6*(1+$F$63) -> 0 | CE64: =CE63*CE58*CE53*CE6*(1+$F$63) -> 0 | CF64: =CF63*CF58*CF53*CF6*(1+$F$63) -> 0 | CG64: =CG63*CG58*CG53*CG6*(1+$F$63) -> 0 | CH64: =CH63*CH58*CH53*CH6*(1+$F$63) -> 0 | CI64: =CI63*CI58*CI53*CI6*(1+$F$63) -> 0 | CJ64: =CJ63*CJ58*CJ53*CJ6*(1+$F$63) -> 0 | CK64: =CK63*CK58*CK53*CK6*(1+$F$63) -> 0 | CL64: =CL63*CL58*CL53*CL6*(1+$F$63) -> 0 | CM64: =CM63*CM58*CM53*CM6*(1+$F$63) -> 0 | CN64: =CN63*CN58*CN53*CN6*(1+$F$63) -> 0 | CO64: =CO63*CO58*CO53*CO6*(1+$F$63) -> 0 | CP64: =CP63*CP58*CP53*CP6*(1+$F$63) -> 0 | CQ64: =CQ63*CQ58*CQ53*CQ6*(1+$F$63) -> 0 | CR64: =CR63*CR58*CR53*CR6*(1+$F$63) -> 0 | CS64: =CS63*CS58*CS53*CS6*(1+$F$63) -> 0 | CT64: =CT63*CT58*CT53*CT6*(1+$F$63) -> 0 | CU64: =CU63*CU58*CU53*CU6*(1+$F$63) -> 0 | CV64: =CV63*CV58*CV53*CV6*(1+$F$63) -> 0 | CW64: =CW63*CW58*CW53*CW6*(1+$F$63) -> 0 | CX64: =CX63*CX58*CX53*CX6*(1+$F$63) -> 0 | CY64: =CY63*CY58*CY53*CY6*(1+$F$63) -> 0 | CZ64: =CZ63*CZ58*CZ53*CZ6*(1+$F$63) -> 0 | DA64: =DA63*DA58*DA53*DA6*(1+$F$63) -> 0 | DB64: =DB63*DB58*DB53*DB6*(1+$F$63) -> 0 | DC64: =DC63*DC58*DC53*DC6*(1+$F$63) -> 0 | DD64: =DD63*DD58*DD53*DD6*(1+$F$63) -> 0 | DE64: =DE63*DE58*DE53*DE6*(1+$F$63) -> 0 | DF64: =DF63*DF58*DF53*DF6*(1+$F$63) -> 0 | DG64: =DG63*DG58*DG53*DG6*(1+$F$63) -> 0 | DH64: =DH63*DH58*DH53*DH6*(1+$F$63) -> 0 | DI64: =DI63*DI58*DI53*DI6*(1+$F$63) -> 0 | DJ64: =DJ63*DJ58*DJ53*DJ6*(1+$F$63) -> 0 | DK64: =DK63*DK58*DK53*DK6*(1+$F$63) -> 0 | DL64: =DL63*DL58*DL53*DL6*(1+$F$63) -> 0 | DM64: =DM63*DM58*DM53*DM6*(1+$F$63) -> 0 | DN64: =DN63*DN58*DN53*DN6*(1+$F$63) -> 0 | DO64: =DO63*DO58*DO53*DO6*(1+$F$63) -> 0 | DP64: =DP63*DP58*DP53*DP6*(1+$F$63) -> 0 | DQ64: =DQ63*DQ58*DQ53*DQ6*(1+$F$63) -> 0 | DR64: =DR63*DR58*DR53*DR6*(1+$F$63) -> 0 | DS64: =DS63*DS58*DS53*DS6*(1+$F$63) -> 0 | DT64: =DT63*DT58*DT53*DT6*(1+$F$63) -> 0 | DU64: =DU63*DU58*DU53*DU6*(1+$F$63) -> 0 | DV64: =DV63*DV58*DV53*DV6*(1+$F$63) -> 0 | DW64: =DW63*DW58*DW53*DW6*(1+$F$63) -> 0 | DX64: =DX63*DX58*DX53*DX6*(1+$F$63) -> 0 | DY64: =DY63*DY58*DY53*DY6*(1+$F$63) -> 0 | DZ64: =DZ63*DZ58*DZ53*DZ6*(1+$F$63) -> 0 | EA64: =EA63*EA58*EA53*EA6*(1+$F$63) -> 0 | EB64: =EB63*EB58*EB53*EB6*(1+$F$63) -> 0 | EC64: =EC63*EC58*EC53*EC6*(1+$F$63) -> 0 | ED64: =ED63*ED58*ED53*ED6*(1+$F$63) -> 0 | EE64: =EE63*EE58*EE53*EE6*(1+$F$63) -> 0 | EF64: =EF63*EF58*EF53*EF6*(1+$F$63) -> 0 | EG64: =EG63*EG58*EG53*EG6*(1+$F$63) -> 0 | EH64: =EH63*EH58*EH53*EH6*(1+$F$63) -> 0 | EI64: =EI63*EI58*EI53*EI6*(1+$F$63) -> 0 | EJ64: =EJ63*EJ58*EJ53*EJ6*(1+$F$63) -> 0 | EK64: =EK63*EK58*EK53*EK6*(1+$F$63) -> 0 | EL64: =EL63*EL58*EL53*EL6*(1+$F$63) -> 0 | EM64: =EM63*EM58*EM53*EM6*(1+$F$63) -> 0 | EN64: =EN63*EN58*EN53*EN6*(1+$F$63) -> 0 | EO64: =EO63*EO58*EO53*EO6*(1+$F$63) -> 0 | EP64: =EP63*EP58*EP53*EP6*(1+$F$63) -> 0 | EQ64: =EQ63*EQ58*EQ53*EQ6*(1+$F$63) -> 0 | ER64: =ER63*ER58*ER53*ER6*(1+$F$63) -> 0 | ES64: =ES63*ES58*ES53*ES6*(1+$F$63) -> 0 | ET64: =ET63*ET58*ET53*ET6*(1+$F$63) -> 0 | EU64: =EU63*EU58*EU53*EU6*(1+$F$63) -> 0 | EV64: =EV63*EV58*EV53*EV6*(1+$F$63) -> 0 | EW64: =EW63*EW58*EW53*EW6*(1+$F$63) -> 0 | EX64: =EX63*EX58*EX53*EX6*(1+$F$63) -> 0 | EY64: =EY63*EY58*EY53*EY6*(1+$F$63) -> 0 | EZ64: =EZ63*EZ58*EZ53*EZ6*(1+$F$63) -> 0 | FA64: =FA63*FA58*FA53*FA6*(1+$F$63) -> 0 | FB64: =FB63*FB58*FB53*FB6*(1+$F$63) -> 0 | FC64: =FC63*FC58*FC53*FC6*(1+$F$63) -> 0 | FD64: =FD63*FD58*FD53*FD6*(1+$F$63) -> 0 | FE64: =FE63*FE58*FE53*FE6*(1+$F$63) -> 0 | FF64: =FF63*FF58*FF53*FF6*(1+$F$63) -> 0 | FG64: =FG63*FG58*FG53*FG6*(1+$F$63) -> 0 | FH64: =FH63*FH58*FH53*FH6*(1+$F$63) -> 0 | FI64: =FI63*FI58*FI53*FI6*(1+$F$63) -> 0 | FJ64: =FJ63*FJ58*FJ53*FJ6*(1+$F$63) -> 0 | FK64: =FK63*FK58*FK53*FK6*(1+$F$63) -> 0 | FL64: =FL63*FL58*FL53*FL6*(1+$F$63) -> 0 | FM64: =FM63*FM58*FM53*FM6*(1+$F$63) -> 0 | FN64: =FN63*FN58*FN53*FN6*(1+$F$63) -> 0 | FO64: =FO63*FO58*FO53*FO6*(1+$F$63) -> 0 | FP64: =FP63*FP58*FP53*FP6*(1+$F$63) -> 0 | FQ64: =FQ63*FQ58*FQ53*FQ6*(1+$F$63) -> 0 | FR64: =FR63*FR58*FR53*FR6*(1+$F$63) -> 0 | FS64: =FS63*FS58*FS53*FS6*(1+$F$63) -> 0 | FT64: =FT63*FT58*FT53*FT6*(1+$F$63) -> 0 | FU64: =FU63*FU58*FU53*FU6*(1+$F$63) -> 0 | FV64: =FV63*FV58*FV53*FV6*(1+$F$63) -> 0 | FW64: =FW63*FW58*FW53*FW6*(1+$F$63) -> 0 | FX64: =FX63*FX58*FX53*FX6*(1+$F$63) -> 0 | FY64: =FY63*FY58*FY53*FY6*(1+$F$63) -> 0 | FZ64: =FZ63*FZ58*FZ53*FZ6*(1+$F$63) -> 0 | GA64: =GA63*GA58*GA53*GA6*(1+$F$63) -> 0 | GB64: =GB63*GB58*GB53*GB6*(1+$F$63) -> 0 | GC64: =GC63*GC58*GC53*GC6*(1+$F$63) -> 0 | GD64: =GD63*GD58*GD53*GD6*(1+$F$63) -> 0 | GE64: =GE63*GE58*GE53*GE6*(1+$F$63) -> 0 | GF64: =GF63*GF58*GF53*GF6*(1+$F$63) -> 0 | GG64: =GG63*GG58*GG53*GG6*(1+$F$63) -> 0 | GH64: =GH63*GH58*GH53*GH6*(1+$F$63) -> 0 | GI64: =GI63*GI58*GI53*GI6*(1+$F$63) -> 0 | GJ64: =GJ63*GJ58*GJ53*GJ6*(1+$F$63) -> 0 | GK64: =GK63*GK58*GK53*GK6*(1+$F$63) -> 0 | GL64: =GL63*GL58*GL53*GL6*(1+$F$63) -> 0 | GM64: =GM63*GM58*GM53*GM6*(1+$F$63) -> 0 | GN64: =GN63*GN58*GN53*GN6*(1+$F$63) -> 0 | GO64: =GO63*GO58*GO53*GO6*(1+$F$63) -> 0 | GP64: =GP63*GP58*GP53*GP6*(1+$F$63) -> 0 | GQ64: =GQ63*GQ58*GQ53*GQ6*(1+$F$63) -> 0 | GR64: =GR63*GR58*GR53*GR6*(1+$F$63) -> 0 | GS64: =GS63*GS58*GS53*GS6*(1+$F$63) -> 0 | GT64: =GT63*GT58*GT53*GT6*(1+$F$63) -> 0 | GU64: =GU63*GU58*GU53*GU6*(1+$F$63) -> 0 | GV64: =GV63*GV58*GV53*GV6*(1+$F$63) -> 0 | GW64: =GW63*GW58*GW53*GW6*(1+$F$63) -> 0 | GX64: =GX63*GX58*GX53*GX6*(1+$F$63) -> 0 | GY64: =GY63*GY58*GY53*GY6*(1+$F$63) -> 0 | GZ64: =GZ63*GZ58*GZ53*GZ6*(1+$F$63) -> 0 | HA64: =HA63*HA58*HA53*HA6*(1+$F$63) -> 0 | HB64: =HB63*HB58*HB53*HB6*(1+$F$63) -> 0 | HC64: =HC63*HC58*HC53*HC6*(1+$F$63) -> 0 | HD64: =HD63*HD58*HD53*HD6*(1+$F$63) -> 0 | HE64: =HE63*HE58*HE53*HE6*(1+$F$63) -> 0 | HF64: =HF63*HF58*HF53*HF6*(1+$F$63) -> 0 | HG64: =HG63*HG58*HG53*HG6*(1+$F$63) -> 0 | HH64: =HH63*HH58*HH53*HH6*(1+$F$63) -> 0 | HI64: =HI63*HI58*HI53*HI6*(1+$F$63) -> 0 | HJ64: =HJ63*HJ58*HJ53*HJ6*(1+$F$63) -> 0 | HK64: =HK63*HK58*HK53*HK6*(1+$F$63) -> 0 | HL64: =HL63*HL58*HL53*HL6*(1+$F$63) -> 0 | HM64: =HM63*HM58*HM53*HM6*(1+$F$63) -> 0 | HN64: =HN63*HN58*HN53*HN6*(1+$F$63) -> 0 | HO64: =HO63*HO58*HO53*HO6*(1+$F$63) -> 0 | HP64: =HP63*HP58*HP53*HP6*(1+$F$63) -> 0 | HQ64: =HQ63*HQ58*HQ53*HQ6*(1+$F$63) -> 0 | HR64: =HR63*HR58*HR53*HR6*(1+$F$63) -> 0 | HS64: =HS63*HS58*HS53*HS6*(1+$F$63) -> 0 | HT64: =HT63*HT58*HT53*HT6*(1+$F$63) -> 0 | HU64: =HU63*HU58*HU53*HU6*(1+$F$63) -> 0 | HV64: =HV63*HV58*HV53*HV6*(1+$F$63) -> 0 | HW64: =HW63*HW58*HW53*HW6*(1+$F$63) -> 0 | HX64: =HX63*HX58*HX53*HX6*(1+$F$63) -> 0 | HY64: =HY63*HY58*HY53*HY6*(1+$F$63) -> 0 | HZ64: =HZ63*HZ58*HZ53*HZ6*(1+$F$63) -> 0 | IA64: =IA63*IA58*IA53*IA6*(1+$F$63) -> 0 | IB64: =IB63*IB58*IB53*IB6*(1+$F$63) -> 0 | IC64: =IC63*IC58*IC53*IC6*(1+$F$63) -> 0 | ID64: =ID63*ID58*ID53*ID6*(1+$F$63) -> 0 | IE64: =IE63*IE58*IE53*IE6*(1+$F$63) -> 0 | IF64: =IF63*IF58*IF53*IF6*(1+$F$63) -> 0 | IG64: =IG63*IG58*IG53*IG6*(1+$F$63) -> 0 | IH64: =IH63*IH58*IH53*IH6*(1+$F$63) -> 0 | II64: =II63*II58*II53*II6*(1+$F$63) -> 0 | IJ64: =IJ63*IJ58*IJ53*IJ6*(1+$F$63) -> 0 | IK64: =IK63*IK58*IK53*IK6*(1+$F$63) -> 0 | IL64: =IL63*IL58*IL53*IL6*(1+$F$63) -> 0 | IM64: =IM63*IM58*IM53*IM6*(1+$F$63) -> 0 | IN64: =IN63*IN58*IN53*IN6*(1+$F$63) -> 0 | IO64: =IO63*IO58*IO53*IO6*(1+$F$63) -> 0 | IP64: =IP63*IP58*IP53*IP6*(1+$F$63) -> 0 | IQ64: =IQ63*IQ58*IQ53*IQ6*(1+$F$63) -> 0 | IR64: =IR63*IR58*IR53*IR6*(1+$F$63) -> 0 | IS64: =IS63*IS58*IS53*IS6*(1+$F$63) -> 0 | IT64: =IT63*IT58*IT53*IT6*(1+$F$63) -> 0 | IU64: =IU63*IU58*IU53*IU6*(1+$F$63) -> 0 | IV64: =IV63*IV58*IV53*IV6*(1+$F$63) -> 0 | IW64: =IW63*IW58*IW53*IW6*(1+$F$63) -> 0 | IX64: =IX63*IX58*IX53*IX6*(1+$F$63) -> 0 | IY64: =IY63*IY58*IY53*IY6*(1+$F$63) -> 0 | IZ64: =IZ63*IZ58*IZ53*IZ6*(1+$F$63) -> 0 | JA64: =JA63*JA58*JA53*JA6*(1+$F$63) -> 0 | JB64: =JB63*JB58*JB53*JB6*(1+$F$63) -> 0 | JC64: =JC63*JC58*JC53*JC6*(1+$F$63) -> 0 | JD64: =JD63*JD58*JD53*JD6*(1+$F$63) -> 0 | JE64: =JE63*JE58*JE53*JE6*(1+$F$63) -> 0 | JF64: =JF63*JF58*JF53*JF6*(1+$F$63) -> 0 | JG64: =JG63*JG58*JG53*JG6*(1+$F$63) -> 0 | JH64: =JH63*JH58*JH53*JH6*(1+$F$63) -> 0 | JI64: =JI63*JI58*JI53*JI6*(1+$F$63) -> 0 | JJ64: =JJ63*JJ58*JJ53*JJ6*(1+$F$63) -> 0 | JK64: =JK63*JK58*JK53*JK6*(1+$F$63) -> 0 | JL64: =JL63*JL58*JL53*JL6*(1+$F$63) -> 0 | JM64: =JM63*JM58*JM53*JM6*(1+$F$63) -> 0 | JN64: =JN63*JN58*JN53*JN6*(1+$F$63) -> 0 | JO64: =JO63*JO58*JO53*JO6*(1+$F$63) -> 0 | JP64: =JP63*JP58*JP53*JP6*(1+$F$63) -> 0 | JQ64: =JQ63*JQ58*JQ53*JQ6*(1+$F$63) -> 0 | JR64: =JR63*JR58*JR53*JR6*(1+$F$63) -> 0 | JS64: =JS63*JS58*JS53*JS6*(1+$F$63) -> 0 | JT64: =JT63*JT58*JT53*JT6*(1+$F$63) -> 0 | JU64: =JU63*JU58*JU53*JU6*(1+$F$63) -> 0 | JV64: =JV63*JV58*JV53*JV6*(1+$F$63) -> 0 | JW64: =JW63*JW58*JW53*JW6*(1+$F$63) -> 0 | JX64: =JX63*JX58*JX53*JX6*(1+$F$63) -> 0 | JY64: =JY63*JY58*JY53*JY6*(1+$F$63) -> 0 | JZ64: =JZ63*JZ58*JZ53*JZ6*(1+$F$63) -> 0 | KA64: =KA63*KA58*KA53*KA6*(1+$F$63) -> 0 | KB64: =KB63*KB58*KB53*KB6*(1+$F$63) -> 0 | KC64: =KC63*KC58*KC53*KC6*(1+$F$63) -> 0 | KD64: =KD63*KD58*KD53*KD6*(1+$F$63) -> 0 | KE64: =KE63*KE58*KE53*KE6*(1+$F$63) -> 0 | KF64: =KF63*KF58*KF53*KF6*(1+$F$63) -> 0 | KG64: =KG63*KG58*KG53*KG6*(1+$F$63) -> 0 | KH64: =KH63*KH58*KH53*KH6*(1+$F$63) -> 0 | KI64: =KI63*KI58*KI53*KI6*(1+$F$63) -> 0 | KJ64: =KJ63*KJ58*KJ53*KJ6*(1+$F$63) -> 0 | KK64: =KK63*KK58*KK53*KK6*(1+$F$63) -> 0 | KL64: =KL63*KL58*KL53*KL6*(1+$F$63) -> 0 | KM64: =KM63*KM58*KM53*KM6*(1+$F$63) -> 0 | KN64: =KN63*KN58*KN53*KN6*(1+$F$63) -> 0 | KO64: =KO63*KO58*KO53*KO6*(1+$F$63) -> 0 | KP64: =KP63*KP58*KP53*KP6*(1+$F$63) -> 0 | KQ64: =KQ63*KQ58*KQ53*KQ6*(1+$F$63) -> 0 | KR64: =KR63*KR58*KR53*KR6*(1+$F$63) -> 0 | KS64: =KS63*KS58*KS53*KS6*(1+$F$63) -> 0 | KT64: =KT63*KT58*KT53*KT6*(1+$F$63) -> 0 | KU64: =KU63*KU58*KU53*KU6*(1+$F$63) -> 0 | KV64: =KV63*KV58*KV53*KV6*(1+$F$63) -> 0 | KW64: =KW63*KW58*KW53*KW6*(1+$F$63) -> 0 | KX64: =KX63*KX58*KX53*KX6*(1+$F$63) -> 0 | KY64: =KY63*KY58*KY53*KY6*(1+$F$63) -> 0 | KZ64: =KZ63*KZ58*KZ53*KZ6*(1+$F$63) -> 0 | LA64: =LA63*LA58*LA53*LA6*(1+$F$63) -> 0 | LB64: =LB63*LB58*LB53*LB6*(1+$F$63) -> 0 | LC64: =LC63*LC58*LC53*LC6*(1+$F$63) -> 0 | LD64: =LD63*LD58*LD53*LD6*(1+$F$63) -> 0 | LE64: =LE63*LE58*LE53*LE6*(1+$F$63) -> 0 | LF64: =LF63*LF58*LF53*LF6*(1+$F$63) -> 0 | LG64: =LG63*LG58*LG53*LG6*(1+$F$63) -> 0 | LH64: =LH63*LH58*LH53*LH6*(1+$F$63) -> 0 | LI64: =LI63*LI58*LI53*LI6*(1+$F$63) -> 0 | LJ64: =LJ63*LJ58*LJ53*LJ6*(1+$F$63) -> 0 | LK64: =LK63*LK58*LK53*LK6*(1+$F$63) -> 0 | LL64: =LL63*LL58*LL53*LL6*(1+$F$63) -> 0 | LM64: =LM63*LM58*LM53*LM6*(1+$F$63) -> 0 | LN64: =LN63*LN58*LN53*LN6*(1+$F$63) -> 0 | LO64: =LO63*LO58*LO53*LO6*(1+$F$63) -> 0 | LP64: =LP63*LP58*LP53*LP6*(1+$F$63) -> 0 | LQ64: =LQ63*LQ58*LQ53*LQ6*(1+$F$63) -> 0 | LR64: =LR63*LR58*LR53*LR6*(1+$F$63) -> 0 | LS64: =LS63*LS58*LS53*LS6*(1+$F$63) -> 0 | LT64: =LT63*LT58*LT53*LT6*(1+$F$63) -> 0 | LU64: =LU63*LU58*LU53*LU6*(1+$F$63) -> 0 | LV64: =LV63*LV58*LV53*LV6*(1+$F$63) -> 0 | LW64: =LW63*LW58*LW53*LW6*(1+$F$63) -> 0 | LX64: =LX63*LX58*LX53*LX6*(1+$F$63) -> 0 | LY64: =LY63*LY58*LY53*LY6*(1+$F$63) -> 0 | LZ64: =LZ63*LZ58*LZ53*LZ6*(1+$F$63) -> 0 | MA64: =MA63*MA58*MA53*MA6*(1+$F$63) -> 0 | MB64: =MB63*MB58*MB53*MB6*(1+$F$63) -> 0 | MC64: =MC63*MC58*MC53*MC6*(1+$F$63) -> 0 | MD64: =MD63*MD58*MD53*MD6*(1+$F$63) -> 0 | ME64: =ME63*ME58*ME53*ME6*(1+$F$63) -> 0 | MF64: =MF63*MF58*MF53*MF6*(1+$F$63) -> 0 | MG64: =MG63*MG58*MG53*MG6*(1+$F$63) -> 0 | MH64: =MH63*MH58*MH53*MH6*(1+$F$63) -> 0 | MI64: =MI63*MI58*MI53*MI6*(1+$F$63) -> 0 | MJ64: =MJ63*MJ58*MJ53*MJ6*(1+$F$63) -> 0 | MK64: =MK63*MK58*MK53*MK6*(1+$F$63) -> 0 | ML64: =ML63*ML58*ML53*ML6*(1+$F$63) -> 0 | MM64: =MM63*MM58*MM53*MM6*(1+$F$63) -> 0 | MN64: =MN63*MN58*MN53*MN6*(1+$F$63) -> 0 | MO64: =MO63*MO58*MO53*MO6*(1+$F$63) -> 0 | MP64: =MP63*MP58*MP53*MP6*(1+$F$63) -> 0 | MQ64: =MQ63*MQ58*MQ53*MQ6*(1+$F$63) -> 0 | MR64: =MR63*MR58*MR53*MR6*(1+$F$63) -> 0 | MS64: =MS63*MS58*MS53*MS6*(1+$F$63) -> 0 | MT64: =MT63*MT58*MT53*MT6*(1+$F$63) -> 0 | MU64: =MU63*MU58*MU53*MU6*(1+$F$63) -> 0 | MV64: =MV63*MV58*MV53*MV6*(1+$F$63) -> 0 | MW64: =MW63*MW58*MW53*MW6*(1+$F$63) -> 0 | MX64: =MX63*MX58*MX53*MX6*(1+$F$63) -> 0 | MY64: =MY63*MY58*MY53*MY6*(1+$F$63) -> 0 | MZ64: =MZ63*MZ58*MZ53*MZ6*(1+$F$63) -> 0 | NA64: =NA63*NA58*NA53*NA6*(1+$F$63) -> 0 | NB64: =NB63*NB58*NB53*NB6*(1+$F$63) -> 0 | NC64: =NC63*NC58*NC53*NC6*(1+$F$63) -> 0 | ND64: =ND63*ND58*ND53*ND6*(1+$F$63) -> 0 | NE64: =NE63*NE58*NE53*NE6*(1+$F$63) -> 0 | NF64: =NF63*NF58*NF53*NF6*(1+$F$63) -> 0 | NG64: =NG63*NG58*NG53*NG6*(1+$F$63) -> 0 | NH64: =NH63*NH58*NH53*NH6*(1+$F$63) -> 0 | NI64: =NI63*NI58*NI53*NI6*(1+$F$63) -> 0 | NJ64: =NJ63*NJ58*NJ53*NJ6*(1+$F$63) -> 0 | NK64: =NK63*NK58*NK53*NK6*(1+$F$63) -> 0 | NL64: =NL63*NL58*NL53*NL6*(1+$F$63) -> 0 | NM64: =NM63*NM58*NM53*NM6*(1+$F$63) -> 0 | NN64: =NN63*NN58*NN53*NN6*(1+$F$63) -> 0 | NO64: =NO63*NO58*NO53*NO6*(1+$F$63) -> 0 | NP64: =NP63*NP58*NP53*NP6*(1+$F$63) -> 0 | NQ64: =NQ63*NQ58*NQ53*NQ6*(1+$F$63) -> 0 | NR64: =NR63*NR58*NR53*NR6*(1+$F$63) -> 0 | NS64: =NS63*NS58*NS53*NS6*(1+$F$63) -> 0 | NT64: =NT63*NT58*NT53*NT6*(1+$F$63) -> 0 | NU64: =NU63*NU58*NU53*NU6*(1+$F$63) -> 0 | NV64: =NV63*NV58*NV53*NV6*(1+$F$63) -> 0 | NW64: =NW63*NW58*NW53*NW6*(1+$F$63) -> 0 | NX64: =NX63*NX58*NX53*NX6*(1+$F$63) -> 0 | NY64: =NY63*NY58*NY53*NY6*(1+$F$63) -> 0 | NZ64: =NZ63*NZ58*NZ53*NZ6*(1+$F$63) -> 0 | OA64: =OA63*OA58*OA53*OA6*(1+$F$63) -> 0 | OB64: =OB63*OB58*OB53*OB6*(1+$F$63) -> 0 | OC64: =OC63*OC58*OC53*OC6*(1+$F$63) -> 0 | OD64: =OD63*OD58*OD53*OD6*(1+$F$63) -> 0 | OE64: =OE63*OE58*OE53*OE6*(1+$F$63) -> 0 | OF64: =OF63*OF58*OF53*OF6*(1+$F$63) -> 0 | OG64: =OG63*OG58*OG53*OG6*(1+$F$63) -> 0 | OH64: =OH63*OH58*OH53*OH6*(1+$F$63) -> 0 | OI64: =OI63*OI58*OI53*OI6*(1+$F$63) -> 0 | OJ64: =OJ63*OJ58*OJ53*OJ6*(1+$F$63) -> 0 | OK64: =OK63*OK58*OK53*OK6*(1+$F$63) -> 0 | OL64: =OL63*OL58*OL53*OL6*(1+$F$63) -> 0 | OM64: =OM63*OM58*OM53*OM6*(1+$F$63) -> 0 | ON64: =ON63*ON58*ON53*ON6*(1+$F$63) -> 0 | OO64: =OO63*OO58*OO53*OO6*(1+$F$63) -> 0 | OP64: =OP63*OP58*OP53*OP6*(1+$F$63) -> 0 | OQ64: =OQ63*OQ58*OQ53*OQ6*(1+$F$63) -> 0 | OR64: =OR63*OR58*OR53*OR6*(1+$F$63) -> 0 | OS64: =OS63*OS58*OS53*OS6*(1+$F$63) -> 0 | OT64: =OT63*OT58*OT53*OT6*(1+$F$63) -> 0 | OU64: =OU63*OU58*OU53*OU6*(1+$F$63) -> 0 | OV64: =OV63*OV58*OV53*OV6*(1+$F$63) -> 0 | OW64: =OW63*OW58*OW53*OW6*(1+$F$63) -> 0 | OX64: =OX63*OX58*OX53*OX6*(1+$F$63) -> 0 | OY64: =OY63*OY58*OY53*OY6*(1+$F$63) -> 0 | OZ64: =OZ63*OZ58*OZ53*OZ6*(1+$F$63) -> 0 | PA64: =PA63*PA58*PA53*PA6*(1+$F$63) -> 0 | PB64: =PB63*PB58*PB53*PB6*(1+$F$63) -> 0 | PC64: =PC63*PC58*PC53*PC6*(1+$F$63) -> 0 | PD64: =PD63*PD58*PD53*PD6*(1+$F$63) -> 0 | PE64: =PE63*PE58*PE53*PE6*(1+$F$63) -> 0 | PF64: =PF63*PF58*PF53*PF6*(1+$F$63) -> 0 | PG64: =PG63*PG58*PG53*PG6*(1+$F$63) -> 0 | PH64: =PH63*PH58*PH53*PH6*(1+$F$63) -> 0 | PI64: =PI63*PI58*PI53*PI6*(1+$F$63) -> 0 | PJ64: =PJ63*PJ58*PJ53*PJ6*(1+$F$63) -> 0 | PK64: =PK63*PK58*PK53*PK6*(1+$F$63) -> 0 | PL64: =PL63*PL58*PL53*PL6*(1+$F$63) -> 0 | PM64: =PM63*PM58*PM53*PM6*(1+$F$63) -> 0 | PN64: =PN63*PN58*PN53*PN6*(1+$F$63) -> 0 | PO64: =PO63*PO58*PO53*PO6*(1+$F$63) -> 0 | PP64: =PP63*PP58*PP53*PP6*(1+$F$63) -> 0 | PQ64: =PQ63*PQ58*PQ53*PQ6*(1+$F$63) -> 0 | PR64: =PR63*PR58*PR53*PR6*(1+$F$63) -> 0 | PS64: =PS63*PS58*PS53*PS6*(1+$F$63) -> 0 | PT64: =PT63*PT58*PT53*PT6*(1+$F$63) -> 0 | PU64: =PU63*PU58*PU53*PU6*(1+$F$63) -> 0 | PV64: =PV63*PV58*PV53*PV6*(1+$F$63) -> 0 | PW64: =PW63*PW58*PW53*PW6*(1+$F$63) -> 0 | PX64: =PX63*PX58*PX53*PX6*(1+$F$63) -> 0 | PY64: =PY63*PY58*PY53*PY6*(1+$F$63) -> 0 | PZ64: =PZ63*PZ58*PZ53*PZ6*(1+$F$63) -> 0 | QA64: =QA63*QA58*QA53*QA6*(1+$F$63) -> 0 | QB64: =QB63*QB58*QB53*QB6*(1+$F$63) -> 0 | QC64: =QC63*QC58*QC53*QC6*(1+$F$63) -> 0 | QD64: =QD63*QD58*QD53*QD6*(1+$F$63) -> 0 | QE64: =QE63*QE58*QE53*QE6*(1+$F$63) -> 0 | QF64: =QF63*QF58*QF53*QF6*(1+$F$63) -> 0 | QG64: =QG63*QG58*QG53*QG6*(1+$F$63) -> 0 | QH64: =QH63*QH58*QH53*QH6*(1+$F$63) -> 0 | QI64: =QI63*QI58*QI53*QI6*(1+$F$63) -> 0 | QJ64: =QJ63*QJ58*QJ53*QJ6*(1+$F$63) -> 0 | QK64: =QK63*QK58*QK53*QK6*(1+$F$63) -> 0 | QL64: =QL63*QL58*QL53*QL6*(1+$F$63) -> 0 | QM64: =QM63*QM58*QM53*QM6*(1+$F$63) -> 0 | QN64: =QN63*QN58*QN53*QN6*(1+$F$63) -> 0 | QO64: =QO63*QO58*QO53*QO6*(1+$F$63) -> 0 | QP64: =QP63*QP58*QP53*QP6*(1+$F$63) -> 0 | QQ64: =QQ63*QQ58*QQ53*QQ6*(1+$F$63) -> 0 | QR64: =QR63*QR58*QR53*QR6*(1+$F$63) -> 0 | QS64: =QS63*QS58*QS53*QS6*(1+$F$63) -> 0 | QT64: =QT63*QT58*QT53*QT6*(1+$F$63) -> 0 | QU64: =QU63*QU58*QU53*QU6*(1+$F$63) -> 0 | QV64: =QV63*QV58*QV53*QV6*(1+$F$63) -> 0 | QW64: =QW63*QW58*QW53*QW6*(1+$F$63) -> 0 | QX64: =QX63*QX58*QX53*QX6*(1+$F$63) -> 0 | QY64: =QY63*QY58*QY53*QY6*(1+$F$63) -> 0 | QZ64: =QZ63*QZ58*QZ53*QZ6*(1+$F$63) -> 0 | RA64: =RA63*RA58*RA53*RA6*(1+$F$63) -> 0 | RB64: =RB63*RB58*RB53*RB6*(1+$F$63) -> 0 | RC64: =RC63*RC58*RC53*RC6*(1+$F$63) -> 0 | RD64: =RD63*RD58*RD53*RD6*(1+$F$63) -> 0 | RE64: =RE63*RE58*RE53*RE6*(1+$F$63) -> 0 | RF64: =RF63*RF58*RF53*RF6*(1+$F$63) -> 0 | RG64: =RG63*RG58*RG53*RG6*(1+$F$63) -> 0 | RH64: =RH63*RH58*RH53*RH6*(1+$F$63) -> 0 | RI64: =RI63*RI58*RI53*RI6*(1+$F$63) -> 0 | RJ64: =RJ63*RJ58*RJ53*RJ6*(1+$F$63) -> 0 | RK64: =RK63*RK58*RK53*RK6*(1+$F$63) -> 0 | RL64: =RL63*RL58*RL53*RL6*(1+$F$63) -> 0 | RM64: =RM63*RM58*RM53*RM6*(1+$F$63) -> 0 | RN64: =RN63*RN58*RN53*RN6*(1+$F$63) -> 0 | RO64: =RO63*RO58*RO53*RO6*(1+$F$63) -> 0 | RP64: =RP63*RP58*RP53*RP6*(1+$F$63) -> 0 | RQ64: =RQ63*RQ58*RQ53*RQ6*(1+$F$63) -> 0 | RR64: =RR63*RR58*RR53*RR6*(1+$F$63) -> 0 | RS64: =RS63*RS58*RS53*RS6*(1+$F$63) -> 0 | RT64: =RT63*RT58*RT53*RT6*(1+$F$63) -> 0 | RU64: =RU63*RU58*RU53*RU6*(1+$F$63) -> 0 | RV64: =RV63*RV58*RV53*RV6*(1+$F$63) -> 0 | RW64: =RW63*RW58*RW53*RW6*(1+$F$63) -> 0 | RX64: =RX63*RX58*RX53*RX6*(1+$F$63) -> 0 | RY64: =RY63*RY58*RY53*RY6*(1+$F$63) -> 0 | RZ64: =RZ63*RZ58*RZ53*RZ6*(1+$F$63) -> 0 | SA64: =SA63*SA58*SA53*SA6*(1+$F$63) -> 0 | SB64: =SB63*SB58*SB53*SB6*(1+$F$63) -> 0 | SC64: =SC63*SC58*SC53*SC6*(1+$F$63) -> 0 | SD64: =SD63*SD58*SD53*SD6*(1+$F$63) -> 0 | SE64: =SE63*SE58*SE53*SE6*(1+$F$63) -> 0 | SF64: =SF63*SF58*SF53*SF6*(1+$F$63) -> 0 | SG64: =SG63*SG58*SG53*SG6*(1+$F$63) -> 0 | SH64: =SH63*SH58*SH53*SH6*(1+$F$63) -> 0 | SI64: =SI63*SI58*SI53*SI6*(1+$F$63) -> 0 | SJ64: =SJ63*SJ58*SJ53*SJ6*(1+$F$63) -> 0 | SK64: =SK63*SK58*SK53*SK6*(1+$F$63) -> 0 | SL64: =SL63*SL58*SL53*SL6*(1+$F$63) -> 0 | SM64: =SM63*SM58*SM53*SM6*(1+$F$63) -> 0 | SN64: =SN63*SN58*SN53*SN6*(1+$F$63) -> 0 | SO64: =SO63*SO58*SO53*SO6*(1+$F$63) -> 0 | SP64: =SP63*SP58*SP53*SP6*(1+$F$63) -> 0 | SQ64: =SQ63*SQ58*SQ53*SQ6*(1+$F$63) -> 0 | SR64: =SR63*SR58*SR53*SR6*(1+$F$63) -> 0 | SS64: =SS63*SS58*SS53*SS6*(1+$F$63) -> 0 | ST64: =ST63*ST58*ST53*ST6*(1+$F$63) -> 0 | SU64: =SU63*SU58*SU53*SU6*(1+$F$63) -> 0 | SV64: =SV63*SV58*SV53*SV6*(1+$F$63) -> 0 | SW64: =SW63*SW58*SW53*SW6*(1+$F$63) -> 0 | SX64: =SX63*SX58*SX53*SX6*(1+$F$63) -> 0 | SY64: =SY63*SY58*SY53*SY6*(1+$F$63) -> 0 | SZ64: =SZ63*SZ58*SZ53*SZ6*(1+$F$63) -> 0 | TA64: =TA63*TA58*TA53*TA6*(1+$F$63) -> 0 | TB64: =TB63*TB58*TB53*TB6*(1+$F$63) -> 0 | TC64: =TC63*TC58*TC53*TC6*(1+$F$63) -> 0
D65: Total Cash Flow | E65: =NPV(G65,K65:KW65) -> 0 | G65: =G36 -> 0.084 | K65: =(K64+K62) -> 0 | L65: =(L64+L62) -> 0 | M65: 0 | N65: 0 | O65: 0 | P65: 0 | Q65: 0 | R65: 0 | S65: 0 | T65: 0 | U65: 0 | V65: 0 | W65: 0 | X65: 0 | Y65: 0 | Z65: 0 | AA65: 0 | AB65: 0 | AC65: 0 | AD65: 0 | AE65: 0 | AF65: 0 | AG65: 0 | AH65: 0 | AI65: 0 | AJ65: 0 | AK65: 0 | AL65: 0 | AM65: 0 | AN65: 0 | AO65: 0 | AP65: 0 | AQ65: 0 | AR65: 0 | AS65: 0 | AT65: 0 | AU65: 0 | AV65: 0 | AW65: 0 | AX65: 0 | AY65: 0 | AZ65: 0 | BA65: 0 | BB65: 0 | BC65: 0 | BD65: 0 | BE65: 0 | BF65: 0 | BG65: 0 | BH65: 0 | BI65: 0 | BJ65: 0 | BK65: 0 | BL65: 0 | BM65: 0 | BN65: 0 | BO65: 0 | BP65: 0 | BQ65: 0 | BR65: 0 | BS65: 0 | BT65: 0 | BU65: 0 | BV65: 0 | BW65: 0 | BX65: =(BX64+BX62) -> 0 | BY65: 0 | BZ65: 0 | CA65: 0 | CB65: 0 | CC65: 0 | CD65: 0 | CE65: 0 | CF65: 0 | CG65: 0 | CH65: 0 | CI65: 0 | CJ65: 0 | CK65: 0 | CL65: 0 | CM65: 0 | CN65: 0 | CO65: 0 | CP65: 0 | CQ65: 0 | CR65: 0 | CS65: 0 | CT65: 0 | CU65: 0 | CV65: 0 | CW65: 0 | CX65: 0 | CY65: 0 | CZ65: 0 | DA65: 0 | DB65: 0 | DC65: 0 | DD65: 0 | DE65: 0 | DF65: 0 | DG65: 0 | DH65: 0 | DI65: 0 | DJ65: 0 | DK65: 0 | DL65: 0 | DM65: 0 | DN65: 0 | DO65: 0 | DP65: 0 | DQ65: 0 | DR65: 0 | DS65: 0 | DT65: 0 | DU65: 0 | DV65: 0 | DW65: 0 | DX65: 0 | DY65: 0 | DZ65: 0 | EA65: 0 | EB65: 0 | EC65: 0 | ED65: 0 | EE65: 0 | EF65: 0 | EG65: 0 | EH65: 0 | EI65: 0 | EJ65: =(EJ64+EJ62) -> 0 | EK65: 0 | EL65: 0 | EM65: 0 | EN65: 0 | EO65: 0 | EP65: 0 | EQ65: 0 | ER65: 0 | ES65: 0 | ET65: 0 | EU65: 0 | EV65: 0 | EW65: 0 | EX65: 0 | EY65: 0 | EZ65: 0 | FA65: 0 | FB65: 0 | FC65: 0 | FD65: 0 | FE65: 0 | FF65: 0 | FG65: 0 | FH65: 0 | FI65: 0 | FJ65: 0 | FK65: 0 | FL65: 0 | FM65: 0 | FN65: 0 | FO65: 0 | FP65: 0 | FQ65: 0 | FR65: 0 | FS65: 0 | FT65: 0 | FU65: 0 | FV65: 0 | FW65: 0 | FX65: 0 | FY65: 0 | FZ65: 0 | GA65: 0 | GB65: 0 | GC65: 0 | GD65: 0 | GE65: 0 | GF65: 0 | GG65: 0 | GH65: 0 | GI65: 0 | GJ65: 0 | GK65: 0 | GL65: 0 | GM65: 0 | GN65: 0 | GO65: 0 | GP65: 0 | GQ65: 0 | GR65: 0 | GS65: 0 | GT65: 0 | GU65: 0 | GV65: =(GV64+GV62) -> 0 | GW65: 0 | GX65: 0 | GY65: 0 | GZ65: 0 | HA65: 0 | HB65: 0 | HC65: 0 | HD65: 0 | HE65: 0 | HF65: 0 | HG65: 0 | HH65: 0 | HI65: 0 | HJ65: 0 | HK65: 0 | HL65: 0 | HM65: 0 | HN65: 0 | HO65: 0 | HP65: 0 | HQ65: 0 | HR65: 0 | HS65: 0 | HT65: 0 | HU65: 0 | HV65: 0 | HW65: 0 | HX65: 0 | HY65: 0 | HZ65: 0 | IA65: 0 | IB65: 0 | IC65: 0 | ID65: 0 | IE65: 0 | IF65: 0 | IG65: 0 | IH65: 0 | II65: 0 | IJ65: 0 | IK65: 0 | IL65: 0 | IM65: 0 | IN65: 0 | IO65: 0 | IP65: 0 | IQ65: 0 | IR65: 0 | IS65: 0 | IT65: 0 | IU65: 0 | IV65: 0 | IW65: 0 | IX65: 0 | IY65: 0 | IZ65: 0 | JA65: 0 | JB65: 0 | JC65: 0 | JD65: 0 | JE65: 0 | JF65: 0 | JG65: 0 | JH65: =(JH64+JH62) -> 0 | JI65: 0 | JJ65: 0 | JK65: 0 | JL65: 0 | JM65: 0 | JN65: 0 | JO65: 0 | JP65: 0 | JQ65: 0 | JR65: 0 | JS65: 0 | JT65: 0 | JU65: 0 | JV65: 0 | JW65: 0 | JX65: 0 | JY65: 0 | JZ65: 0 | KA65: 0 | KB65: 0 | KC65: 0 | KD65: 0 | KE65: 0 | KF65: 0 | KG65: 0 | KH65: 0 | KI65: 0 | KJ65: 0 | KK65: 0 | KL65: 0 | KM65: 0 | KN65: 0 | KO65: 0 | KP65: 0 | KQ65: 0 | KR65: 0 | KS65: 0 | KT65: 0 | KU65: 0 | KV65: 0 | KW65: 0 | KX65: 0 | KY65: 0 | KZ65: 0 | LA65: 0 | LB65: 0 | LC65: 0 | LD65: 0 | LE65: 0 | LF65: 0 | LG65: 0 | LH65: 0 | LI65: 0 | LJ65: 0 | LK65: 0 | LL65: 0 | LM65: 0 | LN65: 0 | LO65: 0 | LP65: 0 | LQ65: 0 | LR65: 0 | LS65: 0 | LT65: =(LT64+LT62) -> 0 | LU65: 0 | LV65: 0 | LW65: 0 | LX65: 0 | LY65: 0 | LZ65: 0 | MA65: 0 | MB65: 0 | MC65: 0 | MD65: 0 | ME65: 0 | MF65: 0 | MG65: 0 | MH65: 0 | MI65: 0 | MJ65: 0 | MK65: 0 | ML65: 0 | MM65: 0 | MN65: 0 | MO65: 0 | MP65: 0 | MQ65: 0 | MR65: 0 | MS65: 0 | MT65: 0 | MU65: 0 | MV65: 0 | MW65: 0 | MX65: 0 | MY65: 0 | MZ65: 0 | NA65: 0 | NB65: 0 | NC65: 0 | ND65: 0 | NE65: 0 | NF65: 0 | NG65: 0 | NH65: 0 | NI65: 0 | NJ65: 0 | NK65: 0 | NL65: 0 | NM65: 0 | NN65: 0 | NO65: 0 | NP65: 0 | NQ65: 0 | NR65: 0 | NS65: 0 | NT65: 0 | NU65: 0 | NV65: 0 | NW65: 0 | NX65: 0 | NY65: 0 | NZ65: 0 | OA65: 0 | OB65: 0 | OC65: 0 | OD65: 0 | OE65: 0 | OF65: =(OF64+OF62) -> 0 | OG65: 0 | OH65: 0 | OI65: 0 | OJ65: 0 | OK65: 0 | OL65: 0 | OM65: 0 | ON65: 0 | OO65: 0 | OP65: 0 | OQ65: 0 | OR65: 0 | OS65: 0 | OT65: 0 | OU65: 0 | OV65: 0 | OW65: 0 | OX65: 0 | OY65: 0 | OZ65: 0 | PA65: 0 | PB65: 0 | PC65: 0 | PD65: 0 | PE65: 0 | PF65: 0 | PG65: 0 | PH65: 0 | PI65: 0 | PJ65: 0 | PK65: 0 | PL65: 0 | PM65: 0 | PN65: 0 | PO65: 0 | PP65: 0 | PQ65: 0 | PR65: 0 | PS65: 0 | PT65: 0 | PU65: 0 | PV65: 0 | PW65: 0 | PX65: 0 | PY65: 0 | PZ65: 0 | QA65: 0 | QB65: 0 | QC65: 0 | QD65: 0 | QE65: 0 | QF65: 0 | QG65: 0 | QH65: 0 | QI65: 0 | QJ65: 0 | QK65: 0 | QL65: 0 | QM65: 0 | QN65: 0 | QO65: 0 | QP65: 0 | QQ65: 0 | QR65: =(QR64+QR62) -> 0 | QS65: 0 | QT65: 0 | QU65: 0 | QV65: 0 | QW65: 0 | QX65: 0 | QY65: 0 | QZ65: 0 | RA65: 0 | RB65: 0 | RC65: 0 | RD65: 0 | RE65: 0 | RF65: 0 | RG65: 0 | RH65: 0 | RI65: 0 | RJ65: 0 | RK65: 0 | RL65: 0 | RM65: 0 | RN65: 0 | RO65: 0 | RP65: 0 | RQ65: 0 | RR65: 0 | RS65: 0 | RT65: 0 | RU65: 0 | RV65: 0 | RW65: 0 | RX65: 0 | RY65: 0 | RZ65: 0 | SA65: 0 | SB65: 0 | SC65: 0 | SD65: 0 | SE65: 0 | SF65: 0 | SG65: 0 | SH65: 0 | SI65: 0 | SJ65: 0 | SK65: 0 | SL65: 0 | SM65: 0 | SN65: 0 | SO65: 0 | SP65: 0 | SQ65: 0 | SR65: 0 | SS65: 0 | ST65: 0 | SU65: 0 | SV65: 0 | SW65: 0 | SX65: 0 | SY65: 0 | SZ65: 0 | TA65: 0 | TB65: 0 | TC65: 0
D66: Explicit Value | E66: =E40 -> 0
D67: Total Value | E67: =E65+E66 -> 0
D70: ROIC =Income/Investment
D71: Given Growth and ROIC
D72: Need Income
D73: Need Change in Investment
D74: Investment (t) =Investment (t-1) * (1+g)
F76: =Scenarios!D10 -> 2020-04-29 | G76: =Scenarios!I10 -> 2040-04-29 | J76: =TODAY() -> 2020-04-29 | K76: =EDATE(J76,12) -> 2021-04-29 | L76: =EDATE(K76,12) -> 2022-04-29 | M76: 2023-04-29 | N76: 2024-04-29 | O76: 2025-04-29 | P76: 2026-04-29 | Q76: 2027-04-29 | R76: 2028-04-29 | S76: 2029-04-29 | T76: 2030-04-29 | U76: 2031-04-29 | V76: 2032-04-29 | W76: 2033-04-29 | X76: 2034-04-29 | Y76: 2035-04-29 | Z76: 2036-04-29 | AA76: 2037-04-29 | AB76: 2038-04-29 | AC76: 2039-04-29 | AD76: 2040-04-29 | AE76: 2041-04-29 | AF76: 2042-04-29 | AG76: 2043-04-29 | AH76: 2044-04-29 | AI76: 2045-04-29 | AJ76: 2046-04-29 | AK76: 2047-04-29 | AL76: 2048-04-29 | AM76: 2049-04-29 | AN76: 2050-04-29 | AO76: 2051-04-29 | AP76: 2052-04-29 | AQ76: 2053-04-29 | AR76: 2054-04-29 | AS76: 2055-04-29 | AT76: 2056-04-29 | AU76: 2057-04-29 | AV76: 2058-04-29 | AW76: 2059-04-29 | AX76: 2060-04-29 | AY76: 2061-04-29 | AZ76: 2062-04-29 | BA76: 2063-04-29 | BB76: 2064-04-29 | BC76: 2065-04-29 | BD76: 2066-04-29 | BE76: 2067-04-29 | BF76: 2068-04-29 | BG76: 2069-04-29 | BH76: 2070-04-29 | BI76: 2071-04-29 | BJ76: 2072-04-29 | BK76: 2073-04-29 | BL76: 2074-04-29 | BM76: 2075-04-29 | BN76: 2076-04-29 | BO76: 2077-04-29 | BP76: 2078-04-29 | BQ76: 2079-04-29 | BR76: 2080-04-29 | BS76: 2081-04-29 | BT76: 2082-04-29 | BU76: 2083-04-29 | BV76: 2084-04-29 | BW76: 2085-04-29 | BX76: =EDATE(BW76,12) -> 2086-04-29 | BY76: 2087-04-29 | BZ76: 2088-04-29 | CA76: 2089-04-29 | CB76: 2090-04-29 | CC76: 2091-04-29 | CD76: 2092-04-29 | CE76: 2093-04-29 | CF76: 2094-04-29 | CG76: 2095-04-29 | CH76: 2096-04-29 | CI76: 2097-04-29 | CJ76: 2098-04-29 | CK76: 2099-04-29 | CL76: 2100-04-29 | CM76: 2101-04-29 | CN76: 2102-04-29 | CO76: 2103-04-29 | CP76: 2104-04-29 | CQ76: 2105-04-29 | CR76: 2106-04-29 | CS76: 2107-04-29 | CT76: 2108-04-29 | CU76: 2109-04-29 | CV76: 2110-04-29 | CW76: 2111-04-29 | CX76: 2112-04-29 | CY76: 2113-04-29 | CZ76: 2114-04-29 | DA76: 2115-04-29 | DB76: 2116-04-29 | DC76: 2117-04-29 | DD76: 2118-04-29 | DE76: 2119-04-29 | DF76: 2120-04-29 | DG76: 2121-04-29 | DH76: 2122-04-29 | DI76: 2123-04-29 | DJ76: 2124-04-29 | DK76: 2125-04-29 | DL76: 2126-04-29 | DM76: 2127-04-29 | DN76: 2128-04-29 | DO76: 2129-04-29 | DP76: 2130-04-29 | DQ76: 2131-04-29 | DR76: 2132-04-29 | DS76: 2133-04-29 | DT76: 2134-04-29 | DU76: 2135-04-29 | DV76: 2136-04-29 | DW76: 2137-04-29 | DX76: 2138-04-29 | DY76: 2139-04-29 | DZ76: 2140-04-29 | EA76: 2141-04-29 | EB76: 2142-04-29 | EC76: 2143-04-29 | ED76: 2144-04-29 | EE76: 2145-04-29 | EF76: 2146-04-29 | EG76: 2147-04-29 | EH76: 2148-04-29 | EI76: 2149-04-29 | EJ76: =EDATE(EI76,12) -> 2150-04-29 | EK76: 2151-04-29 | EL76: 2152-04-29 | EM76: 2153-04-29 | EN76: 2154-04-29 | EO76: 2155-04-29 | EP76: 2156-04-29 | EQ76: 2157-04-29 | ER76: 2158-04-29 | ES76: 2159-04-29 | ET76: 2160-04-29 | EU76: 2161-04-29 | EV76: 2162-04-29 | EW76: 2163-04-29 | EX76: 2164-04-29 | EY76: 2165-04-29 | EZ76: 2166-04-29 | FA76: 2167-04-29 | FB76: 2168-04-29 | FC76: 2169-04-29 | FD76: 2170-04-29 | FE76: 2171-04-29 | FF76: 2172-04-29 | FG76: 2173-04-29 | FH76: 2174-04-29 | FI76: 2175-04-29 | FJ76: 2176-04-29 | FK76: 2177-04-29 | FL76: 2178-04-29 | FM76: 2179-04-29 | FN76: 2180-04-29 | FO76: 2181-04-29 | FP76: 2182-04-29 | FQ76: 2183-04-29 | FR76: 2184-04-29 | FS76: 2185-04-29 | FT76: 2186-04-29 | FU76: 2187-04-29 | FV76: 2188-04-29 | FW76: 2189-04-29 | FX76: 2190-04-29 | FY76: 2191-04-29 | FZ76: 2192-04-29 | GA76: 2193-04-29 | GB76: 2194-04-29 | GC76: 2195-04-29 | GD76: 2196-04-29 | GE76: 2197-04-29 | GF76: 2198-04-29 | GG76: 2199-04-29 | GH76: 2200-04-29 | GI76: 2201-04-29 | GJ76: 2202-04-29 | GK76: 2203-04-29 | GL76: 2204-04-29 | GM76: 2205-04-29 | GN76: 2206-04-29 | GO76: 2207-04-29 | GP76: 2208-04-29 | GQ76: 2209-04-29 | GR76: 2210-04-29 | GS76: 2211-04-29 | GT76: 2212-04-29 | GU76: 2213-04-29 | GV76: =EDATE(GU76,12) -> 2214-04-29 | GW76: 2215-04-29 | GX76: 2216-04-29 | GY76: 2217-04-29 | GZ76: 2218-04-29 | HA76: 2219-04-29 | HB76: 2220-04-29 | HC76: 2221-04-29 | HD76: 2222-04-29 | HE76: 2223-04-29 | HF76: 2224-04-29 | HG76: 2225-04-29 | HH76: 2226-04-29 | HI76: 2227-04-29 | HJ76: 2228-04-29 | HK76: 2229-04-29 | HL76: 2230-04-29 | HM76: 2231-04-29 | HN76: 2232-04-29 | HO76: 2233-04-29 | HP76: 2234-04-29 | HQ76: 2235-04-29 | HR76: 2236-04-29 | HS76: 2237-04-29 | HT76: 2238-04-29 | HU76: 2239-04-29 | HV76: 2240-04-29 | HW76: 2241-04-29 | HX76: 2242-04-29 | HY76: 2243-04-29 | HZ76: 2244-04-29 | IA76: 2245-04-29 | IB76: 2246-04-29 | IC76: 2247-04-29 | ID76: 2248-04-29 | IE76: 2249-04-29 | IF76: 2250-04-29 | IG76: 2251-04-29 | IH76: 2252-04-29 | II76: 2253-04-29 | IJ76: 2254-04-29 | IK76: 2255-04-29 | IL76: 2256-04-29 | IM76: 2257-04-29 | IN76: 2258-04-29 | IO76: 2259-04-29 | IP76: 2260-04-29 | IQ76: 2261-04-29 | IR76: 2262-04-29 | IS76: 2263-04-29 | IT76: 2264-04-29 | IU76: 2265-04-29 | IV76: 2266-04-29 | IW76: 2267-04-29 | IX76: 2268-04-29 | IY76: 2269-04-29 | IZ76: 2270-04-29 | JA76: 2271-04-29 | JB76: 2272-04-29 | JC76: 2273-04-29 | JD76: 2274-04-29 | JE76: 2275-04-29 | JF76: 2276-04-29 | JG76: 2277-04-29 | JH76: =EDATE(JG76,12) -> 2278-04-29 | JI76: 2279-04-29 | JJ76: 2280-04-29 | JK76: 2281-04-29 | JL76: 2282-04-29 | JM76: 2283-04-29 | JN76: 2284-04-29 | JO76: 2285-04-29 | JP76: 2286-04-29 | JQ76: 2287-04-29 | JR76: 2288-04-29 | JS76: 2289-04-29 | JT76: 2290-04-29 | JU76: 2291-04-29 | JV76: 2292-04-29 | JW76: 2293-04-29 | JX76: 2294-04-29 | JY76: 2295-04-29 | JZ76: 2296-04-29 | KA76: 2297-04-29 | KB76: 2298-04-29 | KC76: 2299-04-29 | KD76: 2300-04-29 | KE76: 2301-04-29 | KF76: 2302-04-29 | KG76: 2303-04-29 | KH76: 2304-04-29 | KI76: 2305-04-29 | KJ76: 2306-04-29 | KK76: 2307-04-29 | KL76: 2308-04-29 | KM76: 2309-04-29 | KN76: 2310-04-29 | KO76: 2311-04-29 | KP76: 2312-04-29 | KQ76: 2313-04-29 | KR76: 2314-04-29 | KS76: 2315-04-29 | KT76: 2316-04-29 | KU76: 2317-04-29 | KV76: 2318-04-29 | KW76: 2319-04-29 | KX76: 2320-04-29 | KY76: 2321-04-29 | KZ76: 2322-04-29 | LA76: 2323-04-29 | LB76: 2324-04-29 | LC76: 2325-04-29 | LD76: 2326-04-29 | LE76: 2327-04-29 | LF76: 2328-04-29 | LG76: 2329-04-29 | LH76: 2330-04-29 | LI76: 2331-04-29 | LJ76: 2332-04-29 | LK76: 2333-04-29 | LL76: 2334-04-29 | LM76: 2335-04-29 | LN76: 2336-04-29 | LO76: 2337-04-29 | LP76: 2338-04-29 | LQ76: 2339-04-29 | LR76: 2340-04-29 | LS76: 2341-04-29 | LT76: =EDATE(LS76,12) -> 2342-04-29 | LU76: 2343-04-29 | LV76: 2344-04-29 | LW76: 2345-04-29 | LX76: 2346-04-29 | LY76: 2347-04-29 | LZ76: 2348-04-29 | MA76: 2349-04-29 | MB76: 2350-04-29 | MC76: 2351-04-29 | MD76: 2352-04-29 | ME76: 2353-04-29 | MF76: 2354-04-29 | MG76: 2355-04-29 | MH76: 2356-04-29 | MI76: 2357-04-29 | MJ76: 2358-04-29 | MK76: 2359-04-29 | ML76: 2360-04-29 | MM76: 2361-04-29 | MN76: 2362-04-29 | MO76: 2363-04-29 | MP76: 2364-04-29 | MQ76: 2365-04-29 | MR76: 2366-04-29 | MS76: 2367-04-29 | MT76: 2368-04-29 | MU76: 2369-04-29 | MV76: 2370-04-29 | MW76: 2371-04-29 | MX76: 2372-04-29 | MY76: 2373-04-29 | MZ76: 2374-04-29 | NA76: 2375-04-29 | NB76: 2376-04-29 | NC76: 2377-04-29 | ND76: 2378-04-29 | NE76: 2379-04-29 | NF76: 2380-04-29 | NG76: 2381-04-29 | NH76: 2382-04-29 | NI76: 2383-04-29 | NJ76: 2384-04-29 | NK76: 2385-04-29 | NL76: 2386-04-29 | NM76: 2387-04-29 | NN76: 2388-04-29 | NO76: 2389-04-29 | NP76: 2390-04-29 | NQ76: 2391-04-29 | NR76: 2392-04-29 | NS76: 2393-04-29 | NT76: 2394-04-29 | NU76: 2395-04-29 | NV76: 2396-04-29 | NW76: 2397-04-29 | NX76: 2398-04-29 | NY76: 2399-04-29 | NZ76: 2400-04-29 | OA76: 2401-04-29 | OB76: 2402-04-29 | OC76: 2403-04-29 | OD76: 2404-04-29 | OE76: 2405-04-29 | OF76: =EDATE(OE76,12) -> 2406-04-29 | OG76: 2407-04-29 | OH76: 2408-04-29 | OI76: 2409-04-29 | OJ76: 2410-04-29 | OK76: 2411-04-29 | OL76: 2412-04-29 | OM76: 2413-04-29 | ON76: 2414-04-29 | OO76: 2415-04-29 | OP76: 2416-04-29 | OQ76: 2417-04-29 | OR76: 2418-04-29 | OS76: 2419-04-29 | OT76: 2420-04-29 | OU76: 2421-04-29 | OV76: 2422-04-29 | OW76: 2423-04-29 | OX76: 2424-04-29 | OY76: 2425-04-29 | OZ76: 2426-04-29 | PA76: 2427-04-29 | PB76: 2428-04-29 | PC76: 2429-04-29 | PD76: 2430-04-29 | PE76: 2431-04-29 | PF76: 2432-04-29 | PG76: 2433-04-29 | PH76: 2434-04-29 | PI76: 2435-04-29 | PJ76: 2436-04-29 | PK76: 2437-04-29 | PL76: 2438-04-29 | PM76: 2439-04-29 | PN76: 2440-04-29 | PO76: 2441-04-29 | PP76: 2442-04-29 | PQ76: 2443-04-29 | PR76: 2444-04-29 | PS76: 2445-04-29 | PT76: 2446-04-29 | PU76: 2447-04-29 | PV76: 2448-04-29 | PW76: 2449-04-29 | PX76: 2450-04-29 | PY76: 2451-04-29 | PZ76: 2452-04-29 | QA76: 2453-04-29 | QB76: 2454-04-29 | QC76: 2455-04-29 | QD76: 2456-04-29 | QE76: 2457-04-29 | QF76: 2458-04-29 | QG76: 2459-04-29 | QH76: 2460-04-29 | QI76: 2461-04-29 | QJ76: 2462-04-29 | QK76: 2463-04-29 | QL76: 2464-04-29 | QM76: 2465-04-29 | QN76: 2466-04-29 | QO76: 2467-04-29 | QP76: 2468-04-29 | QQ76: 2469-04-29 | QR76: =EDATE(QQ76,12) -> 2470-04-29 | QS76: 2471-04-29 | QT76: 2472-04-29 | QU76: 2473-04-29 | QV76: 2474-04-29 | QW76: 2475-04-29 | QX76: 2476-04-29 | QY76: 2477-04-29 | QZ76: 2478-04-29 | RA76: 2479-04-29 | RB76: 2480-04-29 | RC76: 2481-04-29 | RD76: 2482-04-29 | RE76: 2483-04-29 | RF76: 2484-04-29 | RG76: 2485-04-29 | RH76: 2486-04-29 | RI76: 2487-04-29 | RJ76: 2488-04-29 | RK76: 2489-04-29 | RL76: 2490-04-29 | RM76: 2491-04-29 | RN76: 2492-04-29 | RO76: 2493-04-29 | RP76: 2494-04-29 | RQ76: 2495-04-29 | RR76: 2496-04-29 | RS76: 2497-04-29 | RT76: 2498-04-29 | RU76: 2499-04-29 | RV76: 2500-04-29 | RW76: 2501-04-29 | RX76: 2502-04-29 | RY76: 2503-04-29 | RZ76: 2504-04-29 | SA76: 2505-04-29 | SB76: 2506-04-29 | SC76: 2507-04-29 | SD76: 2508-04-29 | SE76: 2509-04-29 | SF76: 2510-04-29 | SG76: 2511-04-29 | SH76: 2512-04-29 | SI76: 2513-04-29 | SJ76: 2514-04-29 | SK76: 2515-04-29 | SL76: 2516-04-29 | SM76: 2517-04-29 | SN76: 2518-04-29 | SO76: 2519-04-29 | SP76: 2520-04-29 | SQ76: 2521-04-29 | SR76: 2522-04-29 | SS76: 2523-04-29 | ST76: 2524-04-29 | SU76: 2525-04-29 | SV76: 2526-04-29 | SW76: 2527-04-29 | SX76: 2528-04-29 | SY76: 2529-04-29 | SZ76: 2530-04-29 | TA76: 2531-04-29 | TB76: 2532-04-29 | TC76: 2533-04-29
B77: Graphs | K77: =AND(K76>=$F$76,K76<=$G$76) -> TRUE | L77: =AND(L76>=$F$76,L76<=$G$76) -> TRUE | M77: TRUE | N77: TRUE | O77: TRUE | P77: TRUE | Q77: TRUE | R77: TRUE | S77: TRUE | T77: TRUE | U77: TRUE | V77: TRUE | W77: TRUE | X77: TRUE | Y77: TRUE | Z77: TRUE | AA77: TRUE | AB77: TRUE | AC77: TRUE | AD77: TRUE | AE77: FALSE | AF77: FALSE | AG77: FALSE | AH77: FALSE | AI77: FALSE | AJ77: FALSE | AK77: FALSE | AL77: FALSE | AM77: FALSE | AN77: FALSE | AO77: FALSE | AP77: FALSE | AQ77: FALSE | AR77: FALSE | AS77: FALSE | AT77: FALSE | AU77: FALSE | AV77: FALSE | AW77: FALSE | AX77: FALSE | AY77: FALSE | AZ77: FALSE | BA77: FALSE | BB77: FALSE | BC77: FALSE | BD77: FALSE | BE77: FALSE | BF77: FALSE | BG77: FALSE | BH77: FALSE | BI77: FALSE | BJ77: FALSE | BK77: FALSE | BL77: FALSE | BM77: FALSE | BN77: FALSE | BO77: FALSE | BP77: FALSE | BQ77: FALSE | BR77: FALSE | BS77: FALSE | BT77: FALSE | BU77: FALSE | BV77: FALSE | BW77: FALSE | BX77: =AND(BX76>=$F$76,BX76<=$G$76) -> FALSE | BY77: FALSE | BZ77: FALSE | CA77: FALSE | CB77: FALSE | CC77: FALSE | CD77: FALSE | CE77: FALSE | CF77: FALSE | CG77: FALSE | CH77: FALSE | CI77: FALSE | CJ77: FALSE | CK77: FALSE | CL77: FALSE | CM77: FALSE | CN77: FALSE | CO77: FALSE | CP77: FALSE | CQ77: FALSE | CR77: FALSE | CS77: FALSE | CT77: FALSE | CU77: FALSE | CV77: FALSE | CW77: FALSE | CX77: FALSE | CY77: FALSE | CZ77: FALSE | DA77: FALSE | DB77: FALSE | DC77: FALSE | DD77: FALSE | DE77: FALSE | DF77: FALSE | DG77: FALSE | DH77: FALSE | DI77: FALSE | DJ77: FALSE | DK77: FALSE | DL77: FALSE | DM77: FALSE | DN77: FALSE | DO77: FALSE | DP77: FALSE | DQ77: FALSE | DR77: FALSE | DS77: FALSE | DT77: FALSE | DU77: FALSE | DV77: FALSE | DW77: FALSE | DX77: FALSE | DY77: FALSE | DZ77: FALSE | EA77: FALSE | EB77: FALSE | EC77: FALSE | ED77: FALSE | EE77: FALSE | EF77: FALSE | EG77: FALSE | EH77: FALSE | EI77: FALSE | EJ77: =AND(EJ76>=$F$76,EJ76<=$G$76) -> FALSE | EK77: FALSE | EL77: FALSE | EM77: FALSE | EN77: FALSE | EO77: FALSE | EP77: FALSE | EQ77: FALSE | ER77: FALSE | ES77: FALSE | ET77: FALSE | EU77: FALSE | EV77: FALSE | EW77: FALSE | EX77: FALSE | EY77: FALSE | EZ77: FALSE | FA77: FALSE | FB77: FALSE | FC77: FALSE | FD77: FALSE | FE77: FALSE | FF77: FALSE | FG77: FALSE | FH77: FALSE | FI77: FALSE | FJ77: FALSE | FK77: FALSE | FL77: FALSE | FM77: FALSE | FN77: FALSE | FO77: FALSE | FP77: FALSE | FQ77: FALSE | FR77: FALSE | FS77: FALSE | FT77: FALSE | FU77: FALSE | FV77: FALSE | FW77: FALSE | FX77: FALSE | FY77: FALSE | FZ77: FALSE | GA77: FALSE | GB77: FALSE | GC77: FALSE | GD77: FALSE | GE77: FALSE | GF77: FALSE | GG77: FALSE | GH77: FALSE | GI77: FALSE | GJ77: FALSE | GK77: FALSE | GL77: FALSE | GM77: FALSE | GN77: FALSE | GO77: FALSE | GP77: FALSE | GQ77: FALSE | GR77: FALSE | GS77: FALSE | GT77: FALSE | GU77: FALSE | GV77: =AND(GV76>=$F$76,GV76<=$G$76) -> FALSE | GW77: FALSE | GX77: FALSE | GY77: FALSE | GZ77: FALSE | HA77: FALSE | HB77: FALSE | HC77: FALSE | HD77: FALSE | HE77: FALSE | HF77: FALSE | HG77: FALSE | HH77: FALSE | HI77: FALSE | HJ77: FALSE | HK77: FALSE | HL77: FALSE | HM77: FALSE | HN77: FALSE | HO77: FALSE | HP77: FALSE | HQ77: FALSE | HR77: FALSE | HS77: FALSE | HT77: FALSE | HU77: FALSE | HV77: FALSE | HW77: FALSE | HX77: FALSE | HY77: FALSE | HZ77: FALSE | IA77: FALSE | IB77: FALSE | IC77: FALSE | ID77: FALSE | IE77: FALSE | IF77: FALSE | IG77: FALSE | IH77: FALSE | II77: FALSE | IJ77: FALSE | IK77: FALSE | IL77: FALSE | IM77: FALSE | IN77: FALSE | IO77: FALSE | IP77: FALSE | IQ77: FALSE | IR77: FALSE | IS77: FALSE | IT77: FALSE | IU77: FALSE | IV77: FALSE | IW77: FALSE | IX77: FALSE | IY77: FALSE | IZ77: FALSE | JA77: FALSE | JB77: FALSE | JC77: FALSE | JD77: FALSE | JE77: FALSE | JF77: FALSE | JG77: FALSE | JH77: =AND(JH76>=$F$76,JH76<=$G$76) -> FALSE | JI77: FALSE | JJ77: FALSE | JK77: FALSE | JL77: FALSE | JM77: FALSE | JN77: FALSE | JO77: FALSE | JP77: FALSE | JQ77: FALSE | JR77: FALSE | JS77: FALSE | JT77: FALSE | JU77: FALSE | JV77: FALSE | JW77: FALSE | JX77: FALSE | JY77: FALSE | JZ77: FALSE | KA77: FALSE | KB77: FALSE | KC77: FALSE | KD77: FALSE | KE77: FALSE | KF77: FALSE | KG77: FALSE | KH77: FALSE | KI77: FALSE | KJ77: FALSE | KK77: FALSE | KL77: FALSE | KM77: FALSE | KN77: FALSE | KO77: FALSE | KP77: FALSE | KQ77: FALSE | KR77: FALSE | KS77: FALSE | KT77: FALSE | KU77: FALSE | KV77: FALSE | KW77: FALSE | KX77: FALSE | KY77: FALSE | KZ77: FALSE | LA77: FALSE | LB77: FALSE | LC77: FALSE | LD77: FALSE | LE77: FALSE | LF77: FALSE | LG77: FALSE | LH77: FALSE | LI77: FALSE | LJ77: FALSE | LK77: FALSE | LL77: FALSE | LM77: FALSE | LN77: FALSE | LO77: FALSE | LP77: FALSE | LQ77: FALSE | LR77: FALSE | LS77: FALSE | LT77: =AND(LT76>=$F$76,LT76<=$G$76) -> FALSE | LU77: FALSE | LV77: FALSE | LW77: FALSE | LX77: FALSE | LY77: FALSE | LZ77: FALSE | MA77: FALSE | MB77: FALSE | MC77: FALSE | MD77: FALSE | ME77: FALSE | MF77: FALSE | MG77: FALSE | MH77: FALSE | MI77: FALSE | MJ77: FALSE | MK77: FALSE | ML77: FALSE | MM77: FALSE | MN77: FALSE | MO77: FALSE | MP77: FALSE | MQ77: FALSE | MR77: FALSE | MS77: FALSE | MT77: FALSE | MU77: FALSE | MV77: FALSE | MW77: FALSE | MX77: FALSE | MY77: FALSE | MZ77: FALSE | NA77: FALSE | NB77: FALSE | NC77: FALSE | ND77: FALSE | NE77: FALSE | NF77: FALSE | NG77: FALSE | NH77: FALSE | NI77: FALSE | NJ77: FALSE | NK77: FALSE | NL77: FALSE | NM77: FALSE | NN77: FALSE | NO77: FALSE | NP77: FALSE | NQ77: FALSE | NR77: FALSE | NS77: FALSE | NT77: FALSE | NU77: FALSE | NV77: FALSE | NW77: FALSE | NX77: FALSE | NY77: FALSE | NZ77: FALSE | OA77: FALSE | OB77: FALSE | OC77: FALSE | OD77: FALSE | OE77: FALSE | OF77: =AND(OF76>=$F$76,OF76<=$G$76) -> FALSE | OG77: FALSE | OH77: FALSE | OI77: FALSE | OJ77: FALSE | OK77: FALSE | OL77: FALSE | OM77: FALSE | ON77: FALSE | OO77: FALSE | OP77: FALSE | OQ77: FALSE | OR77: FALSE | OS77: FALSE | OT77: FALSE | OU77: FALSE | OV77: FALSE | OW77: FALSE | OX77: FALSE | OY77: FALSE | OZ77: FALSE | PA77: FALSE | PB77: FALSE | PC77: FALSE | PD77: FALSE | PE77: FALSE | PF77: FALSE | PG77: FALSE | PH77: FALSE | PI77: FALSE | PJ77: FALSE | PK77: FALSE | PL77: FALSE | PM77: FALSE | PN77: FALSE | PO77: FALSE | PP77: FALSE | PQ77: FALSE | PR77: FALSE | PS77: FALSE | PT77: FALSE | PU77: FALSE | PV77: FALSE | PW77: FALSE | PX77: FALSE | PY77: FALSE | PZ77: FALSE | QA77: FALSE | QB77: FALSE | QC77: FALSE | QD77: FALSE | QE77: FALSE | QF77: FALSE | QG77: FALSE | QH77: FALSE | QI77: FALSE | QJ77: FALSE | QK77: FALSE | QL77: FALSE | QM77: FALSE | QN77: FALSE | QO77: FALSE | QP77: FALSE | QQ77: FALSE | QR77: =AND(QR76>=$F$76,QR76<=$G$76) -> FALSE | QS77: FALSE | QT77: FALSE | QU77: FALSE | QV77: FALSE | QW77: FALSE | QX77: FALSE | QY77: FALSE | QZ77: FALSE | RA77: FALSE | RB77: FALSE | RC77: FALSE | RD77: FALSE | RE77: FALSE | RF77: FALSE | RG77: FALSE | RH77: FALSE | RI77: FALSE | RJ77: FALSE | RK77: FALSE | RL77: FALSE | RM77: FALSE | RN77: FALSE | RO77: FALSE | RP77: FALSE | RQ77: FALSE | RR77: FALSE | RS77: FALSE | RT77: FALSE | RU77: FALSE | RV77: FALSE | RW77: FALSE | RX77: FALSE | RY77: FALSE | RZ77: FALSE | SA77: FALSE | SB77: FALSE | SC77: FALSE | SD77: FALSE | SE77: FALSE | SF77: FALSE | SG77: FALSE | SH77: FALSE | SI77: FALSE | SJ77: FALSE | SK77: FALSE | SL77: FALSE | SM77: FALSE | SN77: FALSE | SO77: FALSE | SP77: FALSE | SQ77: FALSE | SR77: FALSE | SS77: FALSE | ST77: FALSE | SU77: FALSE | SV77: FALSE | SW77: FALSE | SX77: FALSE | SY77: FALSE | SZ77: FALSE | TA77: FALSE | TB77: FALSE | TC77: FALSE
K78: =IF(K77,K76,NA()) -> 2021-04-29 | L78: =IF(L77,L76,NA()) -> 2022-04-29 | M78: 2023-04-29 | N78: 2024-04-29 | O78: 2025-04-29 | P78: 2026-04-29 | Q78: 2027-04-29 | R78: 2028-04-29 | S78: 2029-04-29 | T78: 2030-04-29 | U78: 2031-04-29 | V78: 2032-04-29 | W78: 2033-04-29 | X78: 2034-04-29 | Y78: 2035-04-29 | Z78: 2036-04-29 | AA78: 2037-04-29 | AB78: 2038-04-29 | AC78: 2039-04-29 | AD78: 2040-04-29 | BX78: =IF(BX77,BX76,NA()) ->  | EJ78: =IF(EJ77,EJ76,NA()) ->  | GV78: =IF(GV77,GV76,NA()) ->  | JH78: =IF(JH77,JH76,NA()) ->  | LT78: =IF(LT77,LT76,NA()) ->  | OF78: =IF(OF77,OF76,NA()) ->  | QR78: =IF(QR77,QR76,NA()) -> 
C79: Return on Investment | K79: =K6 -> 0 | L79: =L6 -> 0 | M79: 0 | N79: 0 | O79: 0 | P79: 0 | Q79: 0 | R79: 0 | S79: 0 | T79: 0 | U79: 0 | V79: 0 | W79: 0 | X79: 0 | Y79: 0 | Z79: 0 | AA79: 0 | AB79: 0 | AC79: 0 | AD79: 0 | AE79: 0 | AF79: 0 | AG79: 0 | AH79: 0 | AI79: 0 | AJ79: 0 | AK79: 0 | AL79: 0 | AM79: 0 | AN79: 0 | AO79: 0 | AP79: 0 | AQ79: 0 | AR79: 0 | AS79: 0 | AT79: 0 | AU79: 0 | AV79: 0 | AW79: 0 | AX79: 0 | AY79: 0 | AZ79: 0 | BA79: 0 | BB79: 0 | BC79: 0 | BD79: 0 | BE79: 0 | BF79: 0 | BG79: 0 | BH79: 0 | BI79: 0 | BJ79: 0 | BK79: 0 | BL79: 0 | BM79: 0 | BN79: 0 | BO79: 0 | BP79: 0 | BQ79: 0 | BR79: 0 | BS79: 0 | BT79: 0 | BU79: 0 | BV79: 0 | BW79: 0 | BX79: =BX6 -> 0 | BY79: 0 | BZ79: 0 | CA79: 0 | CB79: 0 | CC79: 0 | CD79: 0 | CE79: 0 | CF79: 0 | CG79: 0 | CH79: 0 | CI79: 0 | CJ79: 0 | CK79: 0 | CL79: 0 | CM79: 0 | CN79: 0 | CO79: 0 | CP79: 0 | CQ79: 0 | CR79: 0 | CS79: 0 | CT79: 0 | CU79: 0 | CV79: 0 | CW79: 0 | CX79: 0 | CY79: 0 | CZ79: 0 | DA79: 0 | DB79: 0 | DC79: 0 | DD79: 0 | DE79: 0 | DF79: 0 | DG79: 0 | DH79: 0 | DI79: 0 | DJ79: 0 | DK79: 0 | DL79: 0 | DM79: 0 | DN79: 0 | DO79: 0 | DP79: 0 | DQ79: 0 | DR79: 0 | DS79: 0 | DT79: 0 | DU79: 0 | DV79: 0 | DW79: 0 | DX79: 0 | DY79: 0 | DZ79: 0 | EA79: 0 | EB79: 0 | EC79: 0 | ED79: 0 | EE79: 0 | EF79: 0 | EG79: 0 | EH79: 0 | EI79: 0 | EJ79: =EJ6 -> 0 | EK79: 0 | EL79: 0 | EM79: 0 | EN79: 0 | EO79: 0 | EP79: 0 | EQ79: 0 | ER79: 0 | ES79: 0 | ET79: 0 | EU79: 0 | EV79: 0 | EW79: 0 | EX79: 0 | EY79: 0 | EZ79: 0 | FA79: 0 | FB79: 0 | FC79: 0 | FD79: 0 | FE79: 0 | FF79: 0 | FG79: 0 | FH79: 0 | FI79: 0 | FJ79: 0 | FK79: 0 | FL79: 0 | FM79: 0 | FN79: 0 | FO79: 0 | FP79: 0 | FQ79: 0 | FR79: 0 | FS79: 0 | FT79: 0 | FU79: 0 | FV79: 0 | FW79: 0 | FX79: 0 | FY79: 0 | FZ79: 0 | GA79: 0 | GB79: 0 | GC79: 0 | GD79: 0 | GE79: 0 | GF79: 0 | GG79: 0 | GH79: 0 | GI79: 0 | GJ79: 0 | GK79: 0 | GL79: 0 | GM79: 0 | GN79: 0 | GO79: 0 | GP79: 0 | GQ79: 0 | GR79: 0 | GS79: 0 | GT79: 0 | GU79: 0 | GV79: =GV6 -> 0 | GW79: 0 | GX79: 0 | GY79: 0 | GZ79: 0 | HA79: 0 | HB79: 0 | HC79: 0 | HD79: 0 | HE79: 0 | HF79: 0 | HG79: 0 | HH79: 0 | HI79: 0 | HJ79: 0 | HK79: 0 | HL79: 0 | HM79: 0 | HN79: 0 | HO79: 0 | HP79: 0 | HQ79: 0 | HR79: 0 | HS79: 0 | HT79: 0 | HU79: 0 | HV79: 0 | HW79: 0 | HX79: 0 | HY79: 0 | HZ79: 0 | IA79: 0 | IB79: 0 | IC79: 0 | ID79: 0 | IE79: 0 | IF79: 0 | IG79: 0 | IH79: 0 | II79: 0 | IJ79: 0 | IK79: 0 | IL79: 0 | IM79: 0 | IN79: 0 | IO79: 0 | IP79: 0 | IQ79: 0 | IR79: 0 | IS79: 0 | IT79: 0 | IU79: 0 | IV79: 0 | IW79: 0 | IX79: 0 | IY79: 0 | IZ79: 0 | JA79: 0 | JB79: 0 | JC79: 0 | JD79: 0 | JE79: 0 | JF79: 0 | JG79: 0 | JH79: =JH6 -> 0 | JI79: 0 | JJ79: 0 | JK79: 0 | JL79: 0 | JM79: 0 | JN79: 0 | JO79: 0 | JP79: 0 | JQ79: 0 | JR79: 0 | JS79: 0 | JT79: 0 | JU79: 0 | JV79: 0 | JW79: 0 | JX79: 0 | JY79: 0 | JZ79: 0 | KA79: 0 | KB79: 0 | KC79: 0 | KD79: 0 | KE79: 0 | KF79: 0 | KG79: 0 | KH79: 0 | KI79: 0 | KJ79: 0 | KK79: 0 | KL79: 0 | KM79: 0 | KN79: 0 | KO79: 0 | KP79: 0 | KQ79: 0 | KR79: 0 | KS79: 0 | KT79: 0 | KU79: 0 | KV79: 0 | KW79: 0 | KX79: =KX6 -> 0 | KY79: 0 | KZ79: 0 | LA79: 0 | LB79: 0 | LC79: 0 | LD79: 0 | LE79: 0 | LF79: 0 | LG79: 0 | LH79: 0 | LI79: 0 | LJ79: 0 | LK79: 0 | LL79: 0 | LM79: 0 | LN79: 0 | LO79: 0 | LP79: 0 | LQ79: 0 | LR79: 0 | LS79: 0 | LT79: 0 | LU79: 0 | LV79: 0 | LW79: 0 | LX79: 0 | LY79: 0 | LZ79: 0 | MA79: 0 | MB79: 0 | MC79: 0 | MD79: 0 | ME79: 0 | MF79: 0 | MG79: 0 | MH79: 0 | MI79: 0 | MJ79: 0 | MK79: 0 | ML79: 0 | MM79: 0 | MN79: 0 | MO79: 0 | MP79: 0 | MQ79: 0 | MR79: 0 | MS79: 0 | MT79: 0 | MU79: 0 | MV79: 0 | MW79: 0 | MX79: 0 | MY79: 0 | MZ79: 0 | NA79: 0 | NB79: 0 | NC79: 0 | ND79: 0 | NE79: 0 | NF79: 0 | NG79: 0 | NH79: 0 | NI79: 0 | NJ79: =NJ6 -> 0 | NK79: 0 | NL79: 0 | NM79: 0 | NN79: 0 | NO79: 0 | NP79: 0 | NQ79: 0 | NR79: 0 | NS79: 0 | NT79: 0 | NU79: 0 | NV79: 0 | NW79: 0 | NX79: 0 | NY79: 0 | NZ79: 0 | OA79: 0 | OB79: 0 | OC79: 0 | OD79: 0 | OE79: 0 | OF79: 0 | OG79: 0 | OH79: 0 | OI79: 0 | OJ79: 0 | OK79: 0 | OL79: 0 | OM79: 0 | ON79: 0 | OO79: 0 | OP79: 0 | OQ79: 0 | OR79: 0 | OS79: 0 | OT79: 0 | OU79: 0 | OV79: 0 | OW79: 0 | OX79: 0 | OY79: 0 | OZ79: 0 | PA79: 0 | PB79: 0 | PC79: 0 | PD79: 0 | PE79: 0 | PF79: 0 | PG79: 0 | PH79: 0 | PI79: 0 | PJ79: 0 | PK79: 0 | PL79: 0 | PM79: 0 | PN79: 0 | PO79: 0 | PP79: 0 | PQ79: 0 | PR79: 0 | PS79: 0 | PT79: 0 | PU79: 0 | PV79: =PV6 -> 0 | PW79: 0 | PX79: 0 | PY79: 0 | PZ79: 0 | QA79: 0 | QB79: 0 | QC79: 0 | QD79: 0 | QE79: 0 | QF79: 0 | QG79: 0 | QH79: 0 | QI79: 0 | QJ79: 0 | QK79: 0 | QL79: 0 | QM79: 0 | QN79: 0 | QO79: 0 | QP79: 0 | QQ79: 0 | QR79: 0 | QS79: 0 | QT79: 0 | QU79: 0 | QV79: 0 | QW79: 0 | QX79: 0 | QY79: 0 | QZ79: 0 | RA79: 0 | RB79: 0 | RC79: 0 | RD79: 0 | RE79: 0 | RF79: 0 | RG79: 0 | RH79: 0 | RI79: 0 | RJ79: 0 | RK79: 0 | RL79: 0 | RM79: 0 | RN79: 0 | RO79: 0 | RP79: 0 | RQ79: 0 | RR79: 0 | RS79: 0 | RT79: 0 | RU79: 0 | RV79: 0 | RW79: 0 | RX79: 0 | RY79: 0 | RZ79: 0 | SA79: 0 | SB79: 0 | SC79: 0 | SD79: 0 | SE79: 0 | SF79: 0 | SG79: 0 | SH79: =SH6 -> 0 | SI79: 0 | SJ79: 0 | SK79: 0 | SL79: 0 | SM79: 0 | SN79: 0 | SO79: 0 | SP79: 0 | SQ79: 0 | SR79: 0 | SS79: 0 | ST79: 0 | SU79: 0 | SV79: 0 | SW79: 0 | SX79: 0 | SY79: 0 | SZ79: 0 | TA79: 0 | TB79: 0 | TC79: 0
